{"text_format":"1","workbook":"xlsx","n_sheets":9,"sheets":["Introduktion","Benzin - diesel - hybrid","El og plugin hybrid","Sammenligning på tværs","Beregningsmetode","Interne beregninger - B&D&H","Interne beregninger - E&PH","ENS udvikling i elpris","ENS udvikling i brændstofspris"],"not_rendered":{"charts":11,"images":1,"macros":1,"external_links":4,"defined_names":58,"comments":0,"pivot_tables":0},"unopened":[],"bounds":{"document_bytes":16777216,"sheet_cells":100000,"rows_first":2000,"rows_last":500,"rows_between":2000,"halvings":0,"cell_chars":16384,"cell_head_chars":4096},"cells_cut":0,"cells_raw":0,"read":"whole","date_system":"1900"}

{"sheet":"Introduktion","index":0,"n_rows":0,"n_cols":0,"rows_kept":0,"cut":false,"hidden":false,"merged":[]}

{"sheet":"Benzin - diesel - hybrid","index":1,"n_rows":158,"n_cols":19,"rows_kept":158,"cut":false,"hidden":false,"merged":[[26,1,26,3],[43,1,43,3]]}
[null,"TCO-værktøj til tilbudsevaluering"]
[null,"Motorkøretøjer - operationel leasing"]
[null,"For følgende køretøjer: Benzin- eller dielsel samt hybrid (ikke plugin hybrid)"]
[]
[]
[null,"3   Tilbudsgiver: Oplysninger om produktet"]
[]
[null,null,"Produktets navn",null,"PRODUKT 1",null,"PRODUKT 2",null,"PRODUKT 3",null,"PRODUKT 4",null,"PRODUKT 5",null,"PRODUKT 6",null,"PRODUKT 7",null,"PRODUKT 8"]
[null,null,"Investeringsomkostninger"]
[null,null,"Evt. etableringsgebyr","kr. per køretøj"]
[]
[null,null,"Driftsomkostninger"]
[null,null,"Brændstofforbrug (jf. WLTP eller VECTO)","km/liter"]
[]
[null,null,"Service, vedligehold og løbende omkostninger"]
[null,null,"Pris finansieret via leasing jf. kravsspecifikation","kr./år per køretøj "]
[null,null,"Grøn ejerafgift","kr./år per køretøj "]
[]
[]
[]
[null,"2   Ordregiver: Oplysninger om brugen"]
[null,null,"Antal køretøjer","stk.",1,null,{"$f":"$E22","v":1},null,{"$f":"$E22","v":1},null,{"$f":"$E22","v":1},null,{"$f":"$E22","v":1},null,{"$f":"$E22","v":1},null,{"$f":"$E22","v":1},null,{"$f":"$E22","v":1}]
[null,null,"Årligt kørselsforbrug per motorkøretøj","km/år per køretøj",null,null,{"$f":"$E23","v":0},null,{"$f":"$E23","v":0},null,{"$f":"$E23","v":0},null,{"$f":"$E23","v":0},null,{"$f":"$E23","v":0},null,{"$f":"$E23","v":0},null,{"$f":"$E23","v":0}]
[]
[]
[]
[null,"1   Ordregiver: Baggrundsdata"]
[null,null,"TCO-evalueringsperiode (samme som serviceaftale-perioden jf. kravspecifikationen)","antal år",4,null,{"$f":"$E28","v":4},null,{"$f":"$E28","v":4},null,{"$f":"$E28","v":4},null,{"$f":"$E28","v":4},null,{"$f":"$E28","v":4},null,{"$f":"$E28","v":4},null,{"$f":"$E28","v":4}]
[null,null,"Diskonteringsrente","% per år",4,null,4,null,4,null,4,null,4,null,4,null,4,null,4]
[null,null,"Brændstofprisstigning (årligt, ud over inflation) for benzin","% per år",{"$f":"'ENS udvikling i brændstofspris'!G10*100","v":1.3850460757952376},null,{"$f":"$E30","v":1.3850460757952376},null,{"$f":"$E30","v":1.3850460757952376},null,{"$f":"$E30","v":1.3850460757952376},null,{"$f":"$E30","v":1.3850460757952376},null,{"$f":"$E30","v":1.3850460757952376},null,{"$f":"$E30","v":1.3850460757952376},null,{"$f":"$E30","v":1.3850460757952376}]
[null,null,"Brændstofprisstigning (årligt, ud over inflation) for diesel","% per år",{"$f":"'ENS udvikling i brændstofspris'!I10*100","v":1.4477326198338414},null,{"$f":"$E31","v":1.4477326198338414},null,{"$f":"$E31","v":1.4477326198338414},null,{"$f":"$E31","v":1.4477326198338414},null,{"$f":"$E31","v":1.4477326198338414},null,{"$f":"$E31","v":1.4477326198338414},null,{"$f":"$E31","v":1.4477326198338414},null,{"$f":"$E31","v":1.4477326198338414}]
[]
[null,null,"Driftsomkostninger"]
[null,null,"Pris for benzin","kr./liter ",{"$f":"12.33","v":12.33},null,{"$f":"$E34","v":12.33},null,{"$f":"$E34","v":12.33},null,{"$f":"$E34","v":12.33},null,{"$f":"$E34","v":12.33},null,{"$f":"$E34","v":12.33},null,{"$f":"$E34","v":12.33},null,{"$f":"$E34","v":12.33}]
[null,null,"Pris for diesel","kr./liter ",{"$f":"10.83","v":10.83},null,{"$f":"$E35","v":10.83},null,{"$f":"$E35","v":10.83},null,{"$f":"$E35","v":10.83},null,{"$f":"$E35","v":10.83},null,{"$f":"$E35","v":10.83},null,{"$f":"$E35","v":10.83},null,{"$f":"$E35","v":10.83}]
[null,null,"Valg af type brændstof",null,"Klik for valg",null,"Klik for valg",null,"Klik for valg",null,"Klik for valg",null,"Klik for valg",null,"Klik for valg",null,"Klik for valg",null,"Klik for valg"]
[]
[null,null,"Service, vedligehold og løbende omkostninger"]
[null,null,"Forsikring","kr./år per køretøj "]
[null,null,"Andre løbende omkostninger","kr./år per køretøj "]
[]
[]
[]
[null,"4   Resultat"]
[]
[null,null,{"$f":"C9&\" i alt\"","v":"Investeringsomkostninger i alt"},"kr.",{"$f":"E10*E22","v":0},null,{"$f":"G10*G22","v":0},null,{"$f":"I10*I22","v":0},null,{"$f":"K10*K22","v":0},null,{"$f":"M10*M22","v":0},null,{"$f":"O10*O22","v":0},null,{"$f":"Q10*Q22","v":0},null,{"$f":"S10*S22","v":0}]
[null,null,{"$f":"C12&\" i alt\"","v":"Driftsomkostninger i alt"},"kr.",{"$f":"SUM('Interne beregninger - B&D&H'!E24:E38)*E22","v":{"$error":"#DIV/0!"}},null,{"$f":"SUM('Interne beregninger - B&D&H'!G24:G38)*G22","v":{"$error":"#DIV/0!"}},null,{"$f":"SUM('Interne beregninger - B&D&H'!I24:I38)*I22","v":{"$error":"#DIV/0!"}},null,{"$f":"SUM('Interne beregninger - B&D&H'!K24:K38)*K22","v":{"$error":"#DIV/0!"}},null,{"$f":"SUM('Interne beregninger - B&D&H'!M24:M38)*M22","v":{"$error":"#DIV/0!"}},null,{"$f":"SUM('Interne beregninger - B&D&H'!O24:O38)*O22","v":{"$error":"#DIV/0!"}},null,{"$f":"SUM('Interne beregninger - B&D&H'!Q24:Q38)*Q22","v":{"$error":"#DIV/0!"}},null,{"$f":"SUM('Interne beregninger - B&D&H'!S24:S38)*S22","v":{"$error":"#DIV/0!"}}]
[null,null,{"$f":"C15&\" i alt\"","v":"Service, vedligehold og løbende omkostninger i alt"},"kr.",{"$f":"SUM('Interne beregninger - B&D&H'!E42:E56)*E22","v":0},null,{"$f":"SUM('Interne beregninger - B&D&H'!G42:G56)*G22","v":0},null,{"$f":"SUM('Interne beregninger - B&D&H'!I42:I56)*I22","v":0},null,{"$f":"SUM('Interne beregninger - B&D&H'!K42:K56)*K22","v":0},null,{"$f":"SUM('Interne beregninger - B&D&H'!M42:M56)*M22","v":0},null,{"$f":"SUM('Interne beregninger - B&D&H'!O42:O56)*O22","v":0},null,{"$f":"SUM('Interne beregninger - B&D&H'!Q42:Q56)*Q22","v":0},null,{"$f":"SUM('Interne beregninger - B&D&H'!S42:S56)*S22","v":0}]
[]
[null,null,"Samlet TCO (nutidsværdi)","kr.",{"$f":"SUM(E46:E48)","v":{"$error":"#DIV/0!"}},null,{"$f":"SUM(G46:G48)","v":{"$error":"#DIV/0!"}},null,{"$f":"SUM(I46:I48)","v":{"$error":"#DIV/0!"}},null,{"$f":"SUM(K46:K48)","v":{"$error":"#DIV/0!"}},null,{"$f":"SUM(M46:M48)","v":{"$error":"#DIV/0!"}},null,{"$f":"SUM(O46:O48)","v":{"$error":"#DIV/0!"}},null,{"$f":"SUM(Q46:Q48)","v":{"$error":"#DIV/0!"}},null,{"$f":"SUM(S46:S48)","v":{"$error":"#DIV/0!"}}]
[null,null,"Gennemsnitlige årlige omkostninger","kr./år",{"$f":"IF(E28=1,E50,PMT(E29/100,E28,-E50))","v":{"$error":"#DIV/0!"}},null,{"$f":"IF(G28=1,G50,PMT(G29/100,G28,-G50))","v":{"$error":"#DIV/0!"}},null,{"$f":"IF(I28=1,I50,PMT(I29/100,I28,-I50))","v":{"$error":"#DIV/0!"}},null,{"$f":"IF(K28=1,K50,PMT(K29/100,K28,-K50))","v":{"$error":"#DIV/0!"}},null,{"$f":"IF(M28=1,M50,PMT(M29/100,M28,-M50))","v":{"$error":"#DIV/0!"}},null,{"$f":"IF(O28=1,O50,PMT(O29/100,O28,-O50))","v":{"$error":"#DIV/0!"}},null,{"$f":"IF(Q28=1,Q50,PMT(Q29/100,Q28,-Q50))","v":{"$error":"#DIV/0!"}},null,{"$f":"IF(S28=1,S50,PMT(S29/100,S28,-S50))","v":{"$error":"#DIV/0!"}}]
[]
[]
[]
[]
[]
[]
[]
[]
[]
[]
[]
[]
[]
[]
[]
[]
[]
[]
[]
[]
[]
[]
[]
[]
[]
[]
[]
[]
[]
[]
[]
[]
[]
[]
[]
[]
[]
[]
[]
[]
[]
[]
[]
[]
[]
[]
[]
[]
[]
[]
[]
[]
[]
[]
[]
[]
[]
[]
[]
[]
[]
[]
[]
[]
[]
[]
[]
[]
[]
[]
[]
[null,null,null,"DENNE TEKST SKAL SKRIVES MED HVID TEKST OG SKJULES TIL SIDST!"]
[]
[]
[null,null,"Akkumulerede samlede udgifter (nutidsværdi)",null,{"$f":"+'Interne beregninger - B&D&H'!E5","v":"PRODUKT 1"},null,{"$f":"+'Interne beregninger - B&D&H'!G5","v":"PRODUKT 2"},null,{"$f":"+'Interne beregninger - B&D&H'!I5","v":"PRODUKT 3"},null,{"$f":"+'Interne beregninger - B&D&H'!K5","v":"PRODUKT 4"},null,{"$f":"+'Interne beregninger - B&D&H'!M5","v":"PRODUKT 5"},null,{"$f":"+'Interne beregninger - B&D&H'!O5","v":"PRODUKT 6"},null,{"$f":"+'Interne beregninger - B&D&H'!Q5","v":"PRODUKT 7"},null,{"$f":"+'Interne beregninger - B&D&H'!S5","v":"PRODUKT 8"}]
[null,null,null,null,{"$f":"+'Interne beregninger - B&D&H'!E6","v":{"$error":"#DIV/0!"}},null,{"$f":"+'Interne beregninger - B&D&H'!G6","v":{"$error":"#DIV/0!"}},null,{"$f":"+'Interne beregninger - B&D&H'!I6","v":{"$error":"#DIV/0!"}},null,{"$f":"+'Interne beregninger - B&D&H'!K6","v":{"$error":"#DIV/0!"}},null,{"$f":"+'Interne beregninger - B&D&H'!M6","v":{"$error":"#DIV/0!"}},null,{"$f":"+'Interne beregninger - B&D&H'!O6","v":{"$error":"#DIV/0!"}},null,{"$f":"+'Interne beregninger - B&D&H'!Q6","v":{"$error":"#DIV/0!"}},null,{"$f":"+'Interne beregninger - B&D&H'!S6","v":{"$error":"#DIV/0!"}}]
[null,null,null,null,{"$f":"+'Interne beregninger - B&D&H'!E7","v":{"$error":"#DIV/0!"}},null,{"$f":"+'Interne beregninger - B&D&H'!G7","v":{"$error":"#DIV/0!"}},null,{"$f":"+'Interne beregninger - B&D&H'!I7","v":{"$error":"#DIV/0!"}},null,{"$f":"+'Interne beregninger - B&D&H'!K7","v":{"$error":"#DIV/0!"}},null,{"$f":"+'Interne beregninger - B&D&H'!M7","v":{"$error":"#DIV/0!"}},null,{"$f":"+'Interne beregninger - B&D&H'!O7","v":{"$error":"#DIV/0!"}},null,{"$f":"+'Interne beregninger - B&D&H'!Q7","v":{"$error":"#DIV/0!"}},null,{"$f":"+'Interne beregninger - B&D&H'!S7","v":{"$error":"#DIV/0!"}}]
[null,null,null,null,{"$f":"+'Interne beregninger - B&D&H'!E8","v":{"$error":"#DIV/0!"}},null,{"$f":"+'Interne beregninger - B&D&H'!G8","v":{"$error":"#DIV/0!"}},null,{"$f":"+'Interne beregninger - B&D&H'!I8","v":{"$error":"#DIV/0!"}},null,{"$f":"+'Interne beregninger - B&D&H'!K8","v":{"$error":"#DIV/0!"}},null,{"$f":"+'Interne beregninger - B&D&H'!M8","v":{"$error":"#DIV/0!"}},null,{"$f":"+'Interne beregninger - B&D&H'!O8","v":{"$error":"#DIV/0!"}},null,{"$f":"+'Interne beregninger - B&D&H'!Q8","v":{"$error":"#DIV/0!"}},null,{"$f":"+'Interne beregninger - B&D&H'!S8","v":{"$error":"#DIV/0!"}}]
[null,null,null,null,{"$f":"+'Interne beregninger - B&D&H'!E9","v":{"$error":"#DIV/0!"}},null,{"$f":"+'Interne beregninger - B&D&H'!G9","v":{"$error":"#DIV/0!"}},null,{"$f":"+'Interne beregninger - B&D&H'!I9","v":{"$error":"#DIV/0!"}},null,{"$f":"+'Interne beregninger - B&D&H'!K9","v":{"$error":"#DIV/0!"}},null,{"$f":"+'Interne beregninger - B&D&H'!M9","v":{"$error":"#DIV/0!"}},null,{"$f":"+'Interne beregninger - B&D&H'!O9","v":{"$error":"#DIV/0!"}},null,{"$f":"+'Interne beregninger - B&D&H'!Q9","v":{"$error":"#DIV/0!"}},null,{"$f":"+'Interne beregninger - B&D&H'!S9","v":{"$error":"#DIV/0!"}}]
[null,null,null,null,{"$f":"+'Interne beregninger - B&D&H'!E10","v":{"$error":"#DIV/0!"}},null,{"$f":"+'Interne beregninger - B&D&H'!G10","v":{"$error":"#DIV/0!"}},null,{"$f":"+'Interne beregninger - B&D&H'!I10","v":{"$error":"#DIV/0!"}},null,{"$f":"+'Interne beregninger - B&D&H'!K10","v":{"$error":"#DIV/0!"}},null,{"$f":"+'Interne beregninger - B&D&H'!M10","v":{"$error":"#DIV/0!"}},null,{"$f":"+'Interne beregninger - B&D&H'!O10","v":{"$error":"#DIV/0!"}},null,{"$f":"+'Interne beregninger - B&D&H'!Q10","v":{"$error":"#DIV/0!"}},null,{"$f":"+'Interne beregninger - B&D&H'!S10","v":{"$error":"#DIV/0!"}}]
[null,null,null,null,{"$f":"+'Interne beregninger - B&D&H'!E11","v":{"$error":"#DIV/0!"}},null,{"$f":"+'Interne beregninger - B&D&H'!G11","v":{"$error":"#DIV/0!"}},null,{"$f":"+'Interne beregninger - B&D&H'!I11","v":{"$error":"#DIV/0!"}},null,{"$f":"+'Interne beregninger - B&D&H'!K11","v":{"$error":"#DIV/0!"}},null,{"$f":"+'Interne beregninger - B&D&H'!M11","v":{"$error":"#DIV/0!"}},null,{"$f":"+'Interne beregninger - B&D&H'!O11","v":{"$error":"#DIV/0!"}},null,{"$f":"+'Interne beregninger - B&D&H'!Q11","v":{"$error":"#DIV/0!"}},null,{"$f":"+'Interne beregninger - B&D&H'!S11","v":{"$error":"#DIV/0!"}}]
[null,null,null,null,{"$f":"+'Interne beregninger - B&D&H'!E12","v":{"$error":"#DIV/0!"}},null,{"$f":"+'Interne beregninger - B&D&H'!G12","v":{"$error":"#DIV/0!"}},null,{"$f":"+'Interne beregninger - B&D&H'!I12","v":{"$error":"#DIV/0!"}},null,{"$f":"+'Interne beregninger - B&D&H'!K12","v":{"$error":"#DIV/0!"}},null,{"$f":"+'Interne beregninger - B&D&H'!M12","v":{"$error":"#DIV/0!"}},null,{"$f":"+'Interne beregninger - B&D&H'!O12","v":{"$error":"#DIV/0!"}},null,{"$f":"+'Interne beregninger - B&D&H'!Q12","v":{"$error":"#DIV/0!"}},null,{"$f":"+'Interne beregninger - B&D&H'!S12","v":{"$error":"#DIV/0!"}}]
[null,null,null,null,{"$f":"+'Interne beregninger - B&D&H'!E13","v":{"$error":"#DIV/0!"}},null,{"$f":"+'Interne beregninger - B&D&H'!G13","v":{"$error":"#DIV/0!"}},null,{"$f":"+'Interne beregninger - B&D&H'!I13","v":{"$error":"#DIV/0!"}},null,{"$f":"+'Interne beregninger - B&D&H'!K13","v":{"$error":"#DIV/0!"}},null,{"$f":"+'Interne beregninger - B&D&H'!M13","v":{"$error":"#DIV/0!"}},null,{"$f":"+'Interne beregninger - B&D&H'!O13","v":{"$error":"#DIV/0!"}},null,{"$f":"+'Interne beregninger - B&D&H'!Q13","v":{"$error":"#DIV/0!"}},null,{"$f":"+'Interne beregninger - B&D&H'!S13","v":{"$error":"#DIV/0!"}}]
[null,null,null,null,{"$f":"+'Interne beregninger - B&D&H'!E14","v":{"$error":"#DIV/0!"}},null,{"$f":"+'Interne beregninger - B&D&H'!G14","v":{"$error":"#DIV/0!"}},null,{"$f":"+'Interne beregninger - B&D&H'!I14","v":{"$error":"#DIV/0!"}},null,{"$f":"+'Interne beregninger - B&D&H'!K14","v":{"$error":"#DIV/0!"}},null,{"$f":"+'Interne beregninger - B&D&H'!M14","v":{"$error":"#DIV/0!"}},null,{"$f":"+'Interne beregninger - B&D&H'!O14","v":{"$error":"#DIV/0!"}},null,{"$f":"+'Interne beregninger - B&D&H'!Q14","v":{"$error":"#DIV/0!"}},null,{"$f":"+'Interne beregninger - B&D&H'!S14","v":{"$error":"#DIV/0!"}}]
[null,null,null,null,{"$f":"+'Interne beregninger - B&D&H'!E15","v":{"$error":"#DIV/0!"}},null,{"$f":"+'Interne beregninger - B&D&H'!G15","v":{"$error":"#DIV/0!"}},null,{"$f":"+'Interne beregninger - B&D&H'!I15","v":{"$error":"#DIV/0!"}},null,{"$f":"+'Interne beregninger - B&D&H'!K15","v":{"$error":"#DIV/0!"}},null,{"$f":"+'Interne beregninger - B&D&H'!M15","v":{"$error":"#DIV/0!"}},null,{"$f":"+'Interne beregninger - B&D&H'!O15","v":{"$error":"#DIV/0!"}},null,{"$f":"+'Interne beregninger - B&D&H'!Q15","v":{"$error":"#DIV/0!"}},null,{"$f":"+'Interne beregninger - B&D&H'!S15","v":{"$error":"#DIV/0!"}}]
[null,null,null,null,{"$f":"+'Interne beregninger - B&D&H'!E16","v":{"$error":"#DIV/0!"}},null,{"$f":"+'Interne beregninger - B&D&H'!G16","v":{"$error":"#DIV/0!"}},null,{"$f":"+'Interne beregninger - B&D&H'!I16","v":{"$error":"#DIV/0!"}},null,{"$f":"+'Interne beregninger - B&D&H'!K16","v":{"$error":"#DIV/0!"}},null,{"$f":"+'Interne beregninger - B&D&H'!M16","v":{"$error":"#DIV/0!"}},null,{"$f":"+'Interne beregninger - B&D&H'!O16","v":{"$error":"#DIV/0!"}},null,{"$f":"+'Interne beregninger - B&D&H'!Q16","v":{"$error":"#DIV/0!"}},null,{"$f":"+'Interne beregninger - B&D&H'!S16","v":{"$error":"#DIV/0!"}}]
[null,null,null,null,{"$f":"+'Interne beregninger - B&D&H'!E17","v":{"$error":"#DIV/0!"}},null,{"$f":"+'Interne beregninger - B&D&H'!G17","v":{"$error":"#DIV/0!"}},null,{"$f":"+'Interne beregninger - B&D&H'!I17","v":{"$error":"#DIV/0!"}},null,{"$f":"+'Interne beregninger - B&D&H'!K17","v":{"$error":"#DIV/0!"}},null,{"$f":"+'Interne beregninger - B&D&H'!M17","v":{"$error":"#DIV/0!"}},null,{"$f":"+'Interne beregninger - B&D&H'!O17","v":{"$error":"#DIV/0!"}},null,{"$f":"+'Interne beregninger - B&D&H'!Q17","v":{"$error":"#DIV/0!"}},null,{"$f":"+'Interne beregninger - B&D&H'!S17","v":{"$error":"#DIV/0!"}}]
[null,null,null,null,{"$f":"+'Interne beregninger - B&D&H'!E18","v":{"$error":"#DIV/0!"}},null,{"$f":"+'Interne beregninger - B&D&H'!G18","v":{"$error":"#DIV/0!"}},null,{"$f":"+'Interne beregninger - B&D&H'!I18","v":{"$error":"#DIV/0!"}},null,{"$f":"+'Interne beregninger - B&D&H'!K18","v":{"$error":"#DIV/0!"}},null,{"$f":"+'Interne beregninger - B&D&H'!M18","v":{"$error":"#DIV/0!"}},null,{"$f":"+'Interne beregninger - B&D&H'!O18","v":{"$error":"#DIV/0!"}},null,{"$f":"+'Interne beregninger - B&D&H'!Q18","v":{"$error":"#DIV/0!"}},null,{"$f":"+'Interne beregninger - B&D&H'!S18","v":{"$error":"#DIV/0!"}}]
[null,null,null,null,{"$f":"+'Interne beregninger - B&D&H'!E19","v":{"$error":"#DIV/0!"}},null,{"$f":"+'Interne beregninger - B&D&H'!G19","v":{"$error":"#DIV/0!"}},null,{"$f":"+'Interne beregninger - B&D&H'!I19","v":{"$error":"#DIV/0!"}},null,{"$f":"+'Interne beregninger - B&D&H'!K19","v":{"$error":"#DIV/0!"}},null,{"$f":"+'Interne beregninger - B&D&H'!M19","v":{"$error":"#DIV/0!"}},null,{"$f":"+'Interne beregninger - B&D&H'!O19","v":{"$error":"#DIV/0!"}},null,{"$f":"+'Interne beregninger - B&D&H'!Q19","v":{"$error":"#DIV/0!"}},null,{"$f":"+'Interne beregninger - B&D&H'!S19","v":{"$error":"#DIV/0!"}}]
[null,null,null,null,{"$f":"+'Interne beregninger - B&D&H'!E20","v":{"$error":"#DIV/0!"}},null,{"$f":"+'Interne beregninger - B&D&H'!G20","v":{"$error":"#DIV/0!"}},null,{"$f":"+'Interne beregninger - B&D&H'!I20","v":{"$error":"#DIV/0!"}},null,{"$f":"+'Interne beregninger - B&D&H'!K20","v":{"$error":"#DIV/0!"}},null,{"$f":"+'Interne beregninger - B&D&H'!M20","v":{"$error":"#DIV/0!"}},null,{"$f":"+'Interne beregninger - B&D&H'!O20","v":{"$error":"#DIV/0!"}},null,{"$f":"+'Interne beregninger - B&D&H'!Q20","v":{"$error":"#DIV/0!"}},null,{"$f":"+'Interne beregninger - B&D&H'!S20","v":{"$error":"#DIV/0!"}}]
[]
[null,null,"Gennemsnitlige årlige omkostninger (relation til levetid)",null,{"$f":"+'Interne beregninger - B&D&H'!E77","v":"PRODUKT 1"},null,{"$f":"+'Interne beregninger - B&D&H'!G77","v":"PRODUKT 2"},null,{"$f":"+'Interne beregninger - B&D&H'!I77","v":"PRODUKT 3"},null,{"$f":"+'Interne beregninger - B&D&H'!K77","v":"PRODUKT 4"},null,{"$f":"+'Interne beregninger - B&D&H'!M77","v":"PRODUKT 5"},null,{"$f":"+'Interne beregninger - B&D&H'!O77","v":"PRODUKT 6"},null,{"$f":"+'Interne beregninger - B&D&H'!Q77","v":"PRODUKT 7"},null,{"$f":"+'Interne beregninger - B&D&H'!S77","v":"PRODUKT 8"}]
[null,null,null,null,{"$f":"+'Interne beregninger - B&D&H'!E78","v":{"$error":"#DIV/0!"}},null,{"$f":"+'Interne beregninger - B&D&H'!G78","v":{"$error":"#DIV/0!"}},null,{"$f":"+'Interne beregninger - B&D&H'!I78","v":{"$error":"#DIV/0!"}},null,{"$f":"+'Interne beregninger - B&D&H'!K78","v":{"$error":"#DIV/0!"}},null,{"$f":"+'Interne beregninger - B&D&H'!M78","v":{"$error":"#DIV/0!"}},null,{"$f":"+'Interne beregninger - B&D&H'!O78","v":{"$error":"#DIV/0!"}},null,{"$f":"+'Interne beregninger - B&D&H'!Q78","v":{"$error":"#DIV/0!"}},null,{"$f":"+'Interne beregninger - B&D&H'!S78","v":{"$error":"#DIV/0!"}}]
[null,null,null,null,{"$f":"+'Interne beregninger - B&D&H'!E79","v":{"$error":"#DIV/0!"}},null,{"$f":"+'Interne beregninger - B&D&H'!G79","v":{"$error":"#DIV/0!"}},null,{"$f":"+'Interne beregninger - B&D&H'!I79","v":{"$error":"#DIV/0!"}},null,{"$f":"+'Interne beregninger - B&D&H'!K79","v":{"$error":"#DIV/0!"}},null,{"$f":"+'Interne beregninger - B&D&H'!M79","v":{"$error":"#DIV/0!"}},null,{"$f":"+'Interne beregninger - B&D&H'!O79","v":{"$error":"#DIV/0!"}},null,{"$f":"+'Interne beregninger - B&D&H'!Q79","v":{"$error":"#DIV/0!"}},null,{"$f":"+'Interne beregninger - B&D&H'!S79","v":{"$error":"#DIV/0!"}}]
[null,null,null,null,{"$f":"+'Interne beregninger - B&D&H'!E80","v":{"$error":"#DIV/0!"}},null,{"$f":"+'Interne beregninger - B&D&H'!G80","v":{"$error":"#DIV/0!"}},null,{"$f":"+'Interne beregninger - B&D&H'!I80","v":{"$error":"#DIV/0!"}},null,{"$f":"+'Interne beregninger - B&D&H'!K80","v":{"$error":"#DIV/0!"}},null,{"$f":"+'Interne beregninger - B&D&H'!M80","v":{"$error":"#DIV/0!"}},null,{"$f":"+'Interne beregninger - B&D&H'!O80","v":{"$error":"#DIV/0!"}},null,{"$f":"+'Interne beregninger - B&D&H'!Q80","v":{"$error":"#DIV/0!"}},null,{"$f":"+'Interne beregninger - B&D&H'!S80","v":{"$error":"#DIV/0!"}}]
[null,null,null,null,{"$f":"+'Interne beregninger - B&D&H'!E81","v":{"$error":"#DIV/0!"}},null,{"$f":"+'Interne beregninger - B&D&H'!G81","v":{"$error":"#DIV/0!"}},null,{"$f":"+'Interne beregninger - B&D&H'!I81","v":{"$error":"#DIV/0!"}},null,{"$f":"+'Interne beregninger - B&D&H'!K81","v":{"$error":"#DIV/0!"}},null,{"$f":"+'Interne beregninger - B&D&H'!M81","v":{"$error":"#DIV/0!"}},null,{"$f":"+'Interne beregninger - B&D&H'!O81","v":{"$error":"#DIV/0!"}},null,{"$f":"+'Interne beregninger - B&D&H'!Q81","v":{"$error":"#DIV/0!"}},null,{"$f":"+'Interne beregninger - B&D&H'!S81","v":{"$error":"#DIV/0!"}}]
[null,null,null,null,{"$f":"+'Interne beregninger - B&D&H'!E82","v":{"$error":"#DIV/0!"}},null,{"$f":"+'Interne beregninger - B&D&H'!G82","v":{"$error":"#DIV/0!"}},null,{"$f":"+'Interne beregninger - B&D&H'!I82","v":{"$error":"#DIV/0!"}},null,{"$f":"+'Interne beregninger - B&D&H'!K82","v":{"$error":"#DIV/0!"}},null,{"$f":"+'Interne beregninger - B&D&H'!M82","v":{"$error":"#DIV/0!"}},null,{"$f":"+'Interne beregninger - B&D&H'!O82","v":{"$error":"#DIV/0!"}},null,{"$f":"+'Interne beregninger - B&D&H'!Q82","v":{"$error":"#DIV/0!"}},null,{"$f":"+'Interne beregninger - B&D&H'!S82","v":{"$error":"#DIV/0!"}}]
[null,null,null,null,{"$f":"+'Interne beregninger - B&D&H'!E83","v":{"$error":"#DIV/0!"}},null,{"$f":"+'Interne beregninger - B&D&H'!G83","v":{"$error":"#DIV/0!"}},null,{"$f":"+'Interne beregninger - B&D&H'!I83","v":{"$error":"#DIV/0!"}},null,{"$f":"+'Interne beregninger - B&D&H'!K83","v":{"$error":"#DIV/0!"}},null,{"$f":"+'Interne beregninger - B&D&H'!M83","v":{"$error":"#DIV/0!"}},null,{"$f":"+'Interne beregninger - B&D&H'!O83","v":{"$error":"#DIV/0!"}},null,{"$f":"+'Interne beregninger - B&D&H'!Q83","v":{"$error":"#DIV/0!"}},null,{"$f":"+'Interne beregninger - B&D&H'!S83","v":{"$error":"#DIV/0!"}}]
[null,null,null,null,{"$f":"+'Interne beregninger - B&D&H'!E84","v":{"$error":"#DIV/0!"}},null,{"$f":"+'Interne beregninger - B&D&H'!G84","v":{"$error":"#DIV/0!"}},null,{"$f":"+'Interne beregninger - B&D&H'!I84","v":{"$error":"#DIV/0!"}},null,{"$f":"+'Interne beregninger - B&D&H'!K84","v":{"$error":"#DIV/0!"}},null,{"$f":"+'Interne beregninger - B&D&H'!M84","v":{"$error":"#DIV/0!"}},null,{"$f":"+'Interne beregninger - B&D&H'!O84","v":{"$error":"#DIV/0!"}},null,{"$f":"+'Interne beregninger - B&D&H'!Q84","v":{"$error":"#DIV/0!"}},null,{"$f":"+'Interne beregninger - B&D&H'!S84","v":{"$error":"#DIV/0!"}}]
[null,null,null,null,{"$f":"+'Interne beregninger - B&D&H'!E85","v":{"$error":"#DIV/0!"}},null,{"$f":"+'Interne beregninger - B&D&H'!G85","v":{"$error":"#DIV/0!"}},null,{"$f":"+'Interne beregninger - B&D&H'!I85","v":{"$error":"#DIV/0!"}},null,{"$f":"+'Interne beregninger - B&D&H'!K85","v":{"$error":"#DIV/0!"}},null,{"$f":"+'Interne beregninger - B&D&H'!M85","v":{"$error":"#DIV/0!"}},null,{"$f":"+'Interne beregninger - B&D&H'!O85","v":{"$error":"#DIV/0!"}},null,{"$f":"+'Interne beregninger - B&D&H'!Q85","v":{"$error":"#DIV/0!"}},null,{"$f":"+'Interne beregninger - B&D&H'!S85","v":{"$error":"#DIV/0!"}}]
[null,null,null,null,{"$f":"+'Interne beregninger - B&D&H'!E86","v":{"$error":"#DIV/0!"}},null,{"$f":"+'Interne beregninger - B&D&H'!G86","v":{"$error":"#DIV/0!"}},null,{"$f":"+'Interne beregninger - B&D&H'!I86","v":{"$error":"#DIV/0!"}},null,{"$f":"+'Interne beregninger - B&D&H'!K86","v":{"$error":"#DIV/0!"}},null,{"$f":"+'Interne beregninger - B&D&H'!M86","v":{"$error":"#DIV/0!"}},null,{"$f":"+'Interne beregninger - B&D&H'!O86","v":{"$error":"#DIV/0!"}},null,{"$f":"+'Interne beregninger - B&D&H'!Q86","v":{"$error":"#DIV/0!"}},null,{"$f":"+'Interne beregninger - B&D&H'!S86","v":{"$error":"#DIV/0!"}}]
[null,null,null,null,{"$f":"+'Interne beregninger - B&D&H'!E87","v":{"$error":"#DIV/0!"}},null,{"$f":"+'Interne beregninger - B&D&H'!G87","v":{"$error":"#DIV/0!"}},null,{"$f":"+'Interne beregninger - B&D&H'!I87","v":{"$error":"#DIV/0!"}},null,{"$f":"+'Interne beregninger - B&D&H'!K87","v":{"$error":"#DIV/0!"}},null,{"$f":"+'Interne beregninger - B&D&H'!M87","v":{"$error":"#DIV/0!"}},null,{"$f":"+'Interne beregninger - B&D&H'!O87","v":{"$error":"#DIV/0!"}},null,{"$f":"+'Interne beregninger - B&D&H'!Q87","v":{"$error":"#DIV/0!"}},null,{"$f":"+'Interne beregninger - B&D&H'!S87","v":{"$error":"#DIV/0!"}}]
[null,null,null,null,{"$f":"+'Interne beregninger - B&D&H'!E88","v":{"$error":"#DIV/0!"}},null,{"$f":"+'Interne beregninger - B&D&H'!G88","v":{"$error":"#DIV/0!"}},null,{"$f":"+'Interne beregninger - B&D&H'!I88","v":{"$error":"#DIV/0!"}},null,{"$f":"+'Interne beregninger - B&D&H'!K88","v":{"$error":"#DIV/0!"}},null,{"$f":"+'Interne beregninger - B&D&H'!M88","v":{"$error":"#DIV/0!"}},null,{"$f":"+'Interne beregninger - B&D&H'!O88","v":{"$error":"#DIV/0!"}},null,{"$f":"+'Interne beregninger - B&D&H'!Q88","v":{"$error":"#DIV/0!"}},null,{"$f":"+'Interne beregninger - B&D&H'!S88","v":{"$error":"#DIV/0!"}}]
[null,null,null,null,{"$f":"+'Interne beregninger - B&D&H'!E89","v":{"$error":"#DIV/0!"}},null,{"$f":"+'Interne beregninger - B&D&H'!G89","v":{"$error":"#DIV/0!"}},null,{"$f":"+'Interne beregninger - B&D&H'!I89","v":{"$error":"#DIV/0!"}},null,{"$f":"+'Interne beregninger - B&D&H'!K89","v":{"$error":"#DIV/0!"}},null,{"$f":"+'Interne beregninger - B&D&H'!M89","v":{"$error":"#DIV/0!"}},null,{"$f":"+'Interne beregninger - B&D&H'!O89","v":{"$error":"#DIV/0!"}},null,{"$f":"+'Interne beregninger - B&D&H'!Q89","v":{"$error":"#DIV/0!"}},null,{"$f":"+'Interne beregninger - B&D&H'!S89","v":{"$error":"#DIV/0!"}}]
[null,null,null,null,{"$f":"+'Interne beregninger - B&D&H'!E90","v":{"$error":"#DIV/0!"}},null,{"$f":"+'Interne beregninger - B&D&H'!G90","v":{"$error":"#DIV/0!"}},null,{"$f":"+'Interne beregninger - B&D&H'!I90","v":{"$error":"#DIV/0!"}},null,{"$f":"+'Interne beregninger - B&D&H'!K90","v":{"$error":"#DIV/0!"}},null,{"$f":"+'Interne beregninger - B&D&H'!M90","v":{"$error":"#DIV/0!"}},null,{"$f":"+'Interne beregninger - B&D&H'!O90","v":{"$error":"#DIV/0!"}},null,{"$f":"+'Interne beregninger - B&D&H'!Q90","v":{"$error":"#DIV/0!"}},null,{"$f":"+'Interne beregninger - B&D&H'!S90","v":{"$error":"#DIV/0!"}}]
[null,null,null,null,{"$f":"+'Interne beregninger - B&D&H'!E91","v":{"$error":"#DIV/0!"}},null,{"$f":"+'Interne beregninger - B&D&H'!G91","v":{"$error":"#DIV/0!"}},null,{"$f":"+'Interne beregninger - B&D&H'!I91","v":{"$error":"#DIV/0!"}},null,{"$f":"+'Interne beregninger - B&D&H'!K91","v":{"$error":"#DIV/0!"}},null,{"$f":"+'Interne beregninger - B&D&H'!M91","v":{"$error":"#DIV/0!"}},null,{"$f":"+'Interne beregninger - B&D&H'!O91","v":{"$error":"#DIV/0!"}},null,{"$f":"+'Interne beregninger - B&D&H'!Q91","v":{"$error":"#DIV/0!"}},null,{"$f":"+'Interne beregninger - B&D&H'!S91","v":{"$error":"#DIV/0!"}}]
[null,null,null,null,{"$f":"+'Interne beregninger - B&D&H'!E92","v":{"$error":"#DIV/0!"}},null,{"$f":"+'Interne beregninger - B&D&H'!G92","v":{"$error":"#DIV/0!"}},null,{"$f":"+'Interne beregninger - B&D&H'!I92","v":{"$error":"#DIV/0!"}},null,{"$f":"+'Interne beregninger - B&D&H'!K92","v":{"$error":"#DIV/0!"}},null,{"$f":"+'Interne beregninger - B&D&H'!M92","v":{"$error":"#DIV/0!"}},null,{"$f":"+'Interne beregninger - B&D&H'!O92","v":{"$error":"#DIV/0!"}},null,{"$f":"+'Interne beregninger - B&D&H'!Q92","v":{"$error":"#DIV/0!"}},null,{"$f":"+'Interne beregninger - B&D&H'!S92","v":{"$error":"#DIV/0!"}}]

{"sheet":"El og plugin hybrid","index":2,"n_rows":178,"n_cols":19,"rows_kept":178,"cut":false,"hidden":false,"merged":[[32,1,32,3],[52,1,52,3],[62,1,62,3]]}
[null,"TCO-værktøj til tilbudsevaluering"]
[null,"Motorkøretøjer - finansieret ved køb eller finansiel leasing"]
[null,"For følgende køretøjer: El og plugin hybrid"]
[]
[]
[null,"3   Tilbudsgiver: Oplysninger om produktet"]
[]
[null,null,"Produktets navn",null,"PRODUKT 1 EL",null,"PRODUKT 2 EL",null,"PRODUKT 3 EL",null,"PRODUKT 4 EL",null,"PRODUKT 5 EL",null,"PRODUKT 6 EL",null,"PRODUKT 7 EL",null,"PRODUKT 8 EL"]
[null,null,"Investeringsomkostninger"]
[null,null,"Evt. tilkøb af ekstra garantiperiode","kr. per køretøj"]
[]
[null,null,"Driftsomkostninger"]
[null,null,"Elektrisk forbrug (jf. WLTP)","Wh/km"]
[]
[null,null,"Service, vedligehold og løbende omkostninger"]
[null,null,"Pris finansieret via leasing jf. kravsspecifikation","kr./år per køretøj "]
[null,null,"Grøn ejerafgift","kr./år per køretøj "]
[]
[]
[null,"3A  Kun for plugin hybridkøretøjer"]
[]
[null,null,"Driftsomkostninger"]
[null,null,"Brændstofforbrug (jf. WLTP)","km/liter"]
[]
[]
[]
[null,"2   Ordregiver: Oplysninger om brugen"]
[null,null,"Antal køretøjer","stk.",1,null,{"$f":"$E28","v":1},null,{"$f":"$E28","v":1},null,{"$f":"$E28","v":1},null,{"$f":"$E28","v":1},null,{"$f":"$E28","v":1},null,{"$f":"$E28","v":1},null,{"$f":"$E28","v":1}]
[null,null,"Årligt kørselsforbrug per motorkøretøj","km/år per køretøj",null,null,{"$f":"$E29","v":0},null,{"$f":"$E29","v":0},null,{"$f":"$E29","v":0},null,{"$f":"$E29","v":0},null,{"$f":"$E29","v":0},null,{"$f":"$E29","v":0},null,{"$f":"$E29","v":0}]
[]
[]
[]
[null,"1   Ordregiver: Baggrundsdata"]
[null,null,"TCO-evalueringsperiode (samme som serviceaftale-perioden jf. kravspecifikationen)","antal år",4,null,{"$f":"$E34","v":4},null,{"$f":"$E34","v":4},null,{"$f":"$E34","v":4},null,{"$f":"$E34","v":4},null,{"$f":"$E34","v":4},null,{"$f":"$E34","v":4},null,{"$f":"$E34","v":4}]
[null,null,"Elpris","kr./kWh",2.13,null,2.13,null,2.13,null,2.13,null,2.13,null,2.13,null,2.13,null,2.13]
[null,null,"Elprisstigning (årligt, ud over inflation)","% per år",1.6710373911233534,null,1.6710373911233534,null,1.6710373911233534,null,1.6710373911233534,null,1.6710373911233534,null,1.6710373911233534,null,1.6710373911233534,null,1.6710373911233534]
[null,null,"Diskonteringsrente","% per år",4,null,4,null,4,null,4,null,4,null,4,null,4,null,4]
[null,null,"Forventet levetid for ladestandere (evt. ladebokse)","år",10,null,10,null,10,null,10,null,10,null,10,null,10,null,10]
[]
[null,null,"Investeringsomkostninger"]
[null,null,"Indkøbspris for ladestandere (evt. ladebokse)","kr. per køretøj"]
[]
[null,null,"Driftsomkostninger"]
[null,null,"Opladningsabonnement ","kr./år per køretøj"]
[]
[null,null,"Service, vedligehold og løbende omkostninger"]
[null,null,"Forsikring","kr./år per køretøj"]
[null,null,"Andre løbende omkostninger","kr./år per køretøj"]
[]
[null,null,"Valg af type køretøj",null,"Klik for valg",null,"Klik for valg",null,"Klik for valg",null,"Klik for valg",null,"Klik for valg",null,"Klik for valg",null,"Klik for valg",null,"Klik for valg"]
[null,null,"Type brændstof",null,{"$f":"IF('Interne beregninger - E&PH'!$A$2=E$50,'Interne beregninger - E&PH'!$D2,IF('Interne beregninger - E&PH'!$A$4=E$50,'Interne beregninger - E&PH'!$D4,IF('Interne beregninger - E&PH'!$A$3=E$50,'Interne beregninger - E&PH'!$D3,\"Vælg ovenfor\")))","v":"Vælg ovenfor"},null,{"$f":"IF('Interne beregninger - E&PH'!$A$2=G$50,'Interne beregninger - E&PH'!$D2,IF('Interne beregninger - E&PH'!$A$4=G$50,'Interne beregninger - E&PH'!$D4,IF('Interne beregninger - E&PH'!$A$3=G$50,'Interne beregninger - E&PH'!$D3,\"Vælg ovenfor\")))","v":"Vælg ovenfor"},null,{"$f":"IF('Interne beregninger - E&PH'!$A$2=I$50,'Interne beregninger - E&PH'!$D2,IF('Interne beregninger - E&PH'!$A$4=I$50,'Interne beregninger - E&PH'!$D4,IF('Interne beregninger - E&PH'!$A$3=I$50,'Interne beregninger - E&PH'!$D3,\"Vælg ovenfor\")))","v":"Vælg ovenfor"},null,{"$f":"IF('Interne beregninger - E&PH'!$A$2=K$50,'Interne beregninger - E&PH'!$D2,IF('Interne beregninger - E&PH'!$A$4=K$50,'Interne beregninger - E&PH'!$D4,IF('Interne beregninger - E&PH'!$A$3=K$50,'Interne beregninger - E&PH'!$D3,\"Vælg ovenfor\")))","v":"Vælg ovenfor"},null,{"$f":"IF('Interne beregninger - E&PH'!$A$2=M$50,'Interne beregninger - E&PH'!$D2,IF('Interne beregninger - E&PH'!$A$4=M$50,'Interne beregninger - E&PH'!$D4,IF('Interne beregninger - E&PH'!$A$3=M$50,'Interne beregninger - E&PH'!$D3,\"Vælg ovenfor\")))","v":"Vælg ovenfor"},null,{"$f":"IF('Interne beregninger - E&PH'!$A$2=O$50,'Interne beregninger - E&PH'!$D2,IF('Interne beregninger - E&PH'!$A$4=O$50,'Interne beregninger - E&PH'!$D4,IF('Interne beregninger - E&PH'!$A$3=O$50,'Interne beregninger - E&PH'!$D3,\"Vælg ovenfor\")))","v":"Vælg ovenfor"},null,{"$f":"IF('Interne beregninger - E&PH'!$A$2=Q$50,'Interne beregninger - E&PH'!$D2,IF('Interne beregninger - E&PH'!$A$4=Q$50,'Interne beregninger - E&PH'!$D4,IF('Interne beregninger - E&PH'!$A$3=Q$50,'Interne beregninger - E&PH'!$D3,\"Vælg ovenfor\")))","v":"Vælg ovenfor"},null,{"$f":"IF('Interne beregninger - E&PH'!$A$2=S$50,'Interne beregninger - E&PH'!$D2,IF('Interne beregninger - E&PH'!$A$4=S$50,'Interne beregninger - E&PH'!$D4,IF('Interne beregninger - E&PH'!$A$3=S$50,'Interne beregninger - E&PH'!$D3,\"Vælg ovenfor\")))","v":"Vælg ovenfor"}]
[]
[null,"1A  Kun for plugin hybridkøretøjer"]
[]
[null,null,"Driftsomkostninger for plugin hybridkøretøjer"]
[null,null,"Benzinpris","kr./liter ",{"$f":"12.33","v":12.33},null,{"$f":"$E56","v":12.33},null,{"$f":"$E56","v":12.33},null,{"$f":"$E56","v":12.33},null,{"$f":"$E56","v":12.33},null,{"$f":"$E56","v":12.33},null,{"$f":"$E56","v":12.33},null,{"$f":"$E56","v":12.33}]
[null,null,"Dieselpris","kr./liter ",{"$f":"10.83","v":10.83},null,{"$f":"$E57","v":10.83},null,{"$f":"$E57","v":10.83},null,{"$f":"$E57","v":10.83},null,{"$f":"$E57","v":10.83},null,{"$f":"$E57","v":10.83},null,{"$f":"$E57","v":10.83},null,{"$f":"$E57","v":10.83}]
[null,null,"Brændstofprisstigning (årligt, ud over inflation) for benzin","% per år",{"$f":"'ENS udvikling i brændstofspris'!G10*100","v":1.3850460757952376},null,{"$f":"E$58","v":1.3850460757952376},null,{"$f":"G$58","v":1.3850460757952376},null,{"$f":"I$58","v":1.3850460757952376},null,{"$f":"K$58","v":1.3850460757952376},null,{"$f":"M$58","v":1.3850460757952376},null,{"$f":"O$58","v":1.3850460757952376},null,{"$f":"Q$58","v":1.3850460757952376}]
[null,null,"Brændstofprisstigning (årligt, ud over inflation) for diesel","% per år",{"$f":"'ENS udvikling i brændstofspris'!I10*100","v":1.4477326198338414},null,{"$f":"E$59","v":1.4477326198338414},null,{"$f":"G$59","v":1.4477326198338414},null,{"$f":"I$59","v":1.4477326198338414},null,{"$f":"K$59","v":1.4477326198338414},null,{"$f":"M$59","v":1.4477326198338414},null,{"$f":"O$59","v":1.4477326198338414},null,{"$f":"Q$59","v":1.4477326198338414}]
[]
[]
[]
[null,"4   Resultat"]
[]
[null,null,{"$f":"C9&\" (uden ladestandere/ladebokse)\"","v":"Investeringsomkostninger (uden ladestandere/ladebokse)"},"kr.",{"$f":"E10*E28","v":0},null,{"$f":"G10*G28","v":0},null,{"$f":"I10*I28","v":0},null,{"$f":"K10*K28","v":0},null,{"$f":"M10*M28","v":0},null,{"$f":"O10*O28","v":0},null,{"$f":"Q10*Q28","v":0},null,{"$f":"S10*S28","v":0}]
[null,null,{"$f":"C9&\" (kun ladestandere/ladebokse)\"","v":"Investeringsomkostninger (kun ladestandere/ladebokse)"},"kr.",{"$f":"+(E41*E34/E38)*E28","v":0},null,{"$f":"+(G41*G34/G38)*G28","v":0},null,{"$f":"+(I41*I34/I38)*I28","v":0},null,{"$f":"+(K41*K34/K38)*K28","v":0},null,{"$f":"+(M41*M34/M38)*M28","v":0},null,{"$f":"+(O41*O34/O38)*O28","v":0},null,{"$f":"+(Q41*Q34/Q38)*Q28","v":0},null,{"$f":"+(S41*S34/S38)*S28","v":0}]
[null,null,{"$f":"C12&\" i alt\"","v":"Driftsomkostninger i alt"},"kr.",{"$f":"(SUM('Interne beregninger - E&PH'!E25:E39)*E28)+(SUM('Interne beregninger - E&PH'!E43:E57)*E28)","v":0},null,{"$f":"(SUM('Interne beregninger - E&PH'!G25:G39)*G28)+(SUM('Interne beregninger - E&PH'!G43:G57)*G28)","v":0},null,{"$f":"(SUM('Interne beregninger - E&PH'!I25:I39)*I28)+(SUM('Interne beregninger - E&PH'!I43:I57)*I28)","v":0},null,{"$f":"(SUM('Interne beregninger - E&PH'!K25:K39)*K28)+(SUM('Interne beregninger - E&PH'!K43:K57)*K28)","v":0},null,{"$f":"(SUM('Interne beregninger - E&PH'!M25:M39)*M28)+(SUM('Interne beregninger - E&PH'!M43:M57)*M28)","v":0},null,{"$f":"(SUM('Interne beregninger - E&PH'!O25:O39)*O28)+(SUM('Interne beregninger - E&PH'!O43:O57)*O28)","v":0},null,{"$f":"(SUM('Interne beregninger - E&PH'!Q25:Q39)*Q28)+(SUM('Interne beregninger - E&PH'!Q43:Q57)*Q28)","v":0},null,{"$f":"(SUM('Interne beregninger - E&PH'!S25:S39)*S28)+(SUM('Interne beregninger - E&PH'!S43:S57)*S28)","v":0}]
[null,null,{"$f":"C15&\" i alt\"","v":"Service, vedligehold og løbende omkostninger i alt"},"kr.",{"$f":"SUM('Interne beregninger - E&PH'!E61:E75)*E28","v":0},null,{"$f":"SUM('Interne beregninger - E&PH'!G61:G75)*G28","v":0},null,{"$f":"SUM('Interne beregninger - E&PH'!I61:I75)*I28","v":0},null,{"$f":"SUM('Interne beregninger - E&PH'!K61:K75)*K28","v":0},null,{"$f":"SUM('Interne beregninger - E&PH'!M61:M75)*M28","v":0},null,{"$f":"SUM('Interne beregninger - E&PH'!O61:O75)*O28","v":0},null,{"$f":"SUM('Interne beregninger - E&PH'!Q61:Q75)*Q28","v":0},null,{"$f":"SUM('Interne beregninger - E&PH'!S61:S75)*S28","v":0}]
[]
[null,null,"Samlet TCO (nutidsværdi)","kr.",{"$f":"SUM(E65:E68)","v":0},null,{"$f":"SUM(G65:G68)","v":0},null,{"$f":"SUM(I65:I68)","v":0},null,{"$f":"SUM(K65:K68)","v":0},null,{"$f":"SUM(M65:M68)","v":0},null,{"$f":"SUM(O65:O68)","v":0},null,{"$f":"SUM(Q65:Q68)","v":0},null,{"$f":"SUM(S65:S68)","v":0}]
[null,null,"Gennemsnitlige årlige omkostninger","kr./år",{"$f":"IF(E34=1,E70,PMT(E37/100,E34,-E70))","v":0},null,{"$f":"IF(G34=1,G70,PMT(G37/100,G34,-G70))","v":0},null,{"$f":"IF(I34=1,I70,PMT(I37/100,I34,-I70))","v":0},null,{"$f":"IF(K34=1,K70,PMT(K37/100,K34,-K70))","v":0},null,{"$f":"IF(M34=1,M70,PMT(M37/100,M34,-M70))","v":0},null,{"$f":"IF(O34=1,O70,PMT(O37/100,O34,-O70))","v":0},null,{"$f":"IF(Q34=1,Q70,PMT(Q37/100,Q34,-Q70))","v":0},null,{"$f":"IF(S34=1,S70,PMT(S37/100,S34,-S70))","v":0}]
[]
[]
[]
[]
[]
[]
[]
[]
[]
[]
[]
[]
[]
[]
[]
[]
[]
[]
[]
[]
[]
[]
[]
[]
[]
[]
[]
[]
[]
[]
[]
[]
[]
[]
[]
[]
[]
[]
[]
[]
[]
[]
[]
[]
[]
[]
[]
[]
[]
[]
[]
[]
[]
[]
[]
[]
[]
[]
[]
[]
[]
[]
[]
[]
[]
[]
[]
[]
[]
[]
[]
[null,null,null,"DENNE TEKST SKAL SKRIVES MED HVID TEKST OG SKJULES TIL SIDST!"]
[]
[]
[null,null,"Akkumulerede samlede udgifter (nutidsværdi)",null,{"$f":"+'Interne beregninger - E&PH'!E6","v":"PRODUKT 1 EL"},null,{"$f":"+'Interne beregninger - E&PH'!G6","v":"PRODUKT 2 EL"},null,{"$f":"+'Interne beregninger - E&PH'!I6","v":"PRODUKT 3 EL"},null,{"$f":"+'Interne beregninger - E&PH'!K6","v":"PRODUKT 4 EL"},null,{"$f":"+'Interne beregninger - E&PH'!M6","v":"PRODUKT 5 EL"},null,{"$f":"+'Interne beregninger - E&PH'!O6","v":"PRODUKT 6 EL"},null,{"$f":"+'Interne beregninger - E&PH'!Q6","v":"PRODUKT 7 EL"},null,{"$f":"+'Interne beregninger - E&PH'!S6","v":"PRODUKT 8 EL"}]
[null,null,null,null,{"$f":"+'Interne beregninger - E&PH'!E7","v":0},null,{"$f":"+'Interne beregninger - E&PH'!G7","v":0},null,{"$f":"+'Interne beregninger - E&PH'!I7","v":0},null,{"$f":"+'Interne beregninger - E&PH'!K7","v":0},null,{"$f":"+'Interne beregninger - E&PH'!M7","v":0},null,{"$f":"+'Interne beregninger - E&PH'!O7","v":0},null,{"$f":"+'Interne beregninger - E&PH'!Q7","v":0},null,{"$f":"+'Interne beregninger - E&PH'!S7","v":0}]
[null,null,null,null,{"$f":"+'Interne beregninger - E&PH'!E8","v":0},null,{"$f":"+'Interne beregninger - E&PH'!G8","v":0},null,{"$f":"+'Interne beregninger - E&PH'!I8","v":0},null,{"$f":"+'Interne beregninger - E&PH'!K8","v":0},null,{"$f":"+'Interne beregninger - E&PH'!M8","v":0},null,{"$f":"+'Interne beregninger - E&PH'!O8","v":0},null,{"$f":"+'Interne beregninger - E&PH'!Q8","v":0},null,{"$f":"+'Interne beregninger - E&PH'!S8","v":0}]
[null,null,null,null,{"$f":"+'Interne beregninger - E&PH'!E9","v":0},null,{"$f":"+'Interne beregninger - E&PH'!G9","v":0},null,{"$f":"+'Interne beregninger - E&PH'!I9","v":0},null,{"$f":"+'Interne beregninger - E&PH'!K9","v":0},null,{"$f":"+'Interne beregninger - E&PH'!M9","v":0},null,{"$f":"+'Interne beregninger - E&PH'!O9","v":0},null,{"$f":"+'Interne beregninger - E&PH'!Q9","v":0},null,{"$f":"+'Interne beregninger - E&PH'!S9","v":0}]
[null,null,null,null,{"$f":"+'Interne beregninger - E&PH'!E10","v":0},null,{"$f":"+'Interne beregninger - E&PH'!G10","v":0},null,{"$f":"+'Interne beregninger - E&PH'!I10","v":0},null,{"$f":"+'Interne beregninger - E&PH'!K10","v":0},null,{"$f":"+'Interne beregninger - E&PH'!M10","v":0},null,{"$f":"+'Interne beregninger - E&PH'!O10","v":0},null,{"$f":"+'Interne beregninger - E&PH'!Q10","v":0},null,{"$f":"+'Interne beregninger - E&PH'!S10","v":0}]
[null,null,null,null,{"$f":"+'Interne beregninger - E&PH'!E11","v":0},null,{"$f":"+'Interne beregninger - E&PH'!G11","v":0},null,{"$f":"+'Interne beregninger - E&PH'!I11","v":0},null,{"$f":"+'Interne beregninger - E&PH'!K11","v":0},null,{"$f":"+'Interne beregninger - E&PH'!M11","v":0},null,{"$f":"+'Interne beregninger - E&PH'!O11","v":0},null,{"$f":"+'Interne beregninger - E&PH'!Q11","v":0},null,{"$f":"+'Interne beregninger - E&PH'!S11","v":0}]
[null,null,null,null,{"$f":"+'Interne beregninger - E&PH'!E12","v":0},null,{"$f":"+'Interne beregninger - E&PH'!G12","v":0},null,{"$f":"+'Interne beregninger - E&PH'!I12","v":0},null,{"$f":"+'Interne beregninger - E&PH'!K12","v":0},null,{"$f":"+'Interne beregninger - E&PH'!M12","v":0},null,{"$f":"+'Interne beregninger - E&PH'!O12","v":0},null,{"$f":"+'Interne beregninger - E&PH'!Q12","v":0},null,{"$f":"+'Interne beregninger - E&PH'!S12","v":0}]
[null,null,null,null,{"$f":"+'Interne beregninger - E&PH'!E13","v":0},null,{"$f":"+'Interne beregninger - E&PH'!G13","v":0},null,{"$f":"+'Interne beregninger - E&PH'!I13","v":0},null,{"$f":"+'Interne beregninger - E&PH'!K13","v":0},null,{"$f":"+'Interne beregninger - E&PH'!M13","v":0},null,{"$f":"+'Interne beregninger - E&PH'!O13","v":0},null,{"$f":"+'Interne beregninger - E&PH'!Q13","v":0},null,{"$f":"+'Interne beregninger - E&PH'!S13","v":0}]
[null,null,null,null,{"$f":"+'Interne beregninger - E&PH'!E14","v":0},null,{"$f":"+'Interne beregninger - E&PH'!G14","v":0},null,{"$f":"+'Interne beregninger - E&PH'!I14","v":0},null,{"$f":"+'Interne beregninger - E&PH'!K14","v":0},null,{"$f":"+'Interne beregninger - E&PH'!M14","v":0},null,{"$f":"+'Interne beregninger - E&PH'!O14","v":0},null,{"$f":"+'Interne beregninger - E&PH'!Q14","v":0},null,{"$f":"+'Interne beregninger - E&PH'!S14","v":0}]
[null,null,null,null,{"$f":"+'Interne beregninger - E&PH'!E15","v":0},null,{"$f":"+'Interne beregninger - E&PH'!G15","v":0},null,{"$f":"+'Interne beregninger - E&PH'!I15","v":0},null,{"$f":"+'Interne beregninger - E&PH'!K15","v":0},null,{"$f":"+'Interne beregninger - E&PH'!M15","v":0},null,{"$f":"+'Interne beregninger - E&PH'!O15","v":0},null,{"$f":"+'Interne beregninger - E&PH'!Q15","v":0},null,{"$f":"+'Interne beregninger - E&PH'!S15","v":0}]
[null,null,null,null,{"$f":"+'Interne beregninger - E&PH'!E16","v":0},null,{"$f":"+'Interne beregninger - E&PH'!G16","v":0},null,{"$f":"+'Interne beregninger - E&PH'!I16","v":0},null,{"$f":"+'Interne beregninger - E&PH'!K16","v":0},null,{"$f":"+'Interne beregninger - E&PH'!M16","v":0},null,{"$f":"+'Interne beregninger - E&PH'!O16","v":0},null,{"$f":"+'Interne beregninger - E&PH'!Q16","v":0},null,{"$f":"+'Interne beregninger - E&PH'!S16","v":0}]
[null,null,null,null,{"$f":"+'Interne beregninger - E&PH'!E17","v":0},null,{"$f":"+'Interne beregninger - E&PH'!G17","v":0},null,{"$f":"+'Interne beregninger - E&PH'!I17","v":0},null,{"$f":"+'Interne beregninger - E&PH'!K17","v":0},null,{"$f":"+'Interne beregninger - E&PH'!M17","v":0},null,{"$f":"+'Interne beregninger - E&PH'!O17","v":0},null,{"$f":"+'Interne beregninger - E&PH'!Q17","v":0},null,{"$f":"+'Interne beregninger - E&PH'!S17","v":0}]
[null,null,null,null,{"$f":"+'Interne beregninger - E&PH'!E18","v":0},null,{"$f":"+'Interne beregninger - E&PH'!G18","v":0},null,{"$f":"+'Interne beregninger - E&PH'!I18","v":0},null,{"$f":"+'Interne beregninger - E&PH'!K18","v":0},null,{"$f":"+'Interne beregninger - E&PH'!M18","v":0},null,{"$f":"+'Interne beregninger - E&PH'!O18","v":0},null,{"$f":"+'Interne beregninger - E&PH'!Q18","v":0},null,{"$f":"+'Interne beregninger - E&PH'!S18","v":0}]
[null,null,null,null,{"$f":"+'Interne beregninger - E&PH'!E19","v":0},null,{"$f":"+'Interne beregninger - E&PH'!G19","v":0},null,{"$f":"+'Interne beregninger - E&PH'!I19","v":0},null,{"$f":"+'Interne beregninger - E&PH'!K19","v":0},null,{"$f":"+'Interne beregninger - E&PH'!M19","v":0},null,{"$f":"+'Interne beregninger - E&PH'!O19","v":0},null,{"$f":"+'Interne beregninger - E&PH'!Q19","v":0},null,{"$f":"+'Interne beregninger - E&PH'!S19","v":0}]
[null,null,null,null,{"$f":"+'Interne beregninger - E&PH'!E20","v":0},null,{"$f":"+'Interne beregninger - E&PH'!G20","v":0},null,{"$f":"+'Interne beregninger - E&PH'!I20","v":0},null,{"$f":"+'Interne beregninger - E&PH'!K20","v":0},null,{"$f":"+'Interne beregninger - E&PH'!M20","v":0},null,{"$f":"+'Interne beregninger - E&PH'!O20","v":0},null,{"$f":"+'Interne beregninger - E&PH'!Q20","v":0},null,{"$f":"+'Interne beregninger - E&PH'!S20","v":0}]
[null,null,null,null,{"$f":"+'Interne beregninger - E&PH'!E21","v":0},null,{"$f":"+'Interne beregninger - E&PH'!G21","v":0},null,{"$f":"+'Interne beregninger - E&PH'!I21","v":0},null,{"$f":"+'Interne beregninger - E&PH'!K21","v":0},null,{"$f":"+'Interne beregninger - E&PH'!M21","v":0},null,{"$f":"+'Interne beregninger - E&PH'!O21","v":0},null,{"$f":"+'Interne beregninger - E&PH'!Q21","v":0},null,{"$f":"+'Interne beregninger - E&PH'!S21","v":0}]
[]
[null,null,"Gennemsnitlige årlige omkostninger (relation til levetid)",null,{"$f":"+'Interne beregninger - E&PH'!E96","v":"PRODUKT 1 EL"},null,{"$f":"+'Interne beregninger - E&PH'!G96","v":"PRODUKT 2 EL"},null,{"$f":"+'Interne beregninger - E&PH'!I96","v":"PRODUKT 3 EL"},null,{"$f":"+'Interne beregninger - E&PH'!K96","v":"PRODUKT 4 EL"},null,{"$f":"+'Interne beregninger - E&PH'!M96","v":"PRODUKT 5 EL"},null,{"$f":"+'Interne beregninger - E&PH'!O96","v":"PRODUKT 6 EL"},null,{"$f":"+'Interne beregninger - E&PH'!Q96","v":"PRODUKT 7 EL"},null,{"$f":"+'Interne beregninger - E&PH'!S96","v":"PRODUKT 8 EL"}]
[null,null,null,null,{"$f":"+'Interne beregninger - E&PH'!E97","v":0},null,{"$f":"+'Interne beregninger - E&PH'!G97","v":0},null,{"$f":"+'Interne beregninger - E&PH'!I97","v":0},null,{"$f":"+'Interne beregninger - E&PH'!K97","v":0},null,{"$f":"+'Interne beregninger - E&PH'!M97","v":0},null,{"$f":"+'Interne beregninger - E&PH'!O97","v":0},null,{"$f":"+'Interne beregninger - E&PH'!Q97","v":0},null,{"$f":"+'Interne beregninger - E&PH'!S97","v":0}]
[null,null,null,null,{"$f":"+'Interne beregninger - E&PH'!E98","v":0},null,{"$f":"+'Interne beregninger - E&PH'!G98","v":0},null,{"$f":"+'Interne beregninger - E&PH'!I98","v":0},null,{"$f":"+'Interne beregninger - E&PH'!K98","v":0},null,{"$f":"+'Interne beregninger - E&PH'!M98","v":0},null,{"$f":"+'Interne beregninger - E&PH'!O98","v":0},null,{"$f":"+'Interne beregninger - E&PH'!Q98","v":0},null,{"$f":"+'Interne beregninger - E&PH'!S98","v":0}]
[null,null,null,null,{"$f":"+'Interne beregninger - E&PH'!E99","v":0},null,{"$f":"+'Interne beregninger - E&PH'!G99","v":0},null,{"$f":"+'Interne beregninger - E&PH'!I99","v":0},null,{"$f":"+'Interne beregninger - E&PH'!K99","v":0},null,{"$f":"+'Interne beregninger - E&PH'!M99","v":0},null,{"$f":"+'Interne beregninger - E&PH'!O99","v":0},null,{"$f":"+'Interne beregninger - E&PH'!Q99","v":0},null,{"$f":"+'Interne beregninger - E&PH'!S99","v":0}]
[null,null,null,null,{"$f":"+'Interne beregninger - E&PH'!E100","v":0},null,{"$f":"+'Interne beregninger - E&PH'!G100","v":0},null,{"$f":"+'Interne beregninger - E&PH'!I100","v":0},null,{"$f":"+'Interne beregninger - E&PH'!K100","v":0},null,{"$f":"+'Interne beregninger - E&PH'!M100","v":0},null,{"$f":"+'Interne beregninger - E&PH'!O100","v":0},null,{"$f":"+'Interne beregninger - E&PH'!Q100","v":0},null,{"$f":"+'Interne beregninger - E&PH'!S100","v":0}]
[null,null,null,null,{"$f":"+'Interne beregninger - E&PH'!E101","v":0},null,{"$f":"+'Interne beregninger - E&PH'!G101","v":0},null,{"$f":"+'Interne beregninger - E&PH'!I101","v":0},null,{"$f":"+'Interne beregninger - E&PH'!K101","v":0},null,{"$f":"+'Interne beregninger - E&PH'!M101","v":0},null,{"$f":"+'Interne beregninger - E&PH'!O101","v":0},null,{"$f":"+'Interne beregninger - E&PH'!Q101","v":0},null,{"$f":"+'Interne beregninger - E&PH'!S101","v":0}]
[null,null,null,null,{"$f":"+'Interne beregninger - E&PH'!E102","v":0},null,{"$f":"+'Interne beregninger - E&PH'!G102","v":0},null,{"$f":"+'Interne beregninger - E&PH'!I102","v":0},null,{"$f":"+'Interne beregninger - E&PH'!K102","v":0},null,{"$f":"+'Interne beregninger - E&PH'!M102","v":0},null,{"$f":"+'Interne beregninger - E&PH'!O102","v":0},null,{"$f":"+'Interne beregninger - E&PH'!Q102","v":0},null,{"$f":"+'Interne beregninger - E&PH'!S102","v":0}]
[null,null,null,null,{"$f":"+'Interne beregninger - E&PH'!E103","v":0},null,{"$f":"+'Interne beregninger - E&PH'!G103","v":0},null,{"$f":"+'Interne beregninger - E&PH'!I103","v":0},null,{"$f":"+'Interne beregninger - E&PH'!K103","v":0},null,{"$f":"+'Interne beregninger - E&PH'!M103","v":0},null,{"$f":"+'Interne beregninger - E&PH'!O103","v":0},null,{"$f":"+'Interne beregninger - E&PH'!Q103","v":0},null,{"$f":"+'Interne beregninger - E&PH'!S103","v":0}]
[null,null,null,null,{"$f":"+'Interne beregninger - E&PH'!E104","v":0},null,{"$f":"+'Interne beregninger - E&PH'!G104","v":0},null,{"$f":"+'Interne beregninger - E&PH'!I104","v":0},null,{"$f":"+'Interne beregninger - E&PH'!K104","v":0},null,{"$f":"+'Interne beregninger - E&PH'!M104","v":0},null,{"$f":"+'Interne beregninger - E&PH'!O104","v":0},null,{"$f":"+'Interne beregninger - E&PH'!Q104","v":0},null,{"$f":"+'Interne beregninger - E&PH'!S104","v":0}]
[null,null,null,null,{"$f":"+'Interne beregninger - E&PH'!E105","v":0},null,{"$f":"+'Interne beregninger - E&PH'!G105","v":0},null,{"$f":"+'Interne beregninger - E&PH'!I105","v":0},null,{"$f":"+'Interne beregninger - E&PH'!K105","v":0},null,{"$f":"+'Interne beregninger - E&PH'!M105","v":0},null,{"$f":"+'Interne beregninger - E&PH'!O105","v":0},null,{"$f":"+'Interne beregninger - E&PH'!Q105","v":0},null,{"$f":"+'Interne beregninger - E&PH'!S105","v":0}]
[null,null,null,null,{"$f":"+'Interne beregninger - E&PH'!E106","v":0},null,{"$f":"+'Interne beregninger - E&PH'!G106","v":0},null,{"$f":"+'Interne beregninger - E&PH'!I106","v":0},null,{"$f":"+'Interne beregninger - E&PH'!K106","v":0},null,{"$f":"+'Interne beregninger - E&PH'!M106","v":0},null,{"$f":"+'Interne beregninger - E&PH'!O106","v":0},null,{"$f":"+'Interne beregninger - E&PH'!Q106","v":0},null,{"$f":"+'Interne beregninger - E&PH'!S106","v":0}]
[null,null,null,null,{"$f":"+'Interne beregninger - E&PH'!E107","v":0},null,{"$f":"+'Interne beregninger - E&PH'!G107","v":0},null,{"$f":"+'Interne beregninger - E&PH'!I107","v":0},null,{"$f":"+'Interne beregninger - E&PH'!K107","v":0},null,{"$f":"+'Interne beregninger - E&PH'!M107","v":0},null,{"$f":"+'Interne beregninger - E&PH'!O107","v":0},null,{"$f":"+'Interne beregninger - E&PH'!Q107","v":0},null,{"$f":"+'Interne beregninger - E&PH'!S107","v":0}]
[null,null,null,null,{"$f":"+'Interne beregninger - E&PH'!E108","v":0},null,{"$f":"+'Interne beregninger - E&PH'!G108","v":0},null,{"$f":"+'Interne beregninger - E&PH'!I108","v":0},null,{"$f":"+'Interne beregninger - E&PH'!K108","v":0},null,{"$f":"+'Interne beregninger - E&PH'!M108","v":0},null,{"$f":"+'Interne beregninger - E&PH'!O108","v":0},null,{"$f":"+'Interne beregninger - E&PH'!Q108","v":0},null,{"$f":"+'Interne beregninger - E&PH'!S108","v":0}]
[null,null,null,null,{"$f":"+'Interne beregninger - E&PH'!E109","v":0},null,{"$f":"+'Interne beregninger - E&PH'!G109","v":0},null,{"$f":"+'Interne beregninger - E&PH'!I109","v":0},null,{"$f":"+'Interne beregninger - E&PH'!K109","v":0},null,{"$f":"+'Interne beregninger - E&PH'!M109","v":0},null,{"$f":"+'Interne beregninger - E&PH'!O109","v":0},null,{"$f":"+'Interne beregninger - E&PH'!Q109","v":0},null,{"$f":"+'Interne beregninger - E&PH'!S109","v":0}]
[null,null,null,null,{"$f":"+'Interne beregninger - E&PH'!E110","v":0},null,{"$f":"+'Interne beregninger - E&PH'!G110","v":0},null,{"$f":"+'Interne beregninger - E&PH'!I110","v":0},null,{"$f":"+'Interne beregninger - E&PH'!K110","v":0},null,{"$f":"+'Interne beregninger - E&PH'!M110","v":0},null,{"$f":"+'Interne beregninger - E&PH'!O110","v":0},null,{"$f":"+'Interne beregninger - E&PH'!Q110","v":0},null,{"$f":"+'Interne beregninger - E&PH'!S110","v":0}]
[null,null,null,null,{"$f":"+'Interne beregninger - E&PH'!E111","v":0},null,{"$f":"+'Interne beregninger - E&PH'!G111","v":0},null,{"$f":"+'Interne beregninger - E&PH'!I111","v":0},null,{"$f":"+'Interne beregninger - E&PH'!K111","v":0},null,{"$f":"+'Interne beregninger - E&PH'!M111","v":0},null,{"$f":"+'Interne beregninger - E&PH'!O111","v":0},null,{"$f":"+'Interne beregninger - E&PH'!Q111","v":0},null,{"$f":"+'Interne beregninger - E&PH'!S111","v":0}]

{"sheet":"Sammenligning på tværs","index":3,"n_rows":129,"n_cols":7,"rows_kept":129,"cut":false,"hidden":false,"merged":[]}
[]
[null,"TCO-værktøj "]
[null,"Motorkøretøjer - sammenligning af to bedste motorkøretøjer"]
[null,"Må ikke anvendes i udbudssituationen - men kan bruges internt til sammenligning af f.eks. benzin med el"]
[]
[]
[null,null,"Valg af produkter til sammenligning"]
[null,null,"Vælg kun bedste produkt fra hhv. faneblad \"Benzin-diesel-hybrid\" samt \"El og plugin hybrid\"",null,"\"Benzin-diesel-hybrid\"",null,"\"El og plugin hybrid\""]
[]
[null,null,"Produktets navn",null,"PRODUKT 1",null,"PRODUKT 2 EL"]
[null,null,"Angiv produkts navn fra det pågældende ark (f.eks. PRODUKT 1)"]
[]
[]
[null,null,"Resultat"]
[]
[null,null,"Investeringsomkostninger i alt (dog uden evt. ladestander/ladeboks)","kr.",{"$f":"HLOOKUP(E$10,'Benzin - diesel - hybrid'!$E$8:$S$51,39,FALSE)","v":0},null,{"$f":"HLOOKUP(G$10,'El og plugin hybrid'!$E$8:$S$71,58,FALSE)","v":0}]
[null,null,"Investeringsomkostninger for ladestandere (evt. ladeboks)","kr.",0,null,{"$f":"HLOOKUP(G$10,'El og plugin hybrid'!$E$8:$S$71,59,FALSE)","v":0}]
[null,null,"Driftsomkostninger i alt","kr.",{"$f":"HLOOKUP(E$10,'Benzin - diesel - hybrid'!$E$8:$S$51,40,FALSE)","v":{"$error":"#DIV/0!"}},null,{"$f":"HLOOKUP(G$10,'El og plugin hybrid'!$E$8:$S$71,60,FALSE)","v":0}]
[null,null,"Service, vedligehold og løbende omkostninger i alt","kr.",{"$f":"HLOOKUP(E$10,'Benzin - diesel - hybrid'!$E$8:$S$51,41,FALSE)","v":0},null,{"$f":"HLOOKUP(G$10,'El og plugin hybrid'!$E$8:$S$71,61,FALSE)","v":0}]
[]
[null,null,"Samlet TCO (nutidsværdi)","kr.",{"$f":"SUM(E16:E19)","v":{"$error":"#DIV/0!"}},null,{"$f":"SUM(G16:G19)","v":0}]
[null,null,"Gennemsnitlige årlige omkostninger","kr./år",{"$f":"IF('Benzin - diesel - hybrid'!E28=1,E21,PMT('Benzin - diesel - hybrid'!E29/100,'Benzin - diesel - hybrid'!E28,-E21))","v":{"$error":"#DIV/0!"}},null,{"$f":"IF('El og plugin hybrid'!E34=1,G21,PMT('El og plugin hybrid'!E37/100,'El og plugin hybrid'!E34,-G21))","v":0}]
[]
[]
[]
[]
[]
[]
[]
[]
[]
[]
[]
[]
[]
[]
[]
[]
[]
[]
[]
[]
[]
[]
[]
[]
[]
[]
[]
[]
[]
[]
[]
[]
[]
[]
[]
[]
[]
[]
[]
[]
[]
[]
[]
[]
[]
[]
[]
[]
[]
[]
[]
[]
[]
[]
[]
[]
[]
[]
[]
[]
[]
[]
[]
[]
[]
[]
[]
[]
[]
[]
[]
[null,null,null,"DENNE TEKST SKAL SKRIVES MED HVID TEKST OG SKJULES TIL SIDST!"]
[]
[]
[null,null,"Akkumulerede samlede udgifter (nutidsværdi)",null,{"$f":"+E10","v":"PRODUKT 1"},null,{"$f":"+G10","v":"PRODUKT 2 EL"}]
[null,null,null,null,{"$f":"HLOOKUP(E$97,'Benzin - diesel - hybrid'!$E$126:$S$141,2,FALSE)","v":{"$error":"#DIV/0!"}},null,{"$f":"HLOOKUP(G$97,'El og plugin hybrid'!$E$146:$S$161,2,FALSE)","v":0}]
[null,null,null,null,{"$f":"HLOOKUP(E$97,'Benzin - diesel - hybrid'!$E$126:$S$141,3,FALSE)","v":{"$error":"#DIV/0!"}},null,{"$f":"HLOOKUP(G$97,'El og plugin hybrid'!$E$146:$S$161,3,FALSE)","v":0}]
[null,null,null,null,{"$f":"HLOOKUP(E$97,'Benzin - diesel - hybrid'!$E$126:$S$141,4,FALSE)","v":{"$error":"#DIV/0!"}},null,{"$f":"HLOOKUP(G$97,'El og plugin hybrid'!$E$146:$S$161,4,FALSE)","v":0}]
[null,null,null,null,{"$f":"HLOOKUP(E$97,'Benzin - diesel - hybrid'!$E$126:$S$141,5,FALSE)","v":{"$error":"#DIV/0!"}},null,{"$f":"HLOOKUP(G$97,'El og plugin hybrid'!$E$146:$S$161,5,FALSE)","v":0}]
[null,null,null,null,{"$f":"HLOOKUP(E$97,'Benzin - diesel - hybrid'!$E$126:$S$141,6,FALSE)","v":{"$error":"#DIV/0!"}},null,{"$f":"HLOOKUP(G$97,'El og plugin hybrid'!$E$146:$S$161,6,FALSE)","v":0}]
[null,null,null,null,{"$f":"HLOOKUP(E$97,'Benzin - diesel - hybrid'!$E$126:$S$141,7,FALSE)","v":{"$error":"#DIV/0!"}},null,{"$f":"HLOOKUP(G$97,'El og plugin hybrid'!$E$146:$S$161,7,FALSE)","v":0}]
[null,null,null,null,{"$f":"HLOOKUP(E$97,'Benzin - diesel - hybrid'!$E$126:$S$141,8,FALSE)","v":{"$error":"#DIV/0!"}},null,{"$f":"HLOOKUP(G$97,'El og plugin hybrid'!$E$146:$S$161,8,FALSE)","v":0}]
[null,null,null,null,{"$f":"HLOOKUP(E$97,'Benzin - diesel - hybrid'!$E$126:$S$141,9,FALSE)","v":{"$error":"#DIV/0!"}},null,{"$f":"HLOOKUP(G$97,'El og plugin hybrid'!$E$146:$S$161,9,FALSE)","v":0}]
[null,null,null,null,{"$f":"HLOOKUP(E$97,'Benzin - diesel - hybrid'!$E$126:$S$141,10,FALSE)","v":{"$error":"#DIV/0!"}},null,{"$f":"HLOOKUP(G$97,'El og plugin hybrid'!$E$146:$S$161,10,FALSE)","v":0}]
[null,null,null,null,{"$f":"HLOOKUP(E$97,'Benzin - diesel - hybrid'!$E$126:$S$141,11,FALSE)","v":{"$error":"#DIV/0!"}},null,{"$f":"HLOOKUP(G$97,'El og plugin hybrid'!$E$146:$S$161,11,FALSE)","v":0}]
[null,null,null,null,{"$f":"HLOOKUP(E$97,'Benzin - diesel - hybrid'!$E$126:$S$141,12,FALSE)","v":{"$error":"#DIV/0!"}},null,{"$f":"HLOOKUP(G$97,'El og plugin hybrid'!$E$146:$S$161,12,FALSE)","v":0}]
[null,null,null,null,{"$f":"HLOOKUP(E$97,'Benzin - diesel - hybrid'!$E$126:$S$141,13,FALSE)","v":{"$error":"#DIV/0!"}},null,{"$f":"HLOOKUP(G$97,'El og plugin hybrid'!$E$146:$S$161,13,FALSE)","v":0}]
[null,null,null,null,{"$f":"HLOOKUP(E$97,'Benzin - diesel - hybrid'!$E$126:$S$141,14,FALSE)","v":{"$error":"#DIV/0!"}},null,{"$f":"HLOOKUP(G$97,'El og plugin hybrid'!$E$146:$S$161,14,FALSE)","v":0}]
[null,null,null,null,{"$f":"HLOOKUP(E$97,'Benzin - diesel - hybrid'!$E$126:$S$141,15,FALSE)","v":{"$error":"#DIV/0!"}},null,{"$f":"HLOOKUP(G$97,'El og plugin hybrid'!$E$146:$S$161,15,FALSE)","v":0}]
[null,null,null,null,{"$f":"HLOOKUP(E$97,'Benzin - diesel - hybrid'!$E$126:$S$141,16,FALSE)","v":{"$error":"#DIV/0!"}},null,{"$f":"HLOOKUP(G$97,'El og plugin hybrid'!$E$146:$S$161,16,FALSE)","v":0}]
[]
[null,null,"Gennemsnitlige årlige omkostninger (relation til levetid)",null,{"$f":"+E10","v":"PRODUKT 1"},null,{"$f":"+G10","v":"PRODUKT 2 EL"}]
[null,null,null,null,{"$f":"HLOOKUP(E$114,'Benzin - diesel - hybrid'!$E$143:$S$158,2,FALSE)","v":{"$error":"#DIV/0!"}},null,{"$f":"HLOOKUP(G$114,'El og plugin hybrid'!$E$163:$S$178,2,FALSE)","v":0}]
[null,null,null,null,{"$f":"HLOOKUP(E$114,'Benzin - diesel - hybrid'!$E$143:$S$158,3,FALSE)","v":{"$error":"#DIV/0!"}},null,{"$f":"HLOOKUP(G$114,'El og plugin hybrid'!$E$163:$S$178,3,FALSE)","v":0}]
[null,null,null,null,{"$f":"HLOOKUP(E$114,'Benzin - diesel - hybrid'!$E$143:$S$158,4,FALSE)","v":{"$error":"#DIV/0!"}},null,{"$f":"HLOOKUP(G$114,'El og plugin hybrid'!$E$163:$S$178,4,FALSE)","v":0}]
[null,null,null,null,{"$f":"HLOOKUP(E$114,'Benzin - diesel - hybrid'!$E$143:$S$158,5,FALSE)","v":{"$error":"#DIV/0!"}},null,{"$f":"HLOOKUP(G$114,'El og plugin hybrid'!$E$163:$S$178,5,FALSE)","v":0}]
[null,null,null,null,{"$f":"HLOOKUP(E$114,'Benzin - diesel - hybrid'!$E$143:$S$158,6,FALSE)","v":{"$error":"#DIV/0!"}},null,{"$f":"HLOOKUP(G$114,'El og plugin hybrid'!$E$163:$S$178,6,FALSE)","v":0}]
[null,null,null,null,{"$f":"HLOOKUP(E$114,'Benzin - diesel - hybrid'!$E$143:$S$158,7,FALSE)","v":{"$error":"#DIV/0!"}},null,{"$f":"HLOOKUP(G$114,'El og plugin hybrid'!$E$163:$S$178,7,FALSE)","v":0}]
[null,null,null,null,{"$f":"HLOOKUP(E$114,'Benzin - diesel - hybrid'!$E$143:$S$158,8,FALSE)","v":{"$error":"#DIV/0!"}},null,{"$f":"HLOOKUP(G$114,'El og plugin hybrid'!$E$163:$S$178,8,FALSE)","v":0}]
[null,null,null,null,{"$f":"HLOOKUP(E$114,'Benzin - diesel - hybrid'!$E$143:$S$158,9,FALSE)","v":{"$error":"#DIV/0!"}},null,{"$f":"HLOOKUP(G$114,'El og plugin hybrid'!$E$163:$S$178,9,FALSE)","v":0}]
[null,null,null,null,{"$f":"HLOOKUP(E$114,'Benzin - diesel - hybrid'!$E$143:$S$158,10,FALSE)","v":{"$error":"#DIV/0!"}},null,{"$f":"HLOOKUP(G$114,'El og plugin hybrid'!$E$163:$S$178,10,FALSE)","v":0}]
[null,null,null,null,{"$f":"HLOOKUP(E$114,'Benzin - diesel - hybrid'!$E$143:$S$158,11,FALSE)","v":{"$error":"#DIV/0!"}},null,{"$f":"HLOOKUP(G$114,'El og plugin hybrid'!$E$163:$S$178,11,FALSE)","v":0}]
[null,null,null,null,{"$f":"HLOOKUP(E$114,'Benzin - diesel - hybrid'!$E$143:$S$158,12,FALSE)","v":{"$error":"#DIV/0!"}},null,{"$f":"HLOOKUP(G$114,'El og plugin hybrid'!$E$163:$S$178,12,FALSE)","v":0}]
[null,null,null,null,{"$f":"HLOOKUP(E$114,'Benzin - diesel - hybrid'!$E$143:$S$158,13,FALSE)","v":{"$error":"#DIV/0!"}},null,{"$f":"HLOOKUP(G$114,'El og plugin hybrid'!$E$163:$S$178,13,FALSE)","v":0}]
[null,null,null,null,{"$f":"HLOOKUP(E$114,'Benzin - diesel - hybrid'!$E$143:$S$158,14,FALSE)","v":{"$error":"#DIV/0!"}},null,{"$f":"HLOOKUP(G$114,'El og plugin hybrid'!$E$163:$S$178,14,FALSE)","v":0}]
[null,null,null,null,{"$f":"HLOOKUP(E$114,'Benzin - diesel - hybrid'!$E$143:$S$158,15,FALSE)","v":{"$error":"#DIV/0!"}},null,{"$f":"HLOOKUP(G$114,'El og plugin hybrid'!$E$163:$S$178,15,FALSE)","v":0}]
[null,null,null,null,{"$f":"HLOOKUP(E$114,'Benzin - diesel - hybrid'!$E$143:$S$158,16,FALSE)","v":{"$error":"#DIV/0!"}},null,{"$f":"HLOOKUP(G$114,'El og plugin hybrid'!$E$163:$S$178,16,FALSE)","v":0}]

{"sheet":"Beregningsmetode","index":4,"n_rows":0,"n_cols":0,"rows_kept":0,"cut":false,"hidden":false,"merged":[]}

{"sheet":"Interne beregninger - B&D&H","index":5,"n_rows":92,"n_cols":20,"rows_kept":92,"cut":false,"hidden":true,"merged":[]}
["Klik for valg",null,null,"Type brændstof",null,null,"Gns. pris - bortskaffelse"]
["Benzin",null,null,"El og benzin/d.",null,null,null,null,"ja"]
["Diesel",null,null,"El",null,null,null,null,"nej"]
[]
["Til graf: Akkumulerede samlede udgifter",null,null,null,{"$f":"'Benzin - diesel - hybrid'!E8","v":"PRODUKT 1"},null,{"$f":"'Benzin - diesel - hybrid'!G8","v":"PRODUKT 2"},null,{"$f":"'Benzin - diesel - hybrid'!I8","v":"PRODUKT 3"},null,{"$f":"'Benzin - diesel - hybrid'!K8","v":"PRODUKT 4"},null,{"$f":"'Benzin - diesel - hybrid'!M8","v":"PRODUKT 5"},null,{"$f":"'Benzin - diesel - hybrid'!O8","v":"PRODUKT 6"},null,{"$f":"'Benzin - diesel - hybrid'!Q8","v":"PRODUKT 7"},null,{"$f":"'Benzin - diesel - hybrid'!S8","v":"PRODUKT 8"}]
[null,1,1,null,{"$f":"'Benzin - diesel - hybrid'!E46+(E24+E42+E60)*'Benzin - diesel - hybrid'!E22","v":{"$error":"#DIV/0!"}},null,{"$f":"'Benzin - diesel - hybrid'!G46+(G24+G42+G60)*'Benzin - diesel - hybrid'!G22","v":{"$error":"#DIV/0!"}},null,{"$f":"'Benzin - diesel - hybrid'!I46+(I24+I42+I60)*'Benzin - diesel - hybrid'!I22","v":{"$error":"#DIV/0!"}},null,{"$f":"'Benzin - diesel - hybrid'!K46+(K24+K42+K60)*'Benzin - diesel - hybrid'!K22","v":{"$error":"#DIV/0!"}},null,{"$f":"'Benzin - diesel - hybrid'!M46+(M24+M42+M60)*'Benzin - diesel - hybrid'!M22","v":{"$error":"#DIV/0!"}},null,{"$f":"'Benzin - diesel - hybrid'!O46+(O24+O42+O60)*'Benzin - diesel - hybrid'!O22","v":{"$error":"#DIV/0!"}},null,{"$f":"'Benzin - diesel - hybrid'!Q46+(Q24+Q42+Q60)*'Benzin - diesel - hybrid'!Q22","v":{"$error":"#DIV/0!"}},null,{"$f":"'Benzin - diesel - hybrid'!S46+(S24+S42+S60)*'Benzin - diesel - hybrid'!S22","v":{"$error":"#DIV/0!"}}]
[null,2,2,null,{"$f":"E6+(E25+E43+E61)*'Benzin - diesel - hybrid'!E22","v":{"$error":"#DIV/0!"}},null,{"$f":"G6+(G25+G43+G61)*'Benzin - diesel - hybrid'!G22","v":{"$error":"#DIV/0!"}},null,{"$f":"I6+(I25+I43+I61)*'Benzin - diesel - hybrid'!I22","v":{"$error":"#DIV/0!"}},null,{"$f":"K6+(K25+K43+K61)*'Benzin - diesel - hybrid'!K22","v":{"$error":"#DIV/0!"}},null,{"$f":"M6+(M25+M43+M61)*'Benzin - diesel - hybrid'!M22","v":{"$error":"#DIV/0!"}},null,{"$f":"O6+(O25+O43+O61)*'Benzin - diesel - hybrid'!O22","v":{"$error":"#DIV/0!"}},null,{"$f":"Q6+(Q25+Q43+Q61)*'Benzin - diesel - hybrid'!Q22","v":{"$error":"#DIV/0!"}},null,{"$f":"S6+(S25+S43+S61)*'Benzin - diesel - hybrid'!S22","v":{"$error":"#DIV/0!"}}]
[null,3,3,null,{"$f":"E7+(E26+E44+E62)*'Benzin - diesel - hybrid'!E22","v":{"$error":"#DIV/0!"}},null,{"$f":"G7+(G26+G44+G62)*'Benzin - diesel - hybrid'!G22","v":{"$error":"#DIV/0!"}},null,{"$f":"I7+(I26+I44+I62)*'Benzin - diesel - hybrid'!I22","v":{"$error":"#DIV/0!"}},null,{"$f":"K7+(K26+K44+K62)*'Benzin - diesel - hybrid'!K22","v":{"$error":"#DIV/0!"}},null,{"$f":"M7+(M26+M44+M62)*'Benzin - diesel - hybrid'!M22","v":{"$error":"#DIV/0!"}},null,{"$f":"O7+(O26+O44+O62)*'Benzin - diesel - hybrid'!O22","v":{"$error":"#DIV/0!"}},null,{"$f":"Q7+(Q26+Q44+Q62)*'Benzin - diesel - hybrid'!Q22","v":{"$error":"#DIV/0!"}},null,{"$f":"S7+(S26+S44+S62)*'Benzin - diesel - hybrid'!S22","v":{"$error":"#DIV/0!"}}]
[null,4,4,null,{"$f":"E8+(E27+E45+E63)*'Benzin - diesel - hybrid'!E22","v":{"$error":"#DIV/0!"}},null,{"$f":"G8+(G27+G45+G63)*'Benzin - diesel - hybrid'!G22","v":{"$error":"#DIV/0!"}},null,{"$f":"I8+(I27+I45+I63)*'Benzin - diesel - hybrid'!I22","v":{"$error":"#DIV/0!"}},null,{"$f":"K8+(K27+K45+K63)*'Benzin - diesel - hybrid'!K22","v":{"$error":"#DIV/0!"}},null,{"$f":"M8+(M27+M45+M63)*'Benzin - diesel - hybrid'!M22","v":{"$error":"#DIV/0!"}},null,{"$f":"O8+(O27+O45+O63)*'Benzin - diesel - hybrid'!O22","v":{"$error":"#DIV/0!"}},null,{"$f":"Q8+(Q27+Q45+Q63)*'Benzin - diesel - hybrid'!Q22","v":{"$error":"#DIV/0!"}},null,{"$f":"S8+(S27+S45+S63)*'Benzin - diesel - hybrid'!S22","v":{"$error":"#DIV/0!"}}]
[null,5,5,null,{"$f":"E9+(E28+E46+E64)*'Benzin - diesel - hybrid'!E22","v":{"$error":"#DIV/0!"}},null,{"$f":"G9+(G28+G46+G64)*'Benzin - diesel - hybrid'!G22","v":{"$error":"#DIV/0!"}},null,{"$f":"I9+(I28+I46+I64)*'Benzin - diesel - hybrid'!I22","v":{"$error":"#DIV/0!"}},null,{"$f":"K9+(K28+K46+K64)*'Benzin - diesel - hybrid'!K22","v":{"$error":"#DIV/0!"}},null,{"$f":"M9+(M28+M46+M64)*'Benzin - diesel - hybrid'!M22","v":{"$error":"#DIV/0!"}},null,{"$f":"O9+(O28+O46+O64)*'Benzin - diesel - hybrid'!O22","v":{"$error":"#DIV/0!"}},null,{"$f":"Q9+(Q28+Q46+Q64)*'Benzin - diesel - hybrid'!Q22","v":{"$error":"#DIV/0!"}},null,{"$f":"S9+(S28+S46+S64)*'Benzin - diesel - hybrid'!S22","v":{"$error":"#DIV/0!"}}]
[null,6,6,null,{"$f":"E10+(E29+E47+E65)*'Benzin - diesel - hybrid'!E22","v":{"$error":"#DIV/0!"}},null,{"$f":"G10+(G29+G47+G65)*'Benzin - diesel - hybrid'!G22","v":{"$error":"#DIV/0!"}},null,{"$f":"I10+(I29+I47+I65)*'Benzin - diesel - hybrid'!I22","v":{"$error":"#DIV/0!"}},null,{"$f":"K10+(K29+K47+K65)*'Benzin - diesel - hybrid'!K22","v":{"$error":"#DIV/0!"}},null,{"$f":"M10+(M29+M47+M65)*'Benzin - diesel - hybrid'!M22","v":{"$error":"#DIV/0!"}},null,{"$f":"O10+(O29+O47+O65)*'Benzin - diesel - hybrid'!O22","v":{"$error":"#DIV/0!"}},null,{"$f":"Q10+(Q29+Q47+Q65)*'Benzin - diesel - hybrid'!Q22","v":{"$error":"#DIV/0!"}},null,{"$f":"S10+(S29+S47+S65)*'Benzin - diesel - hybrid'!S22","v":{"$error":"#DIV/0!"}}]
[null,7,7,null,{"$f":"E11+(E30+E48+E66)*'Benzin - diesel - hybrid'!E22","v":{"$error":"#DIV/0!"}},null,{"$f":"G11+(G30+G48+G66)*'Benzin - diesel - hybrid'!G22","v":{"$error":"#DIV/0!"}},null,{"$f":"I11+(I30+I48+I66)*'Benzin - diesel - hybrid'!I22","v":{"$error":"#DIV/0!"}},null,{"$f":"K11+(K30+K48+K66)*'Benzin - diesel - hybrid'!K22","v":{"$error":"#DIV/0!"}},null,{"$f":"M11+(M30+M48+M66)*'Benzin - diesel - hybrid'!M22","v":{"$error":"#DIV/0!"}},null,{"$f":"O11+(O30+O48+O66)*'Benzin - diesel - hybrid'!O22","v":{"$error":"#DIV/0!"}},null,{"$f":"Q11+(Q30+Q48+Q66)*'Benzin - diesel - hybrid'!Q22","v":{"$error":"#DIV/0!"}},null,{"$f":"S11+(S30+S48+S66)*'Benzin - diesel - hybrid'!S22","v":{"$error":"#DIV/0!"}}]
[null,8,8,null,{"$f":"E12+(E31+E49+E67)*'Benzin - diesel - hybrid'!E22","v":{"$error":"#DIV/0!"}},null,{"$f":"G12+(G31+G49+G67)*'Benzin - diesel - hybrid'!G22","v":{"$error":"#DIV/0!"}},null,{"$f":"I12+(I31+I49+I67)*'Benzin - diesel - hybrid'!I22","v":{"$error":"#DIV/0!"}},null,{"$f":"K12+(K31+K49+K67)*'Benzin - diesel - hybrid'!K22","v":{"$error":"#DIV/0!"}},null,{"$f":"M12+(M31+M49+M67)*'Benzin - diesel - hybrid'!M22","v":{"$error":"#DIV/0!"}},null,{"$f":"O12+(O31+O49+O67)*'Benzin - diesel - hybrid'!O22","v":{"$error":"#DIV/0!"}},null,{"$f":"Q12+(Q31+Q49+Q67)*'Benzin - diesel - hybrid'!Q22","v":{"$error":"#DIV/0!"}},null,{"$f":"S12+(S31+S49+S67)*'Benzin - diesel - hybrid'!S22","v":{"$error":"#DIV/0!"}}]
[null,9,9,null,{"$f":"E13+(E32+E50+E68)*'Benzin - diesel - hybrid'!E22","v":{"$error":"#DIV/0!"}},null,{"$f":"G13+(G32+G50+G68)*'Benzin - diesel - hybrid'!G22","v":{"$error":"#DIV/0!"}},null,{"$f":"I13+(I32+I50+I68)*'Benzin - diesel - hybrid'!I22","v":{"$error":"#DIV/0!"}},null,{"$f":"K13+(K32+K50+K68)*'Benzin - diesel - hybrid'!K22","v":{"$error":"#DIV/0!"}},null,{"$f":"M13+(M32+M50+M68)*'Benzin - diesel - hybrid'!M22","v":{"$error":"#DIV/0!"}},null,{"$f":"O13+(O32+O50+O68)*'Benzin - diesel - hybrid'!O22","v":{"$error":"#DIV/0!"}},null,{"$f":"Q13+(Q32+Q50+Q68)*'Benzin - diesel - hybrid'!Q22","v":{"$error":"#DIV/0!"}},null,{"$f":"S13+(S32+S50+S68)*'Benzin - diesel - hybrid'!S22","v":{"$error":"#DIV/0!"}}]
[null,10,10,null,{"$f":"E14+(E33+E51+E69)*'Benzin - diesel - hybrid'!E22","v":{"$error":"#DIV/0!"}},null,{"$f":"G14+(G33+G51+G69)*'Benzin - diesel - hybrid'!G22","v":{"$error":"#DIV/0!"}},null,{"$f":"I14+(I33+I51+I69)*'Benzin - diesel - hybrid'!I22","v":{"$error":"#DIV/0!"}},null,{"$f":"K14+(K33+K51+K69)*'Benzin - diesel - hybrid'!K22","v":{"$error":"#DIV/0!"}},null,{"$f":"M14+(M33+M51+M69)*'Benzin - diesel - hybrid'!M22","v":{"$error":"#DIV/0!"}},null,{"$f":"O14+(O33+O51+O69)*'Benzin - diesel - hybrid'!O22","v":{"$error":"#DIV/0!"}},null,{"$f":"Q14+(Q33+Q51+Q69)*'Benzin - diesel - hybrid'!Q22","v":{"$error":"#DIV/0!"}},null,{"$f":"S14+(S33+S51+S69)*'Benzin - diesel - hybrid'!S22","v":{"$error":"#DIV/0!"}}]
[null,11,11,null,{"$f":"E15+(E34+E52+E70)*'Benzin - diesel - hybrid'!E22","v":{"$error":"#DIV/0!"}},null,{"$f":"G15+(G34+G52+G70)*'Benzin - diesel - hybrid'!G22","v":{"$error":"#DIV/0!"}},null,{"$f":"I15+(I34+I52+I70)*'Benzin - diesel - hybrid'!I22","v":{"$error":"#DIV/0!"}},null,{"$f":"K15+(K34+K52+K70)*'Benzin - diesel - hybrid'!K22","v":{"$error":"#DIV/0!"}},null,{"$f":"M15+(M34+M52+M70)*'Benzin - diesel - hybrid'!M22","v":{"$error":"#DIV/0!"}},null,{"$f":"O15+(O34+O52+O70)*'Benzin - diesel - hybrid'!O22","v":{"$error":"#DIV/0!"}},null,{"$f":"Q15+(Q34+Q52+Q70)*'Benzin - diesel - hybrid'!Q22","v":{"$error":"#DIV/0!"}},null,{"$f":"S15+(S34+S52+S70)*'Benzin - diesel - hybrid'!S22","v":{"$error":"#DIV/0!"}}]
[null,12,12,null,{"$f":"E16+(E35+E53+E71)*'Benzin - diesel - hybrid'!E22","v":{"$error":"#DIV/0!"}},null,{"$f":"G16+(G35+G53+G71)*'Benzin - diesel - hybrid'!G22","v":{"$error":"#DIV/0!"}},null,{"$f":"I16+(I35+I53+I71)*'Benzin - diesel - hybrid'!I22","v":{"$error":"#DIV/0!"}},null,{"$f":"K16+(K35+K53+K71)*'Benzin - diesel - hybrid'!K22","v":{"$error":"#DIV/0!"}},null,{"$f":"M16+(M35+M53+M71)*'Benzin - diesel - hybrid'!M22","v":{"$error":"#DIV/0!"}},null,{"$f":"O16+(O35+O53+O71)*'Benzin - diesel - hybrid'!O22","v":{"$error":"#DIV/0!"}},null,{"$f":"Q16+(Q35+Q53+Q71)*'Benzin - diesel - hybrid'!Q22","v":{"$error":"#DIV/0!"}},null,{"$f":"S16+(S35+S53+S71)*'Benzin - diesel - hybrid'!S22","v":{"$error":"#DIV/0!"}}]
[null,13,13,null,{"$f":"E17+(E36+E54+E72)*'Benzin - diesel - hybrid'!E22","v":{"$error":"#DIV/0!"}},null,{"$f":"G17+(G36+G54+G72)*'Benzin - diesel - hybrid'!G22","v":{"$error":"#DIV/0!"}},null,{"$f":"I17+(I36+I54+I72)*'Benzin - diesel - hybrid'!I22","v":{"$error":"#DIV/0!"}},null,{"$f":"K17+(K36+K54+K72)*'Benzin - diesel - hybrid'!K22","v":{"$error":"#DIV/0!"}},null,{"$f":"M17+(M36+M54+M72)*'Benzin - diesel - hybrid'!M22","v":{"$error":"#DIV/0!"}},null,{"$f":"O17+(O36+O54+O72)*'Benzin - diesel - hybrid'!O22","v":{"$error":"#DIV/0!"}},null,{"$f":"Q17+(Q36+Q54+Q72)*'Benzin - diesel - hybrid'!Q22","v":{"$error":"#DIV/0!"}},null,{"$f":"S17+(S36+S54+S72)*'Benzin - diesel - hybrid'!S22","v":{"$error":"#DIV/0!"}}]
[null,14,14,null,{"$f":"E18+(E37+E55+E73)*'Benzin - diesel - hybrid'!E22","v":{"$error":"#DIV/0!"}},null,{"$f":"G18+(G37+G55+G73)*'Benzin - diesel - hybrid'!G22","v":{"$error":"#DIV/0!"}},null,{"$f":"I18+(I37+I55+I73)*'Benzin - diesel - hybrid'!I22","v":{"$error":"#DIV/0!"}},null,{"$f":"K18+(K37+K55+K73)*'Benzin - diesel - hybrid'!K22","v":{"$error":"#DIV/0!"}},null,{"$f":"M18+(M37+M55+M73)*'Benzin - diesel - hybrid'!M22","v":{"$error":"#DIV/0!"}},null,{"$f":"O18+(O37+O55+O73)*'Benzin - diesel - hybrid'!O22","v":{"$error":"#DIV/0!"}},null,{"$f":"Q18+(Q37+Q55+Q73)*'Benzin - diesel - hybrid'!Q22","v":{"$error":"#DIV/0!"}},null,{"$f":"S18+(S37+S55+S73)*'Benzin - diesel - hybrid'!S22","v":{"$error":"#DIV/0!"}}]
[null,15,15,null,{"$f":"E19+(E38+E56+E74)*'Benzin - diesel - hybrid'!E22","v":{"$error":"#DIV/0!"}},null,{"$f":"G19+(G38+G56+G74)*'Benzin - diesel - hybrid'!G22","v":{"$error":"#DIV/0!"}},null,{"$f":"I19+(I38+I56+I74)*'Benzin - diesel - hybrid'!I22","v":{"$error":"#DIV/0!"}},null,{"$f":"K19+(K38+K56+K74)*'Benzin - diesel - hybrid'!K22","v":{"$error":"#DIV/0!"}},null,{"$f":"M19+(M38+M56+M74)*'Benzin - diesel - hybrid'!M22","v":{"$error":"#DIV/0!"}},null,{"$f":"O19+(O38+O56+O74)*'Benzin - diesel - hybrid'!O22","v":{"$error":"#DIV/0!"}},null,{"$f":"Q19+(Q38+Q56+Q74)*'Benzin - diesel - hybrid'!Q22","v":{"$error":"#DIV/0!"}},null,{"$f":"S19+(S38+S56+S74)*'Benzin - diesel - hybrid'!S22","v":{"$error":"#DIV/0!"}}]
[]
["Driftsomkostninger"]
[null,"År indeks","Benzinpris","Dieselpris",{"$f":"'Benzin - diesel - hybrid'!E8","v":"PRODUKT 1"},"Valgt pris 1",{"$f":"'Benzin - diesel - hybrid'!G8","v":"PRODUKT 2"},"Valgt pris 2",{"$f":"'Benzin - diesel - hybrid'!I8","v":"PRODUKT 3"},"Valgt pris 3",{"$f":"'Benzin - diesel - hybrid'!K8","v":"PRODUKT 4"},"Valgt pris 4",{"$f":"'Benzin - diesel - hybrid'!M8","v":"PRODUKT 5"},"Valgt pris 5",{"$f":"'Benzin - diesel - hybrid'!O8","v":"PRODUKT 6"},"Valgt pris 6",{"$f":"'Benzin - diesel - hybrid'!Q8","v":"PRODUKT 7"},"Valgt pris 7",{"$f":"'Benzin - diesel - hybrid'!S8","v":"PRODUKT 8"},"Valgt pris 8"]
[null,1,{"$f":"'Benzin - diesel - hybrid'!E34","v":12.33},{"$f":"+'Benzin - diesel - hybrid'!E35","v":10.83},{"$f":"(IF($B24<='Benzin - diesel - hybrid'!E$28,'Benzin - diesel - hybrid'!E$23/'Benzin - diesel - hybrid'!E$13*F24,0)*(1+'Benzin - diesel - hybrid'!E$29/100)^-$B24)","v":{"$error":"#DIV/0!"}},{"$f":"IF('Benzin - diesel - hybrid'!E$36=\"Diesel\",$D24,IF('Benzin - diesel - hybrid'!E$36=\"Benzin\",$C24,\"Brændstof ikke valgt\"))","v":"Brændstof ikke valgt"},{"$f":"(IF($B24<='Benzin - diesel - hybrid'!G$28,'Benzin - diesel - hybrid'!G$23/'Benzin - diesel - hybrid'!G$13*H24,0)*(1+'Benzin - diesel - hybrid'!G$29/100)^-$B24)","v":{"$error":"#DIV/0!"}},{"$f":"IF('Benzin - diesel - hybrid'!G$36=\"Diesel\",$D24,IF('Benzin - diesel - hybrid'!G$36=\"Benzin\",$C24,\"Brændstof ikke valgt\"))","v":"Brændstof ikke valgt"},{"$f":"(IF($B24<='Benzin - diesel - hybrid'!I$28,'Benzin - diesel - hybrid'!I$23/'Benzin - diesel - hybrid'!I$13*J24,0)*(1+'Benzin - diesel - hybrid'!I$29/100)^-$B24)","v":{"$error":"#DIV/0!"}},{"$f":"IF('Benzin - diesel - hybrid'!I$36=\"Diesel\",$D24,IF('Benzin - diesel - hybrid'!I$36=\"Benzin\",$C24,\"Brændstof ikke valgt\"))","v":"Brændstof ikke valgt"},{"$f":"(IF($B24<='Benzin - diesel - hybrid'!K$28,'Benzin - diesel - hybrid'!K$23/'Benzin - diesel - hybrid'!K$13*L24,0)*(1+'Benzin - diesel - hybrid'!K$29/100)^-$B24)","v":{"$error":"#DIV/0!"}},{"$f":"IF('Benzin - diesel - hybrid'!K$36=\"Diesel\",$D24,IF('Benzin - diesel - hybrid'!K$36=\"Benzin\",$C24,\"Brændstof ikke valgt\"))","v":"Brændstof ikke valgt"},{"$f":"(IF($B24<='Benzin - diesel - hybrid'!M$28,'Benzin - diesel - hybrid'!M$23/'Benzin - diesel - hybrid'!M$13*N24,0)*(1+'Benzin - diesel - hybrid'!M$29/100)^-$B24)","v":{"$error":"#DIV/0!"}},{"$f":"IF('Benzin - diesel - hybrid'!M$36=\"Diesel\",$D24,IF('Benzin - diesel - hybrid'!M$36=\"Benzin\",$C24,\"Brændstof ikke valgt\"))","v":"Brændstof ikke valgt"},{"$f":"(IF($B24<='Benzin - diesel - hybrid'!O$28,'Benzin - diesel - hybrid'!O$23/'Benzin - diesel - hybrid'!O$13*P24,0)*(1+'Benzin - diesel - hybrid'!O$29/100)^-$B24)","v":{"$error":"#DIV/0!"}},{"$f":"IF('Benzin - diesel - hybrid'!O$36=\"Diesel\",$D24,IF('Benzin - diesel - hybrid'!O$36=\"Benzin\",$C24,\"Brændstof ikke valgt\"))","v":"Brændstof ikke valgt"},{"$f":"(IF($B24<='Benzin - diesel - hybrid'!Q$28,'Benzin - diesel - hybrid'!Q$23/'Benzin - diesel - hybrid'!Q$13*R24,0)*(1+'Benzin - diesel - hybrid'!Q$29/100)^-$B24)","v":{"$error":"#DIV/0!"}},{"$f":"IF('Benzin - diesel - hybrid'!Q$36=\"Diesel\",$D24,IF('Benzin - diesel - hybrid'!Q$36=\"Benzin\",$C24,\"Brændstof ikke valgt\"))","v":"Brændstof ikke valgt"},{"$f":"(IF($B24<='Benzin - diesel - hybrid'!S$28,'Benzin - diesel - hybrid'!S$23/'Benzin - diesel - hybrid'!S$13*T24,0)*(1+'Benzin - diesel - hybrid'!S$29/100)^-$B24)","v":{"$error":"#DIV/0!"}},{"$f":"IF('Benzin - diesel - hybrid'!S$36=\"Diesel\",$D24,IF('Benzin - diesel - hybrid'!S$36=\"Benzin\",$C24,\"Brændstof ikke valgt\"))","v":"Brændstof ikke valgt"}]
[null,2,{"$f":"C24*(1+'Benzin - diesel - hybrid'!$E$30/100)","v":12.500776181145552},{"$f":"D24*(1+'Benzin - diesel - hybrid'!$E$31/100)","v":10.986789442728005},{"$f":"(IF($B25<='Benzin - diesel - hybrid'!E$28,'Benzin - diesel - hybrid'!E$23/'Benzin - diesel - hybrid'!E$13*F25,0)*(1+'Benzin - diesel - hybrid'!E$29/100)^-$B25)","v":{"$error":"#DIV/0!"}},{"$f":"IF('Benzin - diesel - hybrid'!E$36=\"Diesel\",$D25,IF('Benzin - diesel - hybrid'!E$36=\"Benzin\",$C25,\"Brændstof ikke valgt\"))","v":"Brændstof ikke valgt"},{"$f":"(IF($B25<='Benzin - diesel - hybrid'!G$28,'Benzin - diesel - hybrid'!G$23/'Benzin - diesel - hybrid'!G$13*H25,0)*(1+'Benzin - diesel - hybrid'!G$29/100)^-$B25)","v":{"$error":"#DIV/0!"}},{"$f":"IF('Benzin - diesel - hybrid'!G$36=\"Diesel\",$D25,IF('Benzin - diesel - hybrid'!G$36=\"Benzin\",$C25,\"Brændstof ikke valgt\"))","v":"Brændstof ikke valgt"},{"$f":"(IF($B25<='Benzin - diesel - hybrid'!I$28,'Benzin - diesel - hybrid'!I$23/'Benzin - diesel - hybrid'!I$13*J25,0)*(1+'Benzin - diesel - hybrid'!I$29/100)^-$B25)","v":{"$error":"#DIV/0!"}},{"$f":"IF('Benzin - diesel - hybrid'!I$36=\"Diesel\",$D25,IF('Benzin - diesel - hybrid'!I$36=\"Benzin\",$C25,\"Brændstof ikke valgt\"))","v":"Brændstof ikke valgt"},{"$f":"(IF($B25<='Benzin - diesel - hybrid'!K$28,'Benzin - diesel - hybrid'!K$23/'Benzin - diesel - hybrid'!K$13*L25,0)*(1+'Benzin - diesel - hybrid'!K$29/100)^-$B25)","v":{"$error":"#DIV/0!"}},{"$f":"IF('Benzin - diesel - hybrid'!K$36=\"Diesel\",$D25,IF('Benzin - diesel - hybrid'!K$36=\"Benzin\",$C25,\"Brændstof ikke valgt\"))","v":"Brændstof ikke valgt"},{"$f":"(IF($B25<='Benzin - diesel - hybrid'!M$28,'Benzin - diesel - hybrid'!M$23/'Benzin - diesel - hybrid'!M$13*N25,0)*(1+'Benzin - diesel - hybrid'!M$29/100)^-$B25)","v":{"$error":"#DIV/0!"}},{"$f":"IF('Benzin - diesel - hybrid'!M$36=\"Diesel\",$D25,IF('Benzin - diesel - hybrid'!M$36=\"Benzin\",$C25,\"Brændstof ikke valgt\"))","v":"Brændstof ikke valgt"},{"$f":"(IF($B25<='Benzin - diesel - hybrid'!O$28,'Benzin - diesel - hybrid'!O$23/'Benzin - diesel - hybrid'!O$13*P25,0)*(1+'Benzin - diesel - hybrid'!O$29/100)^-$B25)","v":{"$error":"#DIV/0!"}},{"$f":"IF('Benzin - diesel - hybrid'!O$36=\"Diesel\",$D25,IF('Benzin - diesel - hybrid'!O$36=\"Benzin\",$C25,\"Brændstof ikke valgt\"))","v":"Brændstof ikke valgt"},{"$f":"(IF($B25<='Benzin - diesel - hybrid'!Q$28,'Benzin - diesel - hybrid'!Q$23/'Benzin - diesel - hybrid'!Q$13*R25,0)*(1+'Benzin - diesel - hybrid'!Q$29/100)^-$B25)","v":{"$error":"#DIV/0!"}},{"$f":"IF('Benzin - diesel - hybrid'!Q$36=\"Diesel\",$D25,IF('Benzin - diesel - hybrid'!Q$36=\"Benzin\",$C25,\"Brændstof ikke valgt\"))","v":"Brændstof ikke valgt"},{"$f":"(IF($B25<='Benzin - diesel - hybrid'!S$28,'Benzin - diesel - hybrid'!S$23/'Benzin - diesel - hybrid'!S$13*T25,0)*(1+'Benzin - diesel - hybrid'!S$29/100)^-$B25)","v":{"$error":"#DIV/0!"}},{"$f":"IF('Benzin - diesel - hybrid'!S$36=\"Diesel\",$D25,IF('Benzin - diesel - hybrid'!S$36=\"Benzin\",$C25,\"Brændstof ikke valgt\"))","v":"Brændstof ikke valgt"}]
[null,3,{"$f":"C25*(1+'Benzin - diesel - hybrid'!$E$30/100)","v":12.673917691086455},{"$f":"D25*(1+'Benzin - diesel - hybrid'!$E$31/100)","v":11.14584877736284},{"$f":"(IF($B26<='Benzin - diesel - hybrid'!E$28,'Benzin - diesel - hybrid'!E$23/'Benzin - diesel - hybrid'!E$13*F26,0)*(1+'Benzin - diesel - hybrid'!E$29/100)^-$B26)","v":{"$error":"#DIV/0!"}},{"$f":"IF('Benzin - diesel - hybrid'!E$36=\"Diesel\",$D26,IF('Benzin - diesel - hybrid'!E$36=\"Benzin\",$C26,\"Brændstof ikke valgt\"))","v":"Brændstof ikke valgt"},{"$f":"(IF($B26<='Benzin - diesel - hybrid'!G$28,'Benzin - diesel - hybrid'!G$23/'Benzin - diesel - hybrid'!G$13*H26,0)*(1+'Benzin - diesel - hybrid'!G$29/100)^-$B26)","v":{"$error":"#DIV/0!"}},{"$f":"IF('Benzin - diesel - hybrid'!G$36=\"Diesel\",$D26,IF('Benzin - diesel - hybrid'!G$36=\"Benzin\",$C26,\"Brændstof ikke valgt\"))","v":"Brændstof ikke valgt"},{"$f":"(IF($B26<='Benzin - diesel - hybrid'!I$28,'Benzin - diesel - hybrid'!I$23/'Benzin - diesel - hybrid'!I$13*J26,0)*(1+'Benzin - diesel - hybrid'!I$29/100)^-$B26)","v":{"$error":"#DIV/0!"}},{"$f":"IF('Benzin - diesel - hybrid'!I$36=\"Diesel\",$D26,IF('Benzin - diesel - hybrid'!I$36=\"Benzin\",$C26,\"Brændstof ikke valgt\"))","v":"Brændstof ikke valgt"},{"$f":"(IF($B26<='Benzin - diesel - hybrid'!K$28,'Benzin - diesel - hybrid'!K$23/'Benzin - diesel - hybrid'!K$13*L26,0)*(1+'Benzin - diesel - hybrid'!K$29/100)^-$B26)","v":{"$error":"#DIV/0!"}},{"$f":"IF('Benzin - diesel - hybrid'!K$36=\"Diesel\",$D26,IF('Benzin - diesel - hybrid'!K$36=\"Benzin\",$C26,\"Brændstof ikke valgt\"))","v":"Brændstof ikke valgt"},{"$f":"(IF($B26<='Benzin - diesel - hybrid'!M$28,'Benzin - diesel - hybrid'!M$23/'Benzin - diesel - hybrid'!M$13*N26,0)*(1+'Benzin - diesel - hybrid'!M$29/100)^-$B26)","v":{"$error":"#DIV/0!"}},{"$f":"IF('Benzin - diesel - hybrid'!M$36=\"Diesel\",$D26,IF('Benzin - diesel - hybrid'!M$36=\"Benzin\",$C26,\"Brændstof ikke valgt\"))","v":"Brændstof ikke valgt"},{"$f":"(IF($B26<='Benzin - diesel - hybrid'!O$28,'Benzin - diesel - hybrid'!O$23/'Benzin - diesel - hybrid'!O$13*P26,0)*(1+'Benzin - diesel - hybrid'!O$29/100)^-$B26)","v":{"$error":"#DIV/0!"}},{"$f":"IF('Benzin - diesel - hybrid'!O$36=\"Diesel\",$D26,IF('Benzin - diesel - hybrid'!O$36=\"Benzin\",$C26,\"Brændstof ikke valgt\"))","v":"Brændstof ikke valgt"},{"$f":"(IF($B26<='Benzin - diesel - hybrid'!Q$28,'Benzin - diesel - hybrid'!Q$23/'Benzin - diesel - hybrid'!Q$13*R26,0)*(1+'Benzin - diesel - hybrid'!Q$29/100)^-$B26)","v":{"$error":"#DIV/0!"}},{"$f":"IF('Benzin - diesel - hybrid'!Q$36=\"Diesel\",$D26,IF('Benzin - diesel - hybrid'!Q$36=\"Benzin\",$C26,\"Brændstof ikke valgt\"))","v":"Brændstof ikke valgt"},{"$f":"(IF($B26<='Benzin - diesel - hybrid'!S$28,'Benzin - diesel - hybrid'!S$23/'Benzin - diesel - hybrid'!S$13*T26,0)*(1+'Benzin - diesel - hybrid'!S$29/100)^-$B26)","v":{"$error":"#DIV/0!"}},{"$f":"IF('Benzin - diesel - hybrid'!S$36=\"Diesel\",$D26,IF('Benzin - diesel - hybrid'!S$36=\"Benzin\",$C26,\"Brændstof ikke valgt\"))","v":"Brændstof ikke valgt"}]
[null,4,{"$f":"C26*(1+'Benzin - diesel - hybrid'!$E$30/100)","v":12.849457290716366},{"$f":"D26*(1+'Benzin - diesel - hybrid'!$E$31/100)","v":11.307210865870074},{"$f":"(IF($B27<='Benzin - diesel - hybrid'!E$28,'Benzin - diesel - hybrid'!E$23/'Benzin - diesel - hybrid'!E$13*F27,0)*(1+'Benzin - diesel - hybrid'!E$29/100)^-$B27)","v":{"$error":"#DIV/0!"}},{"$f":"IF('Benzin - diesel - hybrid'!E$36=\"Diesel\",$D27,IF('Benzin - diesel - hybrid'!E$36=\"Benzin\",$C27,\"Brændstof ikke valgt\"))","v":"Brændstof ikke valgt"},{"$f":"(IF($B27<='Benzin - diesel - hybrid'!G$28,'Benzin - diesel - hybrid'!G$23/'Benzin - diesel - hybrid'!G$13*H27,0)*(1+'Benzin - diesel - hybrid'!G$29/100)^-$B27)","v":{"$error":"#DIV/0!"}},{"$f":"IF('Benzin - diesel - hybrid'!G$36=\"Diesel\",$D27,IF('Benzin - diesel - hybrid'!G$36=\"Benzin\",$C27,\"Brændstof ikke valgt\"))","v":"Brændstof ikke valgt"},{"$f":"(IF($B27<='Benzin - diesel - hybrid'!I$28,'Benzin - diesel - hybrid'!I$23/'Benzin - diesel - hybrid'!I$13*J27,0)*(1+'Benzin - diesel - hybrid'!I$29/100)^-$B27)","v":{"$error":"#DIV/0!"}},{"$f":"IF('Benzin - diesel - hybrid'!I$36=\"Diesel\",$D27,IF('Benzin - diesel - hybrid'!I$36=\"Benzin\",$C27,\"Brændstof ikke valgt\"))","v":"Brændstof ikke valgt"},{"$f":"(IF($B27<='Benzin - diesel - hybrid'!K$28,'Benzin - diesel - hybrid'!K$23/'Benzin - diesel - hybrid'!K$13*L27,0)*(1+'Benzin - diesel - hybrid'!K$29/100)^-$B27)","v":{"$error":"#DIV/0!"}},{"$f":"IF('Benzin - diesel - hybrid'!K$36=\"Diesel\",$D27,IF('Benzin - diesel - hybrid'!K$36=\"Benzin\",$C27,\"Brændstof ikke valgt\"))","v":"Brændstof ikke valgt"},{"$f":"(IF($B27<='Benzin - diesel - hybrid'!M$28,'Benzin - diesel - hybrid'!M$23/'Benzin - diesel - hybrid'!M$13*N27,0)*(1+'Benzin - diesel - hybrid'!M$29/100)^-$B27)","v":{"$error":"#DIV/0!"}},{"$f":"IF('Benzin - diesel - hybrid'!M$36=\"Diesel\",$D27,IF('Benzin - diesel - hybrid'!M$36=\"Benzin\",$C27,\"Brændstof ikke valgt\"))","v":"Brændstof ikke valgt"},{"$f":"(IF($B27<='Benzin - diesel - hybrid'!O$28,'Benzin - diesel - hybrid'!O$23/'Benzin - diesel - hybrid'!O$13*P27,0)*(1+'Benzin - diesel - hybrid'!O$29/100)^-$B27)","v":{"$error":"#DIV/0!"}},{"$f":"IF('Benzin - diesel - hybrid'!O$36=\"Diesel\",$D27,IF('Benzin - diesel - hybrid'!O$36=\"Benzin\",$C27,\"Brændstof ikke valgt\"))","v":"Brændstof ikke valgt"},{"$f":"(IF($B27<='Benzin - diesel - hybrid'!Q$28,'Benzin - diesel - hybrid'!Q$23/'Benzin - diesel - hybrid'!Q$13*R27,0)*(1+'Benzin - diesel - hybrid'!Q$29/100)^-$B27)","v":{"$error":"#DIV/0!"}},{"$f":"IF('Benzin - diesel - hybrid'!Q$36=\"Diesel\",$D27,IF('Benzin - diesel - hybrid'!Q$36=\"Benzin\",$C27,\"Brændstof ikke valgt\"))","v":"Brændstof ikke valgt"},{"$f":"(IF($B27<='Benzin - diesel - hybrid'!S$28,'Benzin - diesel - hybrid'!S$23/'Benzin - diesel - hybrid'!S$13*T27,0)*(1+'Benzin - diesel - hybrid'!S$29/100)^-$B27)","v":{"$error":"#DIV/0!"}},{"$f":"IF('Benzin - diesel - hybrid'!S$36=\"Diesel\",$D27,IF('Benzin - diesel - hybrid'!S$36=\"Benzin\",$C27,\"Brændstof ikke valgt\"))","v":"Brændstof ikke valgt"}]
[null,5,{"$f":"C27*(1+'Benzin - diesel - hybrid'!$E$30/100)","v":13.027428194682418},{"$f":"D27*(1+'Benzin - diesel - hybrid'!$E$31/100)","v":11.470909045968671},{"$f":"(IF($B28<='Benzin - diesel - hybrid'!E$28,'Benzin - diesel - hybrid'!E$23/'Benzin - diesel - hybrid'!E$13*F28,0)*(1+'Benzin - diesel - hybrid'!E$29/100)^-$B28)","v":0},{"$f":"IF('Benzin - diesel - hybrid'!E$36=\"Diesel\",$D28,IF('Benzin - diesel - hybrid'!E$36=\"Benzin\",$C28,\"Brændstof ikke valgt\"))","v":"Brændstof ikke valgt"},{"$f":"(IF($B28<='Benzin - diesel - hybrid'!G$28,'Benzin - diesel - hybrid'!G$23/'Benzin - diesel - hybrid'!G$13*H28,0)*(1+'Benzin - diesel - hybrid'!G$29/100)^-$B28)","v":0},{"$f":"IF('Benzin - diesel - hybrid'!G$36=\"Diesel\",$D28,IF('Benzin - diesel - hybrid'!G$36=\"Benzin\",$C28,\"Brændstof ikke valgt\"))","v":"Brændstof ikke valgt"},{"$f":"(IF($B28<='Benzin - diesel - hybrid'!I$28,'Benzin - diesel - hybrid'!I$23/'Benzin - diesel - hybrid'!I$13*J28,0)*(1+'Benzin - diesel - hybrid'!I$29/100)^-$B28)","v":0},{"$f":"IF('Benzin - diesel - hybrid'!I$36=\"Diesel\",$D28,IF('Benzin - diesel - hybrid'!I$36=\"Benzin\",$C28,\"Brændstof ikke valgt\"))","v":"Brændstof ikke valgt"},{"$f":"(IF($B28<='Benzin - diesel - hybrid'!K$28,'Benzin - diesel - hybrid'!K$23/'Benzin - diesel - hybrid'!K$13*L28,0)*(1+'Benzin - diesel - hybrid'!K$29/100)^-$B28)","v":0},{"$f":"IF('Benzin - diesel - hybrid'!K$36=\"Diesel\",$D28,IF('Benzin - diesel - hybrid'!K$36=\"Benzin\",$C28,\"Brændstof ikke valgt\"))","v":"Brændstof ikke valgt"},{"$f":"(IF($B28<='Benzin - diesel - hybrid'!M$28,'Benzin - diesel - hybrid'!M$23/'Benzin - diesel - hybrid'!M$13*N28,0)*(1+'Benzin - diesel - hybrid'!M$29/100)^-$B28)","v":0},{"$f":"IF('Benzin - diesel - hybrid'!M$36=\"Diesel\",$D28,IF('Benzin - diesel - hybrid'!M$36=\"Benzin\",$C28,\"Brændstof ikke valgt\"))","v":"Brændstof ikke valgt"},{"$f":"(IF($B28<='Benzin - diesel - hybrid'!O$28,'Benzin - diesel - hybrid'!O$23/'Benzin - diesel - hybrid'!O$13*P28,0)*(1+'Benzin - diesel - hybrid'!O$29/100)^-$B28)","v":0},{"$f":"IF('Benzin - diesel - hybrid'!O$36=\"Diesel\",$D28,IF('Benzin - diesel - hybrid'!O$36=\"Benzin\",$C28,\"Brændstof ikke valgt\"))","v":"Brændstof ikke valgt"},{"$f":"(IF($B28<='Benzin - diesel - hybrid'!Q$28,'Benzin - diesel - hybrid'!Q$23/'Benzin - diesel - hybrid'!Q$13*R28,0)*(1+'Benzin - diesel - hybrid'!Q$29/100)^-$B28)","v":0},{"$f":"IF('Benzin - diesel - hybrid'!Q$36=\"Diesel\",$D28,IF('Benzin - diesel - hybrid'!Q$36=\"Benzin\",$C28,\"Brændstof ikke valgt\"))","v":"Brændstof ikke valgt"},{"$f":"(IF($B28<='Benzin - diesel - hybrid'!S$28,'Benzin - diesel - hybrid'!S$23/'Benzin - diesel - hybrid'!S$13*T28,0)*(1+'Benzin - diesel - hybrid'!S$29/100)^-$B28)","v":0},{"$f":"IF('Benzin - diesel - hybrid'!S$36=\"Diesel\",$D28,IF('Benzin - diesel - hybrid'!S$36=\"Benzin\",$C28,\"Brændstof ikke valgt\"))","v":"Brændstof ikke valgt"}]
[null,6,{"$f":"C28*(1+'Benzin - diesel - hybrid'!$E$30/100)","v":13.207864077669909},{"$f":"D28*(1+'Benzin - diesel - hybrid'!$E$31/100)","v":11.636977138018631},{"$f":"(IF($B29<='Benzin - diesel - hybrid'!E$28,'Benzin - diesel - hybrid'!E$23/'Benzin - diesel - hybrid'!E$13*F29,0)*(1+'Benzin - diesel - hybrid'!E$29/100)^-$B29)","v":0},{"$f":"IF('Benzin - diesel - hybrid'!E$36=\"Diesel\",$D29,IF('Benzin - diesel - hybrid'!E$36=\"Benzin\",$C29,\"Brændstof ikke valgt\"))","v":"Brændstof ikke valgt"},{"$f":"(IF($B29<='Benzin - diesel - hybrid'!G$28,'Benzin - diesel - hybrid'!G$23/'Benzin - diesel - hybrid'!G$13*H29,0)*(1+'Benzin - diesel - hybrid'!G$29/100)^-$B29)","v":0},{"$f":"IF('Benzin - diesel - hybrid'!G$36=\"Diesel\",$D29,IF('Benzin - diesel - hybrid'!G$36=\"Benzin\",$C29,\"Brændstof ikke valgt\"))","v":"Brændstof ikke valgt"},{"$f":"(IF($B29<='Benzin - diesel - hybrid'!I$28,'Benzin - diesel - hybrid'!I$23/'Benzin - diesel - hybrid'!I$13*J29,0)*(1+'Benzin - diesel - hybrid'!I$29/100)^-$B29)","v":0},{"$f":"IF('Benzin - diesel - hybrid'!I$36=\"Diesel\",$D29,IF('Benzin - diesel - hybrid'!I$36=\"Benzin\",$C29,\"Brændstof ikke valgt\"))","v":"Brændstof ikke valgt"},{"$f":"(IF($B29<='Benzin - diesel - hybrid'!K$28,'Benzin - diesel - hybrid'!K$23/'Benzin - diesel - hybrid'!K$13*L29,0)*(1+'Benzin - diesel - hybrid'!K$29/100)^-$B29)","v":0},{"$f":"IF('Benzin - diesel - hybrid'!K$36=\"Diesel\",$D29,IF('Benzin - diesel - hybrid'!K$36=\"Benzin\",$C29,\"Brændstof ikke valgt\"))","v":"Brændstof ikke valgt"},{"$f":"(IF($B29<='Benzin - diesel - hybrid'!M$28,'Benzin - diesel - hybrid'!M$23/'Benzin - diesel - hybrid'!M$13*N29,0)*(1+'Benzin - diesel - hybrid'!M$29/100)^-$B29)","v":0},{"$f":"IF('Benzin - diesel - hybrid'!M$36=\"Diesel\",$D29,IF('Benzin - diesel - hybrid'!M$36=\"Benzin\",$C29,\"Brændstof ikke valgt\"))","v":"Brændstof ikke valgt"},{"$f":"(IF($B29<='Benzin - diesel - hybrid'!O$28,'Benzin - diesel - hybrid'!O$23/'Benzin - diesel - hybrid'!O$13*P29,0)*(1+'Benzin - diesel - hybrid'!O$29/100)^-$B29)","v":0},{"$f":"IF('Benzin - diesel - hybrid'!O$36=\"Diesel\",$D29,IF('Benzin - diesel - hybrid'!O$36=\"Benzin\",$C29,\"Brændstof ikke valgt\"))","v":"Brændstof ikke valgt"},{"$f":"(IF($B29<='Benzin - diesel - hybrid'!Q$28,'Benzin - diesel - hybrid'!Q$23/'Benzin - diesel - hybrid'!Q$13*R29,0)*(1+'Benzin - diesel - hybrid'!Q$29/100)^-$B29)","v":0},{"$f":"IF('Benzin - diesel - hybrid'!Q$36=\"Diesel\",$D29,IF('Benzin - diesel - hybrid'!Q$36=\"Benzin\",$C29,\"Brændstof ikke valgt\"))","v":"Brændstof ikke valgt"},{"$f":"(IF($B29<='Benzin - diesel - hybrid'!S$28,'Benzin - diesel - hybrid'!S$23/'Benzin - diesel - hybrid'!S$13*T29,0)*(1+'Benzin - diesel - hybrid'!S$29/100)^-$B29)","v":0},{"$f":"IF('Benzin - diesel - hybrid'!S$36=\"Diesel\",$D29,IF('Benzin - diesel - hybrid'!S$36=\"Benzin\",$C29,\"Brændstof ikke valgt\"))","v":"Brændstof ikke valgt"}]
[null,7,{"$f":"C29*(1+'Benzin - diesel - hybrid'!$E$30/100)","v":13.390799080774045},{"$f":"D29*(1+'Benzin - diesel - hybrid'!$E$31/100)","v":11.805449452008334},{"$f":"(IF($B30<='Benzin - diesel - hybrid'!E$28,'Benzin - diesel - hybrid'!E$23/'Benzin - diesel - hybrid'!E$13*F30,0)*(1+'Benzin - diesel - hybrid'!E$29/100)^-$B30)","v":0},{"$f":"IF('Benzin - diesel - hybrid'!E$36=\"Diesel\",$D30,IF('Benzin - diesel - hybrid'!E$36=\"Benzin\",$C30,\"Brændstof ikke valgt\"))","v":"Brændstof ikke valgt"},{"$f":"(IF($B30<='Benzin - diesel - hybrid'!G$28,'Benzin - diesel - hybrid'!G$23/'Benzin - diesel - hybrid'!G$13*H30,0)*(1+'Benzin - diesel - hybrid'!G$29/100)^-$B30)","v":0},{"$f":"IF('Benzin - diesel - hybrid'!G$36=\"Diesel\",$D30,IF('Benzin - diesel - hybrid'!G$36=\"Benzin\",$C30,\"Brændstof ikke valgt\"))","v":"Brændstof ikke valgt"},{"$f":"(IF($B30<='Benzin - diesel - hybrid'!I$28,'Benzin - diesel - hybrid'!I$23/'Benzin - diesel - hybrid'!I$13*J30,0)*(1+'Benzin - diesel - hybrid'!I$29/100)^-$B30)","v":0},{"$f":"IF('Benzin - diesel - hybrid'!I$36=\"Diesel\",$D30,IF('Benzin - diesel - hybrid'!I$36=\"Benzin\",$C30,\"Brændstof ikke valgt\"))","v":"Brændstof ikke valgt"},{"$f":"(IF($B30<='Benzin - diesel - hybrid'!K$28,'Benzin - diesel - hybrid'!K$23/'Benzin - diesel - hybrid'!K$13*L30,0)*(1+'Benzin - diesel - hybrid'!K$29/100)^-$B30)","v":0},{"$f":"IF('Benzin - diesel - hybrid'!K$36=\"Diesel\",$D30,IF('Benzin - diesel - hybrid'!K$36=\"Benzin\",$C30,\"Brændstof ikke valgt\"))","v":"Brændstof ikke valgt"},{"$f":"(IF($B30<='Benzin - diesel - hybrid'!M$28,'Benzin - diesel - hybrid'!M$23/'Benzin - diesel - hybrid'!M$13*N30,0)*(1+'Benzin - diesel - hybrid'!M$29/100)^-$B30)","v":0},{"$f":"IF('Benzin - diesel - hybrid'!M$36=\"Diesel\",$D30,IF('Benzin - diesel - hybrid'!M$36=\"Benzin\",$C30,\"Brændstof ikke valgt\"))","v":"Brændstof ikke valgt"},{"$f":"(IF($B30<='Benzin - diesel - hybrid'!O$28,'Benzin - diesel - hybrid'!O$23/'Benzin - diesel - hybrid'!O$13*P30,0)*(1+'Benzin - diesel - hybrid'!O$29/100)^-$B30)","v":0},{"$f":"IF('Benzin - diesel - hybrid'!O$36=\"Diesel\",$D30,IF('Benzin - diesel - hybrid'!O$36=\"Benzin\",$C30,\"Brændstof ikke valgt\"))","v":"Brændstof ikke valgt"},{"$f":"(IF($B30<='Benzin - diesel - hybrid'!Q$28,'Benzin - diesel - hybrid'!Q$23/'Benzin - diesel - hybrid'!Q$13*R30,0)*(1+'Benzin - diesel - hybrid'!Q$29/100)^-$B30)","v":0},{"$f":"IF('Benzin - diesel - hybrid'!Q$36=\"Diesel\",$D30,IF('Benzin - diesel - hybrid'!Q$36=\"Benzin\",$C30,\"Brændstof ikke valgt\"))","v":"Brændstof ikke valgt"},{"$f":"(IF($B30<='Benzin - diesel - hybrid'!S$28,'Benzin - diesel - hybrid'!S$23/'Benzin - diesel - hybrid'!S$13*T30,0)*(1+'Benzin - diesel - hybrid'!S$29/100)^-$B30)","v":0},{"$f":"IF('Benzin - diesel - hybrid'!S$36=\"Diesel\",$D30,IF('Benzin - diesel - hybrid'!S$36=\"Benzin\",$C30,\"Brændstof ikke valgt\"))","v":"Brændstof ikke valgt"}]
[null,8,{"$f":"C30*(1+'Benzin - diesel - hybrid'!$E$30/100)","v":13.576267817959931},{"$f":"D30*(1+'Benzin - diesel - hybrid'!$E$31/100)","v":11.976360794643055},{"$f":"(IF($B31<='Benzin - diesel - hybrid'!E$28,'Benzin - diesel - hybrid'!E$23/'Benzin - diesel - hybrid'!E$13*F31,0)*(1+'Benzin - diesel - hybrid'!E$29/100)^-$B31)","v":0},{"$f":"IF('Benzin - diesel - hybrid'!E$36=\"Diesel\",$D31,IF('Benzin - diesel - hybrid'!E$36=\"Benzin\",$C31,\"Brændstof ikke valgt\"))","v":"Brændstof ikke valgt"},{"$f":"(IF($B31<='Benzin - diesel - hybrid'!G$28,'Benzin - diesel - hybrid'!G$23/'Benzin - diesel - hybrid'!G$13*H31,0)*(1+'Benzin - diesel - hybrid'!G$29/100)^-$B31)","v":0},{"$f":"IF('Benzin - diesel - hybrid'!G$36=\"Diesel\",$D31,IF('Benzin - diesel - hybrid'!G$36=\"Benzin\",$C31,\"Brændstof ikke valgt\"))","v":"Brændstof ikke valgt"},{"$f":"(IF($B31<='Benzin - diesel - hybrid'!I$28,'Benzin - diesel - hybrid'!I$23/'Benzin - diesel - hybrid'!I$13*J31,0)*(1+'Benzin - diesel - hybrid'!I$29/100)^-$B31)","v":0},{"$f":"IF('Benzin - diesel - hybrid'!I$36=\"Diesel\",$D31,IF('Benzin - diesel - hybrid'!I$36=\"Benzin\",$C31,\"Brændstof ikke valgt\"))","v":"Brændstof ikke valgt"},{"$f":"(IF($B31<='Benzin - diesel - hybrid'!K$28,'Benzin - diesel - hybrid'!K$23/'Benzin - diesel - hybrid'!K$13*L31,0)*(1+'Benzin - diesel - hybrid'!K$29/100)^-$B31)","v":0},{"$f":"IF('Benzin - diesel - hybrid'!K$36=\"Diesel\",$D31,IF('Benzin - diesel - hybrid'!K$36=\"Benzin\",$C31,\"Brændstof ikke valgt\"))","v":"Brændstof ikke valgt"},{"$f":"(IF($B31<='Benzin - diesel - hybrid'!M$28,'Benzin - diesel - hybrid'!M$23/'Benzin - diesel - hybrid'!M$13*N31,0)*(1+'Benzin - diesel - hybrid'!M$29/100)^-$B31)","v":0},{"$f":"IF('Benzin - diesel - hybrid'!M$36=\"Diesel\",$D31,IF('Benzin - diesel - hybrid'!M$36=\"Benzin\",$C31,\"Brændstof ikke valgt\"))","v":"Brændstof ikke valgt"},{"$f":"(IF($B31<='Benzin - diesel - hybrid'!O$28,'Benzin - diesel - hybrid'!O$23/'Benzin - diesel - hybrid'!O$13*P31,0)*(1+'Benzin - diesel - hybrid'!O$29/100)^-$B31)","v":0},{"$f":"IF('Benzin - diesel - hybrid'!O$36=\"Diesel\",$D31,IF('Benzin - diesel - hybrid'!O$36=\"Benzin\",$C31,\"Brændstof ikke valgt\"))","v":"Brændstof ikke valgt"},{"$f":"(IF($B31<='Benzin - diesel - hybrid'!Q$28,'Benzin - diesel - hybrid'!Q$23/'Benzin - diesel - hybrid'!Q$13*R31,0)*(1+'Benzin - diesel - hybrid'!Q$29/100)^-$B31)","v":0},{"$f":"IF('Benzin - diesel - hybrid'!Q$36=\"Diesel\",$D31,IF('Benzin - diesel - hybrid'!Q$36=\"Benzin\",$C31,\"Brændstof ikke valgt\"))","v":"Brændstof ikke valgt"},{"$f":"(IF($B31<='Benzin - diesel - hybrid'!S$28,'Benzin - diesel - hybrid'!S$23/'Benzin - diesel - hybrid'!S$13*T31,0)*(1+'Benzin - diesel - hybrid'!S$29/100)^-$B31)","v":0},{"$f":"IF('Benzin - diesel - hybrid'!S$36=\"Diesel\",$D31,IF('Benzin - diesel - hybrid'!S$36=\"Benzin\",$C31,\"Brændstof ikke valgt\"))","v":"Brændstof ikke valgt"}]
[null,9,{"$f":"C31*(1+'Benzin - diesel - hybrid'!$E$30/100)","v":13.764305382612037},{"$f":"D31*(1+'Benzin - diesel - hybrid'!$E$31/100)","v":12.149746476536095},{"$f":"(IF($B32<='Benzin - diesel - hybrid'!E$28,'Benzin - diesel - hybrid'!E$23/'Benzin - diesel - hybrid'!E$13*F32,0)*(1+'Benzin - diesel - hybrid'!E$29/100)^-$B32)","v":0},{"$f":"IF('Benzin - diesel - hybrid'!E$36=\"Diesel\",$D32,IF('Benzin - diesel - hybrid'!E$36=\"Benzin\",$C32,\"Brændstof ikke valgt\"))","v":"Brændstof ikke valgt"},{"$f":"(IF($B32<='Benzin - diesel - hybrid'!G$28,'Benzin - diesel - hybrid'!G$23/'Benzin - diesel - hybrid'!G$13*H32,0)*(1+'Benzin - diesel - hybrid'!G$29/100)^-$B32)","v":0},{"$f":"IF('Benzin - diesel - hybrid'!G$36=\"Diesel\",$D32,IF('Benzin - diesel - hybrid'!G$36=\"Benzin\",$C32,\"Brændstof ikke valgt\"))","v":"Brændstof ikke valgt"},{"$f":"(IF($B32<='Benzin - diesel - hybrid'!I$28,'Benzin - diesel - hybrid'!I$23/'Benzin - diesel - hybrid'!I$13*J32,0)*(1+'Benzin - diesel - hybrid'!I$29/100)^-$B32)","v":0},{"$f":"IF('Benzin - diesel - hybrid'!I$36=\"Diesel\",$D32,IF('Benzin - diesel - hybrid'!I$36=\"Benzin\",$C32,\"Brændstof ikke valgt\"))","v":"Brændstof ikke valgt"},{"$f":"(IF($B32<='Benzin - diesel - hybrid'!K$28,'Benzin - diesel - hybrid'!K$23/'Benzin - diesel - hybrid'!K$13*L32,0)*(1+'Benzin - diesel - hybrid'!K$29/100)^-$B32)","v":0},{"$f":"IF('Benzin - diesel - hybrid'!K$36=\"Diesel\",$D32,IF('Benzin - diesel - hybrid'!K$36=\"Benzin\",$C32,\"Brændstof ikke valgt\"))","v":"Brændstof ikke valgt"},{"$f":"(IF($B32<='Benzin - diesel - hybrid'!M$28,'Benzin - diesel - hybrid'!M$23/'Benzin - diesel - hybrid'!M$13*N32,0)*(1+'Benzin - diesel - hybrid'!M$29/100)^-$B32)","v":0},{"$f":"IF('Benzin - diesel - hybrid'!M$36=\"Diesel\",$D32,IF('Benzin - diesel - hybrid'!M$36=\"Benzin\",$C32,\"Brændstof ikke valgt\"))","v":"Brændstof ikke valgt"},{"$f":"(IF($B32<='Benzin - diesel - hybrid'!O$28,'Benzin - diesel - hybrid'!O$23/'Benzin - diesel - hybrid'!O$13*P32,0)*(1+'Benzin - diesel - hybrid'!O$29/100)^-$B32)","v":0},{"$f":"IF('Benzin - diesel - hybrid'!O$36=\"Diesel\",$D32,IF('Benzin - diesel - hybrid'!O$36=\"Benzin\",$C32,\"Brændstof ikke valgt\"))","v":"Brændstof ikke valgt"},{"$f":"(IF($B32<='Benzin - diesel - hybrid'!Q$28,'Benzin - diesel - hybrid'!Q$23/'Benzin - diesel - hybrid'!Q$13*R32,0)*(1+'Benzin - diesel - hybrid'!Q$29/100)^-$B32)","v":0},{"$f":"IF('Benzin - diesel - hybrid'!Q$36=\"Diesel\",$D32,IF('Benzin - diesel - hybrid'!Q$36=\"Benzin\",$C32,\"Brændstof ikke valgt\"))","v":"Brændstof ikke valgt"},{"$f":"(IF($B32<='Benzin - diesel - hybrid'!S$28,'Benzin - diesel - hybrid'!S$23/'Benzin - diesel - hybrid'!S$13*T32,0)*(1+'Benzin - diesel - hybrid'!S$29/100)^-$B32)","v":0},{"$f":"IF('Benzin - diesel - hybrid'!S$36=\"Diesel\",$D32,IF('Benzin - diesel - hybrid'!S$36=\"Benzin\",$C32,\"Brændstof ikke valgt\"))","v":"Brændstof ikke valgt"}]
[null,10,{"$f":"C32*(1+'Benzin - diesel - hybrid'!$E$30/100)","v":13.954947354174378},{"$f":"D32*(1+'Benzin - diesel - hybrid'!$E$31/100)","v":12.32564231950402},{"$f":"(IF($B33<='Benzin - diesel - hybrid'!E$28,'Benzin - diesel - hybrid'!E$23/'Benzin - diesel - hybrid'!E$13*F33,0)*(1+'Benzin - diesel - hybrid'!E$29/100)^-$B33)","v":0},{"$f":"IF('Benzin - diesel - hybrid'!E$36=\"Diesel\",$D33,IF('Benzin - diesel - hybrid'!E$36=\"Benzin\",$C33,\"Brændstof ikke valgt\"))","v":"Brændstof ikke valgt"},{"$f":"(IF($B33<='Benzin - diesel - hybrid'!G$28,'Benzin - diesel - hybrid'!G$23/'Benzin - diesel - hybrid'!G$13*H33,0)*(1+'Benzin - diesel - hybrid'!G$29/100)^-$B33)","v":0},{"$f":"IF('Benzin - diesel - hybrid'!G$36=\"Diesel\",$D33,IF('Benzin - diesel - hybrid'!G$36=\"Benzin\",$C33,\"Brændstof ikke valgt\"))","v":"Brændstof ikke valgt"},{"$f":"(IF($B33<='Benzin - diesel - hybrid'!I$28,'Benzin - diesel - hybrid'!I$23/'Benzin - diesel - hybrid'!I$13*J33,0)*(1+'Benzin - diesel - hybrid'!I$29/100)^-$B33)","v":0},{"$f":"IF('Benzin - diesel - hybrid'!I$36=\"Diesel\",$D33,IF('Benzin - diesel - hybrid'!I$36=\"Benzin\",$C33,\"Brændstof ikke valgt\"))","v":"Brændstof ikke valgt"},{"$f":"(IF($B33<='Benzin - diesel - hybrid'!K$28,'Benzin - diesel - hybrid'!K$23/'Benzin - diesel - hybrid'!K$13*L33,0)*(1+'Benzin - diesel - hybrid'!K$29/100)^-$B33)","v":0},{"$f":"IF('Benzin - diesel - hybrid'!K$36=\"Diesel\",$D33,IF('Benzin - diesel - hybrid'!K$36=\"Benzin\",$C33,\"Brændstof ikke valgt\"))","v":"Brændstof ikke valgt"},{"$f":"(IF($B33<='Benzin - diesel - hybrid'!M$28,'Benzin - diesel - hybrid'!M$23/'Benzin - diesel - hybrid'!M$13*N33,0)*(1+'Benzin - diesel - hybrid'!M$29/100)^-$B33)","v":0},{"$f":"IF('Benzin - diesel - hybrid'!M$36=\"Diesel\",$D33,IF('Benzin - diesel - hybrid'!M$36=\"Benzin\",$C33,\"Brændstof ikke valgt\"))","v":"Brændstof ikke valgt"},{"$f":"(IF($B33<='Benzin - diesel - hybrid'!O$28,'Benzin - diesel - hybrid'!O$23/'Benzin - diesel - hybrid'!O$13*P33,0)*(1+'Benzin - diesel - hybrid'!O$29/100)^-$B33)","v":0},{"$f":"IF('Benzin - diesel - hybrid'!O$36=\"Diesel\",$D33,IF('Benzin - diesel - hybrid'!O$36=\"Benzin\",$C33,\"Brændstof ikke valgt\"))","v":"Brændstof ikke valgt"},{"$f":"(IF($B33<='Benzin - diesel - hybrid'!Q$28,'Benzin - diesel - hybrid'!Q$23/'Benzin - diesel - hybrid'!Q$13*R33,0)*(1+'Benzin - diesel - hybrid'!Q$29/100)^-$B33)","v":0},{"$f":"IF('Benzin - diesel - hybrid'!Q$36=\"Diesel\",$D33,IF('Benzin - diesel - hybrid'!Q$36=\"Benzin\",$C33,\"Brændstof ikke valgt\"))","v":"Brændstof ikke valgt"},{"$f":"(IF($B33<='Benzin - diesel - hybrid'!S$28,'Benzin - diesel - hybrid'!S$23/'Benzin - diesel - hybrid'!S$13*T33,0)*(1+'Benzin - diesel - hybrid'!S$29/100)^-$B33)","v":0},{"$f":"IF('Benzin - diesel - hybrid'!S$36=\"Diesel\",$D33,IF('Benzin - diesel - hybrid'!S$36=\"Benzin\",$C33,\"Brændstof ikke valgt\"))","v":"Brændstof ikke valgt"}]
[null,11,{"$f":"C33*(1+'Benzin - diesel - hybrid'!$E$30/100)","v":14.148229804882661},{"$f":"D33*(1+'Benzin - diesel - hybrid'!$E$31/100)","v":12.504084663967523},{"$f":"(IF($B34<='Benzin - diesel - hybrid'!E$28,'Benzin - diesel - hybrid'!E$23/'Benzin - diesel - hybrid'!E$13*F34,0)*(1+'Benzin - diesel - hybrid'!E$29/100)^-$B34)","v":0},{"$f":"IF('Benzin - diesel - hybrid'!E$36=\"Diesel\",$D34,IF('Benzin - diesel - hybrid'!E$36=\"Benzin\",$C34,\"Brændstof ikke valgt\"))","v":"Brændstof ikke valgt"},{"$f":"(IF($B34<='Benzin - diesel - hybrid'!G$28,'Benzin - diesel - hybrid'!G$23/'Benzin - diesel - hybrid'!G$13*H34,0)*(1+'Benzin - diesel - hybrid'!G$29/100)^-$B34)","v":0},{"$f":"IF('Benzin - diesel - hybrid'!G$36=\"Diesel\",$D34,IF('Benzin - diesel - hybrid'!G$36=\"Benzin\",$C34,\"Brændstof ikke valgt\"))","v":"Brændstof ikke valgt"},{"$f":"(IF($B34<='Benzin - diesel - hybrid'!I$28,'Benzin - diesel - hybrid'!I$23/'Benzin - diesel - hybrid'!I$13*J34,0)*(1+'Benzin - diesel - hybrid'!I$29/100)^-$B34)","v":0},{"$f":"IF('Benzin - diesel - hybrid'!I$36=\"Diesel\",$D34,IF('Benzin - diesel - hybrid'!I$36=\"Benzin\",$C34,\"Brændstof ikke valgt\"))","v":"Brændstof ikke valgt"},{"$f":"(IF($B34<='Benzin - diesel - hybrid'!K$28,'Benzin - diesel - hybrid'!K$23/'Benzin - diesel - hybrid'!K$13*L34,0)*(1+'Benzin - diesel - hybrid'!K$29/100)^-$B34)","v":0},{"$f":"IF('Benzin - diesel - hybrid'!K$36=\"Diesel\",$D34,IF('Benzin - diesel - hybrid'!K$36=\"Benzin\",$C34,\"Brændstof ikke valgt\"))","v":"Brændstof ikke valgt"},{"$f":"(IF($B34<='Benzin - diesel - hybrid'!M$28,'Benzin - diesel - hybrid'!M$23/'Benzin - diesel - hybrid'!M$13*N34,0)*(1+'Benzin - diesel - hybrid'!M$29/100)^-$B34)","v":0},{"$f":"IF('Benzin - diesel - hybrid'!M$36=\"Diesel\",$D34,IF('Benzin - diesel - hybrid'!M$36=\"Benzin\",$C34,\"Brændstof ikke valgt\"))","v":"Brændstof ikke valgt"},{"$f":"(IF($B34<='Benzin - diesel - hybrid'!O$28,'Benzin - diesel - hybrid'!O$23/'Benzin - diesel - hybrid'!O$13*P34,0)*(1+'Benzin - diesel - hybrid'!O$29/100)^-$B34)","v":0},{"$f":"IF('Benzin - diesel - hybrid'!O$36=\"Diesel\",$D34,IF('Benzin - diesel - hybrid'!O$36=\"Benzin\",$C34,\"Brændstof ikke valgt\"))","v":"Brændstof ikke valgt"},{"$f":"(IF($B34<='Benzin - diesel - hybrid'!Q$28,'Benzin - diesel - hybrid'!Q$23/'Benzin - diesel - hybrid'!Q$13*R34,0)*(1+'Benzin - diesel - hybrid'!Q$29/100)^-$B34)","v":0},{"$f":"IF('Benzin - diesel - hybrid'!Q$36=\"Diesel\",$D34,IF('Benzin - diesel - hybrid'!Q$36=\"Benzin\",$C34,\"Brændstof ikke valgt\"))","v":"Brændstof ikke valgt"},{"$f":"(IF($B34<='Benzin - diesel - hybrid'!S$28,'Benzin - diesel - hybrid'!S$23/'Benzin - diesel - hybrid'!S$13*T34,0)*(1+'Benzin - diesel - hybrid'!S$29/100)^-$B34)","v":0},{"$f":"IF('Benzin - diesel - hybrid'!S$36=\"Diesel\",$D34,IF('Benzin - diesel - hybrid'!S$36=\"Benzin\",$C34,\"Brændstof ikke valgt\"))","v":"Brændstof ikke valgt"}]
[null,12,{"$f":"C34*(1+'Benzin - diesel - hybrid'!$E$30/100)","v":14.34418930658968},{"$f":"D34*(1+'Benzin - diesel - hybrid'!$E$31/100)","v":12.685110376459422},{"$f":"(IF($B35<='Benzin - diesel - hybrid'!E$28,'Benzin - diesel - hybrid'!E$23/'Benzin - diesel - hybrid'!E$13*F35,0)*(1+'Benzin - diesel - hybrid'!E$29/100)^-$B35)","v":0},{"$f":"IF('Benzin - diesel - hybrid'!E$36=\"Diesel\",$D35,IF('Benzin - diesel - hybrid'!E$36=\"Benzin\",$C35,\"Brændstof ikke valgt\"))","v":"Brændstof ikke valgt"},{"$f":"(IF($B35<='Benzin - diesel - hybrid'!G$28,'Benzin - diesel - hybrid'!G$23/'Benzin - diesel - hybrid'!G$13*H35,0)*(1+'Benzin - diesel - hybrid'!G$29/100)^-$B35)","v":0},{"$f":"IF('Benzin - diesel - hybrid'!G$36=\"Diesel\",$D35,IF('Benzin - diesel - hybrid'!G$36=\"Benzin\",$C35,\"Brændstof ikke valgt\"))","v":"Brændstof ikke valgt"},{"$f":"(IF($B35<='Benzin - diesel - hybrid'!I$28,'Benzin - diesel - hybrid'!I$23/'Benzin - diesel - hybrid'!I$13*J35,0)*(1+'Benzin - diesel - hybrid'!I$29/100)^-$B35)","v":0},{"$f":"IF('Benzin - diesel - hybrid'!I$36=\"Diesel\",$D35,IF('Benzin - diesel - hybrid'!I$36=\"Benzin\",$C35,\"Brændstof ikke valgt\"))","v":"Brændstof ikke valgt"},{"$f":"(IF($B35<='Benzin - diesel - hybrid'!K$28,'Benzin - diesel - hybrid'!K$23/'Benzin - diesel - hybrid'!K$13*L35,0)*(1+'Benzin - diesel - hybrid'!K$29/100)^-$B35)","v":0},{"$f":"IF('Benzin - diesel - hybrid'!K$36=\"Diesel\",$D35,IF('Benzin - diesel - hybrid'!K$36=\"Benzin\",$C35,\"Brændstof ikke valgt\"))","v":"Brændstof ikke valgt"},{"$f":"(IF($B35<='Benzin - diesel - hybrid'!M$28,'Benzin - diesel - hybrid'!M$23/'Benzin - diesel - hybrid'!M$13*N35,0)*(1+'Benzin - diesel - hybrid'!M$29/100)^-$B35)","v":0},{"$f":"IF('Benzin - diesel - hybrid'!M$36=\"Diesel\",$D35,IF('Benzin - diesel - hybrid'!M$36=\"Benzin\",$C35,\"Brændstof ikke valgt\"))","v":"Brændstof ikke valgt"},{"$f":"(IF($B35<='Benzin - diesel - hybrid'!O$28,'Benzin - diesel - hybrid'!O$23/'Benzin - diesel - hybrid'!O$13*P35,0)*(1+'Benzin - diesel - hybrid'!O$29/100)^-$B35)","v":0},{"$f":"IF('Benzin - diesel - hybrid'!O$36=\"Diesel\",$D35,IF('Benzin - diesel - hybrid'!O$36=\"Benzin\",$C35,\"Brændstof ikke valgt\"))","v":"Brændstof ikke valgt"},{"$f":"(IF($B35<='Benzin - diesel - hybrid'!Q$28,'Benzin - diesel - hybrid'!Q$23/'Benzin - diesel - hybrid'!Q$13*R35,0)*(1+'Benzin - diesel - hybrid'!Q$29/100)^-$B35)","v":0},{"$f":"IF('Benzin - diesel - hybrid'!Q$36=\"Diesel\",$D35,IF('Benzin - diesel - hybrid'!Q$36=\"Benzin\",$C35,\"Brændstof ikke valgt\"))","v":"Brændstof ikke valgt"},{"$f":"(IF($B35<='Benzin - diesel - hybrid'!S$28,'Benzin - diesel - hybrid'!S$23/'Benzin - diesel - hybrid'!S$13*T35,0)*(1+'Benzin - diesel - hybrid'!S$29/100)^-$B35)","v":0},{"$f":"IF('Benzin - diesel - hybrid'!S$36=\"Diesel\",$D35,IF('Benzin - diesel - hybrid'!S$36=\"Benzin\",$C35,\"Brændstof ikke valgt\"))","v":"Brændstof ikke valgt"}]
[null,13,{"$f":"C35*(1+'Benzin - diesel - hybrid'!$E$30/100)","v":14.542862937685241},{"$f":"D35*(1+'Benzin - diesel - hybrid'!$E$31/100)","v":12.868756857241353},{"$f":"(IF($B36<='Benzin - diesel - hybrid'!E$28,'Benzin - diesel - hybrid'!E$23/'Benzin - diesel - hybrid'!E$13*F36,0)*(1+'Benzin - diesel - hybrid'!E$29/100)^-$B36)","v":0},{"$f":"IF('Benzin - diesel - hybrid'!E$36=\"Diesel\",$D36,IF('Benzin - diesel - hybrid'!E$36=\"Benzin\",$C36,\"Brændstof ikke valgt\"))","v":"Brændstof ikke valgt"},{"$f":"(IF($B36<='Benzin - diesel - hybrid'!G$28,'Benzin - diesel - hybrid'!G$23/'Benzin - diesel - hybrid'!G$13*H36,0)*(1+'Benzin - diesel - hybrid'!G$29/100)^-$B36)","v":0},{"$f":"IF('Benzin - diesel - hybrid'!G$36=\"Diesel\",$D36,IF('Benzin - diesel - hybrid'!G$36=\"Benzin\",$C36,\"Brændstof ikke valgt\"))","v":"Brændstof ikke valgt"},{"$f":"(IF($B36<='Benzin - diesel - hybrid'!I$28,'Benzin - diesel - hybrid'!I$23/'Benzin - diesel - hybrid'!I$13*J36,0)*(1+'Benzin - diesel - hybrid'!I$29/100)^-$B36)","v":0},{"$f":"IF('Benzin - diesel - hybrid'!I$36=\"Diesel\",$D36,IF('Benzin - diesel - hybrid'!I$36=\"Benzin\",$C36,\"Brændstof ikke valgt\"))","v":"Brændstof ikke valgt"},{"$f":"(IF($B36<='Benzin - diesel - hybrid'!K$28,'Benzin - diesel - hybrid'!K$23/'Benzin - diesel - hybrid'!K$13*L36,0)*(1+'Benzin - diesel - hybrid'!K$29/100)^-$B36)","v":0},{"$f":"IF('Benzin - diesel - hybrid'!K$36=\"Diesel\",$D36,IF('Benzin - diesel - hybrid'!K$36=\"Benzin\",$C36,\"Brændstof ikke valgt\"))","v":"Brændstof ikke valgt"},{"$f":"(IF($B36<='Benzin - diesel - hybrid'!M$28,'Benzin - diesel - hybrid'!M$23/'Benzin - diesel - hybrid'!M$13*N36,0)*(1+'Benzin - diesel - hybrid'!M$29/100)^-$B36)","v":0},{"$f":"IF('Benzin - diesel - hybrid'!M$36=\"Diesel\",$D36,IF('Benzin - diesel - hybrid'!M$36=\"Benzin\",$C36,\"Brændstof ikke valgt\"))","v":"Brændstof ikke valgt"},{"$f":"(IF($B36<='Benzin - diesel - hybrid'!O$28,'Benzin - diesel - hybrid'!O$23/'Benzin - diesel - hybrid'!O$13*P36,0)*(1+'Benzin - diesel - hybrid'!O$29/100)^-$B36)","v":0},{"$f":"IF('Benzin - diesel - hybrid'!O$36=\"Diesel\",$D36,IF('Benzin - diesel - hybrid'!O$36=\"Benzin\",$C36,\"Brændstof ikke valgt\"))","v":"Brændstof ikke valgt"},{"$f":"(IF($B36<='Benzin - diesel - hybrid'!Q$28,'Benzin - diesel - hybrid'!Q$23/'Benzin - diesel - hybrid'!Q$13*R36,0)*(1+'Benzin - diesel - hybrid'!Q$29/100)^-$B36)","v":0},{"$f":"IF('Benzin - diesel - hybrid'!Q$36=\"Diesel\",$D36,IF('Benzin - diesel - hybrid'!Q$36=\"Benzin\",$C36,\"Brændstof ikke valgt\"))","v":"Brændstof ikke valgt"},{"$f":"(IF($B36<='Benzin - diesel - hybrid'!S$28,'Benzin - diesel - hybrid'!S$23/'Benzin - diesel - hybrid'!S$13*T36,0)*(1+'Benzin - diesel - hybrid'!S$29/100)^-$B36)","v":0},{"$f":"IF('Benzin - diesel - hybrid'!S$36=\"Diesel\",$D36,IF('Benzin - diesel - hybrid'!S$36=\"Benzin\",$C36,\"Brændstof ikke valgt\"))","v":"Brændstof ikke valgt"}]
[null,14,{"$f":"C36*(1+'Benzin - diesel - hybrid'!$E$30/100)","v":14.74428829011193},{"$f":"D36*(1+'Benzin - diesel - hybrid'!$E$31/100)","v":13.05506204803074},{"$f":"(IF($B37<='Benzin - diesel - hybrid'!E$28,'Benzin - diesel - hybrid'!E$23/'Benzin - diesel - hybrid'!E$13*F37,0)*(1+'Benzin - diesel - hybrid'!E$29/100)^-$B37)","v":0},{"$f":"IF('Benzin - diesel - hybrid'!E$36=\"Diesel\",$D37,IF('Benzin - diesel - hybrid'!E$36=\"Benzin\",$C37,\"Brændstof ikke valgt\"))","v":"Brændstof ikke valgt"},{"$f":"(IF($B37<='Benzin - diesel - hybrid'!G$28,'Benzin - diesel - hybrid'!G$23/'Benzin - diesel - hybrid'!G$13*H37,0)*(1+'Benzin - diesel - hybrid'!G$29/100)^-$B37)","v":0},{"$f":"IF('Benzin - diesel - hybrid'!G$36=\"Diesel\",$D37,IF('Benzin - diesel - hybrid'!G$36=\"Benzin\",$C37,\"Brændstof ikke valgt\"))","v":"Brændstof ikke valgt"},{"$f":"(IF($B37<='Benzin - diesel - hybrid'!I$28,'Benzin - diesel - hybrid'!I$23/'Benzin - diesel - hybrid'!I$13*J37,0)*(1+'Benzin - diesel - hybrid'!I$29/100)^-$B37)","v":0},{"$f":"IF('Benzin - diesel - hybrid'!I$36=\"Diesel\",$D37,IF('Benzin - diesel - hybrid'!I$36=\"Benzin\",$C37,\"Brændstof ikke valgt\"))","v":"Brændstof ikke valgt"},{"$f":"(IF($B37<='Benzin - diesel - hybrid'!K$28,'Benzin - diesel - hybrid'!K$23/'Benzin - diesel - hybrid'!K$13*L37,0)*(1+'Benzin - diesel - hybrid'!K$29/100)^-$B37)","v":0},{"$f":"IF('Benzin - diesel - hybrid'!K$36=\"Diesel\",$D37,IF('Benzin - diesel - hybrid'!K$36=\"Benzin\",$C37,\"Brændstof ikke valgt\"))","v":"Brændstof ikke valgt"},{"$f":"(IF($B37<='Benzin - diesel - hybrid'!M$28,'Benzin - diesel - hybrid'!M$23/'Benzin - diesel - hybrid'!M$13*N37,0)*(1+'Benzin - diesel - hybrid'!M$29/100)^-$B37)","v":0},{"$f":"IF('Benzin - diesel - hybrid'!M$36=\"Diesel\",$D37,IF('Benzin - diesel - hybrid'!M$36=\"Benzin\",$C37,\"Brændstof ikke valgt\"))","v":"Brændstof ikke valgt"},{"$f":"(IF($B37<='Benzin - diesel - hybrid'!O$28,'Benzin - diesel - hybrid'!O$23/'Benzin - diesel - hybrid'!O$13*P37,0)*(1+'Benzin - diesel - hybrid'!O$29/100)^-$B37)","v":0},{"$f":"IF('Benzin - diesel - hybrid'!O$36=\"Diesel\",$D37,IF('Benzin - diesel - hybrid'!O$36=\"Benzin\",$C37,\"Brændstof ikke valgt\"))","v":"Brændstof ikke valgt"},{"$f":"(IF($B37<='Benzin - diesel - hybrid'!Q$28,'Benzin - diesel - hybrid'!Q$23/'Benzin - diesel - hybrid'!Q$13*R37,0)*(1+'Benzin - diesel - hybrid'!Q$29/100)^-$B37)","v":0},{"$f":"IF('Benzin - diesel - hybrid'!Q$36=\"Diesel\",$D37,IF('Benzin - diesel - hybrid'!Q$36=\"Benzin\",$C37,\"Brændstof ikke valgt\"))","v":"Brændstof ikke valgt"},{"$f":"(IF($B37<='Benzin - diesel - hybrid'!S$28,'Benzin - diesel - hybrid'!S$23/'Benzin - diesel - hybrid'!S$13*T37,0)*(1+'Benzin - diesel - hybrid'!S$29/100)^-$B37)","v":0},{"$f":"IF('Benzin - diesel - hybrid'!S$36=\"Diesel\",$D37,IF('Benzin - diesel - hybrid'!S$36=\"Benzin\",$C37,\"Brændstof ikke valgt\"))","v":"Brændstof ikke valgt"}]
[null,15,{"$f":"C37*(1+'Benzin - diesel - hybrid'!$E$30/100)","v":14.948503476478063},{"$f":"D37*(1+'Benzin - diesel - hybrid'!$E$31/100)","v":13.244064439839629},{"$f":"(IF($B38<='Benzin - diesel - hybrid'!E$28,'Benzin - diesel - hybrid'!E$23/'Benzin - diesel - hybrid'!E$13*F38,0)*(1+'Benzin - diesel - hybrid'!E$29/100)^-$B38)","v":0},{"$f":"IF('Benzin - diesel - hybrid'!E$36=\"Diesel\",$D38,IF('Benzin - diesel - hybrid'!E$36=\"Benzin\",$C38,\"Brændstof ikke valgt\"))","v":"Brændstof ikke valgt"},{"$f":"(IF($B38<='Benzin - diesel - hybrid'!G$28,'Benzin - diesel - hybrid'!G$23/'Benzin - diesel - hybrid'!G$13*H38,0)*(1+'Benzin - diesel - hybrid'!G$29/100)^-$B38)","v":0},{"$f":"IF('Benzin - diesel - hybrid'!G$36=\"Diesel\",$D38,IF('Benzin - diesel - hybrid'!G$36=\"Benzin\",$C38,\"Brændstof ikke valgt\"))","v":"Brændstof ikke valgt"},{"$f":"(IF($B38<='Benzin - diesel - hybrid'!I$28,'Benzin - diesel - hybrid'!I$23/'Benzin - diesel - hybrid'!I$13*J38,0)*(1+'Benzin - diesel - hybrid'!I$29/100)^-$B38)","v":0},{"$f":"IF('Benzin - diesel - hybrid'!I$36=\"Diesel\",$D38,IF('Benzin - diesel - hybrid'!I$36=\"Benzin\",$C38,\"Brændstof ikke valgt\"))","v":"Brændstof ikke valgt"},{"$f":"(IF($B38<='Benzin - diesel - hybrid'!K$28,'Benzin - diesel - hybrid'!K$23/'Benzin - diesel - hybrid'!K$13*L38,0)*(1+'Benzin - diesel - hybrid'!K$29/100)^-$B38)","v":0},{"$f":"IF('Benzin - diesel - hybrid'!K$36=\"Diesel\",$D38,IF('Benzin - diesel - hybrid'!K$36=\"Benzin\",$C38,\"Brændstof ikke valgt\"))","v":"Brændstof ikke valgt"},{"$f":"(IF($B38<='Benzin - diesel - hybrid'!M$28,'Benzin - diesel - hybrid'!M$23/'Benzin - diesel - hybrid'!M$13*N38,0)*(1+'Benzin - diesel - hybrid'!M$29/100)^-$B38)","v":0},{"$f":"IF('Benzin - diesel - hybrid'!M$36=\"Diesel\",$D38,IF('Benzin - diesel - hybrid'!M$36=\"Benzin\",$C38,\"Brændstof ikke valgt\"))","v":"Brændstof ikke valgt"},{"$f":"(IF($B38<='Benzin - diesel - hybrid'!O$28,'Benzin - diesel - hybrid'!O$23/'Benzin - diesel - hybrid'!O$13*P38,0)*(1+'Benzin - diesel - hybrid'!O$29/100)^-$B38)","v":0},{"$f":"IF('Benzin - diesel - hybrid'!O$36=\"Diesel\",$D38,IF('Benzin - diesel - hybrid'!O$36=\"Benzin\",$C38,\"Brændstof ikke valgt\"))","v":"Brændstof ikke valgt"},{"$f":"(IF($B38<='Benzin - diesel - hybrid'!Q$28,'Benzin - diesel - hybrid'!Q$23/'Benzin - diesel - hybrid'!Q$13*R38,0)*(1+'Benzin - diesel - hybrid'!Q$29/100)^-$B38)","v":0},{"$f":"IF('Benzin - diesel - hybrid'!Q$36=\"Diesel\",$D38,IF('Benzin - diesel - hybrid'!Q$36=\"Benzin\",$C38,\"Brændstof ikke valgt\"))","v":"Brændstof ikke valgt"},{"$f":"(IF($B38<='Benzin - diesel - hybrid'!S$28,'Benzin - diesel - hybrid'!S$23/'Benzin - diesel - hybrid'!S$13*T38,0)*(1+'Benzin - diesel - hybrid'!S$29/100)^-$B38)","v":0},{"$f":"IF('Benzin - diesel - hybrid'!S$36=\"Diesel\",$D38,IF('Benzin - diesel - hybrid'!S$36=\"Benzin\",$C38,\"Brændstof ikke valgt\"))","v":"Brændstof ikke valgt"}]
[]
[{"$f":"'Benzin - diesel - hybrid'!C15","v":"Service, vedligehold og løbende omkostninger"}]
[null,"År indeks",{"$f":"'Benzin - diesel - hybrid'!#REF!&\" og \"&'Benzin - diesel - hybrid'!C16&\"og \"&'Benzin - diesel - hybrid'!C17&\" og \"&'Benzin - diesel - hybrid'!C39&\" og \"&'Benzin - diesel - hybrid'!C40","v":{"$error":"#REF!"}},null,{"$f":"'Benzin - diesel - hybrid'!E8","v":"PRODUKT 1"},null,{"$f":"'Benzin - diesel - hybrid'!G8","v":"PRODUKT 2"},null,{"$f":"'Benzin - diesel - hybrid'!I8","v":"PRODUKT 3"},null,{"$f":"'Benzin - diesel - hybrid'!K8","v":"PRODUKT 4"},null,{"$f":"'Benzin - diesel - hybrid'!M8","v":"PRODUKT 5"},null,{"$f":"'Benzin - diesel - hybrid'!O8","v":"PRODUKT 6"},null,{"$f":"'Benzin - diesel - hybrid'!Q8","v":"PRODUKT 7"},null,{"$f":"'Benzin - diesel - hybrid'!S8","v":"PRODUKT 8"}]
[null,1,{"$f":"B42","v":1},null,{"$f":"(IF($B42<='Benzin - diesel - hybrid'!E$28,'Benzin - diesel - hybrid'!E$16,0)+IF($B42<='Benzin - diesel - hybrid'!E$28,'Benzin - diesel - hybrid'!E$17,0)+IF($B42<='Benzin - diesel - hybrid'!E$28,'Benzin - diesel - hybrid'!E$39,0)+IF($B42<='Benzin - diesel - hybrid'!E$28,'Benzin - diesel - hybrid'!E$40,0))*(1+'Benzin - diesel - hybrid'!E$29/100)^-$B42","v":0},null,{"$f":"(IF($B42<='Benzin - diesel - hybrid'!G$28,'Benzin - diesel - hybrid'!G$16,0)+IF($B42<='Benzin - diesel - hybrid'!G$28,'Benzin - diesel - hybrid'!G$17,0)+IF($B42<='Benzin - diesel - hybrid'!G$28,'Benzin - diesel - hybrid'!G$39,0)+IF($B42<='Benzin - diesel - hybrid'!G$28,'Benzin - diesel - hybrid'!G$40,0))*(1+'Benzin - diesel - hybrid'!G$29/100)^-$B42","v":0},null,{"$f":"(IF($B42<='Benzin - diesel - hybrid'!I$28,'Benzin - diesel - hybrid'!I$16,0)+IF($B42<='Benzin - diesel - hybrid'!I$28,'Benzin - diesel - hybrid'!I$17,0)+IF($B42<='Benzin - diesel - hybrid'!I$28,'Benzin - diesel - hybrid'!I$39,0)+IF($B42<='Benzin - diesel - hybrid'!I$28,'Benzin - diesel - hybrid'!I$40,0))*(1+'Benzin - diesel - hybrid'!I$29/100)^-$B42","v":0},null,{"$f":"(IF($B42<='Benzin - diesel - hybrid'!K$28,'Benzin - diesel - hybrid'!K$16,0)+IF($B42<='Benzin - diesel - hybrid'!K$28,'Benzin - diesel - hybrid'!K$17,0)+IF($B42<='Benzin - diesel - hybrid'!K$28,'Benzin - diesel - hybrid'!K$39,0)+IF($B42<='Benzin - diesel - hybrid'!K$28,'Benzin - diesel - hybrid'!K$40,0))*(1+'Benzin - diesel - hybrid'!K$29/100)^-$B42","v":0},null,{"$f":"(IF($B42<='Benzin - diesel - hybrid'!M$28,'Benzin - diesel - hybrid'!M$16,0)+IF($B42<='Benzin - diesel - hybrid'!M$28,'Benzin - diesel - hybrid'!M$17,0)+IF($B42<='Benzin - diesel - hybrid'!M$28,'Benzin - diesel - hybrid'!M$39,0)+IF($B42<='Benzin - diesel - hybrid'!M$28,'Benzin - diesel - hybrid'!M$40,0))*(1+'Benzin - diesel - hybrid'!M$29/100)^-$B42","v":0},null,{"$f":"(IF($B42<='Benzin - diesel - hybrid'!O$28,'Benzin - diesel - hybrid'!O$16,0)+IF($B42<='Benzin - diesel - hybrid'!O$28,'Benzin - diesel - hybrid'!O$17,0)+IF($B42<='Benzin - diesel - hybrid'!O$28,'Benzin - diesel - hybrid'!O$39,0)+IF($B42<='Benzin - diesel - hybrid'!O$28,'Benzin - diesel - hybrid'!O$40,0))*(1+'Benzin - diesel - hybrid'!O$29/100)^-$B42","v":0},null,{"$f":"(IF($B42<='Benzin - diesel - hybrid'!Q$28,'Benzin - diesel - hybrid'!Q$16,0)+IF($B42<='Benzin - diesel - hybrid'!Q$28,'Benzin - diesel - hybrid'!Q$17,0)+IF($B42<='Benzin - diesel - hybrid'!Q$28,'Benzin - diesel - hybrid'!Q$39,0)+IF($B42<='Benzin - diesel - hybrid'!Q$28,'Benzin - diesel - hybrid'!Q$40,0))*(1+'Benzin - diesel - hybrid'!Q$29/100)^-$B42","v":0},null,{"$f":"(IF($B42<='Benzin - diesel - hybrid'!S$28,'Benzin - diesel - hybrid'!S$16,0)+IF($B42<='Benzin - diesel - hybrid'!S$28,'Benzin - diesel - hybrid'!S$17,0)+IF($B42<='Benzin - diesel - hybrid'!S$28,'Benzin - diesel - hybrid'!S$39,0)+IF($B42<='Benzin - diesel - hybrid'!S$28,'Benzin - diesel - hybrid'!S$40,0))*(1+'Benzin - diesel - hybrid'!S$29/100)^-$B42","v":0}]
[null,2,{"$f":"B43","v":2},null,{"$f":"(IF($B43<='Benzin - diesel - hybrid'!E$28,'Benzin - diesel - hybrid'!E$16,0)+IF($B43<='Benzin - diesel - hybrid'!E$28,'Benzin - diesel - hybrid'!E$17,0)+IF($B43<='Benzin - diesel - hybrid'!E$28,'Benzin - diesel - hybrid'!E$39,0)+IF($B43<='Benzin - diesel - hybrid'!E$28,'Benzin - diesel - hybrid'!E$40,0))*(1+'Benzin - diesel - hybrid'!E$29/100)^-$B43","v":0},null,{"$f":"(IF($B43<='Benzin - diesel - hybrid'!G$28,'Benzin - diesel - hybrid'!G$16,0)+IF($B43<='Benzin - diesel - hybrid'!G$28,'Benzin - diesel - hybrid'!G$17,0)+IF($B43<='Benzin - diesel - hybrid'!G$28,'Benzin - diesel - hybrid'!G$39,0)+IF($B43<='Benzin - diesel - hybrid'!G$28,'Benzin - diesel - hybrid'!G$40,0))*(1+'Benzin - diesel - hybrid'!G$29/100)^-$B43","v":0},null,{"$f":"(IF($B43<='Benzin - diesel - hybrid'!I$28,'Benzin - diesel - hybrid'!I$16,0)+IF($B43<='Benzin - diesel - hybrid'!I$28,'Benzin - diesel - hybrid'!I$17,0)+IF($B43<='Benzin - diesel - hybrid'!I$28,'Benzin - diesel - hybrid'!I$39,0)+IF($B43<='Benzin - diesel - hybrid'!I$28,'Benzin - diesel - hybrid'!I$40,0))*(1+'Benzin - diesel - hybrid'!I$29/100)^-$B43","v":0},null,{"$f":"(IF($B43<='Benzin - diesel - hybrid'!K$28,'Benzin - diesel - hybrid'!K$16,0)+IF($B43<='Benzin - diesel - hybrid'!K$28,'Benzin - diesel - hybrid'!K$17,0)+IF($B43<='Benzin - diesel - hybrid'!K$28,'Benzin - diesel - hybrid'!K$39,0)+IF($B43<='Benzin - diesel - hybrid'!K$28,'Benzin - diesel - hybrid'!K$40,0))*(1+'Benzin - diesel - hybrid'!K$29/100)^-$B43","v":0},null,{"$f":"(IF($B43<='Benzin - diesel - hybrid'!M$28,'Benzin - diesel - hybrid'!M$16,0)+IF($B43<='Benzin - diesel - hybrid'!M$28,'Benzin - diesel - hybrid'!M$17,0)+IF($B43<='Benzin - diesel - hybrid'!M$28,'Benzin - diesel - hybrid'!M$39,0)+IF($B43<='Benzin - diesel - hybrid'!M$28,'Benzin - diesel - hybrid'!M$40,0))*(1+'Benzin - diesel - hybrid'!M$29/100)^-$B43","v":0},null,{"$f":"(IF($B43<='Benzin - diesel - hybrid'!O$28,'Benzin - diesel - hybrid'!O$16,0)+IF($B43<='Benzin - diesel - hybrid'!O$28,'Benzin - diesel - hybrid'!O$17,0)+IF($B43<='Benzin - diesel - hybrid'!O$28,'Benzin - diesel - hybrid'!O$39,0)+IF($B43<='Benzin - diesel - hybrid'!O$28,'Benzin - diesel - hybrid'!O$40,0))*(1+'Benzin - diesel - hybrid'!O$29/100)^-$B43","v":0},null,{"$f":"(IF($B43<='Benzin - diesel - hybrid'!Q$28,'Benzin - diesel - hybrid'!Q$16,0)+IF($B43<='Benzin - diesel - hybrid'!Q$28,'Benzin - diesel - hybrid'!Q$17,0)+IF($B43<='Benzin - diesel - hybrid'!Q$28,'Benzin - diesel - hybrid'!Q$39,0)+IF($B43<='Benzin - diesel - hybrid'!Q$28,'Benzin - diesel - hybrid'!Q$40,0))*(1+'Benzin - diesel - hybrid'!Q$29/100)^-$B43","v":0},null,{"$f":"(IF($B43<='Benzin - diesel - hybrid'!S$28,'Benzin - diesel - hybrid'!S$16,0)+IF($B43<='Benzin - diesel - hybrid'!S$28,'Benzin - diesel - hybrid'!S$17,0)+IF($B43<='Benzin - diesel - hybrid'!S$28,'Benzin - diesel - hybrid'!S$39,0)+IF($B43<='Benzin - diesel - hybrid'!S$28,'Benzin - diesel - hybrid'!S$40,0))*(1+'Benzin - diesel - hybrid'!S$29/100)^-$B43","v":0}]
[null,3,3,null,{"$f":"(IF($B44<='Benzin - diesel - hybrid'!E$28,'Benzin - diesel - hybrid'!E$16,0)+IF($B44<='Benzin - diesel - hybrid'!E$28,'Benzin - diesel - hybrid'!E$17,0)+IF($B44<='Benzin - diesel - hybrid'!E$28,'Benzin - diesel - hybrid'!E$39,0)+IF($B44<='Benzin - diesel - hybrid'!E$28,'Benzin - diesel - hybrid'!E$40,0))*(1+'Benzin - diesel - hybrid'!E$29/100)^-$B44","v":0},null,{"$f":"(IF($B44<='Benzin - diesel - hybrid'!G$28,'Benzin - diesel - hybrid'!G$16,0)+IF($B44<='Benzin - diesel - hybrid'!G$28,'Benzin - diesel - hybrid'!G$17,0)+IF($B44<='Benzin - diesel - hybrid'!G$28,'Benzin - diesel - hybrid'!G$39,0)+IF($B44<='Benzin - diesel - hybrid'!G$28,'Benzin - diesel - hybrid'!G$40,0))*(1+'Benzin - diesel - hybrid'!G$29/100)^-$B44","v":0},null,{"$f":"(IF($B44<='Benzin - diesel - hybrid'!I$28,'Benzin - diesel - hybrid'!I$16,0)+IF($B44<='Benzin - diesel - hybrid'!I$28,'Benzin - diesel - hybrid'!I$17,0)+IF($B44<='Benzin - diesel - hybrid'!I$28,'Benzin - diesel - hybrid'!I$39,0)+IF($B44<='Benzin - diesel - hybrid'!I$28,'Benzin - diesel - hybrid'!I$40,0))*(1+'Benzin - diesel - hybrid'!I$29/100)^-$B44","v":0},null,{"$f":"(IF($B44<='Benzin - diesel - hybrid'!K$28,'Benzin - diesel - hybrid'!K$16,0)+IF($B44<='Benzin - diesel - hybrid'!K$28,'Benzin - diesel - hybrid'!K$17,0)+IF($B44<='Benzin - diesel - hybrid'!K$28,'Benzin - diesel - hybrid'!K$39,0)+IF($B44<='Benzin - diesel - hybrid'!K$28,'Benzin - diesel - hybrid'!K$40,0))*(1+'Benzin - diesel - hybrid'!K$29/100)^-$B44","v":0},null,{"$f":"(IF($B44<='Benzin - diesel - hybrid'!M$28,'Benzin - diesel - hybrid'!M$16,0)+IF($B44<='Benzin - diesel - hybrid'!M$28,'Benzin - diesel - hybrid'!M$17,0)+IF($B44<='Benzin - diesel - hybrid'!M$28,'Benzin - diesel - hybrid'!M$39,0)+IF($B44<='Benzin - diesel - hybrid'!M$28,'Benzin - diesel - hybrid'!M$40,0))*(1+'Benzin - diesel - hybrid'!M$29/100)^-$B44","v":0},null,{"$f":"(IF($B44<='Benzin - diesel - hybrid'!O$28,'Benzin - diesel - hybrid'!O$16,0)+IF($B44<='Benzin - diesel - hybrid'!O$28,'Benzin - diesel - hybrid'!O$17,0)+IF($B44<='Benzin - diesel - hybrid'!O$28,'Benzin - diesel - hybrid'!O$39,0)+IF($B44<='Benzin - diesel - hybrid'!O$28,'Benzin - diesel - hybrid'!O$40,0))*(1+'Benzin - diesel - hybrid'!O$29/100)^-$B44","v":0},null,{"$f":"(IF($B44<='Benzin - diesel - hybrid'!Q$28,'Benzin - diesel - hybrid'!Q$16,0)+IF($B44<='Benzin - diesel - hybrid'!Q$28,'Benzin - diesel - hybrid'!Q$17,0)+IF($B44<='Benzin - diesel - hybrid'!Q$28,'Benzin - diesel - hybrid'!Q$39,0)+IF($B44<='Benzin - diesel - hybrid'!Q$28,'Benzin - diesel - hybrid'!Q$40,0))*(1+'Benzin - diesel - hybrid'!Q$29/100)^-$B44","v":0},null,{"$f":"(IF($B44<='Benzin - diesel - hybrid'!S$28,'Benzin - diesel - hybrid'!S$16,0)+IF($B44<='Benzin - diesel - hybrid'!S$28,'Benzin - diesel - hybrid'!S$17,0)+IF($B44<='Benzin - diesel - hybrid'!S$28,'Benzin - diesel - hybrid'!S$39,0)+IF($B44<='Benzin - diesel - hybrid'!S$28,'Benzin - diesel - hybrid'!S$40,0))*(1+'Benzin - diesel - hybrid'!S$29/100)^-$B44","v":0}]
[null,4,4,null,{"$f":"(IF($B45<='Benzin - diesel - hybrid'!E$28,'Benzin - diesel - hybrid'!E$16,0)+IF($B45<='Benzin - diesel - hybrid'!E$28,'Benzin - diesel - hybrid'!E$17,0)+IF($B45<='Benzin - diesel - hybrid'!E$28,'Benzin - diesel - hybrid'!E$39,0)+IF($B45<='Benzin - diesel - hybrid'!E$28,'Benzin - diesel - hybrid'!E$40,0))*(1+'Benzin - diesel - hybrid'!E$29/100)^-$B45","v":0},null,{"$f":"(IF($B45<='Benzin - diesel - hybrid'!G$28,'Benzin - diesel - hybrid'!G$16,0)+IF($B45<='Benzin - diesel - hybrid'!G$28,'Benzin - diesel - hybrid'!G$17,0)+IF($B45<='Benzin - diesel - hybrid'!G$28,'Benzin - diesel - hybrid'!G$39,0)+IF($B45<='Benzin - diesel - hybrid'!G$28,'Benzin - diesel - hybrid'!G$40,0))*(1+'Benzin - diesel - hybrid'!G$29/100)^-$B45","v":0},null,{"$f":"(IF($B45<='Benzin - diesel - hybrid'!I$28,'Benzin - diesel - hybrid'!I$16,0)+IF($B45<='Benzin - diesel - hybrid'!I$28,'Benzin - diesel - hybrid'!I$17,0)+IF($B45<='Benzin - diesel - hybrid'!I$28,'Benzin - diesel - hybrid'!I$39,0)+IF($B45<='Benzin - diesel - hybrid'!I$28,'Benzin - diesel - hybrid'!I$40,0))*(1+'Benzin - diesel - hybrid'!I$29/100)^-$B45","v":0},null,{"$f":"(IF($B45<='Benzin - diesel - hybrid'!K$28,'Benzin - diesel - hybrid'!K$16,0)+IF($B45<='Benzin - diesel - hybrid'!K$28,'Benzin - diesel - hybrid'!K$17,0)+IF($B45<='Benzin - diesel - hybrid'!K$28,'Benzin - diesel - hybrid'!K$39,0)+IF($B45<='Benzin - diesel - hybrid'!K$28,'Benzin - diesel - hybrid'!K$40,0))*(1+'Benzin - diesel - hybrid'!K$29/100)^-$B45","v":0},null,{"$f":"(IF($B45<='Benzin - diesel - hybrid'!M$28,'Benzin - diesel - hybrid'!M$16,0)+IF($B45<='Benzin - diesel - hybrid'!M$28,'Benzin - diesel - hybrid'!M$17,0)+IF($B45<='Benzin - diesel - hybrid'!M$28,'Benzin - diesel - hybrid'!M$39,0)+IF($B45<='Benzin - diesel - hybrid'!M$28,'Benzin - diesel - hybrid'!M$40,0))*(1+'Benzin - diesel - hybrid'!M$29/100)^-$B45","v":0},null,{"$f":"(IF($B45<='Benzin - diesel - hybrid'!O$28,'Benzin - diesel - hybrid'!O$16,0)+IF($B45<='Benzin - diesel - hybrid'!O$28,'Benzin - diesel - hybrid'!O$17,0)+IF($B45<='Benzin - diesel - hybrid'!O$28,'Benzin - diesel - hybrid'!O$39,0)+IF($B45<='Benzin - diesel - hybrid'!O$28,'Benzin - diesel - hybrid'!O$40,0))*(1+'Benzin - diesel - hybrid'!O$29/100)^-$B45","v":0},null,{"$f":"(IF($B45<='Benzin - diesel - hybrid'!Q$28,'Benzin - diesel - hybrid'!Q$16,0)+IF($B45<='Benzin - diesel - hybrid'!Q$28,'Benzin - diesel - hybrid'!Q$17,0)+IF($B45<='Benzin - diesel - hybrid'!Q$28,'Benzin - diesel - hybrid'!Q$39,0)+IF($B45<='Benzin - diesel - hybrid'!Q$28,'Benzin - diesel - hybrid'!Q$40,0))*(1+'Benzin - diesel - hybrid'!Q$29/100)^-$B45","v":0},null,{"$f":"(IF($B45<='Benzin - diesel - hybrid'!S$28,'Benzin - diesel - hybrid'!S$16,0)+IF($B45<='Benzin - diesel - hybrid'!S$28,'Benzin - diesel - hybrid'!S$17,0)+IF($B45<='Benzin - diesel - hybrid'!S$28,'Benzin - diesel - hybrid'!S$39,0)+IF($B45<='Benzin - diesel - hybrid'!S$28,'Benzin - diesel - hybrid'!S$40,0))*(1+'Benzin - diesel - hybrid'!S$29/100)^-$B45","v":0}]
[null,5,5,null,{"$f":"(IF($B46<='Benzin - diesel - hybrid'!E$28,'Benzin - diesel - hybrid'!E$16,0)+IF($B46<='Benzin - diesel - hybrid'!E$28,'Benzin - diesel - hybrid'!E$17,0)+IF($B46<='Benzin - diesel - hybrid'!E$28,'Benzin - diesel - hybrid'!E$39,0)+IF($B46<='Benzin - diesel - hybrid'!E$28,'Benzin - diesel - hybrid'!E$40,0))*(1+'Benzin - diesel - hybrid'!E$29/100)^-$B46","v":0},null,{"$f":"(IF($B46<='Benzin - diesel - hybrid'!G$28,'Benzin - diesel - hybrid'!G$16,0)+IF($B46<='Benzin - diesel - hybrid'!G$28,'Benzin - diesel - hybrid'!G$17,0)+IF($B46<='Benzin - diesel - hybrid'!G$28,'Benzin - diesel - hybrid'!G$39,0)+IF($B46<='Benzin - diesel - hybrid'!G$28,'Benzin - diesel - hybrid'!G$40,0))*(1+'Benzin - diesel - hybrid'!G$29/100)^-$B46","v":0},null,{"$f":"(IF($B46<='Benzin - diesel - hybrid'!I$28,'Benzin - diesel - hybrid'!I$16,0)+IF($B46<='Benzin - diesel - hybrid'!I$28,'Benzin - diesel - hybrid'!I$17,0)+IF($B46<='Benzin - diesel - hybrid'!I$28,'Benzin - diesel - hybrid'!I$39,0)+IF($B46<='Benzin - diesel - hybrid'!I$28,'Benzin - diesel - hybrid'!I$40,0))*(1+'Benzin - diesel - hybrid'!I$29/100)^-$B46","v":0},null,{"$f":"(IF($B46<='Benzin - diesel - hybrid'!K$28,'Benzin - diesel - hybrid'!K$16,0)+IF($B46<='Benzin - diesel - hybrid'!K$28,'Benzin - diesel - hybrid'!K$17,0)+IF($B46<='Benzin - diesel - hybrid'!K$28,'Benzin - diesel - hybrid'!K$39,0)+IF($B46<='Benzin - diesel - hybrid'!K$28,'Benzin - diesel - hybrid'!K$40,0))*(1+'Benzin - diesel - hybrid'!K$29/100)^-$B46","v":0},null,{"$f":"(IF($B46<='Benzin - diesel - hybrid'!M$28,'Benzin - diesel - hybrid'!M$16,0)+IF($B46<='Benzin - diesel - hybrid'!M$28,'Benzin - diesel - hybrid'!M$17,0)+IF($B46<='Benzin - diesel - hybrid'!M$28,'Benzin - diesel - hybrid'!M$39,0)+IF($B46<='Benzin - diesel - hybrid'!M$28,'Benzin - diesel - hybrid'!M$40,0))*(1+'Benzin - diesel - hybrid'!M$29/100)^-$B46","v":0},null,{"$f":"(IF($B46<='Benzin - diesel - hybrid'!O$28,'Benzin - diesel - hybrid'!O$16,0)+IF($B46<='Benzin - diesel - hybrid'!O$28,'Benzin - diesel - hybrid'!O$17,0)+IF($B46<='Benzin - diesel - hybrid'!O$28,'Benzin - diesel - hybrid'!O$39,0)+IF($B46<='Benzin - diesel - hybrid'!O$28,'Benzin - diesel - hybrid'!O$40,0))*(1+'Benzin - diesel - hybrid'!O$29/100)^-$B46","v":0},null,{"$f":"(IF($B46<='Benzin - diesel - hybrid'!Q$28,'Benzin - diesel - hybrid'!Q$16,0)+IF($B46<='Benzin - diesel - hybrid'!Q$28,'Benzin - diesel - hybrid'!Q$17,0)+IF($B46<='Benzin - diesel - hybrid'!Q$28,'Benzin - diesel - hybrid'!Q$39,0)+IF($B46<='Benzin - diesel - hybrid'!Q$28,'Benzin - diesel - hybrid'!Q$40,0))*(1+'Benzin - diesel - hybrid'!Q$29/100)^-$B46","v":0},null,{"$f":"(IF($B46<='Benzin - diesel - hybrid'!S$28,'Benzin - diesel - hybrid'!S$16,0)+IF($B46<='Benzin - diesel - hybrid'!S$28,'Benzin - diesel - hybrid'!S$17,0)+IF($B46<='Benzin - diesel - hybrid'!S$28,'Benzin - diesel - hybrid'!S$39,0)+IF($B46<='Benzin - diesel - hybrid'!S$28,'Benzin - diesel - hybrid'!S$40,0))*(1+'Benzin - diesel - hybrid'!S$29/100)^-$B46","v":0}]
[null,6,6,null,{"$f":"(IF($B47<='Benzin - diesel - hybrid'!E$28,'Benzin - diesel - hybrid'!E$16,0)+IF($B47<='Benzin - diesel - hybrid'!E$28,'Benzin - diesel - hybrid'!E$17,0)+IF($B47<='Benzin - diesel - hybrid'!E$28,'Benzin - diesel - hybrid'!E$39,0)+IF($B47<='Benzin - diesel - hybrid'!E$28,'Benzin - diesel - hybrid'!E$40,0))*(1+'Benzin - diesel - hybrid'!E$29/100)^-$B47","v":0},null,{"$f":"(IF($B47<='Benzin - diesel - hybrid'!G$28,'Benzin - diesel - hybrid'!G$16,0)+IF($B47<='Benzin - diesel - hybrid'!G$28,'Benzin - diesel - hybrid'!G$17,0)+IF($B47<='Benzin - diesel - hybrid'!G$28,'Benzin - diesel - hybrid'!G$39,0)+IF($B47<='Benzin - diesel - hybrid'!G$28,'Benzin - diesel - hybrid'!G$40,0))*(1+'Benzin - diesel - hybrid'!G$29/100)^-$B47","v":0},null,{"$f":"(IF($B47<='Benzin - diesel - hybrid'!I$28,'Benzin - diesel - hybrid'!I$16,0)+IF($B47<='Benzin - diesel - hybrid'!I$28,'Benzin - diesel - hybrid'!I$17,0)+IF($B47<='Benzin - diesel - hybrid'!I$28,'Benzin - diesel - hybrid'!I$39,0)+IF($B47<='Benzin - diesel - hybrid'!I$28,'Benzin - diesel - hybrid'!I$40,0))*(1+'Benzin - diesel - hybrid'!I$29/100)^-$B47","v":0},null,{"$f":"(IF($B47<='Benzin - diesel - hybrid'!K$28,'Benzin - diesel - hybrid'!K$16,0)+IF($B47<='Benzin - diesel - hybrid'!K$28,'Benzin - diesel - hybrid'!K$17,0)+IF($B47<='Benzin - diesel - hybrid'!K$28,'Benzin - diesel - hybrid'!K$39,0)+IF($B47<='Benzin - diesel - hybrid'!K$28,'Benzin - diesel - hybrid'!K$40,0))*(1+'Benzin - diesel - hybrid'!K$29/100)^-$B47","v":0},null,{"$f":"(IF($B47<='Benzin - diesel - hybrid'!M$28,'Benzin - diesel - hybrid'!M$16,0)+IF($B47<='Benzin - diesel - hybrid'!M$28,'Benzin - diesel - hybrid'!M$17,0)+IF($B47<='Benzin - diesel - hybrid'!M$28,'Benzin - diesel - hybrid'!M$39,0)+IF($B47<='Benzin - diesel - hybrid'!M$28,'Benzin - diesel - hybrid'!M$40,0))*(1+'Benzin - diesel - hybrid'!M$29/100)^-$B47","v":0},null,{"$f":"(IF($B47<='Benzin - diesel - hybrid'!O$28,'Benzin - diesel - hybrid'!O$16,0)+IF($B47<='Benzin - diesel - hybrid'!O$28,'Benzin - diesel - hybrid'!O$17,0)+IF($B47<='Benzin - diesel - hybrid'!O$28,'Benzin - diesel - hybrid'!O$39,0)+IF($B47<='Benzin - diesel - hybrid'!O$28,'Benzin - diesel - hybrid'!O$40,0))*(1+'Benzin - diesel - hybrid'!O$29/100)^-$B47","v":0},null,{"$f":"(IF($B47<='Benzin - diesel - hybrid'!Q$28,'Benzin - diesel - hybrid'!Q$16,0)+IF($B47<='Benzin - diesel - hybrid'!Q$28,'Benzin - diesel - hybrid'!Q$17,0)+IF($B47<='Benzin - diesel - hybrid'!Q$28,'Benzin - diesel - hybrid'!Q$39,0)+IF($B47<='Benzin - diesel - hybrid'!Q$28,'Benzin - diesel - hybrid'!Q$40,0))*(1+'Benzin - diesel - hybrid'!Q$29/100)^-$B47","v":0},null,{"$f":"(IF($B47<='Benzin - diesel - hybrid'!S$28,'Benzin - diesel - hybrid'!S$16,0)+IF($B47<='Benzin - diesel - hybrid'!S$28,'Benzin - diesel - hybrid'!S$17,0)+IF($B47<='Benzin - diesel - hybrid'!S$28,'Benzin - diesel - hybrid'!S$39,0)+IF($B47<='Benzin - diesel - hybrid'!S$28,'Benzin - diesel - hybrid'!S$40,0))*(1+'Benzin - diesel - hybrid'!S$29/100)^-$B47","v":0}]
[null,7,7,null,{"$f":"(IF($B48<='Benzin - diesel - hybrid'!E$28,'Benzin - diesel - hybrid'!E$16,0)+IF($B48<='Benzin - diesel - hybrid'!E$28,'Benzin - diesel - hybrid'!E$17,0)+IF($B48<='Benzin - diesel - hybrid'!E$28,'Benzin - diesel - hybrid'!E$39,0)+IF($B48<='Benzin - diesel - hybrid'!E$28,'Benzin - diesel - hybrid'!E$40,0))*(1+'Benzin - diesel - hybrid'!E$29/100)^-$B48","v":0},null,{"$f":"(IF($B48<='Benzin - diesel - hybrid'!G$28,'Benzin - diesel - hybrid'!G$16,0)+IF($B48<='Benzin - diesel - hybrid'!G$28,'Benzin - diesel - hybrid'!G$17,0)+IF($B48<='Benzin - diesel - hybrid'!G$28,'Benzin - diesel - hybrid'!G$39,0)+IF($B48<='Benzin - diesel - hybrid'!G$28,'Benzin - diesel - hybrid'!G$40,0))*(1+'Benzin - diesel - hybrid'!G$29/100)^-$B48","v":0},null,{"$f":"(IF($B48<='Benzin - diesel - hybrid'!I$28,'Benzin - diesel - hybrid'!I$16,0)+IF($B48<='Benzin - diesel - hybrid'!I$28,'Benzin - diesel - hybrid'!I$17,0)+IF($B48<='Benzin - diesel - hybrid'!I$28,'Benzin - diesel - hybrid'!I$39,0)+IF($B48<='Benzin - diesel - hybrid'!I$28,'Benzin - diesel - hybrid'!I$40,0))*(1+'Benzin - diesel - hybrid'!I$29/100)^-$B48","v":0},null,{"$f":"(IF($B48<='Benzin - diesel - hybrid'!K$28,'Benzin - diesel - hybrid'!K$16,0)+IF($B48<='Benzin - diesel - hybrid'!K$28,'Benzin - diesel - hybrid'!K$17,0)+IF($B48<='Benzin - diesel - hybrid'!K$28,'Benzin - diesel - hybrid'!K$39,0)+IF($B48<='Benzin - diesel - hybrid'!K$28,'Benzin - diesel - hybrid'!K$40,0))*(1+'Benzin - diesel - hybrid'!K$29/100)^-$B48","v":0},null,{"$f":"(IF($B48<='Benzin - diesel - hybrid'!M$28,'Benzin - diesel - hybrid'!M$16,0)+IF($B48<='Benzin - diesel - hybrid'!M$28,'Benzin - diesel - hybrid'!M$17,0)+IF($B48<='Benzin - diesel - hybrid'!M$28,'Benzin - diesel - hybrid'!M$39,0)+IF($B48<='Benzin - diesel - hybrid'!M$28,'Benzin - diesel - hybrid'!M$40,0))*(1+'Benzin - diesel - hybrid'!M$29/100)^-$B48","v":0},null,{"$f":"(IF($B48<='Benzin - diesel - hybrid'!O$28,'Benzin - diesel - hybrid'!O$16,0)+IF($B48<='Benzin - diesel - hybrid'!O$28,'Benzin - diesel - hybrid'!O$17,0)+IF($B48<='Benzin - diesel - hybrid'!O$28,'Benzin - diesel - hybrid'!O$39,0)+IF($B48<='Benzin - diesel - hybrid'!O$28,'Benzin - diesel - hybrid'!O$40,0))*(1+'Benzin - diesel - hybrid'!O$29/100)^-$B48","v":0},null,{"$f":"(IF($B48<='Benzin - diesel - hybrid'!Q$28,'Benzin - diesel - hybrid'!Q$16,0)+IF($B48<='Benzin - diesel - hybrid'!Q$28,'Benzin - diesel - hybrid'!Q$17,0)+IF($B48<='Benzin - diesel - hybrid'!Q$28,'Benzin - diesel - hybrid'!Q$39,0)+IF($B48<='Benzin - diesel - hybrid'!Q$28,'Benzin - diesel - hybrid'!Q$40,0))*(1+'Benzin - diesel - hybrid'!Q$29/100)^-$B48","v":0},null,{"$f":"(IF($B48<='Benzin - diesel - hybrid'!S$28,'Benzin - diesel - hybrid'!S$16,0)+IF($B48<='Benzin - diesel - hybrid'!S$28,'Benzin - diesel - hybrid'!S$17,0)+IF($B48<='Benzin - diesel - hybrid'!S$28,'Benzin - diesel - hybrid'!S$39,0)+IF($B48<='Benzin - diesel - hybrid'!S$28,'Benzin - diesel - hybrid'!S$40,0))*(1+'Benzin - diesel - hybrid'!S$29/100)^-$B48","v":0}]
[null,8,8,null,{"$f":"(IF($B49<='Benzin - diesel - hybrid'!E$28,'Benzin - diesel - hybrid'!E$16,0)+IF($B49<='Benzin - diesel - hybrid'!E$28,'Benzin - diesel - hybrid'!E$17,0)+IF($B49<='Benzin - diesel - hybrid'!E$28,'Benzin - diesel - hybrid'!E$39,0)+IF($B49<='Benzin - diesel - hybrid'!E$28,'Benzin - diesel - hybrid'!E$40,0))*(1+'Benzin - diesel - hybrid'!E$29/100)^-$B49","v":0},null,{"$f":"(IF($B49<='Benzin - diesel - hybrid'!G$28,'Benzin - diesel - hybrid'!G$16,0)+IF($B49<='Benzin - diesel - hybrid'!G$28,'Benzin - diesel - hybrid'!G$17,0)+IF($B49<='Benzin - diesel - hybrid'!G$28,'Benzin - diesel - hybrid'!G$39,0)+IF($B49<='Benzin - diesel - hybrid'!G$28,'Benzin - diesel - hybrid'!G$40,0))*(1+'Benzin - diesel - hybrid'!G$29/100)^-$B49","v":0},null,{"$f":"(IF($B49<='Benzin - diesel - hybrid'!I$28,'Benzin - diesel - hybrid'!I$16,0)+IF($B49<='Benzin - diesel - hybrid'!I$28,'Benzin - diesel - hybrid'!I$17,0)+IF($B49<='Benzin - diesel - hybrid'!I$28,'Benzin - diesel - hybrid'!I$39,0)+IF($B49<='Benzin - diesel - hybrid'!I$28,'Benzin - diesel - hybrid'!I$40,0))*(1+'Benzin - diesel - hybrid'!I$29/100)^-$B49","v":0},null,{"$f":"(IF($B49<='Benzin - diesel - hybrid'!K$28,'Benzin - diesel - hybrid'!K$16,0)+IF($B49<='Benzin - diesel - hybrid'!K$28,'Benzin - diesel - hybrid'!K$17,0)+IF($B49<='Benzin - diesel - hybrid'!K$28,'Benzin - diesel - hybrid'!K$39,0)+IF($B49<='Benzin - diesel - hybrid'!K$28,'Benzin - diesel - hybrid'!K$40,0))*(1+'Benzin - diesel - hybrid'!K$29/100)^-$B49","v":0},null,{"$f":"(IF($B49<='Benzin - diesel - hybrid'!M$28,'Benzin - diesel - hybrid'!M$16,0)+IF($B49<='Benzin - diesel - hybrid'!M$28,'Benzin - diesel - hybrid'!M$17,0)+IF($B49<='Benzin - diesel - hybrid'!M$28,'Benzin - diesel - hybrid'!M$39,0)+IF($B49<='Benzin - diesel - hybrid'!M$28,'Benzin - diesel - hybrid'!M$40,0))*(1+'Benzin - diesel - hybrid'!M$29/100)^-$B49","v":0},null,{"$f":"(IF($B49<='Benzin - diesel - hybrid'!O$28,'Benzin - diesel - hybrid'!O$16,0)+IF($B49<='Benzin - diesel - hybrid'!O$28,'Benzin - diesel - hybrid'!O$17,0)+IF($B49<='Benzin - diesel - hybrid'!O$28,'Benzin - diesel - hybrid'!O$39,0)+IF($B49<='Benzin - diesel - hybrid'!O$28,'Benzin - diesel - hybrid'!O$40,0))*(1+'Benzin - diesel - hybrid'!O$29/100)^-$B49","v":0},null,{"$f":"(IF($B49<='Benzin - diesel - hybrid'!Q$28,'Benzin - diesel - hybrid'!Q$16,0)+IF($B49<='Benzin - diesel - hybrid'!Q$28,'Benzin - diesel - hybrid'!Q$17,0)+IF($B49<='Benzin - diesel - hybrid'!Q$28,'Benzin - diesel - hybrid'!Q$39,0)+IF($B49<='Benzin - diesel - hybrid'!Q$28,'Benzin - diesel - hybrid'!Q$40,0))*(1+'Benzin - diesel - hybrid'!Q$29/100)^-$B49","v":0},null,{"$f":"(IF($B49<='Benzin - diesel - hybrid'!S$28,'Benzin - diesel - hybrid'!S$16,0)+IF($B49<='Benzin - diesel - hybrid'!S$28,'Benzin - diesel - hybrid'!S$17,0)+IF($B49<='Benzin - diesel - hybrid'!S$28,'Benzin - diesel - hybrid'!S$39,0)+IF($B49<='Benzin - diesel - hybrid'!S$28,'Benzin - diesel - hybrid'!S$40,0))*(1+'Benzin - diesel - hybrid'!S$29/100)^-$B49","v":0}]
[null,9,9,null,{"$f":"(IF($B50<='Benzin - diesel - hybrid'!E$28,'Benzin - diesel - hybrid'!E$16,0)+IF($B50<='Benzin - diesel - hybrid'!E$28,'Benzin - diesel - hybrid'!E$17,0)+IF($B50<='Benzin - diesel - hybrid'!E$28,'Benzin - diesel - hybrid'!E$39,0)+IF($B50<='Benzin - diesel - hybrid'!E$28,'Benzin - diesel - hybrid'!E$40,0))*(1+'Benzin - diesel - hybrid'!E$29/100)^-$B50","v":0},null,{"$f":"(IF($B50<='Benzin - diesel - hybrid'!G$28,'Benzin - diesel - hybrid'!G$16,0)+IF($B50<='Benzin - diesel - hybrid'!G$28,'Benzin - diesel - hybrid'!G$17,0)+IF($B50<='Benzin - diesel - hybrid'!G$28,'Benzin - diesel - hybrid'!G$39,0)+IF($B50<='Benzin - diesel - hybrid'!G$28,'Benzin - diesel - hybrid'!G$40,0))*(1+'Benzin - diesel - hybrid'!G$29/100)^-$B50","v":0},null,{"$f":"(IF($B50<='Benzin - diesel - hybrid'!I$28,'Benzin - diesel - hybrid'!I$16,0)+IF($B50<='Benzin - diesel - hybrid'!I$28,'Benzin - diesel - hybrid'!I$17,0)+IF($B50<='Benzin - diesel - hybrid'!I$28,'Benzin - diesel - hybrid'!I$39,0)+IF($B50<='Benzin - diesel - hybrid'!I$28,'Benzin - diesel - hybrid'!I$40,0))*(1+'Benzin - diesel - hybrid'!I$29/100)^-$B50","v":0},null,{"$f":"(IF($B50<='Benzin - diesel - hybrid'!K$28,'Benzin - diesel - hybrid'!K$16,0)+IF($B50<='Benzin - diesel - hybrid'!K$28,'Benzin - diesel - hybrid'!K$17,0)+IF($B50<='Benzin - diesel - hybrid'!K$28,'Benzin - diesel - hybrid'!K$39,0)+IF($B50<='Benzin - diesel - hybrid'!K$28,'Benzin - diesel - hybrid'!K$40,0))*(1+'Benzin - diesel - hybrid'!K$29/100)^-$B50","v":0},null,{"$f":"(IF($B50<='Benzin - diesel - hybrid'!M$28,'Benzin - diesel - hybrid'!M$16,0)+IF($B50<='Benzin - diesel - hybrid'!M$28,'Benzin - diesel - hybrid'!M$17,0)+IF($B50<='Benzin - diesel - hybrid'!M$28,'Benzin - diesel - hybrid'!M$39,0)+IF($B50<='Benzin - diesel - hybrid'!M$28,'Benzin - diesel - hybrid'!M$40,0))*(1+'Benzin - diesel - hybrid'!M$29/100)^-$B50","v":0},null,{"$f":"(IF($B50<='Benzin - diesel - hybrid'!O$28,'Benzin - diesel - hybrid'!O$16,0)+IF($B50<='Benzin - diesel - hybrid'!O$28,'Benzin - diesel - hybrid'!O$17,0)+IF($B50<='Benzin - diesel - hybrid'!O$28,'Benzin - diesel - hybrid'!O$39,0)+IF($B50<='Benzin - diesel - hybrid'!O$28,'Benzin - diesel - hybrid'!O$40,0))*(1+'Benzin - diesel - hybrid'!O$29/100)^-$B50","v":0},null,{"$f":"(IF($B50<='Benzin - diesel - hybrid'!Q$28,'Benzin - diesel - hybrid'!Q$16,0)+IF($B50<='Benzin - diesel - hybrid'!Q$28,'Benzin - diesel - hybrid'!Q$17,0)+IF($B50<='Benzin - diesel - hybrid'!Q$28,'Benzin - diesel - hybrid'!Q$39,0)+IF($B50<='Benzin - diesel - hybrid'!Q$28,'Benzin - diesel - hybrid'!Q$40,0))*(1+'Benzin - diesel - hybrid'!Q$29/100)^-$B50","v":0},null,{"$f":"(IF($B50<='Benzin - diesel - hybrid'!S$28,'Benzin - diesel - hybrid'!S$16,0)+IF($B50<='Benzin - diesel - hybrid'!S$28,'Benzin - diesel - hybrid'!S$17,0)+IF($B50<='Benzin - diesel - hybrid'!S$28,'Benzin - diesel - hybrid'!S$39,0)+IF($B50<='Benzin - diesel - hybrid'!S$28,'Benzin - diesel - hybrid'!S$40,0))*(1+'Benzin - diesel - hybrid'!S$29/100)^-$B50","v":0}]
[null,10,10,null,{"$f":"(IF($B51<='Benzin - diesel - hybrid'!E$28,'Benzin - diesel - hybrid'!E$16,0)+IF($B51<='Benzin - diesel - hybrid'!E$28,'Benzin - diesel - hybrid'!E$17,0)+IF($B51<='Benzin - diesel - hybrid'!E$28,'Benzin - diesel - hybrid'!E$39,0)+IF($B51<='Benzin - diesel - hybrid'!E$28,'Benzin - diesel - hybrid'!E$40,0))*(1+'Benzin - diesel - hybrid'!E$29/100)^-$B51","v":0},null,{"$f":"(IF($B51<='Benzin - diesel - hybrid'!G$28,'Benzin - diesel - hybrid'!G$16,0)+IF($B51<='Benzin - diesel - hybrid'!G$28,'Benzin - diesel - hybrid'!G$17,0)+IF($B51<='Benzin - diesel - hybrid'!G$28,'Benzin - diesel - hybrid'!G$39,0)+IF($B51<='Benzin - diesel - hybrid'!G$28,'Benzin - diesel - hybrid'!G$40,0))*(1+'Benzin - diesel - hybrid'!G$29/100)^-$B51","v":0},null,{"$f":"(IF($B51<='Benzin - diesel - hybrid'!I$28,'Benzin - diesel - hybrid'!I$16,0)+IF($B51<='Benzin - diesel - hybrid'!I$28,'Benzin - diesel - hybrid'!I$17,0)+IF($B51<='Benzin - diesel - hybrid'!I$28,'Benzin - diesel - hybrid'!I$39,0)+IF($B51<='Benzin - diesel - hybrid'!I$28,'Benzin - diesel - hybrid'!I$40,0))*(1+'Benzin - diesel - hybrid'!I$29/100)^-$B51","v":0},null,{"$f":"(IF($B51<='Benzin - diesel - hybrid'!K$28,'Benzin - diesel - hybrid'!K$16,0)+IF($B51<='Benzin - diesel - hybrid'!K$28,'Benzin - diesel - hybrid'!K$17,0)+IF($B51<='Benzin - diesel - hybrid'!K$28,'Benzin - diesel - hybrid'!K$39,0)+IF($B51<='Benzin - diesel - hybrid'!K$28,'Benzin - diesel - hybrid'!K$40,0))*(1+'Benzin - diesel - hybrid'!K$29/100)^-$B51","v":0},null,{"$f":"(IF($B51<='Benzin - diesel - hybrid'!M$28,'Benzin - diesel - hybrid'!M$16,0)+IF($B51<='Benzin - diesel - hybrid'!M$28,'Benzin - diesel - hybrid'!M$17,0)+IF($B51<='Benzin - diesel - hybrid'!M$28,'Benzin - diesel - hybrid'!M$39,0)+IF($B51<='Benzin - diesel - hybrid'!M$28,'Benzin - diesel - hybrid'!M$40,0))*(1+'Benzin - diesel - hybrid'!M$29/100)^-$B51","v":0},null,{"$f":"(IF($B51<='Benzin - diesel - hybrid'!O$28,'Benzin - diesel - hybrid'!O$16,0)+IF($B51<='Benzin - diesel - hybrid'!O$28,'Benzin - diesel - hybrid'!O$17,0)+IF($B51<='Benzin - diesel - hybrid'!O$28,'Benzin - diesel - hybrid'!O$39,0)+IF($B51<='Benzin - diesel - hybrid'!O$28,'Benzin - diesel - hybrid'!O$40,0))*(1+'Benzin - diesel - hybrid'!O$29/100)^-$B51","v":0},null,{"$f":"(IF($B51<='Benzin - diesel - hybrid'!Q$28,'Benzin - diesel - hybrid'!Q$16,0)+IF($B51<='Benzin - diesel - hybrid'!Q$28,'Benzin - diesel - hybrid'!Q$17,0)+IF($B51<='Benzin - diesel - hybrid'!Q$28,'Benzin - diesel - hybrid'!Q$39,0)+IF($B51<='Benzin - diesel - hybrid'!Q$28,'Benzin - diesel - hybrid'!Q$40,0))*(1+'Benzin - diesel - hybrid'!Q$29/100)^-$B51","v":0},null,{"$f":"(IF($B51<='Benzin - diesel - hybrid'!S$28,'Benzin - diesel - hybrid'!S$16,0)+IF($B51<='Benzin - diesel - hybrid'!S$28,'Benzin - diesel - hybrid'!S$17,0)+IF($B51<='Benzin - diesel - hybrid'!S$28,'Benzin - diesel - hybrid'!S$39,0)+IF($B51<='Benzin - diesel - hybrid'!S$28,'Benzin - diesel - hybrid'!S$40,0))*(1+'Benzin - diesel - hybrid'!S$29/100)^-$B51","v":0}]
[null,11,11,null,{"$f":"(IF($B52<='Benzin - diesel - hybrid'!E$28,'Benzin - diesel - hybrid'!E$16,0)+IF($B52<='Benzin - diesel - hybrid'!E$28,'Benzin - diesel - hybrid'!E$17,0)+IF($B52<='Benzin - diesel - hybrid'!E$28,'Benzin - diesel - hybrid'!E$39,0)+IF($B52<='Benzin - diesel - hybrid'!E$28,'Benzin - diesel - hybrid'!E$40,0))*(1+'Benzin - diesel - hybrid'!E$29/100)^-$B52","v":0},null,{"$f":"(IF($B52<='Benzin - diesel - hybrid'!G$28,'Benzin - diesel - hybrid'!G$16,0)+IF($B52<='Benzin - diesel - hybrid'!G$28,'Benzin - diesel - hybrid'!G$17,0)+IF($B52<='Benzin - diesel - hybrid'!G$28,'Benzin - diesel - hybrid'!G$39,0)+IF($B52<='Benzin - diesel - hybrid'!G$28,'Benzin - diesel - hybrid'!G$40,0))*(1+'Benzin - diesel - hybrid'!G$29/100)^-$B52","v":0},null,{"$f":"(IF($B52<='Benzin - diesel - hybrid'!I$28,'Benzin - diesel - hybrid'!I$16,0)+IF($B52<='Benzin - diesel - hybrid'!I$28,'Benzin - diesel - hybrid'!I$17,0)+IF($B52<='Benzin - diesel - hybrid'!I$28,'Benzin - diesel - hybrid'!I$39,0)+IF($B52<='Benzin - diesel - hybrid'!I$28,'Benzin - diesel - hybrid'!I$40,0))*(1+'Benzin - diesel - hybrid'!I$29/100)^-$B52","v":0},null,{"$f":"(IF($B52<='Benzin - diesel - hybrid'!K$28,'Benzin - diesel - hybrid'!K$16,0)+IF($B52<='Benzin - diesel - hybrid'!K$28,'Benzin - diesel - hybrid'!K$17,0)+IF($B52<='Benzin - diesel - hybrid'!K$28,'Benzin - diesel - hybrid'!K$39,0)+IF($B52<='Benzin - diesel - hybrid'!K$28,'Benzin - diesel - hybrid'!K$40,0))*(1+'Benzin - diesel - hybrid'!K$29/100)^-$B52","v":0},null,{"$f":"(IF($B52<='Benzin - diesel - hybrid'!M$28,'Benzin - diesel - hybrid'!M$16,0)+IF($B52<='Benzin - diesel - hybrid'!M$28,'Benzin - diesel - hybrid'!M$17,0)+IF($B52<='Benzin - diesel - hybrid'!M$28,'Benzin - diesel - hybrid'!M$39,0)+IF($B52<='Benzin - diesel - hybrid'!M$28,'Benzin - diesel - hybrid'!M$40,0))*(1+'Benzin - diesel - hybrid'!M$29/100)^-$B52","v":0},null,{"$f":"(IF($B52<='Benzin - diesel - hybrid'!O$28,'Benzin - diesel - hybrid'!O$16,0)+IF($B52<='Benzin - diesel - hybrid'!O$28,'Benzin - diesel - hybrid'!O$17,0)+IF($B52<='Benzin - diesel - hybrid'!O$28,'Benzin - diesel - hybrid'!O$39,0)+IF($B52<='Benzin - diesel - hybrid'!O$28,'Benzin - diesel - hybrid'!O$40,0))*(1+'Benzin - diesel - hybrid'!O$29/100)^-$B52","v":0},null,{"$f":"(IF($B52<='Benzin - diesel - hybrid'!Q$28,'Benzin - diesel - hybrid'!Q$16,0)+IF($B52<='Benzin - diesel - hybrid'!Q$28,'Benzin - diesel - hybrid'!Q$17,0)+IF($B52<='Benzin - diesel - hybrid'!Q$28,'Benzin - diesel - hybrid'!Q$39,0)+IF($B52<='Benzin - diesel - hybrid'!Q$28,'Benzin - diesel - hybrid'!Q$40,0))*(1+'Benzin - diesel - hybrid'!Q$29/100)^-$B52","v":0},null,{"$f":"(IF($B52<='Benzin - diesel - hybrid'!S$28,'Benzin - diesel - hybrid'!S$16,0)+IF($B52<='Benzin - diesel - hybrid'!S$28,'Benzin - diesel - hybrid'!S$17,0)+IF($B52<='Benzin - diesel - hybrid'!S$28,'Benzin - diesel - hybrid'!S$39,0)+IF($B52<='Benzin - diesel - hybrid'!S$28,'Benzin - diesel - hybrid'!S$40,0))*(1+'Benzin - diesel - hybrid'!S$29/100)^-$B52","v":0}]
[null,12,12,null,{"$f":"(IF($B53<='Benzin - diesel - hybrid'!E$28,'Benzin - diesel - hybrid'!E$16,0)+IF($B53<='Benzin - diesel - hybrid'!E$28,'Benzin - diesel - hybrid'!E$17,0)+IF($B53<='Benzin - diesel - hybrid'!E$28,'Benzin - diesel - hybrid'!E$39,0)+IF($B53<='Benzin - diesel - hybrid'!E$28,'Benzin - diesel - hybrid'!E$40,0))*(1+'Benzin - diesel - hybrid'!E$29/100)^-$B53","v":0},null,{"$f":"(IF($B53<='Benzin - diesel - hybrid'!G$28,'Benzin - diesel - hybrid'!G$16,0)+IF($B53<='Benzin - diesel - hybrid'!G$28,'Benzin - diesel - hybrid'!G$17,0)+IF($B53<='Benzin - diesel - hybrid'!G$28,'Benzin - diesel - hybrid'!G$39,0)+IF($B53<='Benzin - diesel - hybrid'!G$28,'Benzin - diesel - hybrid'!G$40,0))*(1+'Benzin - diesel - hybrid'!G$29/100)^-$B53","v":0},null,{"$f":"(IF($B53<='Benzin - diesel - hybrid'!I$28,'Benzin - diesel - hybrid'!I$16,0)+IF($B53<='Benzin - diesel - hybrid'!I$28,'Benzin - diesel - hybrid'!I$17,0)+IF($B53<='Benzin - diesel - hybrid'!I$28,'Benzin - diesel - hybrid'!I$39,0)+IF($B53<='Benzin - diesel - hybrid'!I$28,'Benzin - diesel - hybrid'!I$40,0))*(1+'Benzin - diesel - hybrid'!I$29/100)^-$B53","v":0},null,{"$f":"(IF($B53<='Benzin - diesel - hybrid'!K$28,'Benzin - diesel - hybrid'!K$16,0)+IF($B53<='Benzin - diesel - hybrid'!K$28,'Benzin - diesel - hybrid'!K$17,0)+IF($B53<='Benzin - diesel - hybrid'!K$28,'Benzin - diesel - hybrid'!K$39,0)+IF($B53<='Benzin - diesel - hybrid'!K$28,'Benzin - diesel - hybrid'!K$40,0))*(1+'Benzin - diesel - hybrid'!K$29/100)^-$B53","v":0},null,{"$f":"(IF($B53<='Benzin - diesel - hybrid'!M$28,'Benzin - diesel - hybrid'!M$16,0)+IF($B53<='Benzin - diesel - hybrid'!M$28,'Benzin - diesel - hybrid'!M$17,0)+IF($B53<='Benzin - diesel - hybrid'!M$28,'Benzin - diesel - hybrid'!M$39,0)+IF($B53<='Benzin - diesel - hybrid'!M$28,'Benzin - diesel - hybrid'!M$40,0))*(1+'Benzin - diesel - hybrid'!M$29/100)^-$B53","v":0},null,{"$f":"(IF($B53<='Benzin - diesel - hybrid'!O$28,'Benzin - diesel - hybrid'!O$16,0)+IF($B53<='Benzin - diesel - hybrid'!O$28,'Benzin - diesel - hybrid'!O$17,0)+IF($B53<='Benzin - diesel - hybrid'!O$28,'Benzin - diesel - hybrid'!O$39,0)+IF($B53<='Benzin - diesel - hybrid'!O$28,'Benzin - diesel - hybrid'!O$40,0))*(1+'Benzin - diesel - hybrid'!O$29/100)^-$B53","v":0},null,{"$f":"(IF($B53<='Benzin - diesel - hybrid'!Q$28,'Benzin - diesel - hybrid'!Q$16,0)+IF($B53<='Benzin - diesel - hybrid'!Q$28,'Benzin - diesel - hybrid'!Q$17,0)+IF($B53<='Benzin - diesel - hybrid'!Q$28,'Benzin - diesel - hybrid'!Q$39,0)+IF($B53<='Benzin - diesel - hybrid'!Q$28,'Benzin - diesel - hybrid'!Q$40,0))*(1+'Benzin - diesel - hybrid'!Q$29/100)^-$B53","v":0},null,{"$f":"(IF($B53<='Benzin - diesel - hybrid'!S$28,'Benzin - diesel - hybrid'!S$16,0)+IF($B53<='Benzin - diesel - hybrid'!S$28,'Benzin - diesel - hybrid'!S$17,0)+IF($B53<='Benzin - diesel - hybrid'!S$28,'Benzin - diesel - hybrid'!S$39,0)+IF($B53<='Benzin - diesel - hybrid'!S$28,'Benzin - diesel - hybrid'!S$40,0))*(1+'Benzin - diesel - hybrid'!S$29/100)^-$B53","v":0}]
[null,13,13,null,{"$f":"(IF($B54<='Benzin - diesel - hybrid'!E$28,'Benzin - diesel - hybrid'!E$16,0)+IF($B54<='Benzin - diesel - hybrid'!E$28,'Benzin - diesel - hybrid'!E$17,0)+IF($B54<='Benzin - diesel - hybrid'!E$28,'Benzin - diesel - hybrid'!E$39,0)+IF($B54<='Benzin - diesel - hybrid'!E$28,'Benzin - diesel - hybrid'!E$40,0))*(1+'Benzin - diesel - hybrid'!E$29/100)^-$B54","v":0},null,{"$f":"(IF($B54<='Benzin - diesel - hybrid'!G$28,'Benzin - diesel - hybrid'!G$16,0)+IF($B54<='Benzin - diesel - hybrid'!G$28,'Benzin - diesel - hybrid'!G$17,0)+IF($B54<='Benzin - diesel - hybrid'!G$28,'Benzin - diesel - hybrid'!G$39,0)+IF($B54<='Benzin - diesel - hybrid'!G$28,'Benzin - diesel - hybrid'!G$40,0))*(1+'Benzin - diesel - hybrid'!G$29/100)^-$B54","v":0},null,{"$f":"(IF($B54<='Benzin - diesel - hybrid'!I$28,'Benzin - diesel - hybrid'!I$16,0)+IF($B54<='Benzin - diesel - hybrid'!I$28,'Benzin - diesel - hybrid'!I$17,0)+IF($B54<='Benzin - diesel - hybrid'!I$28,'Benzin - diesel - hybrid'!I$39,0)+IF($B54<='Benzin - diesel - hybrid'!I$28,'Benzin - diesel - hybrid'!I$40,0))*(1+'Benzin - diesel - hybrid'!I$29/100)^-$B54","v":0},null,{"$f":"(IF($B54<='Benzin - diesel - hybrid'!K$28,'Benzin - diesel - hybrid'!K$16,0)+IF($B54<='Benzin - diesel - hybrid'!K$28,'Benzin - diesel - hybrid'!K$17,0)+IF($B54<='Benzin - diesel - hybrid'!K$28,'Benzin - diesel - hybrid'!K$39,0)+IF($B54<='Benzin - diesel - hybrid'!K$28,'Benzin - diesel - hybrid'!K$40,0))*(1+'Benzin - diesel - hybrid'!K$29/100)^-$B54","v":0},null,{"$f":"(IF($B54<='Benzin - diesel - hybrid'!M$28,'Benzin - diesel - hybrid'!M$16,0)+IF($B54<='Benzin - diesel - hybrid'!M$28,'Benzin - diesel - hybrid'!M$17,0)+IF($B54<='Benzin - diesel - hybrid'!M$28,'Benzin - diesel - hybrid'!M$39,0)+IF($B54<='Benzin - diesel - hybrid'!M$28,'Benzin - diesel - hybrid'!M$40,0))*(1+'Benzin - diesel - hybrid'!M$29/100)^-$B54","v":0},null,{"$f":"(IF($B54<='Benzin - diesel - hybrid'!O$28,'Benzin - diesel - hybrid'!O$16,0)+IF($B54<='Benzin - diesel - hybrid'!O$28,'Benzin - diesel - hybrid'!O$17,0)+IF($B54<='Benzin - diesel - hybrid'!O$28,'Benzin - diesel - hybrid'!O$39,0)+IF($B54<='Benzin - diesel - hybrid'!O$28,'Benzin - diesel - hybrid'!O$40,0))*(1+'Benzin - diesel - hybrid'!O$29/100)^-$B54","v":0},null,{"$f":"(IF($B54<='Benzin - diesel - hybrid'!Q$28,'Benzin - diesel - hybrid'!Q$16,0)+IF($B54<='Benzin - diesel - hybrid'!Q$28,'Benzin - diesel - hybrid'!Q$17,0)+IF($B54<='Benzin - diesel - hybrid'!Q$28,'Benzin - diesel - hybrid'!Q$39,0)+IF($B54<='Benzin - diesel - hybrid'!Q$28,'Benzin - diesel - hybrid'!Q$40,0))*(1+'Benzin - diesel - hybrid'!Q$29/100)^-$B54","v":0},null,{"$f":"(IF($B54<='Benzin - diesel - hybrid'!S$28,'Benzin - diesel - hybrid'!S$16,0)+IF($B54<='Benzin - diesel - hybrid'!S$28,'Benzin - diesel - hybrid'!S$17,0)+IF($B54<='Benzin - diesel - hybrid'!S$28,'Benzin - diesel - hybrid'!S$39,0)+IF($B54<='Benzin - diesel - hybrid'!S$28,'Benzin - diesel - hybrid'!S$40,0))*(1+'Benzin - diesel - hybrid'!S$29/100)^-$B54","v":0}]
[null,14,14,null,{"$f":"(IF($B55<='Benzin - diesel - hybrid'!E$28,'Benzin - diesel - hybrid'!E$16,0)+IF($B55<='Benzin - diesel - hybrid'!E$28,'Benzin - diesel - hybrid'!E$17,0)+IF($B55<='Benzin - diesel - hybrid'!E$28,'Benzin - diesel - hybrid'!E$39,0)+IF($B55<='Benzin - diesel - hybrid'!E$28,'Benzin - diesel - hybrid'!E$40,0))*(1+'Benzin - diesel - hybrid'!E$29/100)^-$B55","v":0},null,{"$f":"(IF($B55<='Benzin - diesel - hybrid'!G$28,'Benzin - diesel - hybrid'!G$16,0)+IF($B55<='Benzin - diesel - hybrid'!G$28,'Benzin - diesel - hybrid'!G$17,0)+IF($B55<='Benzin - diesel - hybrid'!G$28,'Benzin - diesel - hybrid'!G$39,0)+IF($B55<='Benzin - diesel - hybrid'!G$28,'Benzin - diesel - hybrid'!G$40,0))*(1+'Benzin - diesel - hybrid'!G$29/100)^-$B55","v":0},null,{"$f":"(IF($B55<='Benzin - diesel - hybrid'!I$28,'Benzin - diesel - hybrid'!I$16,0)+IF($B55<='Benzin - diesel - hybrid'!I$28,'Benzin - diesel - hybrid'!I$17,0)+IF($B55<='Benzin - diesel - hybrid'!I$28,'Benzin - diesel - hybrid'!I$39,0)+IF($B55<='Benzin - diesel - hybrid'!I$28,'Benzin - diesel - hybrid'!I$40,0))*(1+'Benzin - diesel - hybrid'!I$29/100)^-$B55","v":0},null,{"$f":"(IF($B55<='Benzin - diesel - hybrid'!K$28,'Benzin - diesel - hybrid'!K$16,0)+IF($B55<='Benzin - diesel - hybrid'!K$28,'Benzin - diesel - hybrid'!K$17,0)+IF($B55<='Benzin - diesel - hybrid'!K$28,'Benzin - diesel - hybrid'!K$39,0)+IF($B55<='Benzin - diesel - hybrid'!K$28,'Benzin - diesel - hybrid'!K$40,0))*(1+'Benzin - diesel - hybrid'!K$29/100)^-$B55","v":0},null,{"$f":"(IF($B55<='Benzin - diesel - hybrid'!M$28,'Benzin - diesel - hybrid'!M$16,0)+IF($B55<='Benzin - diesel - hybrid'!M$28,'Benzin - diesel - hybrid'!M$17,0)+IF($B55<='Benzin - diesel - hybrid'!M$28,'Benzin - diesel - hybrid'!M$39,0)+IF($B55<='Benzin - diesel - hybrid'!M$28,'Benzin - diesel - hybrid'!M$40,0))*(1+'Benzin - diesel - hybrid'!M$29/100)^-$B55","v":0},null,{"$f":"(IF($B55<='Benzin - diesel - hybrid'!O$28,'Benzin - diesel - hybrid'!O$16,0)+IF($B55<='Benzin - diesel - hybrid'!O$28,'Benzin - diesel - hybrid'!O$17,0)+IF($B55<='Benzin - diesel - hybrid'!O$28,'Benzin - diesel - hybrid'!O$39,0)+IF($B55<='Benzin - diesel - hybrid'!O$28,'Benzin - diesel - hybrid'!O$40,0))*(1+'Benzin - diesel - hybrid'!O$29/100)^-$B55","v":0},null,{"$f":"(IF($B55<='Benzin - diesel - hybrid'!Q$28,'Benzin - diesel - hybrid'!Q$16,0)+IF($B55<='Benzin - diesel - hybrid'!Q$28,'Benzin - diesel - hybrid'!Q$17,0)+IF($B55<='Benzin - diesel - hybrid'!Q$28,'Benzin - diesel - hybrid'!Q$39,0)+IF($B55<='Benzin - diesel - hybrid'!Q$28,'Benzin - diesel - hybrid'!Q$40,0))*(1+'Benzin - diesel - hybrid'!Q$29/100)^-$B55","v":0},null,{"$f":"(IF($B55<='Benzin - diesel - hybrid'!S$28,'Benzin - diesel - hybrid'!S$16,0)+IF($B55<='Benzin - diesel - hybrid'!S$28,'Benzin - diesel - hybrid'!S$17,0)+IF($B55<='Benzin - diesel - hybrid'!S$28,'Benzin - diesel - hybrid'!S$39,0)+IF($B55<='Benzin - diesel - hybrid'!S$28,'Benzin - diesel - hybrid'!S$40,0))*(1+'Benzin - diesel - hybrid'!S$29/100)^-$B55","v":0}]
[null,15,15,null,{"$f":"(IF($B56<='Benzin - diesel - hybrid'!E$28,'Benzin - diesel - hybrid'!E$16,0)+IF($B56<='Benzin - diesel - hybrid'!E$28,'Benzin - diesel - hybrid'!E$17,0)+IF($B56<='Benzin - diesel - hybrid'!E$28,'Benzin - diesel - hybrid'!E$39,0)+IF($B56<='Benzin - diesel - hybrid'!E$28,'Benzin - diesel - hybrid'!E$40,0))*(1+'Benzin - diesel - hybrid'!E$29/100)^-$B56","v":0},null,{"$f":"(IF($B56<='Benzin - diesel - hybrid'!G$28,'Benzin - diesel - hybrid'!G$16,0)+IF($B56<='Benzin - diesel - hybrid'!G$28,'Benzin - diesel - hybrid'!G$17,0)+IF($B56<='Benzin - diesel - hybrid'!G$28,'Benzin - diesel - hybrid'!G$39,0)+IF($B56<='Benzin - diesel - hybrid'!G$28,'Benzin - diesel - hybrid'!G$40,0))*(1+'Benzin - diesel - hybrid'!G$29/100)^-$B56","v":0},null,{"$f":"(IF($B56<='Benzin - diesel - hybrid'!I$28,'Benzin - diesel - hybrid'!I$16,0)+IF($B56<='Benzin - diesel - hybrid'!I$28,'Benzin - diesel - hybrid'!I$17,0)+IF($B56<='Benzin - diesel - hybrid'!I$28,'Benzin - diesel - hybrid'!I$39,0)+IF($B56<='Benzin - diesel - hybrid'!I$28,'Benzin - diesel - hybrid'!I$40,0))*(1+'Benzin - diesel - hybrid'!I$29/100)^-$B56","v":0},null,{"$f":"(IF($B56<='Benzin - diesel - hybrid'!K$28,'Benzin - diesel - hybrid'!K$16,0)+IF($B56<='Benzin - diesel - hybrid'!K$28,'Benzin - diesel - hybrid'!K$17,0)+IF($B56<='Benzin - diesel - hybrid'!K$28,'Benzin - diesel - hybrid'!K$39,0)+IF($B56<='Benzin - diesel - hybrid'!K$28,'Benzin - diesel - hybrid'!K$40,0))*(1+'Benzin - diesel - hybrid'!K$29/100)^-$B56","v":0},null,{"$f":"(IF($B56<='Benzin - diesel - hybrid'!M$28,'Benzin - diesel - hybrid'!M$16,0)+IF($B56<='Benzin - diesel - hybrid'!M$28,'Benzin - diesel - hybrid'!M$17,0)+IF($B56<='Benzin - diesel - hybrid'!M$28,'Benzin - diesel - hybrid'!M$39,0)+IF($B56<='Benzin - diesel - hybrid'!M$28,'Benzin - diesel - hybrid'!M$40,0))*(1+'Benzin - diesel - hybrid'!M$29/100)^-$B56","v":0},null,{"$f":"(IF($B56<='Benzin - diesel - hybrid'!O$28,'Benzin - diesel - hybrid'!O$16,0)+IF($B56<='Benzin - diesel - hybrid'!O$28,'Benzin - diesel - hybrid'!O$17,0)+IF($B56<='Benzin - diesel - hybrid'!O$28,'Benzin - diesel - hybrid'!O$39,0)+IF($B56<='Benzin - diesel - hybrid'!O$28,'Benzin - diesel - hybrid'!O$40,0))*(1+'Benzin - diesel - hybrid'!O$29/100)^-$B56","v":0},null,{"$f":"(IF($B56<='Benzin - diesel - hybrid'!Q$28,'Benzin - diesel - hybrid'!Q$16,0)+IF($B56<='Benzin - diesel - hybrid'!Q$28,'Benzin - diesel - hybrid'!Q$17,0)+IF($B56<='Benzin - diesel - hybrid'!Q$28,'Benzin - diesel - hybrid'!Q$39,0)+IF($B56<='Benzin - diesel - hybrid'!Q$28,'Benzin - diesel - hybrid'!Q$40,0))*(1+'Benzin - diesel - hybrid'!Q$29/100)^-$B56","v":0},null,{"$f":"(IF($B56<='Benzin - diesel - hybrid'!S$28,'Benzin - diesel - hybrid'!S$16,0)+IF($B56<='Benzin - diesel - hybrid'!S$28,'Benzin - diesel - hybrid'!S$17,0)+IF($B56<='Benzin - diesel - hybrid'!S$28,'Benzin - diesel - hybrid'!S$39,0)+IF($B56<='Benzin - diesel - hybrid'!S$28,'Benzin - diesel - hybrid'!S$40,0))*(1+'Benzin - diesel - hybrid'!S$29/100)^-$B56","v":0}]
[]
["Efterbrugsomkostninger",null,"BEREGNES IKKE FOR OPERATIONEL LEASING!"]
[null,"År indeks",null,null,{"$f":"'Benzin - diesel - hybrid'!E8","v":"PRODUKT 1"},null,{"$f":"'Benzin - diesel - hybrid'!G8","v":"PRODUKT 2"},null,{"$f":"'Benzin - diesel - hybrid'!I8","v":"PRODUKT 3"},null,{"$f":"'Benzin - diesel - hybrid'!K8","v":"PRODUKT 4"},null,{"$f":"'Benzin - diesel - hybrid'!M8","v":"PRODUKT 5"},null,{"$f":"'Benzin - diesel - hybrid'!O8","v":"PRODUKT 6"},null,{"$f":"'Benzin - diesel - hybrid'!Q8","v":"PRODUKT 7"},null,{"$f":"'Benzin - diesel - hybrid'!S8","v":"PRODUKT 8"}]
[null,1,{"$f":"B60","v":1}]
[null,2,{"$f":"B61","v":2}]
[null,3,3]
[null,4,4]
[null,5,5]
[null,6,6]
[null,7,7]
[null,8,8]
[null,9,9]
[null,10,10]
[null,11,11]
[null,12,12]
[null,13,13]
[null,14,14]
[null,15,15]
[]
["Gennemsnitlige årlige omkostninger"]
[null,"År indeks",null,null,{"$f":"'Benzin - diesel - hybrid'!E8","v":"PRODUKT 1"},null,{"$f":"'Benzin - diesel - hybrid'!G8","v":"PRODUKT 2"},null,{"$f":"'Benzin - diesel - hybrid'!I8","v":"PRODUKT 3"},null,{"$f":"'Benzin - diesel - hybrid'!K8","v":"PRODUKT 4"},null,{"$f":"'Benzin - diesel - hybrid'!M8","v":"PRODUKT 5"},null,{"$f":"'Benzin - diesel - hybrid'!O8","v":"PRODUKT 6"},null,{"$f":"'Benzin - diesel - hybrid'!Q8","v":"PRODUKT 7"},null,{"$f":"'Benzin - diesel - hybrid'!S8","v":"PRODUKT 8"}]
[null,1,{"$f":"B78","v":1},null,{"$f":"'Benzin - diesel - hybrid'!E$50","v":{"$error":"#DIV/0!"}},null,{"$f":"'Benzin - diesel - hybrid'!G$50","v":{"$error":"#DIV/0!"}},null,{"$f":"'Benzin - diesel - hybrid'!I$50","v":{"$error":"#DIV/0!"}},null,{"$f":"IF($B78<='Benzin - diesel - hybrid'!K$28,'Benzin - diesel - hybrid'!K$50,0)","v":{"$error":"#DIV/0!"}},null,{"$f":"IF($B78<='Benzin - diesel - hybrid'!M$28,'Benzin - diesel - hybrid'!M$50,0)","v":{"$error":"#DIV/0!"}},null,{"$f":"IF($B78<='Benzin - diesel - hybrid'!O$28,'Benzin - diesel - hybrid'!O$50,0)","v":{"$error":"#DIV/0!"}},null,{"$f":"IF($B78<='Benzin - diesel - hybrid'!Q$28,'Benzin - diesel - hybrid'!Q$50,0)","v":{"$error":"#DIV/0!"}},null,{"$f":"IF($B78<='Benzin - diesel - hybrid'!S$28,'Benzin - diesel - hybrid'!S$50,0)","v":{"$error":"#DIV/0!"}}]
[null,2,{"$f":"B79","v":2},null,{"$f":"PMT('Benzin - diesel - hybrid'!E$29/100,$B79,-E7)","v":{"$error":"#DIV/0!"}},null,{"$f":"PMT('Benzin - diesel - hybrid'!G$29/100,$B79,-G7)","v":{"$error":"#DIV/0!"}},null,{"$f":"PMT('Benzin - diesel - hybrid'!I$29/100,$B79,-I7)","v":{"$error":"#DIV/0!"}},null,{"$f":"IF($B79<='Benzin - diesel - hybrid'!K$28,PMT('Benzin - diesel - hybrid'!K$29/100,$B79,-K7),K78)","v":{"$error":"#DIV/0!"}},null,{"$f":"IF($B79<='Benzin - diesel - hybrid'!M$28,PMT('Benzin - diesel - hybrid'!M$29/100,$B79,-M7),M78)","v":{"$error":"#DIV/0!"}},null,{"$f":"IF($B79<='Benzin - diesel - hybrid'!O$28,PMT('Benzin - diesel - hybrid'!O$29/100,$B79,-O7),O78)","v":{"$error":"#DIV/0!"}},null,{"$f":"IF($B79<='Benzin - diesel - hybrid'!Q$28,PMT('Benzin - diesel - hybrid'!Q$29/100,$B79,-Q7),Q78)","v":{"$error":"#DIV/0!"}},null,{"$f":"IF($B79<='Benzin - diesel - hybrid'!S$28,PMT('Benzin - diesel - hybrid'!S$29/100,$B79,-S7),S78)","v":{"$error":"#DIV/0!"}}]
[null,3,3,null,{"$f":"PMT('Benzin - diesel - hybrid'!E$29/100,$B80,-E8)","v":{"$error":"#DIV/0!"}},null,{"$f":"PMT('Benzin - diesel - hybrid'!G$29/100,$B80,-G8)","v":{"$error":"#DIV/0!"}},null,{"$f":"PMT('Benzin - diesel - hybrid'!I$29/100,$B80,-I8)","v":{"$error":"#DIV/0!"}},null,{"$f":"IF($B80<='Benzin - diesel - hybrid'!K$28,PMT('Benzin - diesel - hybrid'!K$29/100,$B80,-K8),K79)","v":{"$error":"#DIV/0!"}},null,{"$f":"IF($B80<='Benzin - diesel - hybrid'!M$28,PMT('Benzin - diesel - hybrid'!M$29/100,$B80,-M8),M79)","v":{"$error":"#DIV/0!"}},null,{"$f":"IF($B80<='Benzin - diesel - hybrid'!O$28,PMT('Benzin - diesel - hybrid'!O$29/100,$B80,-O8),O79)","v":{"$error":"#DIV/0!"}},null,{"$f":"IF($B80<='Benzin - diesel - hybrid'!Q$28,PMT('Benzin - diesel - hybrid'!Q$29/100,$B80,-Q8),Q79)","v":{"$error":"#DIV/0!"}},null,{"$f":"IF($B80<='Benzin - diesel - hybrid'!S$28,PMT('Benzin - diesel - hybrid'!S$29/100,$B80,-S8),S79)","v":{"$error":"#DIV/0!"}}]
[null,4,4,null,{"$f":"PMT('Benzin - diesel - hybrid'!E$29/100,$B81,-E9)","v":{"$error":"#DIV/0!"}},null,{"$f":"PMT('Benzin - diesel - hybrid'!G$29/100,$B81,-G9)","v":{"$error":"#DIV/0!"}},null,{"$f":"PMT('Benzin - diesel - hybrid'!I$29/100,$B81,-I9)","v":{"$error":"#DIV/0!"}},null,{"$f":"IF($B81<='Benzin - diesel - hybrid'!K$28,PMT('Benzin - diesel - hybrid'!K$29/100,$B81,-K9),K80)","v":{"$error":"#DIV/0!"}},null,{"$f":"IF($B81<='Benzin - diesel - hybrid'!M$28,PMT('Benzin - diesel - hybrid'!M$29/100,$B81,-M9),M80)","v":{"$error":"#DIV/0!"}},null,{"$f":"IF($B81<='Benzin - diesel - hybrid'!O$28,PMT('Benzin - diesel - hybrid'!O$29/100,$B81,-O9),O80)","v":{"$error":"#DIV/0!"}},null,{"$f":"IF($B81<='Benzin - diesel - hybrid'!Q$28,PMT('Benzin - diesel - hybrid'!Q$29/100,$B81,-Q9),Q80)","v":{"$error":"#DIV/0!"}},null,{"$f":"IF($B81<='Benzin - diesel - hybrid'!S$28,PMT('Benzin - diesel - hybrid'!S$29/100,$B81,-S9),S80)","v":{"$error":"#DIV/0!"}}]
[null,5,5,null,{"$f":"PMT('Benzin - diesel - hybrid'!E$29/100,$B82,-E10)","v":{"$error":"#DIV/0!"}},null,{"$f":"PMT('Benzin - diesel - hybrid'!G$29/100,$B82,-G10)","v":{"$error":"#DIV/0!"}},null,{"$f":"PMT('Benzin - diesel - hybrid'!I$29/100,$B82,-I10)","v":{"$error":"#DIV/0!"}},null,{"$f":"IF($B82<='Benzin - diesel - hybrid'!K$28,PMT('Benzin - diesel - hybrid'!K$29/100,$B82,-K10),K81)","v":{"$error":"#DIV/0!"}},null,{"$f":"IF($B82<='Benzin - diesel - hybrid'!M$28,PMT('Benzin - diesel - hybrid'!M$29/100,$B82,-M10),M81)","v":{"$error":"#DIV/0!"}},null,{"$f":"IF($B82<='Benzin - diesel - hybrid'!O$28,PMT('Benzin - diesel - hybrid'!O$29/100,$B82,-O10),O81)","v":{"$error":"#DIV/0!"}},null,{"$f":"IF($B82<='Benzin - diesel - hybrid'!Q$28,PMT('Benzin - diesel - hybrid'!Q$29/100,$B82,-Q10),Q81)","v":{"$error":"#DIV/0!"}},null,{"$f":"IF($B82<='Benzin - diesel - hybrid'!S$28,PMT('Benzin - diesel - hybrid'!S$29/100,$B82,-S10),S81)","v":{"$error":"#DIV/0!"}}]
[null,6,6,null,{"$f":"PMT('Benzin - diesel - hybrid'!E$29/100,$B83,-E11)","v":{"$error":"#DIV/0!"}},null,{"$f":"PMT('Benzin - diesel - hybrid'!G$29/100,$B83,-G11)","v":{"$error":"#DIV/0!"}},null,{"$f":"PMT('Benzin - diesel - hybrid'!I$29/100,$B83,-I11)","v":{"$error":"#DIV/0!"}},null,{"$f":"IF($B83<='Benzin - diesel - hybrid'!K$28,PMT('Benzin - diesel - hybrid'!K$29/100,$B83,-K11),K82)","v":{"$error":"#DIV/0!"}},null,{"$f":"IF($B83<='Benzin - diesel - hybrid'!M$28,PMT('Benzin - diesel - hybrid'!M$29/100,$B83,-M11),M82)","v":{"$error":"#DIV/0!"}},null,{"$f":"IF($B83<='Benzin - diesel - hybrid'!O$28,PMT('Benzin - diesel - hybrid'!O$29/100,$B83,-O11),O82)","v":{"$error":"#DIV/0!"}},null,{"$f":"IF($B83<='Benzin - diesel - hybrid'!Q$28,PMT('Benzin - diesel - hybrid'!Q$29/100,$B83,-Q11),Q82)","v":{"$error":"#DIV/0!"}},null,{"$f":"IF($B83<='Benzin - diesel - hybrid'!S$28,PMT('Benzin - diesel - hybrid'!S$29/100,$B83,-S11),S82)","v":{"$error":"#DIV/0!"}}]
[null,7,7,null,{"$f":"PMT('Benzin - diesel - hybrid'!E$29/100,$B84,-E12)","v":{"$error":"#DIV/0!"}},null,{"$f":"PMT('Benzin - diesel - hybrid'!G$29/100,$B84,-G12)","v":{"$error":"#DIV/0!"}},null,{"$f":"PMT('Benzin - diesel - hybrid'!I$29/100,$B84,-I12)","v":{"$error":"#DIV/0!"}},null,{"$f":"IF($B84<='Benzin - diesel - hybrid'!K$28,PMT('Benzin - diesel - hybrid'!K$29/100,$B84,-K12),K83)","v":{"$error":"#DIV/0!"}},null,{"$f":"IF($B84<='Benzin - diesel - hybrid'!M$28,PMT('Benzin - diesel - hybrid'!M$29/100,$B84,-M12),M83)","v":{"$error":"#DIV/0!"}},null,{"$f":"IF($B84<='Benzin - diesel - hybrid'!O$28,PMT('Benzin - diesel - hybrid'!O$29/100,$B84,-O12),O83)","v":{"$error":"#DIV/0!"}},null,{"$f":"IF($B84<='Benzin - diesel - hybrid'!Q$28,PMT('Benzin - diesel - hybrid'!Q$29/100,$B84,-Q12),Q83)","v":{"$error":"#DIV/0!"}},null,{"$f":"IF($B84<='Benzin - diesel - hybrid'!S$28,PMT('Benzin - diesel - hybrid'!S$29/100,$B84,-S12),S83)","v":{"$error":"#DIV/0!"}}]
[null,8,8,null,{"$f":"PMT('Benzin - diesel - hybrid'!E$29/100,$B85,-E13)","v":{"$error":"#DIV/0!"}},null,{"$f":"PMT('Benzin - diesel - hybrid'!G$29/100,$B85,-G13)","v":{"$error":"#DIV/0!"}},null,{"$f":"PMT('Benzin - diesel - hybrid'!I$29/100,$B85,-I13)","v":{"$error":"#DIV/0!"}},null,{"$f":"IF($B85<='Benzin - diesel - hybrid'!K$28,PMT('Benzin - diesel - hybrid'!K$29/100,$B85,-K13),K84)","v":{"$error":"#DIV/0!"}},null,{"$f":"IF($B85<='Benzin - diesel - hybrid'!M$28,PMT('Benzin - diesel - hybrid'!M$29/100,$B85,-M13),M84)","v":{"$error":"#DIV/0!"}},null,{"$f":"IF($B85<='Benzin - diesel - hybrid'!O$28,PMT('Benzin - diesel - hybrid'!O$29/100,$B85,-O13),O84)","v":{"$error":"#DIV/0!"}},null,{"$f":"IF($B85<='Benzin - diesel - hybrid'!Q$28,PMT('Benzin - diesel - hybrid'!Q$29/100,$B85,-Q13),Q84)","v":{"$error":"#DIV/0!"}},null,{"$f":"IF($B85<='Benzin - diesel - hybrid'!S$28,PMT('Benzin - diesel - hybrid'!S$29/100,$B85,-S13),S84)","v":{"$error":"#DIV/0!"}}]
[null,9,9,null,{"$f":"PMT('Benzin - diesel - hybrid'!E$29/100,$B86,-E14)","v":{"$error":"#DIV/0!"}},null,{"$f":"PMT('Benzin - diesel - hybrid'!G$29/100,$B86,-G14)","v":{"$error":"#DIV/0!"}},null,{"$f":"PMT('Benzin - diesel - hybrid'!I$29/100,$B86,-I14)","v":{"$error":"#DIV/0!"}},null,{"$f":"IF($B86<='Benzin - diesel - hybrid'!K$28,PMT('Benzin - diesel - hybrid'!K$29/100,$B86,-K14),K85)","v":{"$error":"#DIV/0!"}},null,{"$f":"IF($B86<='Benzin - diesel - hybrid'!M$28,PMT('Benzin - diesel - hybrid'!M$29/100,$B86,-M14),M85)","v":{"$error":"#DIV/0!"}},null,{"$f":"IF($B86<='Benzin - diesel - hybrid'!O$28,PMT('Benzin - diesel - hybrid'!O$29/100,$B86,-O14),O85)","v":{"$error":"#DIV/0!"}},null,{"$f":"IF($B86<='Benzin - diesel - hybrid'!Q$28,PMT('Benzin - diesel - hybrid'!Q$29/100,$B86,-Q14),Q85)","v":{"$error":"#DIV/0!"}},null,{"$f":"IF($B86<='Benzin - diesel - hybrid'!S$28,PMT('Benzin - diesel - hybrid'!S$29/100,$B86,-S14),S85)","v":{"$error":"#DIV/0!"}}]
[null,10,10,null,{"$f":"PMT('Benzin - diesel - hybrid'!E$29/100,$B87,-E15)","v":{"$error":"#DIV/0!"}},null,{"$f":"PMT('Benzin - diesel - hybrid'!G$29/100,$B87,-G15)","v":{"$error":"#DIV/0!"}},null,{"$f":"PMT('Benzin - diesel - hybrid'!I$29/100,$B87,-I15)","v":{"$error":"#DIV/0!"}},null,{"$f":"IF($B87<='Benzin - diesel - hybrid'!K$28,PMT('Benzin - diesel - hybrid'!K$29/100,$B87,-K15),K86)","v":{"$error":"#DIV/0!"}},null,{"$f":"IF($B87<='Benzin - diesel - hybrid'!M$28,PMT('Benzin - diesel - hybrid'!M$29/100,$B87,-M15),M86)","v":{"$error":"#DIV/0!"}},null,{"$f":"IF($B87<='Benzin - diesel - hybrid'!O$28,PMT('Benzin - diesel - hybrid'!O$29/100,$B87,-O15),O86)","v":{"$error":"#DIV/0!"}},null,{"$f":"IF($B87<='Benzin - diesel - hybrid'!Q$28,PMT('Benzin - diesel - hybrid'!Q$29/100,$B87,-Q15),Q86)","v":{"$error":"#DIV/0!"}},null,{"$f":"IF($B87<='Benzin - diesel - hybrid'!S$28,PMT('Benzin - diesel - hybrid'!S$29/100,$B87,-S15),S86)","v":{"$error":"#DIV/0!"}}]
[null,11,11,null,{"$f":"PMT('Benzin - diesel - hybrid'!E$29/100,$B88,-E16)","v":{"$error":"#DIV/0!"}},null,{"$f":"PMT('Benzin - diesel - hybrid'!G$29/100,$B88,-G16)","v":{"$error":"#DIV/0!"}},null,{"$f":"PMT('Benzin - diesel - hybrid'!I$29/100,$B88,-I16)","v":{"$error":"#DIV/0!"}},null,{"$f":"IF($B88<='Benzin - diesel - hybrid'!K$28,PMT('Benzin - diesel - hybrid'!K$29/100,$B88,-K16),K87)","v":{"$error":"#DIV/0!"}},null,{"$f":"IF($B88<='Benzin - diesel - hybrid'!M$28,PMT('Benzin - diesel - hybrid'!M$29/100,$B88,-M16),M87)","v":{"$error":"#DIV/0!"}},null,{"$f":"IF($B88<='Benzin - diesel - hybrid'!O$28,PMT('Benzin - diesel - hybrid'!O$29/100,$B88,-O16),O87)","v":{"$error":"#DIV/0!"}},null,{"$f":"IF($B88<='Benzin - diesel - hybrid'!Q$28,PMT('Benzin - diesel - hybrid'!Q$29/100,$B88,-Q16),Q87)","v":{"$error":"#DIV/0!"}},null,{"$f":"IF($B88<='Benzin - diesel - hybrid'!S$28,PMT('Benzin - diesel - hybrid'!S$29/100,$B88,-S16),S87)","v":{"$error":"#DIV/0!"}}]
[null,12,12,null,{"$f":"PMT('Benzin - diesel - hybrid'!E$29/100,$B89,-E17)","v":{"$error":"#DIV/0!"}},null,{"$f":"PMT('Benzin - diesel - hybrid'!G$29/100,$B89,-G17)","v":{"$error":"#DIV/0!"}},null,{"$f":"PMT('Benzin - diesel - hybrid'!I$29/100,$B89,-I17)","v":{"$error":"#DIV/0!"}},null,{"$f":"IF($B89<='Benzin - diesel - hybrid'!K$28,PMT('Benzin - diesel - hybrid'!K$29/100,$B89,-K17),K88)","v":{"$error":"#DIV/0!"}},null,{"$f":"IF($B89<='Benzin - diesel - hybrid'!M$28,PMT('Benzin - diesel - hybrid'!M$29/100,$B89,-M17),M88)","v":{"$error":"#DIV/0!"}},null,{"$f":"IF($B89<='Benzin - diesel - hybrid'!O$28,PMT('Benzin - diesel - hybrid'!O$29/100,$B89,-O17),O88)","v":{"$error":"#DIV/0!"}},null,{"$f":"IF($B89<='Benzin - diesel - hybrid'!Q$28,PMT('Benzin - diesel - hybrid'!Q$29/100,$B89,-Q17),Q88)","v":{"$error":"#DIV/0!"}},null,{"$f":"IF($B89<='Benzin - diesel - hybrid'!S$28,PMT('Benzin - diesel - hybrid'!S$29/100,$B89,-S17),S88)","v":{"$error":"#DIV/0!"}}]
[null,13,13,null,{"$f":"PMT('Benzin - diesel - hybrid'!E$29/100,$B90,-E18)","v":{"$error":"#DIV/0!"}},null,{"$f":"PMT('Benzin - diesel - hybrid'!G$29/100,$B90,-G18)","v":{"$error":"#DIV/0!"}},null,{"$f":"PMT('Benzin - diesel - hybrid'!I$29/100,$B90,-I18)","v":{"$error":"#DIV/0!"}},null,{"$f":"IF($B90<='Benzin - diesel - hybrid'!K$28,PMT('Benzin - diesel - hybrid'!K$29/100,$B90,-K18),K89)","v":{"$error":"#DIV/0!"}},null,{"$f":"IF($B90<='Benzin - diesel - hybrid'!M$28,PMT('Benzin - diesel - hybrid'!M$29/100,$B90,-M18),M89)","v":{"$error":"#DIV/0!"}},null,{"$f":"IF($B90<='Benzin - diesel - hybrid'!O$28,PMT('Benzin - diesel - hybrid'!O$29/100,$B90,-O18),O89)","v":{"$error":"#DIV/0!"}},null,{"$f":"IF($B90<='Benzin - diesel - hybrid'!Q$28,PMT('Benzin - diesel - hybrid'!Q$29/100,$B90,-Q18),Q89)","v":{"$error":"#DIV/0!"}},null,{"$f":"IF($B90<='Benzin - diesel - hybrid'!S$28,PMT('Benzin - diesel - hybrid'!S$29/100,$B90,-S18),S89)","v":{"$error":"#DIV/0!"}}]
[null,14,14,null,{"$f":"PMT('Benzin - diesel - hybrid'!E$29/100,$B91,-E19)","v":{"$error":"#DIV/0!"}},null,{"$f":"PMT('Benzin - diesel - hybrid'!G$29/100,$B91,-G19)","v":{"$error":"#DIV/0!"}},null,{"$f":"PMT('Benzin - diesel - hybrid'!I$29/100,$B91,-I19)","v":{"$error":"#DIV/0!"}},null,{"$f":"IF($B91<='Benzin - diesel - hybrid'!K$28,PMT('Benzin - diesel - hybrid'!K$29/100,$B91,-K19),K90)","v":{"$error":"#DIV/0!"}},null,{"$f":"IF($B91<='Benzin - diesel - hybrid'!M$28,PMT('Benzin - diesel - hybrid'!M$29/100,$B91,-M19),M90)","v":{"$error":"#DIV/0!"}},null,{"$f":"IF($B91<='Benzin - diesel - hybrid'!O$28,PMT('Benzin - diesel - hybrid'!O$29/100,$B91,-O19),O90)","v":{"$error":"#DIV/0!"}},null,{"$f":"IF($B91<='Benzin - diesel - hybrid'!Q$28,PMT('Benzin - diesel - hybrid'!Q$29/100,$B91,-Q19),Q90)","v":{"$error":"#DIV/0!"}},null,{"$f":"IF($B91<='Benzin - diesel - hybrid'!S$28,PMT('Benzin - diesel - hybrid'!S$29/100,$B91,-S19),S90)","v":{"$error":"#DIV/0!"}}]
[null,15,15,null,{"$f":"PMT('Benzin - diesel - hybrid'!E$29/100,$B92,-E20)","v":{"$error":"#DIV/0!"}},null,{"$f":"PMT('Benzin - diesel - hybrid'!G$29/100,$B92,-G20)","v":{"$error":"#DIV/0!"}},null,{"$f":"PMT('Benzin - diesel - hybrid'!I$29/100,$B92,-I20)","v":{"$error":"#DIV/0!"}},null,{"$f":"IF($B92<='Benzin - diesel - hybrid'!K$28,PMT('Benzin - diesel - hybrid'!K$29/100,$B92,-K20),K91)","v":{"$error":"#DIV/0!"}},null,{"$f":"IF($B92<='Benzin - diesel - hybrid'!M$28,PMT('Benzin - diesel - hybrid'!M$29/100,$B92,-M20),M91)","v":{"$error":"#DIV/0!"}},null,{"$f":"IF($B92<='Benzin - diesel - hybrid'!O$28,PMT('Benzin - diesel - hybrid'!O$29/100,$B92,-O20),O91)","v":{"$error":"#DIV/0!"}},null,{"$f":"IF($B92<='Benzin - diesel - hybrid'!Q$28,PMT('Benzin - diesel - hybrid'!Q$29/100,$B92,-Q20),Q91)","v":{"$error":"#DIV/0!"}},null,{"$f":"IF($B92<='Benzin - diesel - hybrid'!S$28,PMT('Benzin - diesel - hybrid'!S$29/100,$B92,-S20),S91)","v":{"$error":"#DIV/0!"}}]

{"sheet":"Interne beregninger - E&PH","index":6,"n_rows":111,"n_cols":20,"rows_kept":111,"cut":false,"hidden":true,"merged":[]}
["Klik for valg",null,null,"Type brændstof",null,null,"Gns. pris - bortskaffelse"]
["Plugin hybrid benzin",null,null,"El og benzin",null,null,null,null,"ja"]
["Plugin hybrid diesel",null,null,"El og diesel"]
["El",null,null,"El",null,null,null,null,"nej"]
[null,null,"Omkostninger for ladestander er blot lagt til fra forsiden som omkostning med en andel af TCO-perode delt med levetid for ladestander"]
["Til graf: Akkumulerede samlede udgifter",null,null,null,{"$f":"'El og plugin hybrid'!E8","v":"PRODUKT 1 EL"},null,{"$f":"'El og plugin hybrid'!G8","v":"PRODUKT 2 EL"},null,{"$f":"'El og plugin hybrid'!I8","v":"PRODUKT 3 EL"},null,{"$f":"'El og plugin hybrid'!K8","v":"PRODUKT 4 EL"},null,{"$f":"'El og plugin hybrid'!M8","v":"PRODUKT 5 EL"},null,{"$f":"'El og plugin hybrid'!O8","v":"PRODUKT 6 EL"},null,{"$f":"'El og plugin hybrid'!Q8","v":"PRODUKT 7 EL"},null,{"$f":"'El og plugin hybrid'!S8","v":"PRODUKT 8 EL"}]
[null,1,1,null,{"$f":"'El og plugin hybrid'!E65+(E25+E43+E61+E79)*'El og plugin hybrid'!E28","v":0},null,{"$f":"'El og plugin hybrid'!G65+(G25+G43+G61+G79)*'El og plugin hybrid'!G28","v":0},null,{"$f":"'El og plugin hybrid'!I65+(I25+I43+I61+I79)*'El og plugin hybrid'!I28","v":0},null,{"$f":"'El og plugin hybrid'!K65+(K25+K43+K61+K79)*'El og plugin hybrid'!K28","v":0},null,{"$f":"'El og plugin hybrid'!M65+(M25+M43+M61+M79)*'El og plugin hybrid'!M28","v":0},null,{"$f":"'El og plugin hybrid'!O65+(O25+O43+O61+O79)*'El og plugin hybrid'!O28","v":0},null,{"$f":"'El og plugin hybrid'!Q65+(Q25+Q43+Q61+Q79)*'El og plugin hybrid'!Q28","v":0},null,{"$f":"'El og plugin hybrid'!S65+(S25+S43+S61+S79)*'El og plugin hybrid'!S28","v":0}]
[null,2,2,null,{"$f":"+E7+(E26+E44+E62+E80)*'El og plugin hybrid'!E28","v":0},null,{"$f":"+G7+(G26+G44+G62+G80)*'El og plugin hybrid'!G28","v":0},null,{"$f":"+I7+(I26+I44+I62+I80)*'El og plugin hybrid'!I28","v":0},null,{"$f":"+K7+(K26+K44+K62+K80)*'El og plugin hybrid'!K28","v":0},null,{"$f":"+M7+(M26+M44+M62+M80)*'El og plugin hybrid'!M28","v":0},null,{"$f":"+O7+(O26+O44+O62+O80)*'El og plugin hybrid'!O28","v":0},null,{"$f":"+Q7+(Q26+Q44+Q62+Q80)*'El og plugin hybrid'!Q28","v":0},null,{"$f":"+S7+(S26+S44+S62+S80)*'El og plugin hybrid'!S28","v":0}]
[null,3,3,null,{"$f":"+E8+(E27+E45+E63+E81)*'El og plugin hybrid'!E28","v":0},null,{"$f":"+G8+(G27+G45+G63+G81)*'El og plugin hybrid'!G28","v":0},null,{"$f":"+I8+(I27+I45+I63+I81)*'El og plugin hybrid'!I28","v":0},null,{"$f":"+K8+(K27+K45+K63+K81)*'El og plugin hybrid'!K28","v":0},null,{"$f":"+M8+(M27+M45+M63+M81)*'El og plugin hybrid'!M28","v":0},null,{"$f":"+O8+(O27+O45+O63+O81)*'El og plugin hybrid'!O28","v":0},null,{"$f":"+Q8+(Q27+Q45+Q63+Q81)*'El og plugin hybrid'!Q28","v":0},null,{"$f":"+S8+(S27+S45+S63+S81)*'El og plugin hybrid'!S28","v":0}]
[null,4,4,null,{"$f":"+E9+(E28+E46+E64+E82)*'El og plugin hybrid'!E28","v":0},null,{"$f":"+G9+(G28+G46+G64+G82)*'El og plugin hybrid'!G28","v":0},null,{"$f":"+I9+(I28+I46+I64+I82)*'El og plugin hybrid'!I28","v":0},null,{"$f":"+K9+(K28+K46+K64+K82)*'El og plugin hybrid'!K28","v":0},null,{"$f":"+M9+(M28+M46+M64+M82)*'El og plugin hybrid'!M28","v":0},null,{"$f":"+O9+(O28+O46+O64+O82)*'El og plugin hybrid'!O28","v":0},null,{"$f":"+Q9+(Q28+Q46+Q64+Q82)*'El og plugin hybrid'!Q28","v":0},null,{"$f":"+S9+(S28+S46+S64+S82)*'El og plugin hybrid'!S28","v":0}]
[null,5,5,null,{"$f":"+E10+(E29+E47+E65+E83)*'El og plugin hybrid'!E28","v":0},null,{"$f":"+G10+(G29+G47+G65+G83)*'El og plugin hybrid'!G28","v":0},null,{"$f":"+I10+(I29+I47+I65+I83)*'El og plugin hybrid'!I28","v":0},null,{"$f":"+K10+(K29+K47+K65+K83)*'El og plugin hybrid'!K28","v":0},null,{"$f":"+M10+(M29+M47+M65+M83)*'El og plugin hybrid'!M28","v":0},null,{"$f":"+O10+(O29+O47+O65+O83)*'El og plugin hybrid'!O28","v":0},null,{"$f":"+Q10+(Q29+Q47+Q65+Q83)*'El og plugin hybrid'!Q28","v":0},null,{"$f":"+S10+(S29+S47+S65+S83)*'El og plugin hybrid'!S28","v":0}]
[null,6,6,null,{"$f":"+E11+(E30+E48+E66+E84)*'El og plugin hybrid'!E28","v":0},null,{"$f":"+G11+(G30+G48+G66+G84)*'El og plugin hybrid'!G28","v":0},null,{"$f":"+I11+(I30+I48+I66+I84)*'El og plugin hybrid'!I28","v":0},null,{"$f":"+K11+(K30+K48+K66+K84)*'El og plugin hybrid'!K28","v":0},null,{"$f":"+M11+(M30+M48+M66+M84)*'El og plugin hybrid'!M28","v":0},null,{"$f":"+O11+(O30+O48+O66+O84)*'El og plugin hybrid'!O28","v":0},null,{"$f":"+Q11+(Q30+Q48+Q66+Q84)*'El og plugin hybrid'!Q28","v":0},null,{"$f":"+S11+(S30+S48+S66+S84)*'El og plugin hybrid'!S28","v":0}]
[null,7,7,null,{"$f":"+E12+(E31+E49+E67+E85)*'El og plugin hybrid'!E28","v":0},null,{"$f":"+G12+(G31+G49+G67+G85)*'El og plugin hybrid'!G28","v":0},null,{"$f":"+I12+(I31+I49+I67+I85)*'El og plugin hybrid'!I28","v":0},null,{"$f":"+K12+(K31+K49+K67+K85)*'El og plugin hybrid'!K28","v":0},null,{"$f":"+M12+(M31+M49+M67+M85)*'El og plugin hybrid'!M28","v":0},null,{"$f":"+O12+(O31+O49+O67+O85)*'El og plugin hybrid'!O28","v":0},null,{"$f":"+Q12+(Q31+Q49+Q67+Q85)*'El og plugin hybrid'!Q28","v":0},null,{"$f":"+S12+(S31+S49+S67+S85)*'El og plugin hybrid'!S28","v":0}]
[null,8,8,null,{"$f":"+E13+(E32+E50+E68+E86)*'El og plugin hybrid'!E28","v":0},null,{"$f":"+G13+(G32+G50+G68+G86)*'El og plugin hybrid'!G28","v":0},null,{"$f":"+I13+(I32+I50+I68+I86)*'El og plugin hybrid'!I28","v":0},null,{"$f":"+K13+(K32+K50+K68+K86)*'El og plugin hybrid'!K28","v":0},null,{"$f":"+M13+(M32+M50+M68+M86)*'El og plugin hybrid'!M28","v":0},null,{"$f":"+O13+(O32+O50+O68+O86)*'El og plugin hybrid'!O28","v":0},null,{"$f":"+Q13+(Q32+Q50+Q68+Q86)*'El og plugin hybrid'!Q28","v":0},null,{"$f":"+S13+(S32+S50+S68+S86)*'El og plugin hybrid'!S28","v":0}]
[null,9,9,null,{"$f":"+E14+(E33+E51+E69+E87)*'El og plugin hybrid'!E28","v":0},null,{"$f":"+G14+(G33+G51+G69+G87)*'El og plugin hybrid'!G28","v":0},null,{"$f":"+I14+(I33+I51+I69+I87)*'El og plugin hybrid'!I28","v":0},null,{"$f":"+K14+(K33+K51+K69+K87)*'El og plugin hybrid'!K28","v":0},null,{"$f":"+M14+(M33+M51+M69+M87)*'El og plugin hybrid'!M28","v":0},null,{"$f":"+O14+(O33+O51+O69+O87)*'El og plugin hybrid'!O28","v":0},null,{"$f":"+Q14+(Q33+Q51+Q69+Q87)*'El og plugin hybrid'!Q28","v":0},null,{"$f":"+S14+(S33+S51+S69+S87)*'El og plugin hybrid'!S28","v":0}]
[null,10,10,null,{"$f":"+E15+(E34+E52+E70+E88)*'El og plugin hybrid'!E28","v":0},null,{"$f":"+G15+(G34+G52+G70+G88)*'El og plugin hybrid'!G28","v":0},null,{"$f":"+I15+(I34+I52+I70+I88)*'El og plugin hybrid'!I28","v":0},null,{"$f":"+K15+(K34+K52+K70+K88)*'El og plugin hybrid'!K28","v":0},null,{"$f":"+M15+(M34+M52+M70+M88)*'El og plugin hybrid'!M28","v":0},null,{"$f":"+O15+(O34+O52+O70+O88)*'El og plugin hybrid'!O28","v":0},null,{"$f":"+Q15+(Q34+Q52+Q70+Q88)*'El og plugin hybrid'!Q28","v":0},null,{"$f":"+S15+(S34+S52+S70+S88)*'El og plugin hybrid'!S28","v":0}]
[null,11,11,null,{"$f":"+E16+(E35+E53+E71+E89)*'El og plugin hybrid'!E28","v":0},null,{"$f":"+G16+(G35+G53+G71+G89)*'El og plugin hybrid'!G28","v":0},null,{"$f":"+I16+(I35+I53+I71+I89)*'El og plugin hybrid'!I28","v":0},null,{"$f":"+K16+(K35+K53+K71+K89)*'El og plugin hybrid'!K28","v":0},null,{"$f":"+M16+(M35+M53+M71+M89)*'El og plugin hybrid'!M28","v":0},null,{"$f":"+O16+(O35+O53+O71+O89)*'El og plugin hybrid'!O28","v":0},null,{"$f":"+Q16+(Q35+Q53+Q71+Q89)*'El og plugin hybrid'!Q28","v":0},null,{"$f":"+S16+(S35+S53+S71+S89)*'El og plugin hybrid'!S28","v":0}]
[null,12,12,null,{"$f":"+E17+(E36+E54+E72+E90)*'El og plugin hybrid'!E28","v":0},null,{"$f":"+G17+(G36+G54+G72+G90)*'El og plugin hybrid'!G28","v":0},null,{"$f":"+I17+(I36+I54+I72+I90)*'El og plugin hybrid'!I28","v":0},null,{"$f":"+K17+(K36+K54+K72+K90)*'El og plugin hybrid'!K28","v":0},null,{"$f":"+M17+(M36+M54+M72+M90)*'El og plugin hybrid'!M28","v":0},null,{"$f":"+O17+(O36+O54+O72+O90)*'El og plugin hybrid'!O28","v":0},null,{"$f":"+Q17+(Q36+Q54+Q72+Q90)*'El og plugin hybrid'!Q28","v":0},null,{"$f":"+S17+(S36+S54+S72+S90)*'El og plugin hybrid'!S28","v":0}]
[null,13,13,null,{"$f":"+E18+(E37+E55+E73+E91)*'El og plugin hybrid'!E28","v":0},null,{"$f":"+G18+(G37+G55+G73+G91)*'El og plugin hybrid'!G28","v":0},null,{"$f":"+I18+(I37+I55+I73+I91)*'El og plugin hybrid'!I28","v":0},null,{"$f":"+K18+(K37+K55+K73+K91)*'El og plugin hybrid'!K28","v":0},null,{"$f":"+M18+(M37+M55+M73+M91)*'El og plugin hybrid'!M28","v":0},null,{"$f":"+O18+(O37+O55+O73+O91)*'El og plugin hybrid'!O28","v":0},null,{"$f":"+Q18+(Q37+Q55+Q73+Q91)*'El og plugin hybrid'!Q28","v":0},null,{"$f":"+S18+(S37+S55+S73+S91)*'El og plugin hybrid'!S28","v":0}]
[null,14,14,null,{"$f":"+E19+(E38+E56+E74+E92)*'El og plugin hybrid'!E28","v":0},null,{"$f":"+G19+(G38+G56+G74+G92)*'El og plugin hybrid'!G28","v":0},null,{"$f":"+I19+(I38+I56+I74+I92)*'El og plugin hybrid'!I28","v":0},null,{"$f":"+K19+(K38+K56+K74+K92)*'El og plugin hybrid'!K28","v":0},null,{"$f":"+M19+(M38+M56+M74+M92)*'El og plugin hybrid'!M28","v":0},null,{"$f":"+O19+(O38+O56+O74+O92)*'El og plugin hybrid'!O28","v":0},null,{"$f":"+Q19+(Q38+Q56+Q74+Q92)*'El og plugin hybrid'!Q28","v":0},null,{"$f":"+S19+(S38+S56+S74+S92)*'El og plugin hybrid'!S28","v":0}]
[null,15,15,null,{"$f":"+E20+(E39+E57+E75+E93)*'El og plugin hybrid'!E28","v":0},null,{"$f":"+G20+(G39+G57+G75+G93)*'El og plugin hybrid'!G28","v":0},null,{"$f":"+I20+(I39+I57+I75+I93)*'El og plugin hybrid'!I28","v":0},null,{"$f":"+K20+(K39+K57+K75+K93)*'El og plugin hybrid'!K28","v":0},null,{"$f":"+M20+(M39+M57+M75+M93)*'El og plugin hybrid'!M28","v":0},null,{"$f":"+O20+(O39+O57+O75+O93)*'El og plugin hybrid'!O28","v":0},null,{"$f":"+Q20+(Q39+Q57+Q75+Q93)*'El og plugin hybrid'!Q28","v":0},null,{"$f":"+S20+(S39+S57+S75+S93)*'El og plugin hybrid'!S28","v":0}]
[]
["Driftsomkostninger elbil"]
[null,"År indeks","Elpris",null,{"$f":"'El og plugin hybrid'!E8","v":"PRODUKT 1 EL"},null,{"$f":"'El og plugin hybrid'!G8","v":"PRODUKT 2 EL"},null,{"$f":"'El og plugin hybrid'!I8","v":"PRODUKT 3 EL"},null,{"$f":"'El og plugin hybrid'!K8","v":"PRODUKT 4 EL"},null,{"$f":"'El og plugin hybrid'!M8","v":"PRODUKT 5 EL"},null,{"$f":"'El og plugin hybrid'!O8","v":"PRODUKT 6 EL"},null,{"$f":"'El og plugin hybrid'!Q8","v":"PRODUKT 7 EL"},null,{"$f":"'El og plugin hybrid'!S8","v":"PRODUKT 8 EL"}]
[null,1,{"$f":"'El og plugin hybrid'!E35","v":2.13},null,{"$f":"IF($B25<='El og plugin hybrid'!E$34,(IF('El og plugin hybrid'!E$44=0,(('El og plugin hybrid'!E$29*'El og plugin hybrid'!E$13/1000)*'Interne beregninger - E&PH'!$C25)*(1+'El og plugin hybrid'!E$37/100)^-$B25,('El og plugin hybrid'!E$44)*(1+'El og plugin hybrid'!E$37/100)^-$B25)),0)","v":0},null,{"$f":"IF($B25<='El og plugin hybrid'!G$34,(IF('El og plugin hybrid'!G$44=0,(('El og plugin hybrid'!G$29*'El og plugin hybrid'!G$13/1000)*'Interne beregninger - E&PH'!$C25)*(1+'El og plugin hybrid'!G$37/100)^-$B25,('El og plugin hybrid'!G$44)*(1+'El og plugin hybrid'!G$37/100)^-$B25)),0)","v":0},null,{"$f":"IF($B25<='El og plugin hybrid'!I$34,(IF('El og plugin hybrid'!I$44=0,(('El og plugin hybrid'!I$29*'El og plugin hybrid'!I$13/1000)*'Interne beregninger - E&PH'!$C25)*(1+'El og plugin hybrid'!I$37/100)^-$B25,('El og plugin hybrid'!I$44)*(1+'El og plugin hybrid'!I$37/100)^-$B25)),0)","v":0},null,{"$f":"IF($B25<='El og plugin hybrid'!K$34,(IF('El og plugin hybrid'!K$44=0,(('El og plugin hybrid'!K$29*'El og plugin hybrid'!K$13/1000)*'Interne beregninger - E&PH'!$C25)*(1+'El og plugin hybrid'!K$37/100)^-$B25,('El og plugin hybrid'!K$44)*(1+'El og plugin hybrid'!K$37/100)^-$B25)),0)","v":0},null,{"$f":"IF($B25<='El og plugin hybrid'!M$34,(IF('El og plugin hybrid'!M$44=0,(('El og plugin hybrid'!M$29*'El og plugin hybrid'!M$13/1000)*'Interne beregninger - E&PH'!$C25)*(1+'El og plugin hybrid'!M$37/100)^-$B25,('El og plugin hybrid'!M$44)*(1+'El og plugin hybrid'!M$37/100)^-$B25)),0)","v":0},null,{"$f":"IF($B25<='El og plugin hybrid'!O$34,(IF('El og plugin hybrid'!O$44=0,(('El og plugin hybrid'!O$29*'El og plugin hybrid'!O$13/1000)*'Interne beregninger - E&PH'!$C25)*(1+'El og plugin hybrid'!O$37/100)^-$B25,('El og plugin hybrid'!O$44)*(1+'El og plugin hybrid'!O$37/100)^-$B25)),0)","v":0},null,{"$f":"IF($B25<='El og plugin hybrid'!Q$34,(IF('El og plugin hybrid'!Q$44=0,(('El og plugin hybrid'!Q$29*'El og plugin hybrid'!Q$13/1000)*'Interne beregninger - E&PH'!$C25)*(1+'El og plugin hybrid'!Q$37/100)^-$B25,('El og plugin hybrid'!Q$44)*(1+'El og plugin hybrid'!Q$37/100)^-$B25)),0)","v":0},null,{"$f":"IF($B25<='El og plugin hybrid'!S$34,(IF('El og plugin hybrid'!S$44=0,(('El og plugin hybrid'!S$29*'El og plugin hybrid'!S$13/1000)*'Interne beregninger - E&PH'!$C25)*(1+'El og plugin hybrid'!S$37/100)^-$B25,('El og plugin hybrid'!S$44)*(1+'El og plugin hybrid'!S$37/100)^-$B25)),0)","v":0}]
[null,2,{"$f":"C25*(1+'El og plugin hybrid'!$E$36/100)","v":2.1655930964309271},null,{"$f":"IF($B26<='El og plugin hybrid'!E$34,(IF('El og plugin hybrid'!E$44=0,(('El og plugin hybrid'!E$29*'El og plugin hybrid'!E$13/1000)*'Interne beregninger - E&PH'!$C26)*(1+'El og plugin hybrid'!E$37/100)^-$B26,('El og plugin hybrid'!E$44)*(1+'El og plugin hybrid'!E$37/100)^-$B26)),0)","v":0},null,{"$f":"IF($B26<='El og plugin hybrid'!G$34,(IF('El og plugin hybrid'!G$44=0,(('El og plugin hybrid'!G$29*'El og plugin hybrid'!G$13/1000)*'Interne beregninger - E&PH'!$C26)*(1+'El og plugin hybrid'!G$37/100)^-$B26,('El og plugin hybrid'!G$44)*(1+'El og plugin hybrid'!G$37/100)^-$B26)),0)","v":0},null,{"$f":"IF($B26<='El og plugin hybrid'!I$34,(IF('El og plugin hybrid'!I$44=0,(('El og plugin hybrid'!I$29*'El og plugin hybrid'!I$13/1000)*'Interne beregninger - E&PH'!$C26)*(1+'El og plugin hybrid'!I$37/100)^-$B26,('El og plugin hybrid'!I$44)*(1+'El og plugin hybrid'!I$37/100)^-$B26)),0)","v":0},null,{"$f":"IF($B26<='El og plugin hybrid'!K$34,(IF('El og plugin hybrid'!K$44=0,(('El og plugin hybrid'!K$29*'El og plugin hybrid'!K$13/1000)*'Interne beregninger - E&PH'!$C26)*(1+'El og plugin hybrid'!K$37/100)^-$B26,('El og plugin hybrid'!K$44)*(1+'El og plugin hybrid'!K$37/100)^-$B26)),0)","v":0},null,{"$f":"IF($B26<='El og plugin hybrid'!M$34,(IF('El og plugin hybrid'!M$44=0,(('El og plugin hybrid'!M$29*'El og plugin hybrid'!M$13/1000)*'Interne beregninger - E&PH'!$C26)*(1+'El og plugin hybrid'!M$37/100)^-$B26,('El og plugin hybrid'!M$44)*(1+'El og plugin hybrid'!M$37/100)^-$B26)),0)","v":0},null,{"$f":"IF($B26<='El og plugin hybrid'!O$34,(IF('El og plugin hybrid'!O$44=0,(('El og plugin hybrid'!O$29*'El og plugin hybrid'!O$13/1000)*'Interne beregninger - E&PH'!$C26)*(1+'El og plugin hybrid'!O$37/100)^-$B26,('El og plugin hybrid'!O$44)*(1+'El og plugin hybrid'!O$37/100)^-$B26)),0)","v":0},null,{"$f":"IF($B26<='El og plugin hybrid'!Q$34,(IF('El og plugin hybrid'!Q$44=0,(('El og plugin hybrid'!Q$29*'El og plugin hybrid'!Q$13/1000)*'Interne beregninger - E&PH'!$C26)*(1+'El og plugin hybrid'!Q$37/100)^-$B26,('El og plugin hybrid'!Q$44)*(1+'El og plugin hybrid'!Q$37/100)^-$B26)),0)","v":0},null,{"$f":"IF($B26<='El og plugin hybrid'!S$34,(IF('El og plugin hybrid'!S$44=0,(('El og plugin hybrid'!S$29*'El og plugin hybrid'!S$13/1000)*'Interne beregninger - E&PH'!$C26)*(1+'El og plugin hybrid'!S$37/100)^-$B26,('El og plugin hybrid'!S$44)*(1+'El og plugin hybrid'!S$37/100)^-$B26)),0)","v":0}]
[null,3,{"$f":"C26*(1+'El og plugin hybrid'!$E$36/100)","v":2.201780966811874},null,{"$f":"IF($B27<='El og plugin hybrid'!E$34,(IF('El og plugin hybrid'!E$44=0,(('El og plugin hybrid'!E$29*'El og plugin hybrid'!E$13/1000)*'Interne beregninger - E&PH'!$C27)*(1+'El og plugin hybrid'!E$37/100)^-$B27,('El og plugin hybrid'!E$44)*(1+'El og plugin hybrid'!E$37/100)^-$B27)),0)","v":0},null,{"$f":"IF($B27<='El og plugin hybrid'!G$34,(IF('El og plugin hybrid'!G$44=0,(('El og plugin hybrid'!G$29*'El og plugin hybrid'!G$13/1000)*'Interne beregninger - E&PH'!$C27)*(1+'El og plugin hybrid'!G$37/100)^-$B27,('El og plugin hybrid'!G$44)*(1+'El og plugin hybrid'!G$37/100)^-$B27)),0)","v":0},null,{"$f":"IF($B27<='El og plugin hybrid'!I$34,(IF('El og plugin hybrid'!I$44=0,(('El og plugin hybrid'!I$29*'El og plugin hybrid'!I$13/1000)*'Interne beregninger - E&PH'!$C27)*(1+'El og plugin hybrid'!I$37/100)^-$B27,('El og plugin hybrid'!I$44)*(1+'El og plugin hybrid'!I$37/100)^-$B27)),0)","v":0},null,{"$f":"IF($B27<='El og plugin hybrid'!K$34,(IF('El og plugin hybrid'!K$44=0,(('El og plugin hybrid'!K$29*'El og plugin hybrid'!K$13/1000)*'Interne beregninger - E&PH'!$C27)*(1+'El og plugin hybrid'!K$37/100)^-$B27,('El og plugin hybrid'!K$44)*(1+'El og plugin hybrid'!K$37/100)^-$B27)),0)","v":0},null,{"$f":"IF($B27<='El og plugin hybrid'!M$34,(IF('El og plugin hybrid'!M$44=0,(('El og plugin hybrid'!M$29*'El og plugin hybrid'!M$13/1000)*'Interne beregninger - E&PH'!$C27)*(1+'El og plugin hybrid'!M$37/100)^-$B27,('El og plugin hybrid'!M$44)*(1+'El og plugin hybrid'!M$37/100)^-$B27)),0)","v":0},null,{"$f":"IF($B27<='El og plugin hybrid'!O$34,(IF('El og plugin hybrid'!O$44=0,(('El og plugin hybrid'!O$29*'El og plugin hybrid'!O$13/1000)*'Interne beregninger - E&PH'!$C27)*(1+'El og plugin hybrid'!O$37/100)^-$B27,('El og plugin hybrid'!O$44)*(1+'El og plugin hybrid'!O$37/100)^-$B27)),0)","v":0},null,{"$f":"IF($B27<='El og plugin hybrid'!Q$34,(IF('El og plugin hybrid'!Q$44=0,(('El og plugin hybrid'!Q$29*'El og plugin hybrid'!Q$13/1000)*'Interne beregninger - E&PH'!$C27)*(1+'El og plugin hybrid'!Q$37/100)^-$B27,('El og plugin hybrid'!Q$44)*(1+'El og plugin hybrid'!Q$37/100)^-$B27)),0)","v":0},null,{"$f":"IF($B27<='El og plugin hybrid'!S$34,(IF('El og plugin hybrid'!S$44=0,(('El og plugin hybrid'!S$29*'El og plugin hybrid'!S$13/1000)*'Interne beregninger - E&PH'!$C27)*(1+'El og plugin hybrid'!S$37/100)^-$B27,('El og plugin hybrid'!S$44)*(1+'El og plugin hybrid'!S$37/100)^-$B27)),0)","v":0}]
[null,4,{"$f":"C27*(1+'El og plugin hybrid'!$E$36/100)","v":2.2385735500379376},null,{"$f":"IF($B28<='El og plugin hybrid'!E$34,(IF('El og plugin hybrid'!E$44=0,(('El og plugin hybrid'!E$29*'El og plugin hybrid'!E$13/1000)*'Interne beregninger - E&PH'!$C28)*(1+'El og plugin hybrid'!E$37/100)^-$B28,('El og plugin hybrid'!E$44)*(1+'El og plugin hybrid'!E$37/100)^-$B28)),0)","v":0},null,{"$f":"IF($B28<='El og plugin hybrid'!G$34,(IF('El og plugin hybrid'!G$44=0,(('El og plugin hybrid'!G$29*'El og plugin hybrid'!G$13/1000)*'Interne beregninger - E&PH'!$C28)*(1+'El og plugin hybrid'!G$37/100)^-$B28,('El og plugin hybrid'!G$44)*(1+'El og plugin hybrid'!G$37/100)^-$B28)),0)","v":0},null,{"$f":"IF($B28<='El og plugin hybrid'!I$34,(IF('El og plugin hybrid'!I$44=0,(('El og plugin hybrid'!I$29*'El og plugin hybrid'!I$13/1000)*'Interne beregninger - E&PH'!$C28)*(1+'El og plugin hybrid'!I$37/100)^-$B28,('El og plugin hybrid'!I$44)*(1+'El og plugin hybrid'!I$37/100)^-$B28)),0)","v":0},null,{"$f":"IF($B28<='El og plugin hybrid'!K$34,(IF('El og plugin hybrid'!K$44=0,(('El og plugin hybrid'!K$29*'El og plugin hybrid'!K$13/1000)*'Interne beregninger - E&PH'!$C28)*(1+'El og plugin hybrid'!K$37/100)^-$B28,('El og plugin hybrid'!K$44)*(1+'El og plugin hybrid'!K$37/100)^-$B28)),0)","v":0},null,{"$f":"IF($B28<='El og plugin hybrid'!M$34,(IF('El og plugin hybrid'!M$44=0,(('El og plugin hybrid'!M$29*'El og plugin hybrid'!M$13/1000)*'Interne beregninger - E&PH'!$C28)*(1+'El og plugin hybrid'!M$37/100)^-$B28,('El og plugin hybrid'!M$44)*(1+'El og plugin hybrid'!M$37/100)^-$B28)),0)","v":0},null,{"$f":"IF($B28<='El og plugin hybrid'!O$34,(IF('El og plugin hybrid'!O$44=0,(('El og plugin hybrid'!O$29*'El og plugin hybrid'!O$13/1000)*'Interne beregninger - E&PH'!$C28)*(1+'El og plugin hybrid'!O$37/100)^-$B28,('El og plugin hybrid'!O$44)*(1+'El og plugin hybrid'!O$37/100)^-$B28)),0)","v":0},null,{"$f":"IF($B28<='El og plugin hybrid'!Q$34,(IF('El og plugin hybrid'!Q$44=0,(('El og plugin hybrid'!Q$29*'El og plugin hybrid'!Q$13/1000)*'Interne beregninger - E&PH'!$C28)*(1+'El og plugin hybrid'!Q$37/100)^-$B28,('El og plugin hybrid'!Q$44)*(1+'El og plugin hybrid'!Q$37/100)^-$B28)),0)","v":0},null,{"$f":"IF($B28<='El og plugin hybrid'!S$34,(IF('El og plugin hybrid'!S$44=0,(('El og plugin hybrid'!S$29*'El og plugin hybrid'!S$13/1000)*'Interne beregninger - E&PH'!$C28)*(1+'El og plugin hybrid'!S$37/100)^-$B28,('El og plugin hybrid'!S$44)*(1+'El og plugin hybrid'!S$37/100)^-$B28)),0)","v":0}]
[null,5,{"$f":"C28*(1+'El og plugin hybrid'!$E$36/100)","v":2.2759809510868689},null,{"$f":"IF($B29<='El og plugin hybrid'!E$34,(IF('El og plugin hybrid'!E$44=0,(('El og plugin hybrid'!E$29*'El og plugin hybrid'!E$13/1000)*'Interne beregninger - E&PH'!$C29)*(1+'El og plugin hybrid'!E$37/100)^-$B29,('El og plugin hybrid'!E$44)*(1+'El og plugin hybrid'!E$37/100)^-$B29)),0)","v":0},null,{"$f":"IF($B29<='El og plugin hybrid'!G$34,(IF('El og plugin hybrid'!G$44=0,(('El og plugin hybrid'!G$29*'El og plugin hybrid'!G$13/1000)*'Interne beregninger - E&PH'!$C29)*(1+'El og plugin hybrid'!G$37/100)^-$B29,('El og plugin hybrid'!G$44)*(1+'El og plugin hybrid'!G$37/100)^-$B29)),0)","v":0},null,{"$f":"IF($B29<='El og plugin hybrid'!I$34,(IF('El og plugin hybrid'!I$44=0,(('El og plugin hybrid'!I$29*'El og plugin hybrid'!I$13/1000)*'Interne beregninger - E&PH'!$C29)*(1+'El og plugin hybrid'!I$37/100)^-$B29,('El og plugin hybrid'!I$44)*(1+'El og plugin hybrid'!I$37/100)^-$B29)),0)","v":0},null,{"$f":"IF($B29<='El og plugin hybrid'!K$34,(IF('El og plugin hybrid'!K$44=0,(('El og plugin hybrid'!K$29*'El og plugin hybrid'!K$13/1000)*'Interne beregninger - E&PH'!$C29)*(1+'El og plugin hybrid'!K$37/100)^-$B29,('El og plugin hybrid'!K$44)*(1+'El og plugin hybrid'!K$37/100)^-$B29)),0)","v":0},null,{"$f":"IF($B29<='El og plugin hybrid'!M$34,(IF('El og plugin hybrid'!M$44=0,(('El og plugin hybrid'!M$29*'El og plugin hybrid'!M$13/1000)*'Interne beregninger - E&PH'!$C29)*(1+'El og plugin hybrid'!M$37/100)^-$B29,('El og plugin hybrid'!M$44)*(1+'El og plugin hybrid'!M$37/100)^-$B29)),0)","v":0},null,{"$f":"IF($B29<='El og plugin hybrid'!O$34,(IF('El og plugin hybrid'!O$44=0,(('El og plugin hybrid'!O$29*'El og plugin hybrid'!O$13/1000)*'Interne beregninger - E&PH'!$C29)*(1+'El og plugin hybrid'!O$37/100)^-$B29,('El og plugin hybrid'!O$44)*(1+'El og plugin hybrid'!O$37/100)^-$B29)),0)","v":0},null,{"$f":"IF($B29<='El og plugin hybrid'!Q$34,(IF('El og plugin hybrid'!Q$44=0,(('El og plugin hybrid'!Q$29*'El og plugin hybrid'!Q$13/1000)*'Interne beregninger - E&PH'!$C29)*(1+'El og plugin hybrid'!Q$37/100)^-$B29,('El og plugin hybrid'!Q$44)*(1+'El og plugin hybrid'!Q$37/100)^-$B29)),0)","v":0},null,{"$f":"IF($B29<='El og plugin hybrid'!S$34,(IF('El og plugin hybrid'!S$44=0,(('El og plugin hybrid'!S$29*'El og plugin hybrid'!S$13/1000)*'Interne beregninger - E&PH'!$C29)*(1+'El og plugin hybrid'!S$37/100)^-$B29,('El og plugin hybrid'!S$44)*(1+'El og plugin hybrid'!S$37/100)^-$B29)),0)","v":0}]
[null,6,{"$f":"C29*(1+'El og plugin hybrid'!$E$36/100)","v":2.3140134437943756},null,{"$f":"IF($B30<='El og plugin hybrid'!E$34,(IF('El og plugin hybrid'!E$44=0,(('El og plugin hybrid'!E$29*'El og plugin hybrid'!E$13/1000)*'Interne beregninger - E&PH'!$C30)*(1+'El og plugin hybrid'!E$37/100)^-$B30,('El og plugin hybrid'!E$44)*(1+'El og plugin hybrid'!E$37/100)^-$B30)),0)","v":0},null,{"$f":"IF($B30<='El og plugin hybrid'!G$34,(IF('El og plugin hybrid'!G$44=0,(('El og plugin hybrid'!G$29*'El og plugin hybrid'!G$13/1000)*'Interne beregninger - E&PH'!$C30)*(1+'El og plugin hybrid'!G$37/100)^-$B30,('El og plugin hybrid'!G$44)*(1+'El og plugin hybrid'!G$37/100)^-$B30)),0)","v":0},null,{"$f":"IF($B30<='El og plugin hybrid'!I$34,(IF('El og plugin hybrid'!I$44=0,(('El og plugin hybrid'!I$29*'El og plugin hybrid'!I$13/1000)*'Interne beregninger - E&PH'!$C30)*(1+'El og plugin hybrid'!I$37/100)^-$B30,('El og plugin hybrid'!I$44)*(1+'El og plugin hybrid'!I$37/100)^-$B30)),0)","v":0},null,{"$f":"IF($B30<='El og plugin hybrid'!K$34,(IF('El og plugin hybrid'!K$44=0,(('El og plugin hybrid'!K$29*'El og plugin hybrid'!K$13/1000)*'Interne beregninger - E&PH'!$C30)*(1+'El og plugin hybrid'!K$37/100)^-$B30,('El og plugin hybrid'!K$44)*(1+'El og plugin hybrid'!K$37/100)^-$B30)),0)","v":0},null,{"$f":"IF($B30<='El og plugin hybrid'!M$34,(IF('El og plugin hybrid'!M$44=0,(('El og plugin hybrid'!M$29*'El og plugin hybrid'!M$13/1000)*'Interne beregninger - E&PH'!$C30)*(1+'El og plugin hybrid'!M$37/100)^-$B30,('El og plugin hybrid'!M$44)*(1+'El og plugin hybrid'!M$37/100)^-$B30)),0)","v":0},null,{"$f":"IF($B30<='El og plugin hybrid'!O$34,(IF('El og plugin hybrid'!O$44=0,(('El og plugin hybrid'!O$29*'El og plugin hybrid'!O$13/1000)*'Interne beregninger - E&PH'!$C30)*(1+'El og plugin hybrid'!O$37/100)^-$B30,('El og plugin hybrid'!O$44)*(1+'El og plugin hybrid'!O$37/100)^-$B30)),0)","v":0},null,{"$f":"IF($B30<='El og plugin hybrid'!Q$34,(IF('El og plugin hybrid'!Q$44=0,(('El og plugin hybrid'!Q$29*'El og plugin hybrid'!Q$13/1000)*'Interne beregninger - E&PH'!$C30)*(1+'El og plugin hybrid'!Q$37/100)^-$B30,('El og plugin hybrid'!Q$44)*(1+'El og plugin hybrid'!Q$37/100)^-$B30)),0)","v":0},null,{"$f":"IF($B30<='El og plugin hybrid'!S$34,(IF('El og plugin hybrid'!S$44=0,(('El og plugin hybrid'!S$29*'El og plugin hybrid'!S$13/1000)*'Interne beregninger - E&PH'!$C30)*(1+'El og plugin hybrid'!S$37/100)^-$B30,('El og plugin hybrid'!S$44)*(1+'El og plugin hybrid'!S$37/100)^-$B30)),0)","v":0}]
[null,7,{"$f":"C30*(1+'El og plugin hybrid'!$E$36/100)","v":2.3526814736758008},null,{"$f":"IF($B31<='El og plugin hybrid'!E$34,(IF('El og plugin hybrid'!E$44=0,(('El og plugin hybrid'!E$29*'El og plugin hybrid'!E$13/1000)*'Interne beregninger - E&PH'!$C31)*(1+'El og plugin hybrid'!E$37/100)^-$B31,('El og plugin hybrid'!E$44)*(1+'El og plugin hybrid'!E$37/100)^-$B31)),0)","v":0},null,{"$f":"IF($B31<='El og plugin hybrid'!G$34,(IF('El og plugin hybrid'!G$44=0,(('El og plugin hybrid'!G$29*'El og plugin hybrid'!G$13/1000)*'Interne beregninger - E&PH'!$C31)*(1+'El og plugin hybrid'!G$37/100)^-$B31,('El og plugin hybrid'!G$44)*(1+'El og plugin hybrid'!G$37/100)^-$B31)),0)","v":0},null,{"$f":"IF($B31<='El og plugin hybrid'!I$34,(IF('El og plugin hybrid'!I$44=0,(('El og plugin hybrid'!I$29*'El og plugin hybrid'!I$13/1000)*'Interne beregninger - E&PH'!$C31)*(1+'El og plugin hybrid'!I$37/100)^-$B31,('El og plugin hybrid'!I$44)*(1+'El og plugin hybrid'!I$37/100)^-$B31)),0)","v":0},null,{"$f":"IF($B31<='El og plugin hybrid'!K$34,(IF('El og plugin hybrid'!K$44=0,(('El og plugin hybrid'!K$29*'El og plugin hybrid'!K$13/1000)*'Interne beregninger - E&PH'!$C31)*(1+'El og plugin hybrid'!K$37/100)^-$B31,('El og plugin hybrid'!K$44)*(1+'El og plugin hybrid'!K$37/100)^-$B31)),0)","v":0},null,{"$f":"IF($B31<='El og plugin hybrid'!M$34,(IF('El og plugin hybrid'!M$44=0,(('El og plugin hybrid'!M$29*'El og plugin hybrid'!M$13/1000)*'Interne beregninger - E&PH'!$C31)*(1+'El og plugin hybrid'!M$37/100)^-$B31,('El og plugin hybrid'!M$44)*(1+'El og plugin hybrid'!M$37/100)^-$B31)),0)","v":0},null,{"$f":"IF($B31<='El og plugin hybrid'!O$34,(IF('El og plugin hybrid'!O$44=0,(('El og plugin hybrid'!O$29*'El og plugin hybrid'!O$13/1000)*'Interne beregninger - E&PH'!$C31)*(1+'El og plugin hybrid'!O$37/100)^-$B31,('El og plugin hybrid'!O$44)*(1+'El og plugin hybrid'!O$37/100)^-$B31)),0)","v":0},null,{"$f":"IF($B31<='El og plugin hybrid'!Q$34,(IF('El og plugin hybrid'!Q$44=0,(('El og plugin hybrid'!Q$29*'El og plugin hybrid'!Q$13/1000)*'Interne beregninger - E&PH'!$C31)*(1+'El og plugin hybrid'!Q$37/100)^-$B31,('El og plugin hybrid'!Q$44)*(1+'El og plugin hybrid'!Q$37/100)^-$B31)),0)","v":0},null,{"$f":"IF($B31<='El og plugin hybrid'!S$34,(IF('El og plugin hybrid'!S$44=0,(('El og plugin hybrid'!S$29*'El og plugin hybrid'!S$13/1000)*'Interne beregninger - E&PH'!$C31)*(1+'El og plugin hybrid'!S$37/100)^-$B31,('El og plugin hybrid'!S$44)*(1+'El og plugin hybrid'!S$37/100)^-$B31)),0)","v":0}]
[null,8,{"$f":"C31*(1+'El og plugin hybrid'!$E$36/100)","v":2.3919956607949553},null,{"$f":"IF($B32<='El og plugin hybrid'!E$34,(IF('El og plugin hybrid'!E$44=0,(('El og plugin hybrid'!E$29*'El og plugin hybrid'!E$13/1000)*'Interne beregninger - E&PH'!$C32)*(1+'El og plugin hybrid'!E$37/100)^-$B32,('El og plugin hybrid'!E$44)*(1+'El og plugin hybrid'!E$37/100)^-$B32)),0)","v":0},null,{"$f":"IF($B32<='El og plugin hybrid'!G$34,(IF('El og plugin hybrid'!G$44=0,(('El og plugin hybrid'!G$29*'El og plugin hybrid'!G$13/1000)*'Interne beregninger - E&PH'!$C32)*(1+'El og plugin hybrid'!G$37/100)^-$B32,('El og plugin hybrid'!G$44)*(1+'El og plugin hybrid'!G$37/100)^-$B32)),0)","v":0},null,{"$f":"IF($B32<='El og plugin hybrid'!I$34,(IF('El og plugin hybrid'!I$44=0,(('El og plugin hybrid'!I$29*'El og plugin hybrid'!I$13/1000)*'Interne beregninger - E&PH'!$C32)*(1+'El og plugin hybrid'!I$37/100)^-$B32,('El og plugin hybrid'!I$44)*(1+'El og plugin hybrid'!I$37/100)^-$B32)),0)","v":0},null,{"$f":"IF($B32<='El og plugin hybrid'!K$34,(IF('El og plugin hybrid'!K$44=0,(('El og plugin hybrid'!K$29*'El og plugin hybrid'!K$13/1000)*'Interne beregninger - E&PH'!$C32)*(1+'El og plugin hybrid'!K$37/100)^-$B32,('El og plugin hybrid'!K$44)*(1+'El og plugin hybrid'!K$37/100)^-$B32)),0)","v":0},null,{"$f":"IF($B32<='El og plugin hybrid'!M$34,(IF('El og plugin hybrid'!M$44=0,(('El og plugin hybrid'!M$29*'El og plugin hybrid'!M$13/1000)*'Interne beregninger - E&PH'!$C32)*(1+'El og plugin hybrid'!M$37/100)^-$B32,('El og plugin hybrid'!M$44)*(1+'El og plugin hybrid'!M$37/100)^-$B32)),0)","v":0},null,{"$f":"IF($B32<='El og plugin hybrid'!O$34,(IF('El og plugin hybrid'!O$44=0,(('El og plugin hybrid'!O$29*'El og plugin hybrid'!O$13/1000)*'Interne beregninger - E&PH'!$C32)*(1+'El og plugin hybrid'!O$37/100)^-$B32,('El og plugin hybrid'!O$44)*(1+'El og plugin hybrid'!O$37/100)^-$B32)),0)","v":0},null,{"$f":"IF($B32<='El og plugin hybrid'!Q$34,(IF('El og plugin hybrid'!Q$44=0,(('El og plugin hybrid'!Q$29*'El og plugin hybrid'!Q$13/1000)*'Interne beregninger - E&PH'!$C32)*(1+'El og plugin hybrid'!Q$37/100)^-$B32,('El og plugin hybrid'!Q$44)*(1+'El og plugin hybrid'!Q$37/100)^-$B32)),0)","v":0},null,{"$f":"IF($B32<='El og plugin hybrid'!S$34,(IF('El og plugin hybrid'!S$44=0,(('El og plugin hybrid'!S$29*'El og plugin hybrid'!S$13/1000)*'Interne beregninger - E&PH'!$C32)*(1+'El og plugin hybrid'!S$37/100)^-$B32,('El og plugin hybrid'!S$44)*(1+'El og plugin hybrid'!S$37/100)^-$B32)),0)","v":0}]
[null,9,{"$f":"C32*(1+'El og plugin hybrid'!$E$36/100)","v":2.4319668026808872},null,{"$f":"IF($B33<='El og plugin hybrid'!E$34,(IF('El og plugin hybrid'!E$44=0,(('El og plugin hybrid'!E$29*'El og plugin hybrid'!E$13/1000)*'Interne beregninger - E&PH'!$C33)*(1+'El og plugin hybrid'!E$37/100)^-$B33,('El og plugin hybrid'!E$44)*(1+'El og plugin hybrid'!E$37/100)^-$B33)),0)","v":0},null,{"$f":"IF($B33<='El og plugin hybrid'!G$34,(IF('El og plugin hybrid'!G$44=0,(('El og plugin hybrid'!G$29*'El og plugin hybrid'!G$13/1000)*'Interne beregninger - E&PH'!$C33)*(1+'El og plugin hybrid'!G$37/100)^-$B33,('El og plugin hybrid'!G$44)*(1+'El og plugin hybrid'!G$37/100)^-$B33)),0)","v":0},null,{"$f":"IF($B33<='El og plugin hybrid'!I$34,(IF('El og plugin hybrid'!I$44=0,(('El og plugin hybrid'!I$29*'El og plugin hybrid'!I$13/1000)*'Interne beregninger - E&PH'!$C33)*(1+'El og plugin hybrid'!I$37/100)^-$B33,('El og plugin hybrid'!I$44)*(1+'El og plugin hybrid'!I$37/100)^-$B33)),0)","v":0},null,{"$f":"IF($B33<='El og plugin hybrid'!K$34,(IF('El og plugin hybrid'!K$44=0,(('El og plugin hybrid'!K$29*'El og plugin hybrid'!K$13/1000)*'Interne beregninger - E&PH'!$C33)*(1+'El og plugin hybrid'!K$37/100)^-$B33,('El og plugin hybrid'!K$44)*(1+'El og plugin hybrid'!K$37/100)^-$B33)),0)","v":0},null,{"$f":"IF($B33<='El og plugin hybrid'!M$34,(IF('El og plugin hybrid'!M$44=0,(('El og plugin hybrid'!M$29*'El og plugin hybrid'!M$13/1000)*'Interne beregninger - E&PH'!$C33)*(1+'El og plugin hybrid'!M$37/100)^-$B33,('El og plugin hybrid'!M$44)*(1+'El og plugin hybrid'!M$37/100)^-$B33)),0)","v":0},null,{"$f":"IF($B33<='El og plugin hybrid'!O$34,(IF('El og plugin hybrid'!O$44=0,(('El og plugin hybrid'!O$29*'El og plugin hybrid'!O$13/1000)*'Interne beregninger - E&PH'!$C33)*(1+'El og plugin hybrid'!O$37/100)^-$B33,('El og plugin hybrid'!O$44)*(1+'El og plugin hybrid'!O$37/100)^-$B33)),0)","v":0},null,{"$f":"IF($B33<='El og plugin hybrid'!Q$34,(IF('El og plugin hybrid'!Q$44=0,(('El og plugin hybrid'!Q$29*'El og plugin hybrid'!Q$13/1000)*'Interne beregninger - E&PH'!$C33)*(1+'El og plugin hybrid'!Q$37/100)^-$B33,('El og plugin hybrid'!Q$44)*(1+'El og plugin hybrid'!Q$37/100)^-$B33)),0)","v":0},null,{"$f":"IF($B33<='El og plugin hybrid'!S$34,(IF('El og plugin hybrid'!S$44=0,(('El og plugin hybrid'!S$29*'El og plugin hybrid'!S$13/1000)*'Interne beregninger - E&PH'!$C33)*(1+'El og plugin hybrid'!S$37/100)^-$B33,('El og plugin hybrid'!S$44)*(1+'El og plugin hybrid'!S$37/100)^-$B33)),0)","v":0}]
[null,10,{"$f":"C33*(1+'El og plugin hybrid'!$E$36/100)","v":2.4726058772933919},null,{"$f":"IF($B34<='El og plugin hybrid'!E$34,(IF('El og plugin hybrid'!E$44=0,(('El og plugin hybrid'!E$29*'El og plugin hybrid'!E$13/1000)*'Interne beregninger - E&PH'!$C34)*(1+'El og plugin hybrid'!E$37/100)^-$B34,('El og plugin hybrid'!E$44)*(1+'El og plugin hybrid'!E$37/100)^-$B34)),0)","v":0},null,{"$f":"IF($B34<='El og plugin hybrid'!G$34,(IF('El og plugin hybrid'!G$44=0,(('El og plugin hybrid'!G$29*'El og plugin hybrid'!G$13/1000)*'Interne beregninger - E&PH'!$C34)*(1+'El og plugin hybrid'!G$37/100)^-$B34,('El og plugin hybrid'!G$44)*(1+'El og plugin hybrid'!G$37/100)^-$B34)),0)","v":0},null,{"$f":"IF($B34<='El og plugin hybrid'!I$34,(IF('El og plugin hybrid'!I$44=0,(('El og plugin hybrid'!I$29*'El og plugin hybrid'!I$13/1000)*'Interne beregninger - E&PH'!$C34)*(1+'El og plugin hybrid'!I$37/100)^-$B34,('El og plugin hybrid'!I$44)*(1+'El og plugin hybrid'!I$37/100)^-$B34)),0)","v":0},null,{"$f":"IF($B34<='El og plugin hybrid'!K$34,(IF('El og plugin hybrid'!K$44=0,(('El og plugin hybrid'!K$29*'El og plugin hybrid'!K$13/1000)*'Interne beregninger - E&PH'!$C34)*(1+'El og plugin hybrid'!K$37/100)^-$B34,('El og plugin hybrid'!K$44)*(1+'El og plugin hybrid'!K$37/100)^-$B34)),0)","v":0},null,{"$f":"IF($B34<='El og plugin hybrid'!M$34,(IF('El og plugin hybrid'!M$44=0,(('El og plugin hybrid'!M$29*'El og plugin hybrid'!M$13/1000)*'Interne beregninger - E&PH'!$C34)*(1+'El og plugin hybrid'!M$37/100)^-$B34,('El og plugin hybrid'!M$44)*(1+'El og plugin hybrid'!M$37/100)^-$B34)),0)","v":0},null,{"$f":"IF($B34<='El og plugin hybrid'!O$34,(IF('El og plugin hybrid'!O$44=0,(('El og plugin hybrid'!O$29*'El og plugin hybrid'!O$13/1000)*'Interne beregninger - E&PH'!$C34)*(1+'El og plugin hybrid'!O$37/100)^-$B34,('El og plugin hybrid'!O$44)*(1+'El og plugin hybrid'!O$37/100)^-$B34)),0)","v":0},null,{"$f":"IF($B34<='El og plugin hybrid'!Q$34,(IF('El og plugin hybrid'!Q$44=0,(('El og plugin hybrid'!Q$29*'El og plugin hybrid'!Q$13/1000)*'Interne beregninger - E&PH'!$C34)*(1+'El og plugin hybrid'!Q$37/100)^-$B34,('El og plugin hybrid'!Q$44)*(1+'El og plugin hybrid'!Q$37/100)^-$B34)),0)","v":0},null,{"$f":"IF($B34<='El og plugin hybrid'!S$34,(IF('El og plugin hybrid'!S$44=0,(('El og plugin hybrid'!S$29*'El og plugin hybrid'!S$13/1000)*'Interne beregninger - E&PH'!$C34)*(1+'El og plugin hybrid'!S$37/100)^-$B34,('El og plugin hybrid'!S$44)*(1+'El og plugin hybrid'!S$37/100)^-$B34)),0)","v":0}]
[null,11,{"$f":"C34*(1+'El og plugin hybrid'!$E$36/100)","v":2.5139240460380781},null,{"$f":"IF($B35<='El og plugin hybrid'!E$34,(IF('El og plugin hybrid'!E$44=0,(('El og plugin hybrid'!E$29*'El og plugin hybrid'!E$13/1000)*'Interne beregninger - E&PH'!$C35)*(1+'El og plugin hybrid'!E$37/100)^-$B35,('El og plugin hybrid'!E$44)*(1+'El og plugin hybrid'!E$37/100)^-$B35)),0)","v":0},null,{"$f":"IF($B35<='El og plugin hybrid'!G$34,(IF('El og plugin hybrid'!G$44=0,(('El og plugin hybrid'!G$29*'El og plugin hybrid'!G$13/1000)*'Interne beregninger - E&PH'!$C35)*(1+'El og plugin hybrid'!G$37/100)^-$B35,('El og plugin hybrid'!G$44)*(1+'El og plugin hybrid'!G$37/100)^-$B35)),0)","v":0},null,{"$f":"IF($B35<='El og plugin hybrid'!I$34,(IF('El og plugin hybrid'!I$44=0,(('El og plugin hybrid'!I$29*'El og plugin hybrid'!I$13/1000)*'Interne beregninger - E&PH'!$C35)*(1+'El og plugin hybrid'!I$37/100)^-$B35,('El og plugin hybrid'!I$44)*(1+'El og plugin hybrid'!I$37/100)^-$B35)),0)","v":0},null,{"$f":"IF($B35<='El og plugin hybrid'!K$34,(IF('El og plugin hybrid'!K$44=0,(('El og plugin hybrid'!K$29*'El og plugin hybrid'!K$13/1000)*'Interne beregninger - E&PH'!$C35)*(1+'El og plugin hybrid'!K$37/100)^-$B35,('El og plugin hybrid'!K$44)*(1+'El og plugin hybrid'!K$37/100)^-$B35)),0)","v":0},null,{"$f":"IF($B35<='El og plugin hybrid'!M$34,(IF('El og plugin hybrid'!M$44=0,(('El og plugin hybrid'!M$29*'El og plugin hybrid'!M$13/1000)*'Interne beregninger - E&PH'!$C35)*(1+'El og plugin hybrid'!M$37/100)^-$B35,('El og plugin hybrid'!M$44)*(1+'El og plugin hybrid'!M$37/100)^-$B35)),0)","v":0},null,{"$f":"IF($B35<='El og plugin hybrid'!O$34,(IF('El og plugin hybrid'!O$44=0,(('El og plugin hybrid'!O$29*'El og plugin hybrid'!O$13/1000)*'Interne beregninger - E&PH'!$C35)*(1+'El og plugin hybrid'!O$37/100)^-$B35,('El og plugin hybrid'!O$44)*(1+'El og plugin hybrid'!O$37/100)^-$B35)),0)","v":0},null,{"$f":"IF($B35<='El og plugin hybrid'!Q$34,(IF('El og plugin hybrid'!Q$44=0,(('El og plugin hybrid'!Q$29*'El og plugin hybrid'!Q$13/1000)*'Interne beregninger - E&PH'!$C35)*(1+'El og plugin hybrid'!Q$37/100)^-$B35,('El og plugin hybrid'!Q$44)*(1+'El og plugin hybrid'!Q$37/100)^-$B35)),0)","v":0},null,{"$f":"IF($B35<='El og plugin hybrid'!S$34,(IF('El og plugin hybrid'!S$44=0,(('El og plugin hybrid'!S$29*'El og plugin hybrid'!S$13/1000)*'Interne beregninger - E&PH'!$C35)*(1+'El og plugin hybrid'!S$37/100)^-$B35,('El og plugin hybrid'!S$44)*(1+'El og plugin hybrid'!S$37/100)^-$B35)),0)","v":0}]
[null,12,{"$f":"C35*(1+'El og plugin hybrid'!$E$36/100)","v":2.5559326568318155},null,{"$f":"IF($B36<='El og plugin hybrid'!E$34,(IF('El og plugin hybrid'!E$44=0,(('El og plugin hybrid'!E$29*'El og plugin hybrid'!E$13/1000)*'Interne beregninger - E&PH'!$C36)*(1+'El og plugin hybrid'!E$37/100)^-$B36,('El og plugin hybrid'!E$44)*(1+'El og plugin hybrid'!E$37/100)^-$B36)),0)","v":0},null,{"$f":"IF($B36<='El og plugin hybrid'!G$34,(IF('El og plugin hybrid'!G$44=0,(('El og plugin hybrid'!G$29*'El og plugin hybrid'!G$13/1000)*'Interne beregninger - E&PH'!$C36)*(1+'El og plugin hybrid'!G$37/100)^-$B36,('El og plugin hybrid'!G$44)*(1+'El og plugin hybrid'!G$37/100)^-$B36)),0)","v":0},null,{"$f":"IF($B36<='El og plugin hybrid'!I$34,(IF('El og plugin hybrid'!I$44=0,(('El og plugin hybrid'!I$29*'El og plugin hybrid'!I$13/1000)*'Interne beregninger - E&PH'!$C36)*(1+'El og plugin hybrid'!I$37/100)^-$B36,('El og plugin hybrid'!I$44)*(1+'El og plugin hybrid'!I$37/100)^-$B36)),0)","v":0},null,{"$f":"IF($B36<='El og plugin hybrid'!K$34,(IF('El og plugin hybrid'!K$44=0,(('El og plugin hybrid'!K$29*'El og plugin hybrid'!K$13/1000)*'Interne beregninger - E&PH'!$C36)*(1+'El og plugin hybrid'!K$37/100)^-$B36,('El og plugin hybrid'!K$44)*(1+'El og plugin hybrid'!K$37/100)^-$B36)),0)","v":0},null,{"$f":"IF($B36<='El og plugin hybrid'!M$34,(IF('El og plugin hybrid'!M$44=0,(('El og plugin hybrid'!M$29*'El og plugin hybrid'!M$13/1000)*'Interne beregninger - E&PH'!$C36)*(1+'El og plugin hybrid'!M$37/100)^-$B36,('El og plugin hybrid'!M$44)*(1+'El og plugin hybrid'!M$37/100)^-$B36)),0)","v":0},null,{"$f":"IF($B36<='El og plugin hybrid'!O$34,(IF('El og plugin hybrid'!O$44=0,(('El og plugin hybrid'!O$29*'El og plugin hybrid'!O$13/1000)*'Interne beregninger - E&PH'!$C36)*(1+'El og plugin hybrid'!O$37/100)^-$B36,('El og plugin hybrid'!O$44)*(1+'El og plugin hybrid'!O$37/100)^-$B36)),0)","v":0},null,{"$f":"IF($B36<='El og plugin hybrid'!Q$34,(IF('El og plugin hybrid'!Q$44=0,(('El og plugin hybrid'!Q$29*'El og plugin hybrid'!Q$13/1000)*'Interne beregninger - E&PH'!$C36)*(1+'El og plugin hybrid'!Q$37/100)^-$B36,('El og plugin hybrid'!Q$44)*(1+'El og plugin hybrid'!Q$37/100)^-$B36)),0)","v":0},null,{"$f":"IF($B36<='El og plugin hybrid'!S$34,(IF('El og plugin hybrid'!S$44=0,(('El og plugin hybrid'!S$29*'El og plugin hybrid'!S$13/1000)*'Interne beregninger - E&PH'!$C36)*(1+'El og plugin hybrid'!S$37/100)^-$B36,('El og plugin hybrid'!S$44)*(1+'El og plugin hybrid'!S$37/100)^-$B36)),0)","v":0}]
[null,13,{"$f":"C36*(1+'El og plugin hybrid'!$E$36/100)","v":2.5986432472194076},null,{"$f":"IF($B37<='El og plugin hybrid'!E$34,(IF('El og plugin hybrid'!E$44=0,(('El og plugin hybrid'!E$29*'El og plugin hybrid'!E$13/1000)*'Interne beregninger - E&PH'!$C37)*(1+'El og plugin hybrid'!E$37/100)^-$B37,('El og plugin hybrid'!E$44)*(1+'El og plugin hybrid'!E$37/100)^-$B37)),0)","v":0},null,{"$f":"IF($B37<='El og plugin hybrid'!G$34,(IF('El og plugin hybrid'!G$44=0,(('El og plugin hybrid'!G$29*'El og plugin hybrid'!G$13/1000)*'Interne beregninger - E&PH'!$C37)*(1+'El og plugin hybrid'!G$37/100)^-$B37,('El og plugin hybrid'!G$44)*(1+'El og plugin hybrid'!G$37/100)^-$B37)),0)","v":0},null,{"$f":"IF($B37<='El og plugin hybrid'!I$34,(IF('El og plugin hybrid'!I$44=0,(('El og plugin hybrid'!I$29*'El og plugin hybrid'!I$13/1000)*'Interne beregninger - E&PH'!$C37)*(1+'El og plugin hybrid'!I$37/100)^-$B37,('El og plugin hybrid'!I$44)*(1+'El og plugin hybrid'!I$37/100)^-$B37)),0)","v":0},null,{"$f":"IF($B37<='El og plugin hybrid'!K$34,(IF('El og plugin hybrid'!K$44=0,(('El og plugin hybrid'!K$29*'El og plugin hybrid'!K$13/1000)*'Interne beregninger - E&PH'!$C37)*(1+'El og plugin hybrid'!K$37/100)^-$B37,('El og plugin hybrid'!K$44)*(1+'El og plugin hybrid'!K$37/100)^-$B37)),0)","v":0},null,{"$f":"IF($B37<='El og plugin hybrid'!M$34,(IF('El og plugin hybrid'!M$44=0,(('El og plugin hybrid'!M$29*'El og plugin hybrid'!M$13/1000)*'Interne beregninger - E&PH'!$C37)*(1+'El og plugin hybrid'!M$37/100)^-$B37,('El og plugin hybrid'!M$44)*(1+'El og plugin hybrid'!M$37/100)^-$B37)),0)","v":0},null,{"$f":"IF($B37<='El og plugin hybrid'!O$34,(IF('El og plugin hybrid'!O$44=0,(('El og plugin hybrid'!O$29*'El og plugin hybrid'!O$13/1000)*'Interne beregninger - E&PH'!$C37)*(1+'El og plugin hybrid'!O$37/100)^-$B37,('El og plugin hybrid'!O$44)*(1+'El og plugin hybrid'!O$37/100)^-$B37)),0)","v":0},null,{"$f":"IF($B37<='El og plugin hybrid'!Q$34,(IF('El og plugin hybrid'!Q$44=0,(('El og plugin hybrid'!Q$29*'El og plugin hybrid'!Q$13/1000)*'Interne beregninger - E&PH'!$C37)*(1+'El og plugin hybrid'!Q$37/100)^-$B37,('El og plugin hybrid'!Q$44)*(1+'El og plugin hybrid'!Q$37/100)^-$B37)),0)","v":0},null,{"$f":"IF($B37<='El og plugin hybrid'!S$34,(IF('El og plugin hybrid'!S$44=0,(('El og plugin hybrid'!S$29*'El og plugin hybrid'!S$13/1000)*'Interne beregninger - E&PH'!$C37)*(1+'El og plugin hybrid'!S$37/100)^-$B37,('El og plugin hybrid'!S$44)*(1+'El og plugin hybrid'!S$37/100)^-$B37)),0)","v":0}]
[null,14,{"$f":"C37*(1+'El og plugin hybrid'!$E$36/100)","v":2.6420675475423461},null,{"$f":"IF($B38<='El og plugin hybrid'!E$34,(IF('El og plugin hybrid'!E$44=0,(('El og plugin hybrid'!E$29*'El og plugin hybrid'!E$13/1000)*'Interne beregninger - E&PH'!$C38)*(1+'El og plugin hybrid'!E$37/100)^-$B38,('El og plugin hybrid'!E$44)*(1+'El og plugin hybrid'!E$37/100)^-$B38)),0)","v":0},null,{"$f":"IF($B38<='El og plugin hybrid'!G$34,(IF('El og plugin hybrid'!G$44=0,(('El og plugin hybrid'!G$29*'El og plugin hybrid'!G$13/1000)*'Interne beregninger - E&PH'!$C38)*(1+'El og plugin hybrid'!G$37/100)^-$B38,('El og plugin hybrid'!G$44)*(1+'El og plugin hybrid'!G$37/100)^-$B38)),0)","v":0},null,{"$f":"IF($B38<='El og plugin hybrid'!I$34,(IF('El og plugin hybrid'!I$44=0,(('El og plugin hybrid'!I$29*'El og plugin hybrid'!I$13/1000)*'Interne beregninger - E&PH'!$C38)*(1+'El og plugin hybrid'!I$37/100)^-$B38,('El og plugin hybrid'!I$44)*(1+'El og plugin hybrid'!I$37/100)^-$B38)),0)","v":0},null,{"$f":"IF($B38<='El og plugin hybrid'!K$34,(IF('El og plugin hybrid'!K$44=0,(('El og plugin hybrid'!K$29*'El og plugin hybrid'!K$13/1000)*'Interne beregninger - E&PH'!$C38)*(1+'El og plugin hybrid'!K$37/100)^-$B38,('El og plugin hybrid'!K$44)*(1+'El og plugin hybrid'!K$37/100)^-$B38)),0)","v":0},null,{"$f":"IF($B38<='El og plugin hybrid'!M$34,(IF('El og plugin hybrid'!M$44=0,(('El og plugin hybrid'!M$29*'El og plugin hybrid'!M$13/1000)*'Interne beregninger - E&PH'!$C38)*(1+'El og plugin hybrid'!M$37/100)^-$B38,('El og plugin hybrid'!M$44)*(1+'El og plugin hybrid'!M$37/100)^-$B38)),0)","v":0},null,{"$f":"IF($B38<='El og plugin hybrid'!O$34,(IF('El og plugin hybrid'!O$44=0,(('El og plugin hybrid'!O$29*'El og plugin hybrid'!O$13/1000)*'Interne beregninger - E&PH'!$C38)*(1+'El og plugin hybrid'!O$37/100)^-$B38,('El og plugin hybrid'!O$44)*(1+'El og plugin hybrid'!O$37/100)^-$B38)),0)","v":0},null,{"$f":"IF($B38<='El og plugin hybrid'!Q$34,(IF('El og plugin hybrid'!Q$44=0,(('El og plugin hybrid'!Q$29*'El og plugin hybrid'!Q$13/1000)*'Interne beregninger - E&PH'!$C38)*(1+'El og plugin hybrid'!Q$37/100)^-$B38,('El og plugin hybrid'!Q$44)*(1+'El og plugin hybrid'!Q$37/100)^-$B38)),0)","v":0},null,{"$f":"IF($B38<='El og plugin hybrid'!S$34,(IF('El og plugin hybrid'!S$44=0,(('El og plugin hybrid'!S$29*'El og plugin hybrid'!S$13/1000)*'Interne beregninger - E&PH'!$C38)*(1+'El og plugin hybrid'!S$37/100)^-$B38,('El og plugin hybrid'!S$44)*(1+'El og plugin hybrid'!S$37/100)^-$B38)),0)","v":0}]
[null,15,{"$f":"C38*(1+'El og plugin hybrid'!$E$36/100)","v":2.6862174841605144},null,{"$f":"IF($B39<='El og plugin hybrid'!E$34,(IF('El og plugin hybrid'!E$44=0,(('El og plugin hybrid'!E$29*'El og plugin hybrid'!E$13/1000)*'Interne beregninger - E&PH'!$C39)*(1+'El og plugin hybrid'!E$37/100)^-$B39,('El og plugin hybrid'!E$44)*(1+'El og plugin hybrid'!E$37/100)^-$B39)),0)","v":0},null,{"$f":"IF($B39<='El og plugin hybrid'!G$34,(IF('El og plugin hybrid'!G$44=0,(('El og plugin hybrid'!G$29*'El og plugin hybrid'!G$13/1000)*'Interne beregninger - E&PH'!$C39)*(1+'El og plugin hybrid'!G$37/100)^-$B39,('El og plugin hybrid'!G$44)*(1+'El og plugin hybrid'!G$37/100)^-$B39)),0)","v":0},null,{"$f":"IF($B39<='El og plugin hybrid'!I$34,(IF('El og plugin hybrid'!I$44=0,(('El og plugin hybrid'!I$29*'El og plugin hybrid'!I$13/1000)*'Interne beregninger - E&PH'!$C39)*(1+'El og plugin hybrid'!I$37/100)^-$B39,('El og plugin hybrid'!I$44)*(1+'El og plugin hybrid'!I$37/100)^-$B39)),0)","v":0},null,{"$f":"IF($B39<='El og plugin hybrid'!K$34,(IF('El og plugin hybrid'!K$44=0,(('El og plugin hybrid'!K$29*'El og plugin hybrid'!K$13/1000)*'Interne beregninger - E&PH'!$C39)*(1+'El og plugin hybrid'!K$37/100)^-$B39,('El og plugin hybrid'!K$44)*(1+'El og plugin hybrid'!K$37/100)^-$B39)),0)","v":0},null,{"$f":"IF($B39<='El og plugin hybrid'!M$34,(IF('El og plugin hybrid'!M$44=0,(('El og plugin hybrid'!M$29*'El og plugin hybrid'!M$13/1000)*'Interne beregninger - E&PH'!$C39)*(1+'El og plugin hybrid'!M$37/100)^-$B39,('El og plugin hybrid'!M$44)*(1+'El og plugin hybrid'!M$37/100)^-$B39)),0)","v":0},null,{"$f":"IF($B39<='El og plugin hybrid'!O$34,(IF('El og plugin hybrid'!O$44=0,(('El og plugin hybrid'!O$29*'El og plugin hybrid'!O$13/1000)*'Interne beregninger - E&PH'!$C39)*(1+'El og plugin hybrid'!O$37/100)^-$B39,('El og plugin hybrid'!O$44)*(1+'El og plugin hybrid'!O$37/100)^-$B39)),0)","v":0},null,{"$f":"IF($B39<='El og plugin hybrid'!Q$34,(IF('El og plugin hybrid'!Q$44=0,(('El og plugin hybrid'!Q$29*'El og plugin hybrid'!Q$13/1000)*'Interne beregninger - E&PH'!$C39)*(1+'El og plugin hybrid'!Q$37/100)^-$B39,('El og plugin hybrid'!Q$44)*(1+'El og plugin hybrid'!Q$37/100)^-$B39)),0)","v":0},null,{"$f":"IF($B39<='El og plugin hybrid'!S$34,(IF('El og plugin hybrid'!S$44=0,(('El og plugin hybrid'!S$29*'El og plugin hybrid'!S$13/1000)*'Interne beregninger - E&PH'!$C39)*(1+'El og plugin hybrid'!S$37/100)^-$B39,('El og plugin hybrid'!S$44)*(1+'El og plugin hybrid'!S$37/100)^-$B39)),0)","v":0}]
[]
["Driftsomkostninger plugin hybrid"]
[null,"År indeks","Benzinpris","Dieselpris",{"$f":"'El og plugin hybrid'!E8","v":"PRODUKT 1 EL"},"Valgt pris 1",{"$f":"'El og plugin hybrid'!G8","v":"PRODUKT 2 EL"},"Valgt pris 2",{"$f":"'El og plugin hybrid'!I8","v":"PRODUKT 3 EL"},"Valgt pris 3",{"$f":"'El og plugin hybrid'!K8","v":"PRODUKT 4 EL"},"Valgt pris 4",{"$f":"'El og plugin hybrid'!M8","v":"PRODUKT 5 EL"},"Valgt pris 5",{"$f":"'El og plugin hybrid'!O8","v":"PRODUKT 6 EL"},"Valgt pris 6",{"$f":"'El og plugin hybrid'!Q8","v":"PRODUKT 7 EL"},"Valgt pris 7",{"$f":"'El og plugin hybrid'!S8","v":"PRODUKT 8 EL"},"Valgt pris 8"]
[null,1,{"$f":"'El og plugin hybrid'!E56","v":12.33},{"$f":"+'El og plugin hybrid'!E57","v":10.83},{"$f":"(IF('El og plugin hybrid'!E$23=0,0,(IF($B43<='El og plugin hybrid'!E$34,(('El og plugin hybrid'!E$29/'El og plugin hybrid'!E$23)*F43),0))*(1+'El og plugin hybrid'!E$37/100)^-$B43))","v":0},{"$f":"IF('El og plugin hybrid'!E$51=\"El og benzin\",$C43,IF('El og plugin hybrid'!E$51=\"El og diesel\",$D43,IF('El og plugin hybrid'!E$51=\"El\",0,\"Brændstof ikke valgt\")))","v":"Brændstof ikke valgt"},{"$f":"(IF('El og plugin hybrid'!G$23=0,0,(IF($B43<='El og plugin hybrid'!G$34,(('El og plugin hybrid'!G$29/'El og plugin hybrid'!G$23)*H43),0))*(1+'El og plugin hybrid'!G$37/100)^-$B43))","v":0},{"$f":"IF('El og plugin hybrid'!G$51=\"El og benzin\",$C43,IF('El og plugin hybrid'!G$51=\"El og diesel\",$D43,IF('El og plugin hybrid'!G$51=\"El\",0,\"Brændstof ikke valgt\")))","v":"Brændstof ikke valgt"},{"$f":"(IF('El og plugin hybrid'!I$23=0,0,(IF($B43<='El og plugin hybrid'!I$34,(('El og plugin hybrid'!I$29/'El og plugin hybrid'!I$23)*J43),0))*(1+'El og plugin hybrid'!I$37/100)^-$B43))","v":0},{"$f":"IF('El og plugin hybrid'!I$51=\"El og benzin\",$C43,IF('El og plugin hybrid'!I$51=\"El og diesel\",$D43,IF('El og plugin hybrid'!I$51=\"El\",0,\"Brændstof ikke valgt\")))","v":"Brændstof ikke valgt"},{"$f":"(IF('El og plugin hybrid'!K$23=0,0,(IF($B43<='El og plugin hybrid'!K$34,(('El og plugin hybrid'!K$29/'El og plugin hybrid'!K$23)*L43),0))*(1+'El og plugin hybrid'!K$37/100)^-$B43))","v":0},{"$f":"IF('El og plugin hybrid'!K$51=\"El og benzin\",$C43,IF('El og plugin hybrid'!K$51=\"El og diesel\",$D43,IF('El og plugin hybrid'!K$51=\"El\",0,\"Brændstof ikke valgt\")))","v":"Brændstof ikke valgt"},{"$f":"(IF('El og plugin hybrid'!M$23=0,0,(IF($B43<='El og plugin hybrid'!M$34,(('El og plugin hybrid'!M$29/'El og plugin hybrid'!M$23)*N43),0))*(1+'El og plugin hybrid'!M$37/100)^-$B43))","v":0},{"$f":"IF('El og plugin hybrid'!M$51=\"El og benzin\",$C43,IF('El og plugin hybrid'!M$51=\"El og diesel\",$D43,IF('El og plugin hybrid'!M$51=\"El\",0,\"Brændstof ikke valgt\")))","v":"Brændstof ikke valgt"},{"$f":"(IF('El og plugin hybrid'!O$23=0,0,(IF($B43<='El og plugin hybrid'!O$34,(('El og plugin hybrid'!O$29/'El og plugin hybrid'!O$23)*P43),0))*(1+'El og plugin hybrid'!O$37/100)^-$B43))","v":0},{"$f":"IF('El og plugin hybrid'!O$51=\"El og benzin\",$C43,IF('El og plugin hybrid'!O$51=\"El og diesel\",$D43,IF('El og plugin hybrid'!O$51=\"El\",0,\"Brændstof ikke valgt\")))","v":"Brændstof ikke valgt"},{"$f":"(IF('El og plugin hybrid'!Q$23=0,0,(IF($B43<='El og plugin hybrid'!Q$34,(('El og plugin hybrid'!Q$29/'El og plugin hybrid'!Q$23)*R43),0))*(1+'El og plugin hybrid'!Q$37/100)^-$B43))","v":0},{"$f":"IF('El og plugin hybrid'!Q$51=\"El og benzin\",$C43,IF('El og plugin hybrid'!Q$51=\"El og diesel\",$D43,IF('El og plugin hybrid'!Q$51=\"El\",0,\"Brændstof ikke valgt\")))","v":"Brændstof ikke valgt"},{"$f":"(IF('El og plugin hybrid'!S$23=0,0,(IF($B43<='El og plugin hybrid'!S$34,(('El og plugin hybrid'!S$29/'El og plugin hybrid'!S$23)*T43),0))*(1+'El og plugin hybrid'!S$37/100)^-$B43))","v":0},{"$f":"IF('El og plugin hybrid'!S$51=\"El og benzin\",$C43,IF('El og plugin hybrid'!S$51=\"El og diesel\",$D43,IF('El og plugin hybrid'!S$51=\"El\",0,\"Brændstof ikke valgt\")))","v":"Brændstof ikke valgt"}]
[null,2,{"$f":"C43*(1+'El og plugin hybrid'!$E$58/100)","v":12.500776181145552},{"$f":"D43*(1+'El og plugin hybrid'!$E$59/100)","v":10.986789442728005},{"$f":"(IF('El og plugin hybrid'!E$23=0,0,(IF($B44<='El og plugin hybrid'!E$34,(('El og plugin hybrid'!E$29/'El og plugin hybrid'!E$23)*F44),0))*(1+'El og plugin hybrid'!E$37/100)^-$B44))","v":0},{"$f":"IF('El og plugin hybrid'!E$51=\"El og benzin\",$C44,IF('El og plugin hybrid'!E$51=\"El og diesel\",$D44,IF('El og plugin hybrid'!E$51=\"El\",0,\"Brændstof ikke valgt\")))","v":"Brændstof ikke valgt"},{"$f":"(IF('El og plugin hybrid'!G$23=0,0,(IF($B44<='El og plugin hybrid'!G$34,(('El og plugin hybrid'!G$29/'El og plugin hybrid'!G$23)*H44),0))*(1+'El og plugin hybrid'!G$37/100)^-$B44))","v":0},{"$f":"IF('El og plugin hybrid'!G$51=\"El og benzin\",$C44,IF('El og plugin hybrid'!G$51=\"El og diesel\",$D44,IF('El og plugin hybrid'!G$51=\"El\",0,\"Brændstof ikke valgt\")))","v":"Brændstof ikke valgt"},{"$f":"(IF('El og plugin hybrid'!I$23=0,0,(IF($B44<='El og plugin hybrid'!I$34,(('El og plugin hybrid'!I$29/'El og plugin hybrid'!I$23)*J44),0))*(1+'El og plugin hybrid'!I$37/100)^-$B44))","v":0},{"$f":"IF('El og plugin hybrid'!I$51=\"El og benzin\",$C44,IF('El og plugin hybrid'!I$51=\"El og diesel\",$D44,IF('El og plugin hybrid'!I$51=\"El\",0,\"Brændstof ikke valgt\")))","v":"Brændstof ikke valgt"},{"$f":"(IF('El og plugin hybrid'!K$23=0,0,(IF($B44<='El og plugin hybrid'!K$34,(('El og plugin hybrid'!K$29/'El og plugin hybrid'!K$23)*L44),0))*(1+'El og plugin hybrid'!K$37/100)^-$B44))","v":0},{"$f":"IF('El og plugin hybrid'!K$51=\"El og benzin\",$C44,IF('El og plugin hybrid'!K$51=\"El og diesel\",$D44,IF('El og plugin hybrid'!K$51=\"El\",0,\"Brændstof ikke valgt\")))","v":"Brændstof ikke valgt"},{"$f":"(IF('El og plugin hybrid'!M$23=0,0,(IF($B44<='El og plugin hybrid'!M$34,(('El og plugin hybrid'!M$29/'El og plugin hybrid'!M$23)*N44),0))*(1+'El og plugin hybrid'!M$37/100)^-$B44))","v":0},{"$f":"IF('El og plugin hybrid'!M$51=\"El og benzin\",$C44,IF('El og plugin hybrid'!M$51=\"El og diesel\",$D44,IF('El og plugin hybrid'!M$51=\"El\",0,\"Brændstof ikke valgt\")))","v":"Brændstof ikke valgt"},{"$f":"(IF('El og plugin hybrid'!O$23=0,0,(IF($B44<='El og plugin hybrid'!O$34,(('El og plugin hybrid'!O$29/'El og plugin hybrid'!O$23)*P44),0))*(1+'El og plugin hybrid'!O$37/100)^-$B44))","v":0},{"$f":"IF('El og plugin hybrid'!O$51=\"El og benzin\",$C44,IF('El og plugin hybrid'!O$51=\"El og diesel\",$D44,IF('El og plugin hybrid'!O$51=\"El\",0,\"Brændstof ikke valgt\")))","v":"Brændstof ikke valgt"},{"$f":"(IF('El og plugin hybrid'!Q$23=0,0,(IF($B44<='El og plugin hybrid'!Q$34,(('El og plugin hybrid'!Q$29/'El og plugin hybrid'!Q$23)*R44),0))*(1+'El og plugin hybrid'!Q$37/100)^-$B44))","v":0},{"$f":"IF('El og plugin hybrid'!Q$51=\"El og benzin\",$C44,IF('El og plugin hybrid'!Q$51=\"El og diesel\",$D44,IF('El og plugin hybrid'!Q$51=\"El\",0,\"Brændstof ikke valgt\")))","v":"Brændstof ikke valgt"},{"$f":"(IF('El og plugin hybrid'!S$23=0,0,(IF($B44<='El og plugin hybrid'!S$34,(('El og plugin hybrid'!S$29/'El og plugin hybrid'!S$23)*T44),0))*(1+'El og plugin hybrid'!S$37/100)^-$B44))","v":0},{"$f":"IF('El og plugin hybrid'!S$51=\"El og benzin\",$C44,IF('El og plugin hybrid'!S$51=\"El og diesel\",$D44,IF('El og plugin hybrid'!S$51=\"El\",0,\"Brændstof ikke valgt\")))","v":"Brændstof ikke valgt"}]
[null,3,{"$f":"C44*(1+'El og plugin hybrid'!$E$58/100)","v":12.673917691086455},{"$f":"D44*(1+'El og plugin hybrid'!$E$59/100)","v":11.14584877736284},{"$f":"(IF('El og plugin hybrid'!E$23=0,0,(IF($B45<='El og plugin hybrid'!E$34,(('El og plugin hybrid'!E$29/'El og plugin hybrid'!E$23)*F45),0))*(1+'El og plugin hybrid'!E$37/100)^-$B45))","v":0},{"$f":"IF('El og plugin hybrid'!E$51=\"El og benzin\",$C45,IF('El og plugin hybrid'!E$51=\"El og diesel\",$D45,IF('El og plugin hybrid'!E$51=\"El\",0,\"Brændstof ikke valgt\")))","v":"Brændstof ikke valgt"},{"$f":"(IF('El og plugin hybrid'!G$23=0,0,(IF($B45<='El og plugin hybrid'!G$34,(('El og plugin hybrid'!G$29/'El og plugin hybrid'!G$23)*H45),0))*(1+'El og plugin hybrid'!G$37/100)^-$B45))","v":0},{"$f":"IF('El og plugin hybrid'!G$51=\"El og benzin\",$C45,IF('El og plugin hybrid'!G$51=\"El og diesel\",$D45,IF('El og plugin hybrid'!G$51=\"El\",0,\"Brændstof ikke valgt\")))","v":"Brændstof ikke valgt"},{"$f":"(IF('El og plugin hybrid'!I$23=0,0,(IF($B45<='El og plugin hybrid'!I$34,(('El og plugin hybrid'!I$29/'El og plugin hybrid'!I$23)*J45),0))*(1+'El og plugin hybrid'!I$37/100)^-$B45))","v":0},{"$f":"IF('El og plugin hybrid'!I$51=\"El og benzin\",$C45,IF('El og plugin hybrid'!I$51=\"El og diesel\",$D45,IF('El og plugin hybrid'!I$51=\"El\",0,\"Brændstof ikke valgt\")))","v":"Brændstof ikke valgt"},{"$f":"(IF('El og plugin hybrid'!K$23=0,0,(IF($B45<='El og plugin hybrid'!K$34,(('El og plugin hybrid'!K$29/'El og plugin hybrid'!K$23)*L45),0))*(1+'El og plugin hybrid'!K$37/100)^-$B45))","v":0},{"$f":"IF('El og plugin hybrid'!K$51=\"El og benzin\",$C45,IF('El og plugin hybrid'!K$51=\"El og diesel\",$D45,IF('El og plugin hybrid'!K$51=\"El\",0,\"Brændstof ikke valgt\")))","v":"Brændstof ikke valgt"},{"$f":"(IF('El og plugin hybrid'!M$23=0,0,(IF($B45<='El og plugin hybrid'!M$34,(('El og plugin hybrid'!M$29/'El og plugin hybrid'!M$23)*N45),0))*(1+'El og plugin hybrid'!M$37/100)^-$B45))","v":0},{"$f":"IF('El og plugin hybrid'!M$51=\"El og benzin\",$C45,IF('El og plugin hybrid'!M$51=\"El og diesel\",$D45,IF('El og plugin hybrid'!M$51=\"El\",0,\"Brændstof ikke valgt\")))","v":"Brændstof ikke valgt"},{"$f":"(IF('El og plugin hybrid'!O$23=0,0,(IF($B45<='El og plugin hybrid'!O$34,(('El og plugin hybrid'!O$29/'El og plugin hybrid'!O$23)*P45),0))*(1+'El og plugin hybrid'!O$37/100)^-$B45))","v":0},{"$f":"IF('El og plugin hybrid'!O$51=\"El og benzin\",$C45,IF('El og plugin hybrid'!O$51=\"El og diesel\",$D45,IF('El og plugin hybrid'!O$51=\"El\",0,\"Brændstof ikke valgt\")))","v":"Brændstof ikke valgt"},{"$f":"(IF('El og plugin hybrid'!Q$23=0,0,(IF($B45<='El og plugin hybrid'!Q$34,(('El og plugin hybrid'!Q$29/'El og plugin hybrid'!Q$23)*R45),0))*(1+'El og plugin hybrid'!Q$37/100)^-$B45))","v":0},{"$f":"IF('El og plugin hybrid'!Q$51=\"El og benzin\",$C45,IF('El og plugin hybrid'!Q$51=\"El og diesel\",$D45,IF('El og plugin hybrid'!Q$51=\"El\",0,\"Brændstof ikke valgt\")))","v":"Brændstof ikke valgt"},{"$f":"(IF('El og plugin hybrid'!S$23=0,0,(IF($B45<='El og plugin hybrid'!S$34,(('El og plugin hybrid'!S$29/'El og plugin hybrid'!S$23)*T45),0))*(1+'El og plugin hybrid'!S$37/100)^-$B45))","v":0},{"$f":"IF('El og plugin hybrid'!S$51=\"El og benzin\",$C45,IF('El og plugin hybrid'!S$51=\"El og diesel\",$D45,IF('El og plugin hybrid'!S$51=\"El\",0,\"Brændstof ikke valgt\")))","v":"Brændstof ikke valgt"}]
[null,4,{"$f":"C45*(1+'El og plugin hybrid'!$E$58/100)","v":12.849457290716366},{"$f":"D45*(1+'El og plugin hybrid'!$E$59/100)","v":11.307210865870074},{"$f":"(IF('El og plugin hybrid'!E$23=0,0,(IF($B46<='El og plugin hybrid'!E$34,(('El og plugin hybrid'!E$29/'El og plugin hybrid'!E$23)*F46),0))*(1+'El og plugin hybrid'!E$37/100)^-$B46))","v":0},{"$f":"IF('El og plugin hybrid'!E$51=\"El og benzin\",$C46,IF('El og plugin hybrid'!E$51=\"El og diesel\",$D46,IF('El og plugin hybrid'!E$51=\"El\",0,\"Brændstof ikke valgt\")))","v":"Brændstof ikke valgt"},{"$f":"(IF('El og plugin hybrid'!G$23=0,0,(IF($B46<='El og plugin hybrid'!G$34,(('El og plugin hybrid'!G$29/'El og plugin hybrid'!G$23)*H46),0))*(1+'El og plugin hybrid'!G$37/100)^-$B46))","v":0},{"$f":"IF('El og plugin hybrid'!G$51=\"El og benzin\",$C46,IF('El og plugin hybrid'!G$51=\"El og diesel\",$D46,IF('El og plugin hybrid'!G$51=\"El\",0,\"Brændstof ikke valgt\")))","v":"Brændstof ikke valgt"},{"$f":"(IF('El og plugin hybrid'!I$23=0,0,(IF($B46<='El og plugin hybrid'!I$34,(('El og plugin hybrid'!I$29/'El og plugin hybrid'!I$23)*J46),0))*(1+'El og plugin hybrid'!I$37/100)^-$B46))","v":0},{"$f":"IF('El og plugin hybrid'!I$51=\"El og benzin\",$C46,IF('El og plugin hybrid'!I$51=\"El og diesel\",$D46,IF('El og plugin hybrid'!I$51=\"El\",0,\"Brændstof ikke valgt\")))","v":"Brændstof ikke valgt"},{"$f":"(IF('El og plugin hybrid'!K$23=0,0,(IF($B46<='El og plugin hybrid'!K$34,(('El og plugin hybrid'!K$29/'El og plugin hybrid'!K$23)*L46),0))*(1+'El og plugin hybrid'!K$37/100)^-$B46))","v":0},{"$f":"IF('El og plugin hybrid'!K$51=\"El og benzin\",$C46,IF('El og plugin hybrid'!K$51=\"El og diesel\",$D46,IF('El og plugin hybrid'!K$51=\"El\",0,\"Brændstof ikke valgt\")))","v":"Brændstof ikke valgt"},{"$f":"(IF('El og plugin hybrid'!M$23=0,0,(IF($B46<='El og plugin hybrid'!M$34,(('El og plugin hybrid'!M$29/'El og plugin hybrid'!M$23)*N46),0))*(1+'El og plugin hybrid'!M$37/100)^-$B46))","v":0},{"$f":"IF('El og plugin hybrid'!M$51=\"El og benzin\",$C46,IF('El og plugin hybrid'!M$51=\"El og diesel\",$D46,IF('El og plugin hybrid'!M$51=\"El\",0,\"Brændstof ikke valgt\")))","v":"Brændstof ikke valgt"},{"$f":"(IF('El og plugin hybrid'!O$23=0,0,(IF($B46<='El og plugin hybrid'!O$34,(('El og plugin hybrid'!O$29/'El og plugin hybrid'!O$23)*P46),0))*(1+'El og plugin hybrid'!O$37/100)^-$B46))","v":0},{"$f":"IF('El og plugin hybrid'!O$51=\"El og benzin\",$C46,IF('El og plugin hybrid'!O$51=\"El og diesel\",$D46,IF('El og plugin hybrid'!O$51=\"El\",0,\"Brændstof ikke valgt\")))","v":"Brændstof ikke valgt"},{"$f":"(IF('El og plugin hybrid'!Q$23=0,0,(IF($B46<='El og plugin hybrid'!Q$34,(('El og plugin hybrid'!Q$29/'El og plugin hybrid'!Q$23)*R46),0))*(1+'El og plugin hybrid'!Q$37/100)^-$B46))","v":0},{"$f":"IF('El og plugin hybrid'!Q$51=\"El og benzin\",$C46,IF('El og plugin hybrid'!Q$51=\"El og diesel\",$D46,IF('El og plugin hybrid'!Q$51=\"El\",0,\"Brændstof ikke valgt\")))","v":"Brændstof ikke valgt"},{"$f":"(IF('El og plugin hybrid'!S$23=0,0,(IF($B46<='El og plugin hybrid'!S$34,(('El og plugin hybrid'!S$29/'El og plugin hybrid'!S$23)*T46),0))*(1+'El og plugin hybrid'!S$37/100)^-$B46))","v":0},{"$f":"IF('El og plugin hybrid'!S$51=\"El og benzin\",$C46,IF('El og plugin hybrid'!S$51=\"El og diesel\",$D46,IF('El og plugin hybrid'!S$51=\"El\",0,\"Brændstof ikke valgt\")))","v":"Brændstof ikke valgt"}]
[null,5,{"$f":"C46*(1+'El og plugin hybrid'!$E$58/100)","v":13.027428194682418},{"$f":"D46*(1+'El og plugin hybrid'!$E$59/100)","v":11.470909045968671},{"$f":"(IF('El og plugin hybrid'!E$23=0,0,(IF($B47<='El og plugin hybrid'!E$34,(('El og plugin hybrid'!E$29/'El og plugin hybrid'!E$23)*F47),0))*(1+'El og plugin hybrid'!E$37/100)^-$B47))","v":0},{"$f":"IF('El og plugin hybrid'!E$51=\"El og benzin\",$C47,IF('El og plugin hybrid'!E$51=\"El og diesel\",$D47,IF('El og plugin hybrid'!E$51=\"El\",0,\"Brændstof ikke valgt\")))","v":"Brændstof ikke valgt"},{"$f":"(IF('El og plugin hybrid'!G$23=0,0,(IF($B47<='El og plugin hybrid'!G$34,(('El og plugin hybrid'!G$29/'El og plugin hybrid'!G$23)*H47),0))*(1+'El og plugin hybrid'!G$37/100)^-$B47))","v":0},{"$f":"IF('El og plugin hybrid'!G$51=\"El og benzin\",$C47,IF('El og plugin hybrid'!G$51=\"El og diesel\",$D47,IF('El og plugin hybrid'!G$51=\"El\",0,\"Brændstof ikke valgt\")))","v":"Brændstof ikke valgt"},{"$f":"(IF('El og plugin hybrid'!I$23=0,0,(IF($B47<='El og plugin hybrid'!I$34,(('El og plugin hybrid'!I$29/'El og plugin hybrid'!I$23)*J47),0))*(1+'El og plugin hybrid'!I$37/100)^-$B47))","v":0},{"$f":"IF('El og plugin hybrid'!I$51=\"El og benzin\",$C47,IF('El og plugin hybrid'!I$51=\"El og diesel\",$D47,IF('El og plugin hybrid'!I$51=\"El\",0,\"Brændstof ikke valgt\")))","v":"Brændstof ikke valgt"},{"$f":"(IF('El og plugin hybrid'!K$23=0,0,(IF($B47<='El og plugin hybrid'!K$34,(('El og plugin hybrid'!K$29/'El og plugin hybrid'!K$23)*L47),0))*(1+'El og plugin hybrid'!K$37/100)^-$B47))","v":0},{"$f":"IF('El og plugin hybrid'!K$51=\"El og benzin\",$C47,IF('El og plugin hybrid'!K$51=\"El og diesel\",$D47,IF('El og plugin hybrid'!K$51=\"El\",0,\"Brændstof ikke valgt\")))","v":"Brændstof ikke valgt"},{"$f":"(IF('El og plugin hybrid'!M$23=0,0,(IF($B47<='El og plugin hybrid'!M$34,(('El og plugin hybrid'!M$29/'El og plugin hybrid'!M$23)*N47),0))*(1+'El og plugin hybrid'!M$37/100)^-$B47))","v":0},{"$f":"IF('El og plugin hybrid'!M$51=\"El og benzin\",$C47,IF('El og plugin hybrid'!M$51=\"El og diesel\",$D47,IF('El og plugin hybrid'!M$51=\"El\",0,\"Brændstof ikke valgt\")))","v":"Brændstof ikke valgt"},{"$f":"(IF('El og plugin hybrid'!O$23=0,0,(IF($B47<='El og plugin hybrid'!O$34,(('El og plugin hybrid'!O$29/'El og plugin hybrid'!O$23)*P47),0))*(1+'El og plugin hybrid'!O$37/100)^-$B47))","v":0},{"$f":"IF('El og plugin hybrid'!O$51=\"El og benzin\",$C47,IF('El og plugin hybrid'!O$51=\"El og diesel\",$D47,IF('El og plugin hybrid'!O$51=\"El\",0,\"Brændstof ikke valgt\")))","v":"Brændstof ikke valgt"},{"$f":"(IF('El og plugin hybrid'!Q$23=0,0,(IF($B47<='El og plugin hybrid'!Q$34,(('El og plugin hybrid'!Q$29/'El og plugin hybrid'!Q$23)*R47),0))*(1+'El og plugin hybrid'!Q$37/100)^-$B47))","v":0},{"$f":"IF('El og plugin hybrid'!Q$51=\"El og benzin\",$C47,IF('El og plugin hybrid'!Q$51=\"El og diesel\",$D47,IF('El og plugin hybrid'!Q$51=\"El\",0,\"Brændstof ikke valgt\")))","v":"Brændstof ikke valgt"},{"$f":"(IF('El og plugin hybrid'!S$23=0,0,(IF($B47<='El og plugin hybrid'!S$34,(('El og plugin hybrid'!S$29/'El og plugin hybrid'!S$23)*T47),0))*(1+'El og plugin hybrid'!S$37/100)^-$B47))","v":0},{"$f":"IF('El og plugin hybrid'!S$51=\"El og benzin\",$C47,IF('El og plugin hybrid'!S$51=\"El og diesel\",$D47,IF('El og plugin hybrid'!S$51=\"El\",0,\"Brændstof ikke valgt\")))","v":"Brændstof ikke valgt"}]
[null,6,{"$f":"C47*(1+'El og plugin hybrid'!$E$58/100)","v":13.207864077669909},{"$f":"D47*(1+'El og plugin hybrid'!$E$59/100)","v":11.636977138018631},{"$f":"(IF('El og plugin hybrid'!E$23=0,0,(IF($B48<='El og plugin hybrid'!E$34,(('El og plugin hybrid'!E$29/'El og plugin hybrid'!E$23)*F48),0))*(1+'El og plugin hybrid'!E$37/100)^-$B48))","v":0},{"$f":"IF('El og plugin hybrid'!E$51=\"El og benzin\",$C48,IF('El og plugin hybrid'!E$51=\"El og diesel\",$D48,IF('El og plugin hybrid'!E$51=\"El\",0,\"Brændstof ikke valgt\")))","v":"Brændstof ikke valgt"},{"$f":"(IF('El og plugin hybrid'!G$23=0,0,(IF($B48<='El og plugin hybrid'!G$34,(('El og plugin hybrid'!G$29/'El og plugin hybrid'!G$23)*H48),0))*(1+'El og plugin hybrid'!G$37/100)^-$B48))","v":0},{"$f":"IF('El og plugin hybrid'!G$51=\"El og benzin\",$C48,IF('El og plugin hybrid'!G$51=\"El og diesel\",$D48,IF('El og plugin hybrid'!G$51=\"El\",0,\"Brændstof ikke valgt\")))","v":"Brændstof ikke valgt"},{"$f":"(IF('El og plugin hybrid'!I$23=0,0,(IF($B48<='El og plugin hybrid'!I$34,(('El og plugin hybrid'!I$29/'El og plugin hybrid'!I$23)*J48),0))*(1+'El og plugin hybrid'!I$37/100)^-$B48))","v":0},{"$f":"IF('El og plugin hybrid'!I$51=\"El og benzin\",$C48,IF('El og plugin hybrid'!I$51=\"El og diesel\",$D48,IF('El og plugin hybrid'!I$51=\"El\",0,\"Brændstof ikke valgt\")))","v":"Brændstof ikke valgt"},{"$f":"(IF('El og plugin hybrid'!K$23=0,0,(IF($B48<='El og plugin hybrid'!K$34,(('El og plugin hybrid'!K$29/'El og plugin hybrid'!K$23)*L48),0))*(1+'El og plugin hybrid'!K$37/100)^-$B48))","v":0},{"$f":"IF('El og plugin hybrid'!K$51=\"El og benzin\",$C48,IF('El og plugin hybrid'!K$51=\"El og diesel\",$D48,IF('El og plugin hybrid'!K$51=\"El\",0,\"Brændstof ikke valgt\")))","v":"Brændstof ikke valgt"},{"$f":"(IF('El og plugin hybrid'!M$23=0,0,(IF($B48<='El og plugin hybrid'!M$34,(('El og plugin hybrid'!M$29/'El og plugin hybrid'!M$23)*N48),0))*(1+'El og plugin hybrid'!M$37/100)^-$B48))","v":0},{"$f":"IF('El og plugin hybrid'!M$51=\"El og benzin\",$C48,IF('El og plugin hybrid'!M$51=\"El og diesel\",$D48,IF('El og plugin hybrid'!M$51=\"El\",0,\"Brændstof ikke valgt\")))","v":"Brændstof ikke valgt"},{"$f":"(IF('El og plugin hybrid'!O$23=0,0,(IF($B48<='El og plugin hybrid'!O$34,(('El og plugin hybrid'!O$29/'El og plugin hybrid'!O$23)*P48),0))*(1+'El og plugin hybrid'!O$37/100)^-$B48))","v":0},{"$f":"IF('El og plugin hybrid'!O$51=\"El og benzin\",$C48,IF('El og plugin hybrid'!O$51=\"El og diesel\",$D48,IF('El og plugin hybrid'!O$51=\"El\",0,\"Brændstof ikke valgt\")))","v":"Brændstof ikke valgt"},{"$f":"(IF('El og plugin hybrid'!Q$23=0,0,(IF($B48<='El og plugin hybrid'!Q$34,(('El og plugin hybrid'!Q$29/'El og plugin hybrid'!Q$23)*R48),0))*(1+'El og plugin hybrid'!Q$37/100)^-$B48))","v":0},{"$f":"IF('El og plugin hybrid'!Q$51=\"El og benzin\",$C48,IF('El og plugin hybrid'!Q$51=\"El og diesel\",$D48,IF('El og plugin hybrid'!Q$51=\"El\",0,\"Brændstof ikke valgt\")))","v":"Brændstof ikke valgt"},{"$f":"(IF('El og plugin hybrid'!S$23=0,0,(IF($B48<='El og plugin hybrid'!S$34,(('El og plugin hybrid'!S$29/'El og plugin hybrid'!S$23)*T48),0))*(1+'El og plugin hybrid'!S$37/100)^-$B48))","v":0},{"$f":"IF('El og plugin hybrid'!S$51=\"El og benzin\",$C48,IF('El og plugin hybrid'!S$51=\"El og diesel\",$D48,IF('El og plugin hybrid'!S$51=\"El\",0,\"Brændstof ikke valgt\")))","v":"Brændstof ikke valgt"}]
[null,7,{"$f":"C48*(1+'El og plugin hybrid'!$E$58/100)","v":13.390799080774045},{"$f":"D48*(1+'El og plugin hybrid'!$E$59/100)","v":11.805449452008334},{"$f":"(IF('El og plugin hybrid'!E$23=0,0,(IF($B49<='El og plugin hybrid'!E$34,(('El og plugin hybrid'!E$29/'El og plugin hybrid'!E$23)*F49),0))*(1+'El og plugin hybrid'!E$37/100)^-$B49))","v":0},{"$f":"IF('El og plugin hybrid'!E$51=\"El og benzin\",$C49,IF('El og plugin hybrid'!E$51=\"El og diesel\",$D49,IF('El og plugin hybrid'!E$51=\"El\",0,\"Brændstof ikke valgt\")))","v":"Brændstof ikke valgt"},{"$f":"(IF('El og plugin hybrid'!G$23=0,0,(IF($B49<='El og plugin hybrid'!G$34,(('El og plugin hybrid'!G$29/'El og plugin hybrid'!G$23)*H49),0))*(1+'El og plugin hybrid'!G$37/100)^-$B49))","v":0},{"$f":"IF('El og plugin hybrid'!G$51=\"El og benzin\",$C49,IF('El og plugin hybrid'!G$51=\"El og diesel\",$D49,IF('El og plugin hybrid'!G$51=\"El\",0,\"Brændstof ikke valgt\")))","v":"Brændstof ikke valgt"},{"$f":"(IF('El og plugin hybrid'!I$23=0,0,(IF($B49<='El og plugin hybrid'!I$34,(('El og plugin hybrid'!I$29/'El og plugin hybrid'!I$23)*J49),0))*(1+'El og plugin hybrid'!I$37/100)^-$B49))","v":0},{"$f":"IF('El og plugin hybrid'!I$51=\"El og benzin\",$C49,IF('El og plugin hybrid'!I$51=\"El og diesel\",$D49,IF('El og plugin hybrid'!I$51=\"El\",0,\"Brændstof ikke valgt\")))","v":"Brændstof ikke valgt"},{"$f":"(IF('El og plugin hybrid'!K$23=0,0,(IF($B49<='El og plugin hybrid'!K$34,(('El og plugin hybrid'!K$29/'El og plugin hybrid'!K$23)*L49),0))*(1+'El og plugin hybrid'!K$37/100)^-$B49))","v":0},{"$f":"IF('El og plugin hybrid'!K$51=\"El og benzin\",$C49,IF('El og plugin hybrid'!K$51=\"El og diesel\",$D49,IF('El og plugin hybrid'!K$51=\"El\",0,\"Brændstof ikke valgt\")))","v":"Brændstof ikke valgt"},{"$f":"(IF('El og plugin hybrid'!M$23=0,0,(IF($B49<='El og plugin hybrid'!M$34,(('El og plugin hybrid'!M$29/'El og plugin hybrid'!M$23)*N49),0))*(1+'El og plugin hybrid'!M$37/100)^-$B49))","v":0},{"$f":"IF('El og plugin hybrid'!M$51=\"El og benzin\",$C49,IF('El og plugin hybrid'!M$51=\"El og diesel\",$D49,IF('El og plugin hybrid'!M$51=\"El\",0,\"Brændstof ikke valgt\")))","v":"Brændstof ikke valgt"},{"$f":"(IF('El og plugin hybrid'!O$23=0,0,(IF($B49<='El og plugin hybrid'!O$34,(('El og plugin hybrid'!O$29/'El og plugin hybrid'!O$23)*P49),0))*(1+'El og plugin hybrid'!O$37/100)^-$B49))","v":0},{"$f":"IF('El og plugin hybrid'!O$51=\"El og benzin\",$C49,IF('El og plugin hybrid'!O$51=\"El og diesel\",$D49,IF('El og plugin hybrid'!O$51=\"El\",0,\"Brændstof ikke valgt\")))","v":"Brændstof ikke valgt"},{"$f":"(IF('El og plugin hybrid'!Q$23=0,0,(IF($B49<='El og plugin hybrid'!Q$34,(('El og plugin hybrid'!Q$29/'El og plugin hybrid'!Q$23)*R49),0))*(1+'El og plugin hybrid'!Q$37/100)^-$B49))","v":0},{"$f":"IF('El og plugin hybrid'!Q$51=\"El og benzin\",$C49,IF('El og plugin hybrid'!Q$51=\"El og diesel\",$D49,IF('El og plugin hybrid'!Q$51=\"El\",0,\"Brændstof ikke valgt\")))","v":"Brændstof ikke valgt"},{"$f":"(IF('El og plugin hybrid'!S$23=0,0,(IF($B49<='El og plugin hybrid'!S$34,(('El og plugin hybrid'!S$29/'El og plugin hybrid'!S$23)*T49),0))*(1+'El og plugin hybrid'!S$37/100)^-$B49))","v":0},{"$f":"IF('El og plugin hybrid'!S$51=\"El og benzin\",$C49,IF('El og plugin hybrid'!S$51=\"El og diesel\",$D49,IF('El og plugin hybrid'!S$51=\"El\",0,\"Brændstof ikke valgt\")))","v":"Brændstof ikke valgt"}]
[null,8,{"$f":"C49*(1+'El og plugin hybrid'!$E$58/100)","v":13.576267817959931},{"$f":"D49*(1+'El og plugin hybrid'!$E$59/100)","v":11.976360794643055},{"$f":"(IF('El og plugin hybrid'!E$23=0,0,(IF($B50<='El og plugin hybrid'!E$34,(('El og plugin hybrid'!E$29/'El og plugin hybrid'!E$23)*F50),0))*(1+'El og plugin hybrid'!E$37/100)^-$B50))","v":0},{"$f":"IF('El og plugin hybrid'!E$51=\"El og benzin\",$C50,IF('El og plugin hybrid'!E$51=\"El og diesel\",$D50,IF('El og plugin hybrid'!E$51=\"El\",0,\"Brændstof ikke valgt\")))","v":"Brændstof ikke valgt"},{"$f":"(IF('El og plugin hybrid'!G$23=0,0,(IF($B50<='El og plugin hybrid'!G$34,(('El og plugin hybrid'!G$29/'El og plugin hybrid'!G$23)*H50),0))*(1+'El og plugin hybrid'!G$37/100)^-$B50))","v":0},{"$f":"IF('El og plugin hybrid'!G$51=\"El og benzin\",$C50,IF('El og plugin hybrid'!G$51=\"El og diesel\",$D50,IF('El og plugin hybrid'!G$51=\"El\",0,\"Brændstof ikke valgt\")))","v":"Brændstof ikke valgt"},{"$f":"(IF('El og plugin hybrid'!I$23=0,0,(IF($B50<='El og plugin hybrid'!I$34,(('El og plugin hybrid'!I$29/'El og plugin hybrid'!I$23)*J50),0))*(1+'El og plugin hybrid'!I$37/100)^-$B50))","v":0},{"$f":"IF('El og plugin hybrid'!I$51=\"El og benzin\",$C50,IF('El og plugin hybrid'!I$51=\"El og diesel\",$D50,IF('El og plugin hybrid'!I$51=\"El\",0,\"Brændstof ikke valgt\")))","v":"Brændstof ikke valgt"},{"$f":"(IF('El og plugin hybrid'!K$23=0,0,(IF($B50<='El og plugin hybrid'!K$34,(('El og plugin hybrid'!K$29/'El og plugin hybrid'!K$23)*L50),0))*(1+'El og plugin hybrid'!K$37/100)^-$B50))","v":0},{"$f":"IF('El og plugin hybrid'!K$51=\"El og benzin\",$C50,IF('El og plugin hybrid'!K$51=\"El og diesel\",$D50,IF('El og plugin hybrid'!K$51=\"El\",0,\"Brændstof ikke valgt\")))","v":"Brændstof ikke valgt"},{"$f":"(IF('El og plugin hybrid'!M$23=0,0,(IF($B50<='El og plugin hybrid'!M$34,(('El og plugin hybrid'!M$29/'El og plugin hybrid'!M$23)*N50),0))*(1+'El og plugin hybrid'!M$37/100)^-$B50))","v":0},{"$f":"IF('El og plugin hybrid'!M$51=\"El og benzin\",$C50,IF('El og plugin hybrid'!M$51=\"El og diesel\",$D50,IF('El og plugin hybrid'!M$51=\"El\",0,\"Brændstof ikke valgt\")))","v":"Brændstof ikke valgt"},{"$f":"(IF('El og plugin hybrid'!O$23=0,0,(IF($B50<='El og plugin hybrid'!O$34,(('El og plugin hybrid'!O$29/'El og plugin hybrid'!O$23)*P50),0))*(1+'El og plugin hybrid'!O$37/100)^-$B50))","v":0},{"$f":"IF('El og plugin hybrid'!O$51=\"El og benzin\",$C50,IF('El og plugin hybrid'!O$51=\"El og diesel\",$D50,IF('El og plugin hybrid'!O$51=\"El\",0,\"Brændstof ikke valgt\")))","v":"Brændstof ikke valgt"},{"$f":"(IF('El og plugin hybrid'!Q$23=0,0,(IF($B50<='El og plugin hybrid'!Q$34,(('El og plugin hybrid'!Q$29/'El og plugin hybrid'!Q$23)*R50),0))*(1+'El og plugin hybrid'!Q$37/100)^-$B50))","v":0},{"$f":"IF('El og plugin hybrid'!Q$51=\"El og benzin\",$C50,IF('El og plugin hybrid'!Q$51=\"El og diesel\",$D50,IF('El og plugin hybrid'!Q$51=\"El\",0,\"Brændstof ikke valgt\")))","v":"Brændstof ikke valgt"},{"$f":"(IF('El og plugin hybrid'!S$23=0,0,(IF($B50<='El og plugin hybrid'!S$34,(('El og plugin hybrid'!S$29/'El og plugin hybrid'!S$23)*T50),0))*(1+'El og plugin hybrid'!S$37/100)^-$B50))","v":0},{"$f":"IF('El og plugin hybrid'!S$51=\"El og benzin\",$C50,IF('El og plugin hybrid'!S$51=\"El og diesel\",$D50,IF('El og plugin hybrid'!S$51=\"El\",0,\"Brændstof ikke valgt\")))","v":"Brændstof ikke valgt"}]
[null,9,{"$f":"C50*(1+'El og plugin hybrid'!$E$58/100)","v":13.764305382612037},{"$f":"D50*(1+'El og plugin hybrid'!$E$59/100)","v":12.149746476536095},{"$f":"(IF('El og plugin hybrid'!E$23=0,0,(IF($B51<='El og plugin hybrid'!E$34,(('El og plugin hybrid'!E$29/'El og plugin hybrid'!E$23)*F51),0))*(1+'El og plugin hybrid'!E$37/100)^-$B51))","v":0},{"$f":"IF('El og plugin hybrid'!E$51=\"El og benzin\",$C51,IF('El og plugin hybrid'!E$51=\"El og diesel\",$D51,IF('El og plugin hybrid'!E$51=\"El\",0,\"Brændstof ikke valgt\")))","v":"Brændstof ikke valgt"},{"$f":"(IF('El og plugin hybrid'!G$23=0,0,(IF($B51<='El og plugin hybrid'!G$34,(('El og plugin hybrid'!G$29/'El og plugin hybrid'!G$23)*H51),0))*(1+'El og plugin hybrid'!G$37/100)^-$B51))","v":0},{"$f":"IF('El og plugin hybrid'!G$51=\"El og benzin\",$C51,IF('El og plugin hybrid'!G$51=\"El og diesel\",$D51,IF('El og plugin hybrid'!G$51=\"El\",0,\"Brændstof ikke valgt\")))","v":"Brændstof ikke valgt"},{"$f":"(IF('El og plugin hybrid'!I$23=0,0,(IF($B51<='El og plugin hybrid'!I$34,(('El og plugin hybrid'!I$29/'El og plugin hybrid'!I$23)*J51),0))*(1+'El og plugin hybrid'!I$37/100)^-$B51))","v":0},{"$f":"IF('El og plugin hybrid'!I$51=\"El og benzin\",$C51,IF('El og plugin hybrid'!I$51=\"El og diesel\",$D51,IF('El og plugin hybrid'!I$51=\"El\",0,\"Brændstof ikke valgt\")))","v":"Brændstof ikke valgt"},{"$f":"(IF('El og plugin hybrid'!K$23=0,0,(IF($B51<='El og plugin hybrid'!K$34,(('El og plugin hybrid'!K$29/'El og plugin hybrid'!K$23)*L51),0))*(1+'El og plugin hybrid'!K$37/100)^-$B51))","v":0},{"$f":"IF('El og plugin hybrid'!K$51=\"El og benzin\",$C51,IF('El og plugin hybrid'!K$51=\"El og diesel\",$D51,IF('El og plugin hybrid'!K$51=\"El\",0,\"Brændstof ikke valgt\")))","v":"Brændstof ikke valgt"},{"$f":"(IF('El og plugin hybrid'!M$23=0,0,(IF($B51<='El og plugin hybrid'!M$34,(('El og plugin hybrid'!M$29/'El og plugin hybrid'!M$23)*N51),0))*(1+'El og plugin hybrid'!M$37/100)^-$B51))","v":0},{"$f":"IF('El og plugin hybrid'!M$51=\"El og benzin\",$C51,IF('El og plugin hybrid'!M$51=\"El og diesel\",$D51,IF('El og plugin hybrid'!M$51=\"El\",0,\"Brændstof ikke valgt\")))","v":"Brændstof ikke valgt"},{"$f":"(IF('El og plugin hybrid'!O$23=0,0,(IF($B51<='El og plugin hybrid'!O$34,(('El og plugin hybrid'!O$29/'El og plugin hybrid'!O$23)*P51),0))*(1+'El og plugin hybrid'!O$37/100)^-$B51))","v":0},{"$f":"IF('El og plugin hybrid'!O$51=\"El og benzin\",$C51,IF('El og plugin hybrid'!O$51=\"El og diesel\",$D51,IF('El og plugin hybrid'!O$51=\"El\",0,\"Brændstof ikke valgt\")))","v":"Brændstof ikke valgt"},{"$f":"(IF('El og plugin hybrid'!Q$23=0,0,(IF($B51<='El og plugin hybrid'!Q$34,(('El og plugin hybrid'!Q$29/'El og plugin hybrid'!Q$23)*R51),0))*(1+'El og plugin hybrid'!Q$37/100)^-$B51))","v":0},{"$f":"IF('El og plugin hybrid'!Q$51=\"El og benzin\",$C51,IF('El og plugin hybrid'!Q$51=\"El og diesel\",$D51,IF('El og plugin hybrid'!Q$51=\"El\",0,\"Brændstof ikke valgt\")))","v":"Brændstof ikke valgt"},{"$f":"(IF('El og plugin hybrid'!S$23=0,0,(IF($B51<='El og plugin hybrid'!S$34,(('El og plugin hybrid'!S$29/'El og plugin hybrid'!S$23)*T51),0))*(1+'El og plugin hybrid'!S$37/100)^-$B51))","v":0},{"$f":"IF('El og plugin hybrid'!S$51=\"El og benzin\",$C51,IF('El og plugin hybrid'!S$51=\"El og diesel\",$D51,IF('El og plugin hybrid'!S$51=\"El\",0,\"Brændstof ikke valgt\")))","v":"Brændstof ikke valgt"}]
[null,10,{"$f":"C51*(1+'El og plugin hybrid'!$E$58/100)","v":13.954947354174378},{"$f":"D51*(1+'El og plugin hybrid'!$E$59/100)","v":12.32564231950402},{"$f":"(IF('El og plugin hybrid'!E$23=0,0,(IF($B52<='El og plugin hybrid'!E$34,(('El og plugin hybrid'!E$29/'El og plugin hybrid'!E$23)*F52),0))*(1+'El og plugin hybrid'!E$37/100)^-$B52))","v":0},{"$f":"IF('El og plugin hybrid'!E$51=\"El og benzin\",$C52,IF('El og plugin hybrid'!E$51=\"El og diesel\",$D52,IF('El og plugin hybrid'!E$51=\"El\",0,\"Brændstof ikke valgt\")))","v":"Brændstof ikke valgt"},{"$f":"(IF('El og plugin hybrid'!G$23=0,0,(IF($B52<='El og plugin hybrid'!G$34,(('El og plugin hybrid'!G$29/'El og plugin hybrid'!G$23)*H52),0))*(1+'El og plugin hybrid'!G$37/100)^-$B52))","v":0},{"$f":"IF('El og plugin hybrid'!G$51=\"El og benzin\",$C52,IF('El og plugin hybrid'!G$51=\"El og diesel\",$D52,IF('El og plugin hybrid'!G$51=\"El\",0,\"Brændstof ikke valgt\")))","v":"Brændstof ikke valgt"},{"$f":"(IF('El og plugin hybrid'!I$23=0,0,(IF($B52<='El og plugin hybrid'!I$34,(('El og plugin hybrid'!I$29/'El og plugin hybrid'!I$23)*J52),0))*(1+'El og plugin hybrid'!I$37/100)^-$B52))","v":0},{"$f":"IF('El og plugin hybrid'!I$51=\"El og benzin\",$C52,IF('El og plugin hybrid'!I$51=\"El og diesel\",$D52,IF('El og plugin hybrid'!I$51=\"El\",0,\"Brændstof ikke valgt\")))","v":"Brændstof ikke valgt"},{"$f":"(IF('El og plugin hybrid'!K$23=0,0,(IF($B52<='El og plugin hybrid'!K$34,(('El og plugin hybrid'!K$29/'El og plugin hybrid'!K$23)*L52),0))*(1+'El og plugin hybrid'!K$37/100)^-$B52))","v":0},{"$f":"IF('El og plugin hybrid'!K$51=\"El og benzin\",$C52,IF('El og plugin hybrid'!K$51=\"El og diesel\",$D52,IF('El og plugin hybrid'!K$51=\"El\",0,\"Brændstof ikke valgt\")))","v":"Brændstof ikke valgt"},{"$f":"(IF('El og plugin hybrid'!M$23=0,0,(IF($B52<='El og plugin hybrid'!M$34,(('El og plugin hybrid'!M$29/'El og plugin hybrid'!M$23)*N52),0))*(1+'El og plugin hybrid'!M$37/100)^-$B52))","v":0},{"$f":"IF('El og plugin hybrid'!M$51=\"El og benzin\",$C52,IF('El og plugin hybrid'!M$51=\"El og diesel\",$D52,IF('El og plugin hybrid'!M$51=\"El\",0,\"Brændstof ikke valgt\")))","v":"Brændstof ikke valgt"},{"$f":"(IF('El og plugin hybrid'!O$23=0,0,(IF($B52<='El og plugin hybrid'!O$34,(('El og plugin hybrid'!O$29/'El og plugin hybrid'!O$23)*P52),0))*(1+'El og plugin hybrid'!O$37/100)^-$B52))","v":0},{"$f":"IF('El og plugin hybrid'!O$51=\"El og benzin\",$C52,IF('El og plugin hybrid'!O$51=\"El og diesel\",$D52,IF('El og plugin hybrid'!O$51=\"El\",0,\"Brændstof ikke valgt\")))","v":"Brændstof ikke valgt"},{"$f":"(IF('El og plugin hybrid'!Q$23=0,0,(IF($B52<='El og plugin hybrid'!Q$34,(('El og plugin hybrid'!Q$29/'El og plugin hybrid'!Q$23)*R52),0))*(1+'El og plugin hybrid'!Q$37/100)^-$B52))","v":0},{"$f":"IF('El og plugin hybrid'!Q$51=\"El og benzin\",$C52,IF('El og plugin hybrid'!Q$51=\"El og diesel\",$D52,IF('El og plugin hybrid'!Q$51=\"El\",0,\"Brændstof ikke valgt\")))","v":"Brændstof ikke valgt"},{"$f":"(IF('El og plugin hybrid'!S$23=0,0,(IF($B52<='El og plugin hybrid'!S$34,(('El og plugin hybrid'!S$29/'El og plugin hybrid'!S$23)*T52),0))*(1+'El og plugin hybrid'!S$37/100)^-$B52))","v":0},{"$f":"IF('El og plugin hybrid'!S$51=\"El og benzin\",$C52,IF('El og plugin hybrid'!S$51=\"El og diesel\",$D52,IF('El og plugin hybrid'!S$51=\"El\",0,\"Brændstof ikke valgt\")))","v":"Brændstof ikke valgt"}]
[null,11,{"$f":"C52*(1+'El og plugin hybrid'!$E$58/100)","v":14.148229804882661},{"$f":"D52*(1+'El og plugin hybrid'!$E$59/100)","v":12.504084663967523},{"$f":"(IF('El og plugin hybrid'!E$23=0,0,(IF($B53<='El og plugin hybrid'!E$34,(('El og plugin hybrid'!E$29/'El og plugin hybrid'!E$23)*F53),0))*(1+'El og plugin hybrid'!E$37/100)^-$B53))","v":0},{"$f":"IF('El og plugin hybrid'!E$51=\"El og benzin\",$C53,IF('El og plugin hybrid'!E$51=\"El og diesel\",$D53,IF('El og plugin hybrid'!E$51=\"El\",0,\"Brændstof ikke valgt\")))","v":"Brændstof ikke valgt"},{"$f":"(IF('El og plugin hybrid'!G$23=0,0,(IF($B53<='El og plugin hybrid'!G$34,(('El og plugin hybrid'!G$29/'El og plugin hybrid'!G$23)*H53),0))*(1+'El og plugin hybrid'!G$37/100)^-$B53))","v":0},{"$f":"IF('El og plugin hybrid'!G$51=\"El og benzin\",$C53,IF('El og plugin hybrid'!G$51=\"El og diesel\",$D53,IF('El og plugin hybrid'!G$51=\"El\",0,\"Brændstof ikke valgt\")))","v":"Brændstof ikke valgt"},{"$f":"(IF('El og plugin hybrid'!I$23=0,0,(IF($B53<='El og plugin hybrid'!I$34,(('El og plugin hybrid'!I$29/'El og plugin hybrid'!I$23)*J53),0))*(1+'El og plugin hybrid'!I$37/100)^-$B53))","v":0},{"$f":"IF('El og plugin hybrid'!I$51=\"El og benzin\",$C53,IF('El og plugin hybrid'!I$51=\"El og diesel\",$D53,IF('El og plugin hybrid'!I$51=\"El\",0,\"Brændstof ikke valgt\")))","v":"Brændstof ikke valgt"},{"$f":"(IF('El og plugin hybrid'!K$23=0,0,(IF($B53<='El og plugin hybrid'!K$34,(('El og plugin hybrid'!K$29/'El og plugin hybrid'!K$23)*L53),0))*(1+'El og plugin hybrid'!K$37/100)^-$B53))","v":0},{"$f":"IF('El og plugin hybrid'!K$51=\"El og benzin\",$C53,IF('El og plugin hybrid'!K$51=\"El og diesel\",$D53,IF('El og plugin hybrid'!K$51=\"El\",0,\"Brændstof ikke valgt\")))","v":"Brændstof ikke valgt"},{"$f":"(IF('El og plugin hybrid'!M$23=0,0,(IF($B53<='El og plugin hybrid'!M$34,(('El og plugin hybrid'!M$29/'El og plugin hybrid'!M$23)*N53),0))*(1+'El og plugin hybrid'!M$37/100)^-$B53))","v":0},{"$f":"IF('El og plugin hybrid'!M$51=\"El og benzin\",$C53,IF('El og plugin hybrid'!M$51=\"El og diesel\",$D53,IF('El og plugin hybrid'!M$51=\"El\",0,\"Brændstof ikke valgt\")))","v":"Brændstof ikke valgt"},{"$f":"(IF('El og plugin hybrid'!O$23=0,0,(IF($B53<='El og plugin hybrid'!O$34,(('El og plugin hybrid'!O$29/'El og plugin hybrid'!O$23)*P53),0))*(1+'El og plugin hybrid'!O$37/100)^-$B53))","v":0},{"$f":"IF('El og plugin hybrid'!O$51=\"El og benzin\",$C53,IF('El og plugin hybrid'!O$51=\"El og diesel\",$D53,IF('El og plugin hybrid'!O$51=\"El\",0,\"Brændstof ikke valgt\")))","v":"Brændstof ikke valgt"},{"$f":"(IF('El og plugin hybrid'!Q$23=0,0,(IF($B53<='El og plugin hybrid'!Q$34,(('El og plugin hybrid'!Q$29/'El og plugin hybrid'!Q$23)*R53),0))*(1+'El og plugin hybrid'!Q$37/100)^-$B53))","v":0},{"$f":"IF('El og plugin hybrid'!Q$51=\"El og benzin\",$C53,IF('El og plugin hybrid'!Q$51=\"El og diesel\",$D53,IF('El og plugin hybrid'!Q$51=\"El\",0,\"Brændstof ikke valgt\")))","v":"Brændstof ikke valgt"},{"$f":"(IF('El og plugin hybrid'!S$23=0,0,(IF($B53<='El og plugin hybrid'!S$34,(('El og plugin hybrid'!S$29/'El og plugin hybrid'!S$23)*T53),0))*(1+'El og plugin hybrid'!S$37/100)^-$B53))","v":0},{"$f":"IF('El og plugin hybrid'!S$51=\"El og benzin\",$C53,IF('El og plugin hybrid'!S$51=\"El og diesel\",$D53,IF('El og plugin hybrid'!S$51=\"El\",0,\"Brændstof ikke valgt\")))","v":"Brændstof ikke valgt"}]
[null,12,{"$f":"C53*(1+'El og plugin hybrid'!$E$58/100)","v":14.34418930658968},{"$f":"D53*(1+'El og plugin hybrid'!$E$59/100)","v":12.685110376459422},{"$f":"(IF('El og plugin hybrid'!E$23=0,0,(IF($B54<='El og plugin hybrid'!E$34,(('El og plugin hybrid'!E$29/'El og plugin hybrid'!E$23)*F54),0))*(1+'El og plugin hybrid'!E$37/100)^-$B54))","v":0},{"$f":"IF('El og plugin hybrid'!E$51=\"El og benzin\",$C54,IF('El og plugin hybrid'!E$51=\"El og diesel\",$D54,IF('El og plugin hybrid'!E$51=\"El\",0,\"Brændstof ikke valgt\")))","v":"Brændstof ikke valgt"},{"$f":"(IF('El og plugin hybrid'!G$23=0,0,(IF($B54<='El og plugin hybrid'!G$34,(('El og plugin hybrid'!G$29/'El og plugin hybrid'!G$23)*H54),0))*(1+'El og plugin hybrid'!G$37/100)^-$B54))","v":0},{"$f":"IF('El og plugin hybrid'!G$51=\"El og benzin\",$C54,IF('El og plugin hybrid'!G$51=\"El og diesel\",$D54,IF('El og plugin hybrid'!G$51=\"El\",0,\"Brændstof ikke valgt\")))","v":"Brændstof ikke valgt"},{"$f":"(IF('El og plugin hybrid'!I$23=0,0,(IF($B54<='El og plugin hybrid'!I$34,(('El og plugin hybrid'!I$29/'El og plugin hybrid'!I$23)*J54),0))*(1+'El og plugin hybrid'!I$37/100)^-$B54))","v":0},{"$f":"IF('El og plugin hybrid'!I$51=\"El og benzin\",$C54,IF('El og plugin hybrid'!I$51=\"El og diesel\",$D54,IF('El og plugin hybrid'!I$51=\"El\",0,\"Brændstof ikke valgt\")))","v":"Brændstof ikke valgt"},{"$f":"(IF('El og plugin hybrid'!K$23=0,0,(IF($B54<='El og plugin hybrid'!K$34,(('El og plugin hybrid'!K$29/'El og plugin hybrid'!K$23)*L54),0))*(1+'El og plugin hybrid'!K$37/100)^-$B54))","v":0},{"$f":"IF('El og plugin hybrid'!K$51=\"El og benzin\",$C54,IF('El og plugin hybrid'!K$51=\"El og diesel\",$D54,IF('El og plugin hybrid'!K$51=\"El\",0,\"Brændstof ikke valgt\")))","v":"Brændstof ikke valgt"},{"$f":"(IF('El og plugin hybrid'!M$23=0,0,(IF($B54<='El og plugin hybrid'!M$34,(('El og plugin hybrid'!M$29/'El og plugin hybrid'!M$23)*N54),0))*(1+'El og plugin hybrid'!M$37/100)^-$B54))","v":0},{"$f":"IF('El og plugin hybrid'!M$51=\"El og benzin\",$C54,IF('El og plugin hybrid'!M$51=\"El og diesel\",$D54,IF('El og plugin hybrid'!M$51=\"El\",0,\"Brændstof ikke valgt\")))","v":"Brændstof ikke valgt"},{"$f":"(IF('El og plugin hybrid'!O$23=0,0,(IF($B54<='El og plugin hybrid'!O$34,(('El og plugin hybrid'!O$29/'El og plugin hybrid'!O$23)*P54),0))*(1+'El og plugin hybrid'!O$37/100)^-$B54))","v":0},{"$f":"IF('El og plugin hybrid'!O$51=\"El og benzin\",$C54,IF('El og plugin hybrid'!O$51=\"El og diesel\",$D54,IF('El og plugin hybrid'!O$51=\"El\",0,\"Brændstof ikke valgt\")))","v":"Brændstof ikke valgt"},{"$f":"(IF('El og plugin hybrid'!Q$23=0,0,(IF($B54<='El og plugin hybrid'!Q$34,(('El og plugin hybrid'!Q$29/'El og plugin hybrid'!Q$23)*R54),0))*(1+'El og plugin hybrid'!Q$37/100)^-$B54))","v":0},{"$f":"IF('El og plugin hybrid'!Q$51=\"El og benzin\",$C54,IF('El og plugin hybrid'!Q$51=\"El og diesel\",$D54,IF('El og plugin hybrid'!Q$51=\"El\",0,\"Brændstof ikke valgt\")))","v":"Brændstof ikke valgt"},{"$f":"(IF('El og plugin hybrid'!S$23=0,0,(IF($B54<='El og plugin hybrid'!S$34,(('El og plugin hybrid'!S$29/'El og plugin hybrid'!S$23)*T54),0))*(1+'El og plugin hybrid'!S$37/100)^-$B54))","v":0},{"$f":"IF('El og plugin hybrid'!S$51=\"El og benzin\",$C54,IF('El og plugin hybrid'!S$51=\"El og diesel\",$D54,IF('El og plugin hybrid'!S$51=\"El\",0,\"Brændstof ikke valgt\")))","v":"Brændstof ikke valgt"}]
[null,13,{"$f":"C54*(1+'El og plugin hybrid'!$E$58/100)","v":14.542862937685241},{"$f":"D54*(1+'El og plugin hybrid'!$E$59/100)","v":12.868756857241353},{"$f":"(IF('El og plugin hybrid'!E$23=0,0,(IF($B55<='El og plugin hybrid'!E$34,(('El og plugin hybrid'!E$29/'El og plugin hybrid'!E$23)*F55),0))*(1+'El og plugin hybrid'!E$37/100)^-$B55))","v":0},{"$f":"IF('El og plugin hybrid'!E$51=\"El og benzin\",$C55,IF('El og plugin hybrid'!E$51=\"El og diesel\",$D55,IF('El og plugin hybrid'!E$51=\"El\",0,\"Brændstof ikke valgt\")))","v":"Brændstof ikke valgt"},{"$f":"(IF('El og plugin hybrid'!G$23=0,0,(IF($B55<='El og plugin hybrid'!G$34,(('El og plugin hybrid'!G$29/'El og plugin hybrid'!G$23)*H55),0))*(1+'El og plugin hybrid'!G$37/100)^-$B55))","v":0},{"$f":"IF('El og plugin hybrid'!G$51=\"El og benzin\",$C55,IF('El og plugin hybrid'!G$51=\"El og diesel\",$D55,IF('El og plugin hybrid'!G$51=\"El\",0,\"Brændstof ikke valgt\")))","v":"Brændstof ikke valgt"},{"$f":"(IF('El og plugin hybrid'!I$23=0,0,(IF($B55<='El og plugin hybrid'!I$34,(('El og plugin hybrid'!I$29/'El og plugin hybrid'!I$23)*J55),0))*(1+'El og plugin hybrid'!I$37/100)^-$B55))","v":0},{"$f":"IF('El og plugin hybrid'!I$51=\"El og benzin\",$C55,IF('El og plugin hybrid'!I$51=\"El og diesel\",$D55,IF('El og plugin hybrid'!I$51=\"El\",0,\"Brændstof ikke valgt\")))","v":"Brændstof ikke valgt"},{"$f":"(IF('El og plugin hybrid'!K$23=0,0,(IF($B55<='El og plugin hybrid'!K$34,(('El og plugin hybrid'!K$29/'El og plugin hybrid'!K$23)*L55),0))*(1+'El og plugin hybrid'!K$37/100)^-$B55))","v":0},{"$f":"IF('El og plugin hybrid'!K$51=\"El og benzin\",$C55,IF('El og plugin hybrid'!K$51=\"El og diesel\",$D55,IF('El og plugin hybrid'!K$51=\"El\",0,\"Brændstof ikke valgt\")))","v":"Brændstof ikke valgt"},{"$f":"(IF('El og plugin hybrid'!M$23=0,0,(IF($B55<='El og plugin hybrid'!M$34,(('El og plugin hybrid'!M$29/'El og plugin hybrid'!M$23)*N55),0))*(1+'El og plugin hybrid'!M$37/100)^-$B55))","v":0},{"$f":"IF('El og plugin hybrid'!M$51=\"El og benzin\",$C55,IF('El og plugin hybrid'!M$51=\"El og diesel\",$D55,IF('El og plugin hybrid'!M$51=\"El\",0,\"Brændstof ikke valgt\")))","v":"Brændstof ikke valgt"},{"$f":"(IF('El og plugin hybrid'!O$23=0,0,(IF($B55<='El og plugin hybrid'!O$34,(('El og plugin hybrid'!O$29/'El og plugin hybrid'!O$23)*P55),0))*(1+'El og plugin hybrid'!O$37/100)^-$B55))","v":0},{"$f":"IF('El og plugin hybrid'!O$51=\"El og benzin\",$C55,IF('El og plugin hybrid'!O$51=\"El og diesel\",$D55,IF('El og plugin hybrid'!O$51=\"El\",0,\"Brændstof ikke valgt\")))","v":"Brændstof ikke valgt"},{"$f":"(IF('El og plugin hybrid'!Q$23=0,0,(IF($B55<='El og plugin hybrid'!Q$34,(('El og plugin hybrid'!Q$29/'El og plugin hybrid'!Q$23)*R55),0))*(1+'El og plugin hybrid'!Q$37/100)^-$B55))","v":0},{"$f":"IF('El og plugin hybrid'!Q$51=\"El og benzin\",$C55,IF('El og plugin hybrid'!Q$51=\"El og diesel\",$D55,IF('El og plugin hybrid'!Q$51=\"El\",0,\"Brændstof ikke valgt\")))","v":"Brændstof ikke valgt"},{"$f":"(IF('El og plugin hybrid'!S$23=0,0,(IF($B55<='El og plugin hybrid'!S$34,(('El og plugin hybrid'!S$29/'El og plugin hybrid'!S$23)*T55),0))*(1+'El og plugin hybrid'!S$37/100)^-$B55))","v":0},{"$f":"IF('El og plugin hybrid'!S$51=\"El og benzin\",$C55,IF('El og plugin hybrid'!S$51=\"El og diesel\",$D55,IF('El og plugin hybrid'!S$51=\"El\",0,\"Brændstof ikke valgt\")))","v":"Brændstof ikke valgt"}]
[null,14,{"$f":"C55*(1+'El og plugin hybrid'!$E$58/100)","v":14.74428829011193},{"$f":"D55*(1+'El og plugin hybrid'!$E$59/100)","v":13.05506204803074},{"$f":"(IF('El og plugin hybrid'!E$23=0,0,(IF($B56<='El og plugin hybrid'!E$34,(('El og plugin hybrid'!E$29/'El og plugin hybrid'!E$23)*F56),0))*(1+'El og plugin hybrid'!E$37/100)^-$B56))","v":0},{"$f":"IF('El og plugin hybrid'!E$51=\"El og benzin\",$C56,IF('El og plugin hybrid'!E$51=\"El og diesel\",$D56,IF('El og plugin hybrid'!E$51=\"El\",0,\"Brændstof ikke valgt\")))","v":"Brændstof ikke valgt"},{"$f":"(IF('El og plugin hybrid'!G$23=0,0,(IF($B56<='El og plugin hybrid'!G$34,(('El og plugin hybrid'!G$29/'El og plugin hybrid'!G$23)*H56),0))*(1+'El og plugin hybrid'!G$37/100)^-$B56))","v":0},{"$f":"IF('El og plugin hybrid'!G$51=\"El og benzin\",$C56,IF('El og plugin hybrid'!G$51=\"El og diesel\",$D56,IF('El og plugin hybrid'!G$51=\"El\",0,\"Brændstof ikke valgt\")))","v":"Brændstof ikke valgt"},{"$f":"(IF('El og plugin hybrid'!I$23=0,0,(IF($B56<='El og plugin hybrid'!I$34,(('El og plugin hybrid'!I$29/'El og plugin hybrid'!I$23)*J56),0))*(1+'El og plugin hybrid'!I$37/100)^-$B56))","v":0},{"$f":"IF('El og plugin hybrid'!I$51=\"El og benzin\",$C56,IF('El og plugin hybrid'!I$51=\"El og diesel\",$D56,IF('El og plugin hybrid'!I$51=\"El\",0,\"Brændstof ikke valgt\")))","v":"Brændstof ikke valgt"},{"$f":"(IF('El og plugin hybrid'!K$23=0,0,(IF($B56<='El og plugin hybrid'!K$34,(('El og plugin hybrid'!K$29/'El og plugin hybrid'!K$23)*L56),0))*(1+'El og plugin hybrid'!K$37/100)^-$B56))","v":0},{"$f":"IF('El og plugin hybrid'!K$51=\"El og benzin\",$C56,IF('El og plugin hybrid'!K$51=\"El og diesel\",$D56,IF('El og plugin hybrid'!K$51=\"El\",0,\"Brændstof ikke valgt\")))","v":"Brændstof ikke valgt"},{"$f":"(IF('El og plugin hybrid'!M$23=0,0,(IF($B56<='El og plugin hybrid'!M$34,(('El og plugin hybrid'!M$29/'El og plugin hybrid'!M$23)*N56),0))*(1+'El og plugin hybrid'!M$37/100)^-$B56))","v":0},{"$f":"IF('El og plugin hybrid'!M$51=\"El og benzin\",$C56,IF('El og plugin hybrid'!M$51=\"El og diesel\",$D56,IF('El og plugin hybrid'!M$51=\"El\",0,\"Brændstof ikke valgt\")))","v":"Brændstof ikke valgt"},{"$f":"(IF('El og plugin hybrid'!O$23=0,0,(IF($B56<='El og plugin hybrid'!O$34,(('El og plugin hybrid'!O$29/'El og plugin hybrid'!O$23)*P56),0))*(1+'El og plugin hybrid'!O$37/100)^-$B56))","v":0},{"$f":"IF('El og plugin hybrid'!O$51=\"El og benzin\",$C56,IF('El og plugin hybrid'!O$51=\"El og diesel\",$D56,IF('El og plugin hybrid'!O$51=\"El\",0,\"Brændstof ikke valgt\")))","v":"Brændstof ikke valgt"},{"$f":"(IF('El og plugin hybrid'!Q$23=0,0,(IF($B56<='El og plugin hybrid'!Q$34,(('El og plugin hybrid'!Q$29/'El og plugin hybrid'!Q$23)*R56),0))*(1+'El og plugin hybrid'!Q$37/100)^-$B56))","v":0},{"$f":"IF('El og plugin hybrid'!Q$51=\"El og benzin\",$C56,IF('El og plugin hybrid'!Q$51=\"El og diesel\",$D56,IF('El og plugin hybrid'!Q$51=\"El\",0,\"Brændstof ikke valgt\")))","v":"Brændstof ikke valgt"},{"$f":"(IF('El og plugin hybrid'!S$23=0,0,(IF($B56<='El og plugin hybrid'!S$34,(('El og plugin hybrid'!S$29/'El og plugin hybrid'!S$23)*T56),0))*(1+'El og plugin hybrid'!S$37/100)^-$B56))","v":0},{"$f":"IF('El og plugin hybrid'!S$51=\"El og benzin\",$C56,IF('El og plugin hybrid'!S$51=\"El og diesel\",$D56,IF('El og plugin hybrid'!S$51=\"El\",0,\"Brændstof ikke valgt\")))","v":"Brændstof ikke valgt"}]
[null,15,{"$f":"C56*(1+'El og plugin hybrid'!$E$58/100)","v":14.948503476478063},{"$f":"D56*(1+'El og plugin hybrid'!$E$59/100)","v":13.244064439839629},{"$f":"(IF('El og plugin hybrid'!E$23=0,0,(IF($B57<='El og plugin hybrid'!E$34,(('El og plugin hybrid'!E$29/'El og plugin hybrid'!E$23)*F57),0))*(1+'El og plugin hybrid'!E$37/100)^-$B57))","v":0},{"$f":"IF('El og plugin hybrid'!E$51=\"El og benzin\",$C57,IF('El og plugin hybrid'!E$51=\"El og diesel\",$D57,IF('El og plugin hybrid'!E$51=\"El\",0,\"Brændstof ikke valgt\")))","v":"Brændstof ikke valgt"},{"$f":"(IF('El og plugin hybrid'!G$23=0,0,(IF($B57<='El og plugin hybrid'!G$34,(('El og plugin hybrid'!G$29/'El og plugin hybrid'!G$23)*H57),0))*(1+'El og plugin hybrid'!G$37/100)^-$B57))","v":0},{"$f":"IF('El og plugin hybrid'!G$51=\"El og benzin\",$C57,IF('El og plugin hybrid'!G$51=\"El og diesel\",$D57,IF('El og plugin hybrid'!G$51=\"El\",0,\"Brændstof ikke valgt\")))","v":"Brændstof ikke valgt"},{"$f":"(IF('El og plugin hybrid'!I$23=0,0,(IF($B57<='El og plugin hybrid'!I$34,(('El og plugin hybrid'!I$29/'El og plugin hybrid'!I$23)*J57),0))*(1+'El og plugin hybrid'!I$37/100)^-$B57))","v":0},{"$f":"IF('El og plugin hybrid'!I$51=\"El og benzin\",$C57,IF('El og plugin hybrid'!I$51=\"El og diesel\",$D57,IF('El og plugin hybrid'!I$51=\"El\",0,\"Brændstof ikke valgt\")))","v":"Brændstof ikke valgt"},{"$f":"(IF('El og plugin hybrid'!K$23=0,0,(IF($B57<='El og plugin hybrid'!K$34,(('El og plugin hybrid'!K$29/'El og plugin hybrid'!K$23)*L57),0))*(1+'El og plugin hybrid'!K$37/100)^-$B57))","v":0},{"$f":"IF('El og plugin hybrid'!K$51=\"El og benzin\",$C57,IF('El og plugin hybrid'!K$51=\"El og diesel\",$D57,IF('El og plugin hybrid'!K$51=\"El\",0,\"Brændstof ikke valgt\")))","v":"Brændstof ikke valgt"},{"$f":"(IF('El og plugin hybrid'!M$23=0,0,(IF($B57<='El og plugin hybrid'!M$34,(('El og plugin hybrid'!M$29/'El og plugin hybrid'!M$23)*N57),0))*(1+'El og plugin hybrid'!M$37/100)^-$B57))","v":0},{"$f":"IF('El og plugin hybrid'!M$51=\"El og benzin\",$C57,IF('El og plugin hybrid'!M$51=\"El og diesel\",$D57,IF('El og plugin hybrid'!M$51=\"El\",0,\"Brændstof ikke valgt\")))","v":"Brændstof ikke valgt"},{"$f":"(IF('El og plugin hybrid'!O$23=0,0,(IF($B57<='El og plugin hybrid'!O$34,(('El og plugin hybrid'!O$29/'El og plugin hybrid'!O$23)*P57),0))*(1+'El og plugin hybrid'!O$37/100)^-$B57))","v":0},{"$f":"IF('El og plugin hybrid'!O$51=\"El og benzin\",$C57,IF('El og plugin hybrid'!O$51=\"El og diesel\",$D57,IF('El og plugin hybrid'!O$51=\"El\",0,\"Brændstof ikke valgt\")))","v":"Brændstof ikke valgt"},{"$f":"(IF('El og plugin hybrid'!Q$23=0,0,(IF($B57<='El og plugin hybrid'!Q$34,(('El og plugin hybrid'!Q$29/'El og plugin hybrid'!Q$23)*R57),0))*(1+'El og plugin hybrid'!Q$37/100)^-$B57))","v":0},{"$f":"IF('El og plugin hybrid'!Q$51=\"El og benzin\",$C57,IF('El og plugin hybrid'!Q$51=\"El og diesel\",$D57,IF('El og plugin hybrid'!Q$51=\"El\",0,\"Brændstof ikke valgt\")))","v":"Brændstof ikke valgt"},{"$f":"(IF('El og plugin hybrid'!S$23=0,0,(IF($B57<='El og plugin hybrid'!S$34,(('El og plugin hybrid'!S$29/'El og plugin hybrid'!S$23)*T57),0))*(1+'El og plugin hybrid'!S$37/100)^-$B57))","v":0},{"$f":"IF('El og plugin hybrid'!S$51=\"El og benzin\",$C57,IF('El og plugin hybrid'!S$51=\"El og diesel\",$D57,IF('El og plugin hybrid'!S$51=\"El\",0,\"Brændstof ikke valgt\")))","v":"Brændstof ikke valgt"}]
[]
[{"$f":"'El og plugin hybrid'!C15","v":"Service, vedligehold og løbende omkostninger"}]
[null,"År indeks",null,null,{"$f":"'El og plugin hybrid'!E8","v":"PRODUKT 1 EL"},null,{"$f":"'El og plugin hybrid'!G8","v":"PRODUKT 2 EL"},null,{"$f":"'El og plugin hybrid'!I8","v":"PRODUKT 3 EL"},null,{"$f":"'El og plugin hybrid'!K8","v":"PRODUKT 4 EL"},null,{"$f":"'El og plugin hybrid'!M8","v":"PRODUKT 5 EL"},null,{"$f":"'El og plugin hybrid'!O8","v":"PRODUKT 6 EL"},null,{"$f":"'El og plugin hybrid'!Q8","v":"PRODUKT 7 EL"},null,{"$f":"'El og plugin hybrid'!S8","v":"PRODUKT 8 EL"}]
[null,1,{"$f":"B61","v":1},null,{"$f":"(IF($B61<='El og plugin hybrid'!E$34,'El og plugin hybrid'!E$16,0)+IF($B61<='El og plugin hybrid'!E$34,'El og plugin hybrid'!E$17,0)+IF($B61<='El og plugin hybrid'!E$34,'El og plugin hybrid'!E$47,0)+IF($B61<='El og plugin hybrid'!E$34,'El og plugin hybrid'!E$48,0))*(1+'El og plugin hybrid'!E$37/100)^-$B61","v":0},null,{"$f":"(IF($B61<='El og plugin hybrid'!G$34,'El og plugin hybrid'!G$16,0)+IF($B61<='El og plugin hybrid'!G$34,'El og plugin hybrid'!G$17,0)+IF($B61<='El og plugin hybrid'!G$34,'El og plugin hybrid'!G$47,0)+IF($B61<='El og plugin hybrid'!G$34,'El og plugin hybrid'!G$48,0))*(1+'El og plugin hybrid'!G$37/100)^-$B61","v":0},null,{"$f":"(IF($B61<='El og plugin hybrid'!I$34,'El og plugin hybrid'!I$16,0)+IF($B61<='El og plugin hybrid'!I$34,'El og plugin hybrid'!I$17,0)+IF($B61<='El og plugin hybrid'!I$34,'El og plugin hybrid'!I$47,0)+IF($B61<='El og plugin hybrid'!I$34,'El og plugin hybrid'!I$48,0))*(1+'El og plugin hybrid'!I$37/100)^-$B61","v":0},null,{"$f":"(IF($B61<='El og plugin hybrid'!K$34,'El og plugin hybrid'!K$16,0)+IF($B61<='El og plugin hybrid'!K$34,'El og plugin hybrid'!K$17,0)+IF($B61<='El og plugin hybrid'!K$34,'El og plugin hybrid'!K$47,0)+IF($B61<='El og plugin hybrid'!K$34,'El og plugin hybrid'!K$48,0))*(1+'El og plugin hybrid'!K$37/100)^-$B61","v":0},null,{"$f":"(IF($B61<='El og plugin hybrid'!M$34,'El og plugin hybrid'!M$16,0)+IF($B61<='El og plugin hybrid'!M$34,'El og plugin hybrid'!M$17,0)+IF($B61<='El og plugin hybrid'!M$34,'El og plugin hybrid'!M$47,0)+IF($B61<='El og plugin hybrid'!M$34,'El og plugin hybrid'!M$48,0))*(1+'El og plugin hybrid'!M$37/100)^-$B61","v":0},null,{"$f":"(IF($B61<='El og plugin hybrid'!O$34,'El og plugin hybrid'!O$16,0)+IF($B61<='El og plugin hybrid'!O$34,'El og plugin hybrid'!O$17,0)+IF($B61<='El og plugin hybrid'!O$34,'El og plugin hybrid'!O$47,0)+IF($B61<='El og plugin hybrid'!O$34,'El og plugin hybrid'!O$48,0))*(1+'El og plugin hybrid'!O$37/100)^-$B61","v":0},null,{"$f":"(IF($B61<='El og plugin hybrid'!Q$34,'El og plugin hybrid'!Q$16,0)+IF($B61<='El og plugin hybrid'!Q$34,'El og plugin hybrid'!Q$17,0)+IF($B61<='El og plugin hybrid'!Q$34,'El og plugin hybrid'!Q$47,0)+IF($B61<='El og plugin hybrid'!Q$34,'El og plugin hybrid'!Q$48,0))*(1+'El og plugin hybrid'!Q$37/100)^-$B61","v":0},null,{"$f":"(IF($B61<='El og plugin hybrid'!S$34,'El og plugin hybrid'!S$16,0)+IF($B61<='El og plugin hybrid'!S$34,'El og plugin hybrid'!S$17,0)+IF($B61<='El og plugin hybrid'!S$34,'El og plugin hybrid'!S$47,0)+IF($B61<='El og plugin hybrid'!S$34,'El og plugin hybrid'!S$48,0))*(1+'El og plugin hybrid'!S$37/100)^-$B61","v":0}]
[null,2,{"$f":"B62","v":2},null,{"$f":"(IF($B62<='El og plugin hybrid'!E$34,'El og plugin hybrid'!E$16,0)+IF($B62<='El og plugin hybrid'!E$34,'El og plugin hybrid'!E$17,0)+IF($B62<='El og plugin hybrid'!E$34,'El og plugin hybrid'!E$47,0)+IF($B62<='El og plugin hybrid'!E$34,'El og plugin hybrid'!E$48,0))*(1+'El og plugin hybrid'!E$37/100)^-$B62","v":0},null,{"$f":"(IF($B62<='El og plugin hybrid'!G$34,'El og plugin hybrid'!G$16,0)+IF($B62<='El og plugin hybrid'!G$34,'El og plugin hybrid'!G$17,0)+IF($B62<='El og plugin hybrid'!G$34,'El og plugin hybrid'!G$47,0)+IF($B62<='El og plugin hybrid'!G$34,'El og plugin hybrid'!G$48,0))*(1+'El og plugin hybrid'!G$37/100)^-$B62","v":0},null,{"$f":"(IF($B62<='El og plugin hybrid'!I$34,'El og plugin hybrid'!I$16,0)+IF($B62<='El og plugin hybrid'!I$34,'El og plugin hybrid'!I$17,0)+IF($B62<='El og plugin hybrid'!I$34,'El og plugin hybrid'!I$47,0)+IF($B62<='El og plugin hybrid'!I$34,'El og plugin hybrid'!I$48,0))*(1+'El og plugin hybrid'!I$37/100)^-$B62","v":0},null,{"$f":"(IF($B62<='El og plugin hybrid'!K$34,'El og plugin hybrid'!K$16,0)+IF($B62<='El og plugin hybrid'!K$34,'El og plugin hybrid'!K$17,0)+IF($B62<='El og plugin hybrid'!K$34,'El og plugin hybrid'!K$47,0)+IF($B62<='El og plugin hybrid'!K$34,'El og plugin hybrid'!K$48,0))*(1+'El og plugin hybrid'!K$37/100)^-$B62","v":0},null,{"$f":"(IF($B62<='El og plugin hybrid'!M$34,'El og plugin hybrid'!M$16,0)+IF($B62<='El og plugin hybrid'!M$34,'El og plugin hybrid'!M$17,0)+IF($B62<='El og plugin hybrid'!M$34,'El og plugin hybrid'!M$47,0)+IF($B62<='El og plugin hybrid'!M$34,'El og plugin hybrid'!M$48,0))*(1+'El og plugin hybrid'!M$37/100)^-$B62","v":0},null,{"$f":"(IF($B62<='El og plugin hybrid'!O$34,'El og plugin hybrid'!O$16,0)+IF($B62<='El og plugin hybrid'!O$34,'El og plugin hybrid'!O$17,0)+IF($B62<='El og plugin hybrid'!O$34,'El og plugin hybrid'!O$47,0)+IF($B62<='El og plugin hybrid'!O$34,'El og plugin hybrid'!O$48,0))*(1+'El og plugin hybrid'!O$37/100)^-$B62","v":0},null,{"$f":"(IF($B62<='El og plugin hybrid'!Q$34,'El og plugin hybrid'!Q$16,0)+IF($B62<='El og plugin hybrid'!Q$34,'El og plugin hybrid'!Q$17,0)+IF($B62<='El og plugin hybrid'!Q$34,'El og plugin hybrid'!Q$47,0)+IF($B62<='El og plugin hybrid'!Q$34,'El og plugin hybrid'!Q$48,0))*(1+'El og plugin hybrid'!Q$37/100)^-$B62","v":0},null,{"$f":"(IF($B62<='El og plugin hybrid'!S$34,'El og plugin hybrid'!S$16,0)+IF($B62<='El og plugin hybrid'!S$34,'El og plugin hybrid'!S$17,0)+IF($B62<='El og plugin hybrid'!S$34,'El og plugin hybrid'!S$47,0)+IF($B62<='El og plugin hybrid'!S$34,'El og plugin hybrid'!S$48,0))*(1+'El og plugin hybrid'!S$37/100)^-$B62","v":0}]
[null,3,3,null,{"$f":"(IF($B63<='El og plugin hybrid'!E$34,'El og plugin hybrid'!E$16,0)+IF($B63<='El og plugin hybrid'!E$34,'El og plugin hybrid'!E$17,0)+IF($B63<='El og plugin hybrid'!E$34,'El og plugin hybrid'!E$47,0)+IF($B63<='El og plugin hybrid'!E$34,'El og plugin hybrid'!E$48,0))*(1+'El og plugin hybrid'!E$37/100)^-$B63","v":0},null,{"$f":"(IF($B63<='El og plugin hybrid'!G$34,'El og plugin hybrid'!G$16,0)+IF($B63<='El og plugin hybrid'!G$34,'El og plugin hybrid'!G$17,0)+IF($B63<='El og plugin hybrid'!G$34,'El og plugin hybrid'!G$47,0)+IF($B63<='El og plugin hybrid'!G$34,'El og plugin hybrid'!G$48,0))*(1+'El og plugin hybrid'!G$37/100)^-$B63","v":0},null,{"$f":"(IF($B63<='El og plugin hybrid'!I$34,'El og plugin hybrid'!I$16,0)+IF($B63<='El og plugin hybrid'!I$34,'El og plugin hybrid'!I$17,0)+IF($B63<='El og plugin hybrid'!I$34,'El og plugin hybrid'!I$47,0)+IF($B63<='El og plugin hybrid'!I$34,'El og plugin hybrid'!I$48,0))*(1+'El og plugin hybrid'!I$37/100)^-$B63","v":0},null,{"$f":"(IF($B63<='El og plugin hybrid'!K$34,'El og plugin hybrid'!K$16,0)+IF($B63<='El og plugin hybrid'!K$34,'El og plugin hybrid'!K$17,0)+IF($B63<='El og plugin hybrid'!K$34,'El og plugin hybrid'!K$47,0)+IF($B63<='El og plugin hybrid'!K$34,'El og plugin hybrid'!K$48,0))*(1+'El og plugin hybrid'!K$37/100)^-$B63","v":0},null,{"$f":"(IF($B63<='El og plugin hybrid'!M$34,'El og plugin hybrid'!M$16,0)+IF($B63<='El og plugin hybrid'!M$34,'El og plugin hybrid'!M$17,0)+IF($B63<='El og plugin hybrid'!M$34,'El og plugin hybrid'!M$47,0)+IF($B63<='El og plugin hybrid'!M$34,'El og plugin hybrid'!M$48,0))*(1+'El og plugin hybrid'!M$37/100)^-$B63","v":0},null,{"$f":"(IF($B63<='El og plugin hybrid'!O$34,'El og plugin hybrid'!O$16,0)+IF($B63<='El og plugin hybrid'!O$34,'El og plugin hybrid'!O$17,0)+IF($B63<='El og plugin hybrid'!O$34,'El og plugin hybrid'!O$47,0)+IF($B63<='El og plugin hybrid'!O$34,'El og plugin hybrid'!O$48,0))*(1+'El og plugin hybrid'!O$37/100)^-$B63","v":0},null,{"$f":"(IF($B63<='El og plugin hybrid'!Q$34,'El og plugin hybrid'!Q$16,0)+IF($B63<='El og plugin hybrid'!Q$34,'El og plugin hybrid'!Q$17,0)+IF($B63<='El og plugin hybrid'!Q$34,'El og plugin hybrid'!Q$47,0)+IF($B63<='El og plugin hybrid'!Q$34,'El og plugin hybrid'!Q$48,0))*(1+'El og plugin hybrid'!Q$37/100)^-$B63","v":0},null,{"$f":"(IF($B63<='El og plugin hybrid'!S$34,'El og plugin hybrid'!S$16,0)+IF($B63<='El og plugin hybrid'!S$34,'El og plugin hybrid'!S$17,0)+IF($B63<='El og plugin hybrid'!S$34,'El og plugin hybrid'!S$47,0)+IF($B63<='El og plugin hybrid'!S$34,'El og plugin hybrid'!S$48,0))*(1+'El og plugin hybrid'!S$37/100)^-$B63","v":0}]
[null,4,4,null,{"$f":"(IF($B64<='El og plugin hybrid'!E$34,'El og plugin hybrid'!E$16,0)+IF($B64<='El og plugin hybrid'!E$34,'El og plugin hybrid'!E$17,0)+IF($B64<='El og plugin hybrid'!E$34,'El og plugin hybrid'!E$47,0)+IF($B64<='El og plugin hybrid'!E$34,'El og plugin hybrid'!E$48,0))*(1+'El og plugin hybrid'!E$37/100)^-$B64","v":0},null,{"$f":"(IF($B64<='El og plugin hybrid'!G$34,'El og plugin hybrid'!G$16,0)+IF($B64<='El og plugin hybrid'!G$34,'El og plugin hybrid'!G$17,0)+IF($B64<='El og plugin hybrid'!G$34,'El og plugin hybrid'!G$47,0)+IF($B64<='El og plugin hybrid'!G$34,'El og plugin hybrid'!G$48,0))*(1+'El og plugin hybrid'!G$37/100)^-$B64","v":0},null,{"$f":"(IF($B64<='El og plugin hybrid'!I$34,'El og plugin hybrid'!I$16,0)+IF($B64<='El og plugin hybrid'!I$34,'El og plugin hybrid'!I$17,0)+IF($B64<='El og plugin hybrid'!I$34,'El og plugin hybrid'!I$47,0)+IF($B64<='El og plugin hybrid'!I$34,'El og plugin hybrid'!I$48,0))*(1+'El og plugin hybrid'!I$37/100)^-$B64","v":0},null,{"$f":"(IF($B64<='El og plugin hybrid'!K$34,'El og plugin hybrid'!K$16,0)+IF($B64<='El og plugin hybrid'!K$34,'El og plugin hybrid'!K$17,0)+IF($B64<='El og plugin hybrid'!K$34,'El og plugin hybrid'!K$47,0)+IF($B64<='El og plugin hybrid'!K$34,'El og plugin hybrid'!K$48,0))*(1+'El og plugin hybrid'!K$37/100)^-$B64","v":0},null,{"$f":"(IF($B64<='El og plugin hybrid'!M$34,'El og plugin hybrid'!M$16,0)+IF($B64<='El og plugin hybrid'!M$34,'El og plugin hybrid'!M$17,0)+IF($B64<='El og plugin hybrid'!M$34,'El og plugin hybrid'!M$47,0)+IF($B64<='El og plugin hybrid'!M$34,'El og plugin hybrid'!M$48,0))*(1+'El og plugin hybrid'!M$37/100)^-$B64","v":0},null,{"$f":"(IF($B64<='El og plugin hybrid'!O$34,'El og plugin hybrid'!O$16,0)+IF($B64<='El og plugin hybrid'!O$34,'El og plugin hybrid'!O$17,0)+IF($B64<='El og plugin hybrid'!O$34,'El og plugin hybrid'!O$47,0)+IF($B64<='El og plugin hybrid'!O$34,'El og plugin hybrid'!O$48,0))*(1+'El og plugin hybrid'!O$37/100)^-$B64","v":0},null,{"$f":"(IF($B64<='El og plugin hybrid'!Q$34,'El og plugin hybrid'!Q$16,0)+IF($B64<='El og plugin hybrid'!Q$34,'El og plugin hybrid'!Q$17,0)+IF($B64<='El og plugin hybrid'!Q$34,'El og plugin hybrid'!Q$47,0)+IF($B64<='El og plugin hybrid'!Q$34,'El og plugin hybrid'!Q$48,0))*(1+'El og plugin hybrid'!Q$37/100)^-$B64","v":0},null,{"$f":"(IF($B64<='El og plugin hybrid'!S$34,'El og plugin hybrid'!S$16,0)+IF($B64<='El og plugin hybrid'!S$34,'El og plugin hybrid'!S$17,0)+IF($B64<='El og plugin hybrid'!S$34,'El og plugin hybrid'!S$47,0)+IF($B64<='El og plugin hybrid'!S$34,'El og plugin hybrid'!S$48,0))*(1+'El og plugin hybrid'!S$37/100)^-$B64","v":0}]
[null,5,5,null,{"$f":"(IF($B65<='El og plugin hybrid'!E$34,'El og plugin hybrid'!E$16,0)+IF($B65<='El og plugin hybrid'!E$34,'El og plugin hybrid'!E$17,0)+IF($B65<='El og plugin hybrid'!E$34,'El og plugin hybrid'!E$47,0)+IF($B65<='El og plugin hybrid'!E$34,'El og plugin hybrid'!E$48,0))*(1+'El og plugin hybrid'!E$37/100)^-$B65","v":0},null,{"$f":"(IF($B65<='El og plugin hybrid'!G$34,'El og plugin hybrid'!G$16,0)+IF($B65<='El og plugin hybrid'!G$34,'El og plugin hybrid'!G$17,0)+IF($B65<='El og plugin hybrid'!G$34,'El og plugin hybrid'!G$47,0)+IF($B65<='El og plugin hybrid'!G$34,'El og plugin hybrid'!G$48,0))*(1+'El og plugin hybrid'!G$37/100)^-$B65","v":0},null,{"$f":"(IF($B65<='El og plugin hybrid'!I$34,'El og plugin hybrid'!I$16,0)+IF($B65<='El og plugin hybrid'!I$34,'El og plugin hybrid'!I$17,0)+IF($B65<='El og plugin hybrid'!I$34,'El og plugin hybrid'!I$47,0)+IF($B65<='El og plugin hybrid'!I$34,'El og plugin hybrid'!I$48,0))*(1+'El og plugin hybrid'!I$37/100)^-$B65","v":0},null,{"$f":"(IF($B65<='El og plugin hybrid'!K$34,'El og plugin hybrid'!K$16,0)+IF($B65<='El og plugin hybrid'!K$34,'El og plugin hybrid'!K$17,0)+IF($B65<='El og plugin hybrid'!K$34,'El og plugin hybrid'!K$47,0)+IF($B65<='El og plugin hybrid'!K$34,'El og plugin hybrid'!K$48,0))*(1+'El og plugin hybrid'!K$37/100)^-$B65","v":0},null,{"$f":"(IF($B65<='El og plugin hybrid'!M$34,'El og plugin hybrid'!M$16,0)+IF($B65<='El og plugin hybrid'!M$34,'El og plugin hybrid'!M$17,0)+IF($B65<='El og plugin hybrid'!M$34,'El og plugin hybrid'!M$47,0)+IF($B65<='El og plugin hybrid'!M$34,'El og plugin hybrid'!M$48,0))*(1+'El og plugin hybrid'!M$37/100)^-$B65","v":0},null,{"$f":"(IF($B65<='El og plugin hybrid'!O$34,'El og plugin hybrid'!O$16,0)+IF($B65<='El og plugin hybrid'!O$34,'El og plugin hybrid'!O$17,0)+IF($B65<='El og plugin hybrid'!O$34,'El og plugin hybrid'!O$47,0)+IF($B65<='El og plugin hybrid'!O$34,'El og plugin hybrid'!O$48,0))*(1+'El og plugin hybrid'!O$37/100)^-$B65","v":0},null,{"$f":"(IF($B65<='El og plugin hybrid'!Q$34,'El og plugin hybrid'!Q$16,0)+IF($B65<='El og plugin hybrid'!Q$34,'El og plugin hybrid'!Q$17,0)+IF($B65<='El og plugin hybrid'!Q$34,'El og plugin hybrid'!Q$47,0)+IF($B65<='El og plugin hybrid'!Q$34,'El og plugin hybrid'!Q$48,0))*(1+'El og plugin hybrid'!Q$37/100)^-$B65","v":0},null,{"$f":"(IF($B65<='El og plugin hybrid'!S$34,'El og plugin hybrid'!S$16,0)+IF($B65<='El og plugin hybrid'!S$34,'El og plugin hybrid'!S$17,0)+IF($B65<='El og plugin hybrid'!S$34,'El og plugin hybrid'!S$47,0)+IF($B65<='El og plugin hybrid'!S$34,'El og plugin hybrid'!S$48,0))*(1+'El og plugin hybrid'!S$37/100)^-$B65","v":0}]
[null,6,6,null,{"$f":"(IF($B66<='El og plugin hybrid'!E$34,'El og plugin hybrid'!E$16,0)+IF($B66<='El og plugin hybrid'!E$34,'El og plugin hybrid'!E$17,0)+IF($B66<='El og plugin hybrid'!E$34,'El og plugin hybrid'!E$47,0)+IF($B66<='El og plugin hybrid'!E$34,'El og plugin hybrid'!E$48,0))*(1+'El og plugin hybrid'!E$37/100)^-$B66","v":0},null,{"$f":"(IF($B66<='El og plugin hybrid'!G$34,'El og plugin hybrid'!G$16,0)+IF($B66<='El og plugin hybrid'!G$34,'El og plugin hybrid'!G$17,0)+IF($B66<='El og plugin hybrid'!G$34,'El og plugin hybrid'!G$47,0)+IF($B66<='El og plugin hybrid'!G$34,'El og plugin hybrid'!G$48,0))*(1+'El og plugin hybrid'!G$37/100)^-$B66","v":0},null,{"$f":"(IF($B66<='El og plugin hybrid'!I$34,'El og plugin hybrid'!I$16,0)+IF($B66<='El og plugin hybrid'!I$34,'El og plugin hybrid'!I$17,0)+IF($B66<='El og plugin hybrid'!I$34,'El og plugin hybrid'!I$47,0)+IF($B66<='El og plugin hybrid'!I$34,'El og plugin hybrid'!I$48,0))*(1+'El og plugin hybrid'!I$37/100)^-$B66","v":0},null,{"$f":"(IF($B66<='El og plugin hybrid'!K$34,'El og plugin hybrid'!K$16,0)+IF($B66<='El og plugin hybrid'!K$34,'El og plugin hybrid'!K$17,0)+IF($B66<='El og plugin hybrid'!K$34,'El og plugin hybrid'!K$47,0)+IF($B66<='El og plugin hybrid'!K$34,'El og plugin hybrid'!K$48,0))*(1+'El og plugin hybrid'!K$37/100)^-$B66","v":0},null,{"$f":"(IF($B66<='El og plugin hybrid'!M$34,'El og plugin hybrid'!M$16,0)+IF($B66<='El og plugin hybrid'!M$34,'El og plugin hybrid'!M$17,0)+IF($B66<='El og plugin hybrid'!M$34,'El og plugin hybrid'!M$47,0)+IF($B66<='El og plugin hybrid'!M$34,'El og plugin hybrid'!M$48,0))*(1+'El og plugin hybrid'!M$37/100)^-$B66","v":0},null,{"$f":"(IF($B66<='El og plugin hybrid'!O$34,'El og plugin hybrid'!O$16,0)+IF($B66<='El og plugin hybrid'!O$34,'El og plugin hybrid'!O$17,0)+IF($B66<='El og plugin hybrid'!O$34,'El og plugin hybrid'!O$47,0)+IF($B66<='El og plugin hybrid'!O$34,'El og plugin hybrid'!O$48,0))*(1+'El og plugin hybrid'!O$37/100)^-$B66","v":0},null,{"$f":"(IF($B66<='El og plugin hybrid'!Q$34,'El og plugin hybrid'!Q$16,0)+IF($B66<='El og plugin hybrid'!Q$34,'El og plugin hybrid'!Q$17,0)+IF($B66<='El og plugin hybrid'!Q$34,'El og plugin hybrid'!Q$47,0)+IF($B66<='El og plugin hybrid'!Q$34,'El og plugin hybrid'!Q$48,0))*(1+'El og plugin hybrid'!Q$37/100)^-$B66","v":0},null,{"$f":"(IF($B66<='El og plugin hybrid'!S$34,'El og plugin hybrid'!S$16,0)+IF($B66<='El og plugin hybrid'!S$34,'El og plugin hybrid'!S$17,0)+IF($B66<='El og plugin hybrid'!S$34,'El og plugin hybrid'!S$47,0)+IF($B66<='El og plugin hybrid'!S$34,'El og plugin hybrid'!S$48,0))*(1+'El og plugin hybrid'!S$37/100)^-$B66","v":0}]
[null,7,7,null,{"$f":"(IF($B67<='El og plugin hybrid'!E$34,'El og plugin hybrid'!E$16,0)+IF($B67<='El og plugin hybrid'!E$34,'El og plugin hybrid'!E$17,0)+IF($B67<='El og plugin hybrid'!E$34,'El og plugin hybrid'!E$47,0)+IF($B67<='El og plugin hybrid'!E$34,'El og plugin hybrid'!E$48,0))*(1+'El og plugin hybrid'!E$37/100)^-$B67","v":0},null,{"$f":"(IF($B67<='El og plugin hybrid'!G$34,'El og plugin hybrid'!G$16,0)+IF($B67<='El og plugin hybrid'!G$34,'El og plugin hybrid'!G$17,0)+IF($B67<='El og plugin hybrid'!G$34,'El og plugin hybrid'!G$47,0)+IF($B67<='El og plugin hybrid'!G$34,'El og plugin hybrid'!G$48,0))*(1+'El og plugin hybrid'!G$37/100)^-$B67","v":0},null,{"$f":"(IF($B67<='El og plugin hybrid'!I$34,'El og plugin hybrid'!I$16,0)+IF($B67<='El og plugin hybrid'!I$34,'El og plugin hybrid'!I$17,0)+IF($B67<='El og plugin hybrid'!I$34,'El og plugin hybrid'!I$47,0)+IF($B67<='El og plugin hybrid'!I$34,'El og plugin hybrid'!I$48,0))*(1+'El og plugin hybrid'!I$37/100)^-$B67","v":0},null,{"$f":"(IF($B67<='El og plugin hybrid'!K$34,'El og plugin hybrid'!K$16,0)+IF($B67<='El og plugin hybrid'!K$34,'El og plugin hybrid'!K$17,0)+IF($B67<='El og plugin hybrid'!K$34,'El og plugin hybrid'!K$47,0)+IF($B67<='El og plugin hybrid'!K$34,'El og plugin hybrid'!K$48,0))*(1+'El og plugin hybrid'!K$37/100)^-$B67","v":0},null,{"$f":"(IF($B67<='El og plugin hybrid'!M$34,'El og plugin hybrid'!M$16,0)+IF($B67<='El og plugin hybrid'!M$34,'El og plugin hybrid'!M$17,0)+IF($B67<='El og plugin hybrid'!M$34,'El og plugin hybrid'!M$47,0)+IF($B67<='El og plugin hybrid'!M$34,'El og plugin hybrid'!M$48,0))*(1+'El og plugin hybrid'!M$37/100)^-$B67","v":0},null,{"$f":"(IF($B67<='El og plugin hybrid'!O$34,'El og plugin hybrid'!O$16,0)+IF($B67<='El og plugin hybrid'!O$34,'El og plugin hybrid'!O$17,0)+IF($B67<='El og plugin hybrid'!O$34,'El og plugin hybrid'!O$47,0)+IF($B67<='El og plugin hybrid'!O$34,'El og plugin hybrid'!O$48,0))*(1+'El og plugin hybrid'!O$37/100)^-$B67","v":0},null,{"$f":"(IF($B67<='El og plugin hybrid'!Q$34,'El og plugin hybrid'!Q$16,0)+IF($B67<='El og plugin hybrid'!Q$34,'El og plugin hybrid'!Q$17,0)+IF($B67<='El og plugin hybrid'!Q$34,'El og plugin hybrid'!Q$47,0)+IF($B67<='El og plugin hybrid'!Q$34,'El og plugin hybrid'!Q$48,0))*(1+'El og plugin hybrid'!Q$37/100)^-$B67","v":0},null,{"$f":"(IF($B67<='El og plugin hybrid'!S$34,'El og plugin hybrid'!S$16,0)+IF($B67<='El og plugin hybrid'!S$34,'El og plugin hybrid'!S$17,0)+IF($B67<='El og plugin hybrid'!S$34,'El og plugin hybrid'!S$47,0)+IF($B67<='El og plugin hybrid'!S$34,'El og plugin hybrid'!S$48,0))*(1+'El og plugin hybrid'!S$37/100)^-$B67","v":0}]
[null,8,8,null,{"$f":"(IF($B68<='El og plugin hybrid'!E$34,'El og plugin hybrid'!E$16,0)+IF($B68<='El og plugin hybrid'!E$34,'El og plugin hybrid'!E$17,0)+IF($B68<='El og plugin hybrid'!E$34,'El og plugin hybrid'!E$47,0)+IF($B68<='El og plugin hybrid'!E$34,'El og plugin hybrid'!E$48,0))*(1+'El og plugin hybrid'!E$37/100)^-$B68","v":0},null,{"$f":"(IF($B68<='El og plugin hybrid'!G$34,'El og plugin hybrid'!G$16,0)+IF($B68<='El og plugin hybrid'!G$34,'El og plugin hybrid'!G$17,0)+IF($B68<='El og plugin hybrid'!G$34,'El og plugin hybrid'!G$47,0)+IF($B68<='El og plugin hybrid'!G$34,'El og plugin hybrid'!G$48,0))*(1+'El og plugin hybrid'!G$37/100)^-$B68","v":0},null,{"$f":"(IF($B68<='El og plugin hybrid'!I$34,'El og plugin hybrid'!I$16,0)+IF($B68<='El og plugin hybrid'!I$34,'El og plugin hybrid'!I$17,0)+IF($B68<='El og plugin hybrid'!I$34,'El og plugin hybrid'!I$47,0)+IF($B68<='El og plugin hybrid'!I$34,'El og plugin hybrid'!I$48,0))*(1+'El og plugin hybrid'!I$37/100)^-$B68","v":0},null,{"$f":"(IF($B68<='El og plugin hybrid'!K$34,'El og plugin hybrid'!K$16,0)+IF($B68<='El og plugin hybrid'!K$34,'El og plugin hybrid'!K$17,0)+IF($B68<='El og plugin hybrid'!K$34,'El og plugin hybrid'!K$47,0)+IF($B68<='El og plugin hybrid'!K$34,'El og plugin hybrid'!K$48,0))*(1+'El og plugin hybrid'!K$37/100)^-$B68","v":0},null,{"$f":"(IF($B68<='El og plugin hybrid'!M$34,'El og plugin hybrid'!M$16,0)+IF($B68<='El og plugin hybrid'!M$34,'El og plugin hybrid'!M$17,0)+IF($B68<='El og plugin hybrid'!M$34,'El og plugin hybrid'!M$47,0)+IF($B68<='El og plugin hybrid'!M$34,'El og plugin hybrid'!M$48,0))*(1+'El og plugin hybrid'!M$37/100)^-$B68","v":0},null,{"$f":"(IF($B68<='El og plugin hybrid'!O$34,'El og plugin hybrid'!O$16,0)+IF($B68<='El og plugin hybrid'!O$34,'El og plugin hybrid'!O$17,0)+IF($B68<='El og plugin hybrid'!O$34,'El og plugin hybrid'!O$47,0)+IF($B68<='El og plugin hybrid'!O$34,'El og plugin hybrid'!O$48,0))*(1+'El og plugin hybrid'!O$37/100)^-$B68","v":0},null,{"$f":"(IF($B68<='El og plugin hybrid'!Q$34,'El og plugin hybrid'!Q$16,0)+IF($B68<='El og plugin hybrid'!Q$34,'El og plugin hybrid'!Q$17,0)+IF($B68<='El og plugin hybrid'!Q$34,'El og plugin hybrid'!Q$47,0)+IF($B68<='El og plugin hybrid'!Q$34,'El og plugin hybrid'!Q$48,0))*(1+'El og plugin hybrid'!Q$37/100)^-$B68","v":0},null,{"$f":"(IF($B68<='El og plugin hybrid'!S$34,'El og plugin hybrid'!S$16,0)+IF($B68<='El og plugin hybrid'!S$34,'El og plugin hybrid'!S$17,0)+IF($B68<='El og plugin hybrid'!S$34,'El og plugin hybrid'!S$47,0)+IF($B68<='El og plugin hybrid'!S$34,'El og plugin hybrid'!S$48,0))*(1+'El og plugin hybrid'!S$37/100)^-$B68","v":0}]
[null,9,9,null,{"$f":"(IF($B69<='El og plugin hybrid'!E$34,'El og plugin hybrid'!E$16,0)+IF($B69<='El og plugin hybrid'!E$34,'El og plugin hybrid'!E$17,0)+IF($B69<='El og plugin hybrid'!E$34,'El og plugin hybrid'!E$47,0)+IF($B69<='El og plugin hybrid'!E$34,'El og plugin hybrid'!E$48,0))*(1+'El og plugin hybrid'!E$37/100)^-$B69","v":0},null,{"$f":"(IF($B69<='El og plugin hybrid'!G$34,'El og plugin hybrid'!G$16,0)+IF($B69<='El og plugin hybrid'!G$34,'El og plugin hybrid'!G$17,0)+IF($B69<='El og plugin hybrid'!G$34,'El og plugin hybrid'!G$47,0)+IF($B69<='El og plugin hybrid'!G$34,'El og plugin hybrid'!G$48,0))*(1+'El og plugin hybrid'!G$37/100)^-$B69","v":0},null,{"$f":"(IF($B69<='El og plugin hybrid'!I$34,'El og plugin hybrid'!I$16,0)+IF($B69<='El og plugin hybrid'!I$34,'El og plugin hybrid'!I$17,0)+IF($B69<='El og plugin hybrid'!I$34,'El og plugin hybrid'!I$47,0)+IF($B69<='El og plugin hybrid'!I$34,'El og plugin hybrid'!I$48,0))*(1+'El og plugin hybrid'!I$37/100)^-$B69","v":0},null,{"$f":"(IF($B69<='El og plugin hybrid'!K$34,'El og plugin hybrid'!K$16,0)+IF($B69<='El og plugin hybrid'!K$34,'El og plugin hybrid'!K$17,0)+IF($B69<='El og plugin hybrid'!K$34,'El og plugin hybrid'!K$47,0)+IF($B69<='El og plugin hybrid'!K$34,'El og plugin hybrid'!K$48,0))*(1+'El og plugin hybrid'!K$37/100)^-$B69","v":0},null,{"$f":"(IF($B69<='El og plugin hybrid'!M$34,'El og plugin hybrid'!M$16,0)+IF($B69<='El og plugin hybrid'!M$34,'El og plugin hybrid'!M$17,0)+IF($B69<='El og plugin hybrid'!M$34,'El og plugin hybrid'!M$47,0)+IF($B69<='El og plugin hybrid'!M$34,'El og plugin hybrid'!M$48,0))*(1+'El og plugin hybrid'!M$37/100)^-$B69","v":0},null,{"$f":"(IF($B69<='El og plugin hybrid'!O$34,'El og plugin hybrid'!O$16,0)+IF($B69<='El og plugin hybrid'!O$34,'El og plugin hybrid'!O$17,0)+IF($B69<='El og plugin hybrid'!O$34,'El og plugin hybrid'!O$47,0)+IF($B69<='El og plugin hybrid'!O$34,'El og plugin hybrid'!O$48,0))*(1+'El og plugin hybrid'!O$37/100)^-$B69","v":0},null,{"$f":"(IF($B69<='El og plugin hybrid'!Q$34,'El og plugin hybrid'!Q$16,0)+IF($B69<='El og plugin hybrid'!Q$34,'El og plugin hybrid'!Q$17,0)+IF($B69<='El og plugin hybrid'!Q$34,'El og plugin hybrid'!Q$47,0)+IF($B69<='El og plugin hybrid'!Q$34,'El og plugin hybrid'!Q$48,0))*(1+'El og plugin hybrid'!Q$37/100)^-$B69","v":0},null,{"$f":"(IF($B69<='El og plugin hybrid'!S$34,'El og plugin hybrid'!S$16,0)+IF($B69<='El og plugin hybrid'!S$34,'El og plugin hybrid'!S$17,0)+IF($B69<='El og plugin hybrid'!S$34,'El og plugin hybrid'!S$47,0)+IF($B69<='El og plugin hybrid'!S$34,'El og plugin hybrid'!S$48,0))*(1+'El og plugin hybrid'!S$37/100)^-$B69","v":0}]
[null,10,10,null,{"$f":"(IF($B70<='El og plugin hybrid'!E$34,'El og plugin hybrid'!E$16,0)+IF($B70<='El og plugin hybrid'!E$34,'El og plugin hybrid'!E$17,0)+IF($B70<='El og plugin hybrid'!E$34,'El og plugin hybrid'!E$47,0)+IF($B70<='El og plugin hybrid'!E$34,'El og plugin hybrid'!E$48,0))*(1+'El og plugin hybrid'!E$37/100)^-$B70","v":0},null,{"$f":"(IF($B70<='El og plugin hybrid'!G$34,'El og plugin hybrid'!G$16,0)+IF($B70<='El og plugin hybrid'!G$34,'El og plugin hybrid'!G$17,0)+IF($B70<='El og plugin hybrid'!G$34,'El og plugin hybrid'!G$47,0)+IF($B70<='El og plugin hybrid'!G$34,'El og plugin hybrid'!G$48,0))*(1+'El og plugin hybrid'!G$37/100)^-$B70","v":0},null,{"$f":"(IF($B70<='El og plugin hybrid'!I$34,'El og plugin hybrid'!I$16,0)+IF($B70<='El og plugin hybrid'!I$34,'El og plugin hybrid'!I$17,0)+IF($B70<='El og plugin hybrid'!I$34,'El og plugin hybrid'!I$47,0)+IF($B70<='El og plugin hybrid'!I$34,'El og plugin hybrid'!I$48,0))*(1+'El og plugin hybrid'!I$37/100)^-$B70","v":0},null,{"$f":"(IF($B70<='El og plugin hybrid'!K$34,'El og plugin hybrid'!K$16,0)+IF($B70<='El og plugin hybrid'!K$34,'El og plugin hybrid'!K$17,0)+IF($B70<='El og plugin hybrid'!K$34,'El og plugin hybrid'!K$47,0)+IF($B70<='El og plugin hybrid'!K$34,'El og plugin hybrid'!K$48,0))*(1+'El og plugin hybrid'!K$37/100)^-$B70","v":0},null,{"$f":"(IF($B70<='El og plugin hybrid'!M$34,'El og plugin hybrid'!M$16,0)+IF($B70<='El og plugin hybrid'!M$34,'El og plugin hybrid'!M$17,0)+IF($B70<='El og plugin hybrid'!M$34,'El og plugin hybrid'!M$47,0)+IF($B70<='El og plugin hybrid'!M$34,'El og plugin hybrid'!M$48,0))*(1+'El og plugin hybrid'!M$37/100)^-$B70","v":0},null,{"$f":"(IF($B70<='El og plugin hybrid'!O$34,'El og plugin hybrid'!O$16,0)+IF($B70<='El og plugin hybrid'!O$34,'El og plugin hybrid'!O$17,0)+IF($B70<='El og plugin hybrid'!O$34,'El og plugin hybrid'!O$47,0)+IF($B70<='El og plugin hybrid'!O$34,'El og plugin hybrid'!O$48,0))*(1+'El og plugin hybrid'!O$37/100)^-$B70","v":0},null,{"$f":"(IF($B70<='El og plugin hybrid'!Q$34,'El og plugin hybrid'!Q$16,0)+IF($B70<='El og plugin hybrid'!Q$34,'El og plugin hybrid'!Q$17,0)+IF($B70<='El og plugin hybrid'!Q$34,'El og plugin hybrid'!Q$47,0)+IF($B70<='El og plugin hybrid'!Q$34,'El og plugin hybrid'!Q$48,0))*(1+'El og plugin hybrid'!Q$37/100)^-$B70","v":0},null,{"$f":"(IF($B70<='El og plugin hybrid'!S$34,'El og plugin hybrid'!S$16,0)+IF($B70<='El og plugin hybrid'!S$34,'El og plugin hybrid'!S$17,0)+IF($B70<='El og plugin hybrid'!S$34,'El og plugin hybrid'!S$47,0)+IF($B70<='El og plugin hybrid'!S$34,'El og plugin hybrid'!S$48,0))*(1+'El og plugin hybrid'!S$37/100)^-$B70","v":0}]
[null,11,11,null,{"$f":"(IF($B71<='El og plugin hybrid'!E$34,'El og plugin hybrid'!E$16,0)+IF($B71<='El og plugin hybrid'!E$34,'El og plugin hybrid'!E$17,0)+IF($B71<='El og plugin hybrid'!E$34,'El og plugin hybrid'!E$47,0)+IF($B71<='El og plugin hybrid'!E$34,'El og plugin hybrid'!E$48,0))*(1+'El og plugin hybrid'!E$37/100)^-$B71","v":0},null,{"$f":"(IF($B71<='El og plugin hybrid'!G$34,'El og plugin hybrid'!G$16,0)+IF($B71<='El og plugin hybrid'!G$34,'El og plugin hybrid'!G$17,0)+IF($B71<='El og plugin hybrid'!G$34,'El og plugin hybrid'!G$47,0)+IF($B71<='El og plugin hybrid'!G$34,'El og plugin hybrid'!G$48,0))*(1+'El og plugin hybrid'!G$37/100)^-$B71","v":0},null,{"$f":"(IF($B71<='El og plugin hybrid'!I$34,'El og plugin hybrid'!I$16,0)+IF($B71<='El og plugin hybrid'!I$34,'El og plugin hybrid'!I$17,0)+IF($B71<='El og plugin hybrid'!I$34,'El og plugin hybrid'!I$47,0)+IF($B71<='El og plugin hybrid'!I$34,'El og plugin hybrid'!I$48,0))*(1+'El og plugin hybrid'!I$37/100)^-$B71","v":0},null,{"$f":"(IF($B71<='El og plugin hybrid'!K$34,'El og plugin hybrid'!K$16,0)+IF($B71<='El og plugin hybrid'!K$34,'El og plugin hybrid'!K$17,0)+IF($B71<='El og plugin hybrid'!K$34,'El og plugin hybrid'!K$47,0)+IF($B71<='El og plugin hybrid'!K$34,'El og plugin hybrid'!K$48,0))*(1+'El og plugin hybrid'!K$37/100)^-$B71","v":0},null,{"$f":"(IF($B71<='El og plugin hybrid'!M$34,'El og plugin hybrid'!M$16,0)+IF($B71<='El og plugin hybrid'!M$34,'El og plugin hybrid'!M$17,0)+IF($B71<='El og plugin hybrid'!M$34,'El og plugin hybrid'!M$47,0)+IF($B71<='El og plugin hybrid'!M$34,'El og plugin hybrid'!M$48,0))*(1+'El og plugin hybrid'!M$37/100)^-$B71","v":0},null,{"$f":"(IF($B71<='El og plugin hybrid'!O$34,'El og plugin hybrid'!O$16,0)+IF($B71<='El og plugin hybrid'!O$34,'El og plugin hybrid'!O$17,0)+IF($B71<='El og plugin hybrid'!O$34,'El og plugin hybrid'!O$47,0)+IF($B71<='El og plugin hybrid'!O$34,'El og plugin hybrid'!O$48,0))*(1+'El og plugin hybrid'!O$37/100)^-$B71","v":0},null,{"$f":"(IF($B71<='El og plugin hybrid'!Q$34,'El og plugin hybrid'!Q$16,0)+IF($B71<='El og plugin hybrid'!Q$34,'El og plugin hybrid'!Q$17,0)+IF($B71<='El og plugin hybrid'!Q$34,'El og plugin hybrid'!Q$47,0)+IF($B71<='El og plugin hybrid'!Q$34,'El og plugin hybrid'!Q$48,0))*(1+'El og plugin hybrid'!Q$37/100)^-$B71","v":0},null,{"$f":"(IF($B71<='El og plugin hybrid'!S$34,'El og plugin hybrid'!S$16,0)+IF($B71<='El og plugin hybrid'!S$34,'El og plugin hybrid'!S$17,0)+IF($B71<='El og plugin hybrid'!S$34,'El og plugin hybrid'!S$47,0)+IF($B71<='El og plugin hybrid'!S$34,'El og plugin hybrid'!S$48,0))*(1+'El og plugin hybrid'!S$37/100)^-$B71","v":0}]
[null,12,12,null,{"$f":"(IF($B72<='El og plugin hybrid'!E$34,'El og plugin hybrid'!E$16,0)+IF($B72<='El og plugin hybrid'!E$34,'El og plugin hybrid'!E$17,0)+IF($B72<='El og plugin hybrid'!E$34,'El og plugin hybrid'!E$47,0)+IF($B72<='El og plugin hybrid'!E$34,'El og plugin hybrid'!E$48,0))*(1+'El og plugin hybrid'!E$37/100)^-$B72","v":0},null,{"$f":"(IF($B72<='El og plugin hybrid'!G$34,'El og plugin hybrid'!G$16,0)+IF($B72<='El og plugin hybrid'!G$34,'El og plugin hybrid'!G$17,0)+IF($B72<='El og plugin hybrid'!G$34,'El og plugin hybrid'!G$47,0)+IF($B72<='El og plugin hybrid'!G$34,'El og plugin hybrid'!G$48,0))*(1+'El og plugin hybrid'!G$37/100)^-$B72","v":0},null,{"$f":"(IF($B72<='El og plugin hybrid'!I$34,'El og plugin hybrid'!I$16,0)+IF($B72<='El og plugin hybrid'!I$34,'El og plugin hybrid'!I$17,0)+IF($B72<='El og plugin hybrid'!I$34,'El og plugin hybrid'!I$47,0)+IF($B72<='El og plugin hybrid'!I$34,'El og plugin hybrid'!I$48,0))*(1+'El og plugin hybrid'!I$37/100)^-$B72","v":0},null,{"$f":"(IF($B72<='El og plugin hybrid'!K$34,'El og plugin hybrid'!K$16,0)+IF($B72<='El og plugin hybrid'!K$34,'El og plugin hybrid'!K$17,0)+IF($B72<='El og plugin hybrid'!K$34,'El og plugin hybrid'!K$47,0)+IF($B72<='El og plugin hybrid'!K$34,'El og plugin hybrid'!K$48,0))*(1+'El og plugin hybrid'!K$37/100)^-$B72","v":0},null,{"$f":"(IF($B72<='El og plugin hybrid'!M$34,'El og plugin hybrid'!M$16,0)+IF($B72<='El og plugin hybrid'!M$34,'El og plugin hybrid'!M$17,0)+IF($B72<='El og plugin hybrid'!M$34,'El og plugin hybrid'!M$47,0)+IF($B72<='El og plugin hybrid'!M$34,'El og plugin hybrid'!M$48,0))*(1+'El og plugin hybrid'!M$37/100)^-$B72","v":0},null,{"$f":"(IF($B72<='El og plugin hybrid'!O$34,'El og plugin hybrid'!O$16,0)+IF($B72<='El og plugin hybrid'!O$34,'El og plugin hybrid'!O$17,0)+IF($B72<='El og plugin hybrid'!O$34,'El og plugin hybrid'!O$47,0)+IF($B72<='El og plugin hybrid'!O$34,'El og plugin hybrid'!O$48,0))*(1+'El og plugin hybrid'!O$37/100)^-$B72","v":0},null,{"$f":"(IF($B72<='El og plugin hybrid'!Q$34,'El og plugin hybrid'!Q$16,0)+IF($B72<='El og plugin hybrid'!Q$34,'El og plugin hybrid'!Q$17,0)+IF($B72<='El og plugin hybrid'!Q$34,'El og plugin hybrid'!Q$47,0)+IF($B72<='El og plugin hybrid'!Q$34,'El og plugin hybrid'!Q$48,0))*(1+'El og plugin hybrid'!Q$37/100)^-$B72","v":0},null,{"$f":"(IF($B72<='El og plugin hybrid'!S$34,'El og plugin hybrid'!S$16,0)+IF($B72<='El og plugin hybrid'!S$34,'El og plugin hybrid'!S$17,0)+IF($B72<='El og plugin hybrid'!S$34,'El og plugin hybrid'!S$47,0)+IF($B72<='El og plugin hybrid'!S$34,'El og plugin hybrid'!S$48,0))*(1+'El og plugin hybrid'!S$37/100)^-$B72","v":0}]
[null,13,13,null,{"$f":"(IF($B73<='El og plugin hybrid'!E$34,'El og plugin hybrid'!E$16,0)+IF($B73<='El og plugin hybrid'!E$34,'El og plugin hybrid'!E$17,0)+IF($B73<='El og plugin hybrid'!E$34,'El og plugin hybrid'!E$47,0)+IF($B73<='El og plugin hybrid'!E$34,'El og plugin hybrid'!E$48,0))*(1+'El og plugin hybrid'!E$37/100)^-$B73","v":0},null,{"$f":"(IF($B73<='El og plugin hybrid'!G$34,'El og plugin hybrid'!G$16,0)+IF($B73<='El og plugin hybrid'!G$34,'El og plugin hybrid'!G$17,0)+IF($B73<='El og plugin hybrid'!G$34,'El og plugin hybrid'!G$47,0)+IF($B73<='El og plugin hybrid'!G$34,'El og plugin hybrid'!G$48,0))*(1+'El og plugin hybrid'!G$37/100)^-$B73","v":0},null,{"$f":"(IF($B73<='El og plugin hybrid'!I$34,'El og plugin hybrid'!I$16,0)+IF($B73<='El og plugin hybrid'!I$34,'El og plugin hybrid'!I$17,0)+IF($B73<='El og plugin hybrid'!I$34,'El og plugin hybrid'!I$47,0)+IF($B73<='El og plugin hybrid'!I$34,'El og plugin hybrid'!I$48,0))*(1+'El og plugin hybrid'!I$37/100)^-$B73","v":0},null,{"$f":"(IF($B73<='El og plugin hybrid'!K$34,'El og plugin hybrid'!K$16,0)+IF($B73<='El og plugin hybrid'!K$34,'El og plugin hybrid'!K$17,0)+IF($B73<='El og plugin hybrid'!K$34,'El og plugin hybrid'!K$47,0)+IF($B73<='El og plugin hybrid'!K$34,'El og plugin hybrid'!K$48,0))*(1+'El og plugin hybrid'!K$37/100)^-$B73","v":0},null,{"$f":"(IF($B73<='El og plugin hybrid'!M$34,'El og plugin hybrid'!M$16,0)+IF($B73<='El og plugin hybrid'!M$34,'El og plugin hybrid'!M$17,0)+IF($B73<='El og plugin hybrid'!M$34,'El og plugin hybrid'!M$47,0)+IF($B73<='El og plugin hybrid'!M$34,'El og plugin hybrid'!M$48,0))*(1+'El og plugin hybrid'!M$37/100)^-$B73","v":0},null,{"$f":"(IF($B73<='El og plugin hybrid'!O$34,'El og plugin hybrid'!O$16,0)+IF($B73<='El og plugin hybrid'!O$34,'El og plugin hybrid'!O$17,0)+IF($B73<='El og plugin hybrid'!O$34,'El og plugin hybrid'!O$47,0)+IF($B73<='El og plugin hybrid'!O$34,'El og plugin hybrid'!O$48,0))*(1+'El og plugin hybrid'!O$37/100)^-$B73","v":0},null,{"$f":"(IF($B73<='El og plugin hybrid'!Q$34,'El og plugin hybrid'!Q$16,0)+IF($B73<='El og plugin hybrid'!Q$34,'El og plugin hybrid'!Q$17,0)+IF($B73<='El og plugin hybrid'!Q$34,'El og plugin hybrid'!Q$47,0)+IF($B73<='El og plugin hybrid'!Q$34,'El og plugin hybrid'!Q$48,0))*(1+'El og plugin hybrid'!Q$37/100)^-$B73","v":0},null,{"$f":"(IF($B73<='El og plugin hybrid'!S$34,'El og plugin hybrid'!S$16,0)+IF($B73<='El og plugin hybrid'!S$34,'El og plugin hybrid'!S$17,0)+IF($B73<='El og plugin hybrid'!S$34,'El og plugin hybrid'!S$47,0)+IF($B73<='El og plugin hybrid'!S$34,'El og plugin hybrid'!S$48,0))*(1+'El og plugin hybrid'!S$37/100)^-$B73","v":0}]
[null,14,14,null,{"$f":"(IF($B74<='El og plugin hybrid'!E$34,'El og plugin hybrid'!E$16,0)+IF($B74<='El og plugin hybrid'!E$34,'El og plugin hybrid'!E$17,0)+IF($B74<='El og plugin hybrid'!E$34,'El og plugin hybrid'!E$47,0)+IF($B74<='El og plugin hybrid'!E$34,'El og plugin hybrid'!E$48,0))*(1+'El og plugin hybrid'!E$37/100)^-$B74","v":0},null,{"$f":"(IF($B74<='El og plugin hybrid'!G$34,'El og plugin hybrid'!G$16,0)+IF($B74<='El og plugin hybrid'!G$34,'El og plugin hybrid'!G$17,0)+IF($B74<='El og plugin hybrid'!G$34,'El og plugin hybrid'!G$47,0)+IF($B74<='El og plugin hybrid'!G$34,'El og plugin hybrid'!G$48,0))*(1+'El og plugin hybrid'!G$37/100)^-$B74","v":0},null,{"$f":"(IF($B74<='El og plugin hybrid'!I$34,'El og plugin hybrid'!I$16,0)+IF($B74<='El og plugin hybrid'!I$34,'El og plugin hybrid'!I$17,0)+IF($B74<='El og plugin hybrid'!I$34,'El og plugin hybrid'!I$47,0)+IF($B74<='El og plugin hybrid'!I$34,'El og plugin hybrid'!I$48,0))*(1+'El og plugin hybrid'!I$37/100)^-$B74","v":0},null,{"$f":"(IF($B74<='El og plugin hybrid'!K$34,'El og plugin hybrid'!K$16,0)+IF($B74<='El og plugin hybrid'!K$34,'El og plugin hybrid'!K$17,0)+IF($B74<='El og plugin hybrid'!K$34,'El og plugin hybrid'!K$47,0)+IF($B74<='El og plugin hybrid'!K$34,'El og plugin hybrid'!K$48,0))*(1+'El og plugin hybrid'!K$37/100)^-$B74","v":0},null,{"$f":"(IF($B74<='El og plugin hybrid'!M$34,'El og plugin hybrid'!M$16,0)+IF($B74<='El og plugin hybrid'!M$34,'El og plugin hybrid'!M$17,0)+IF($B74<='El og plugin hybrid'!M$34,'El og plugin hybrid'!M$47,0)+IF($B74<='El og plugin hybrid'!M$34,'El og plugin hybrid'!M$48,0))*(1+'El og plugin hybrid'!M$37/100)^-$B74","v":0},null,{"$f":"(IF($B74<='El og plugin hybrid'!O$34,'El og plugin hybrid'!O$16,0)+IF($B74<='El og plugin hybrid'!O$34,'El og plugin hybrid'!O$17,0)+IF($B74<='El og plugin hybrid'!O$34,'El og plugin hybrid'!O$47,0)+IF($B74<='El og plugin hybrid'!O$34,'El og plugin hybrid'!O$48,0))*(1+'El og plugin hybrid'!O$37/100)^-$B74","v":0},null,{"$f":"(IF($B74<='El og plugin hybrid'!Q$34,'El og plugin hybrid'!Q$16,0)+IF($B74<='El og plugin hybrid'!Q$34,'El og plugin hybrid'!Q$17,0)+IF($B74<='El og plugin hybrid'!Q$34,'El og plugin hybrid'!Q$47,0)+IF($B74<='El og plugin hybrid'!Q$34,'El og plugin hybrid'!Q$48,0))*(1+'El og plugin hybrid'!Q$37/100)^-$B74","v":0},null,{"$f":"(IF($B74<='El og plugin hybrid'!S$34,'El og plugin hybrid'!S$16,0)+IF($B74<='El og plugin hybrid'!S$34,'El og plugin hybrid'!S$17,0)+IF($B74<='El og plugin hybrid'!S$34,'El og plugin hybrid'!S$47,0)+IF($B74<='El og plugin hybrid'!S$34,'El og plugin hybrid'!S$48,0))*(1+'El og plugin hybrid'!S$37/100)^-$B74","v":0}]
[null,15,15,null,{"$f":"(IF($B75<='El og plugin hybrid'!E$34,'El og plugin hybrid'!E$16,0)+IF($B75<='El og plugin hybrid'!E$34,'El og plugin hybrid'!E$17,0)+IF($B75<='El og plugin hybrid'!E$34,'El og plugin hybrid'!E$47,0)+IF($B75<='El og plugin hybrid'!E$34,'El og plugin hybrid'!E$48,0))*(1+'El og plugin hybrid'!E$37/100)^-$B75","v":0},null,{"$f":"(IF($B75<='El og plugin hybrid'!G$34,'El og plugin hybrid'!G$16,0)+IF($B75<='El og plugin hybrid'!G$34,'El og plugin hybrid'!G$17,0)+IF($B75<='El og plugin hybrid'!G$34,'El og plugin hybrid'!G$47,0)+IF($B75<='El og plugin hybrid'!G$34,'El og plugin hybrid'!G$48,0))*(1+'El og plugin hybrid'!G$37/100)^-$B75","v":0},null,{"$f":"(IF($B75<='El og plugin hybrid'!I$34,'El og plugin hybrid'!I$16,0)+IF($B75<='El og plugin hybrid'!I$34,'El og plugin hybrid'!I$17,0)+IF($B75<='El og plugin hybrid'!I$34,'El og plugin hybrid'!I$47,0)+IF($B75<='El og plugin hybrid'!I$34,'El og plugin hybrid'!I$48,0))*(1+'El og plugin hybrid'!I$37/100)^-$B75","v":0},null,{"$f":"(IF($B75<='El og plugin hybrid'!K$34,'El og plugin hybrid'!K$16,0)+IF($B75<='El og plugin hybrid'!K$34,'El og plugin hybrid'!K$17,0)+IF($B75<='El og plugin hybrid'!K$34,'El og plugin hybrid'!K$47,0)+IF($B75<='El og plugin hybrid'!K$34,'El og plugin hybrid'!K$48,0))*(1+'El og plugin hybrid'!K$37/100)^-$B75","v":0},null,{"$f":"(IF($B75<='El og plugin hybrid'!M$34,'El og plugin hybrid'!M$16,0)+IF($B75<='El og plugin hybrid'!M$34,'El og plugin hybrid'!M$17,0)+IF($B75<='El og plugin hybrid'!M$34,'El og plugin hybrid'!M$47,0)+IF($B75<='El og plugin hybrid'!M$34,'El og plugin hybrid'!M$48,0))*(1+'El og plugin hybrid'!M$37/100)^-$B75","v":0},null,{"$f":"(IF($B75<='El og plugin hybrid'!O$34,'El og plugin hybrid'!O$16,0)+IF($B75<='El og plugin hybrid'!O$34,'El og plugin hybrid'!O$17,0)+IF($B75<='El og plugin hybrid'!O$34,'El og plugin hybrid'!O$47,0)+IF($B75<='El og plugin hybrid'!O$34,'El og plugin hybrid'!O$48,0))*(1+'El og plugin hybrid'!O$37/100)^-$B75","v":0},null,{"$f":"(IF($B75<='El og plugin hybrid'!Q$34,'El og plugin hybrid'!Q$16,0)+IF($B75<='El og plugin hybrid'!Q$34,'El og plugin hybrid'!Q$17,0)+IF($B75<='El og plugin hybrid'!Q$34,'El og plugin hybrid'!Q$47,0)+IF($B75<='El og plugin hybrid'!Q$34,'El og plugin hybrid'!Q$48,0))*(1+'El og plugin hybrid'!Q$37/100)^-$B75","v":0},null,{"$f":"(IF($B75<='El og plugin hybrid'!S$34,'El og plugin hybrid'!S$16,0)+IF($B75<='El og plugin hybrid'!S$34,'El og plugin hybrid'!S$17,0)+IF($B75<='El og plugin hybrid'!S$34,'El og plugin hybrid'!S$47,0)+IF($B75<='El og plugin hybrid'!S$34,'El og plugin hybrid'!S$48,0))*(1+'El og plugin hybrid'!S$37/100)^-$B75","v":0}]
[]
["Efterbrugsomkostninger",null,"BEREGNES IKKE FOR OPERATIONEL LEASING!"]
[null,"År indeks",null,null,{"$f":"'El og plugin hybrid'!E8","v":"PRODUKT 1 EL"},null,{"$f":"'El og plugin hybrid'!G8","v":"PRODUKT 2 EL"},null,{"$f":"'El og plugin hybrid'!I8","v":"PRODUKT 3 EL"},null,{"$f":"'El og plugin hybrid'!K8","v":"PRODUKT 4 EL"},null,{"$f":"'El og plugin hybrid'!M8","v":"PRODUKT 5 EL"},null,{"$f":"'El og plugin hybrid'!O8","v":"PRODUKT 6 EL"},null,{"$f":"'El og plugin hybrid'!Q8","v":"PRODUKT 7 EL"},null,{"$f":"'El og plugin hybrid'!S8","v":"PRODUKT 8 EL"}]
[null,1,{"$f":"B79","v":1}]
[null,2,{"$f":"B80","v":2}]
[null,3,3]
[null,4,4]
[null,5,5]
[null,6,6]
[null,7,7]
[null,8,8]
[null,9,9]
[null,10,10]
[null,11,11]
[null,12,12]
[null,13,13]
[null,14,14]
[null,15,15]
[]
["Gennemsnitlige årlige omkostninger"]
[null,"År indeks",null,null,{"$f":"'El og plugin hybrid'!E8","v":"PRODUKT 1 EL"},null,{"$f":"'El og plugin hybrid'!G8","v":"PRODUKT 2 EL"},null,{"$f":"'El og plugin hybrid'!I8","v":"PRODUKT 3 EL"},null,{"$f":"'El og plugin hybrid'!K8","v":"PRODUKT 4 EL"},null,{"$f":"'El og plugin hybrid'!M8","v":"PRODUKT 5 EL"},null,{"$f":"'El og plugin hybrid'!O8","v":"PRODUKT 6 EL"},null,{"$f":"'El og plugin hybrid'!Q8","v":"PRODUKT 7 EL"},null,{"$f":"'El og plugin hybrid'!S8","v":"PRODUKT 8 EL"}]
[null,1,{"$f":"B97","v":1},null,{"$f":"'El og plugin hybrid'!E$70","v":0},null,{"$f":"'El og plugin hybrid'!G$70","v":0},null,{"$f":"'El og plugin hybrid'!I$70","v":0},null,{"$f":"IF($B97<='El og plugin hybrid'!K$34,'El og plugin hybrid'!K$70,0)","v":0},null,{"$f":"IF($B97<='El og plugin hybrid'!M$34,'El og plugin hybrid'!M$70,0)","v":0},null,{"$f":"IF($B97<='El og plugin hybrid'!O$34,'El og plugin hybrid'!O$70,0)","v":0},null,{"$f":"IF($B97<='El og plugin hybrid'!Q$34,'El og plugin hybrid'!Q$70,0)","v":0},null,{"$f":"IF($B97<='El og plugin hybrid'!S$34,'El og plugin hybrid'!S$70,0)","v":0}]
[null,2,{"$f":"B98","v":2},null,{"$f":"PMT('El og plugin hybrid'!E$37/100,$B98,-E8)","v":0},null,{"$f":"PMT('El og plugin hybrid'!G$37/100,$B98,-G8)","v":0},null,{"$f":"PMT('El og plugin hybrid'!I$37/100,$B98,-I8)","v":0},null,{"$f":"IF($B98<='El og plugin hybrid'!K$34,PMT('El og plugin hybrid'!K$37/100,$B98,-K8),K97)","v":0},null,{"$f":"IF($B98<='El og plugin hybrid'!M$34,PMT('El og plugin hybrid'!M$37/100,$B98,-M8),M97)","v":0},null,{"$f":"IF($B98<='El og plugin hybrid'!O$34,PMT('El og plugin hybrid'!O$37/100,$B98,-O8),O97)","v":0},null,{"$f":"IF($B98<='El og plugin hybrid'!Q$34,PMT('El og plugin hybrid'!Q$37/100,$B98,-Q8),Q97)","v":0},null,{"$f":"IF($B98<='El og plugin hybrid'!S$34,PMT('El og plugin hybrid'!S$37/100,$B98,-S8),S97)","v":0}]
[null,3,3,null,{"$f":"PMT('El og plugin hybrid'!E$37/100,$B99,-E9)","v":0},null,{"$f":"PMT('El og plugin hybrid'!G$37/100,$B99,-G9)","v":0},null,{"$f":"PMT('El og plugin hybrid'!I$37/100,$B99,-I9)","v":0},null,{"$f":"IF($B99<='El og plugin hybrid'!K$34,PMT('El og plugin hybrid'!K$37/100,$B99,-K9),K98)","v":0},null,{"$f":"IF($B99<='El og plugin hybrid'!M$34,PMT('El og plugin hybrid'!M$37/100,$B99,-M9),M98)","v":0},null,{"$f":"IF($B99<='El og plugin hybrid'!O$34,PMT('El og plugin hybrid'!O$37/100,$B99,-O9),O98)","v":0},null,{"$f":"IF($B99<='El og plugin hybrid'!Q$34,PMT('El og plugin hybrid'!Q$37/100,$B99,-Q9),Q98)","v":0},null,{"$f":"IF($B99<='El og plugin hybrid'!S$34,PMT('El og plugin hybrid'!S$37/100,$B99,-S9),S98)","v":0}]
[null,4,4,null,{"$f":"PMT('El og plugin hybrid'!E$37/100,$B100,-E10)","v":0},null,{"$f":"PMT('El og plugin hybrid'!G$37/100,$B100,-G10)","v":0},null,{"$f":"PMT('El og plugin hybrid'!I$37/100,$B100,-I10)","v":0},null,{"$f":"IF($B100<='El og plugin hybrid'!K$34,PMT('El og plugin hybrid'!K$37/100,$B100,-K10),K99)","v":0},null,{"$f":"IF($B100<='El og plugin hybrid'!M$34,PMT('El og plugin hybrid'!M$37/100,$B100,-M10),M99)","v":0},null,{"$f":"IF($B100<='El og plugin hybrid'!O$34,PMT('El og plugin hybrid'!O$37/100,$B100,-O10),O99)","v":0},null,{"$f":"IF($B100<='El og plugin hybrid'!Q$34,PMT('El og plugin hybrid'!Q$37/100,$B100,-Q10),Q99)","v":0},null,{"$f":"IF($B100<='El og plugin hybrid'!S$34,PMT('El og plugin hybrid'!S$37/100,$B100,-S10),S99)","v":0}]
[null,5,5,null,{"$f":"PMT('El og plugin hybrid'!E$37/100,$B101,-E11)","v":0},null,{"$f":"PMT('El og plugin hybrid'!G$37/100,$B101,-G11)","v":0},null,{"$f":"PMT('El og plugin hybrid'!I$37/100,$B101,-I11)","v":0},null,{"$f":"IF($B101<='El og plugin hybrid'!K$34,PMT('El og plugin hybrid'!K$37/100,$B101,-K11),K100)","v":0},null,{"$f":"IF($B101<='El og plugin hybrid'!M$34,PMT('El og plugin hybrid'!M$37/100,$B101,-M11),M100)","v":0},null,{"$f":"IF($B101<='El og plugin hybrid'!O$34,PMT('El og plugin hybrid'!O$37/100,$B101,-O11),O100)","v":0},null,{"$f":"IF($B101<='El og plugin hybrid'!Q$34,PMT('El og plugin hybrid'!Q$37/100,$B101,-Q11),Q100)","v":0},null,{"$f":"IF($B101<='El og plugin hybrid'!S$34,PMT('El og plugin hybrid'!S$37/100,$B101,-S11),S100)","v":0}]
[null,6,6,null,{"$f":"PMT('El og plugin hybrid'!E$37/100,$B102,-E12)","v":0},null,{"$f":"PMT('El og plugin hybrid'!G$37/100,$B102,-G12)","v":0},null,{"$f":"PMT('El og plugin hybrid'!I$37/100,$B102,-I12)","v":0},null,{"$f":"IF($B102<='El og plugin hybrid'!K$34,PMT('El og plugin hybrid'!K$37/100,$B102,-K12),K101)","v":0},null,{"$f":"IF($B102<='El og plugin hybrid'!M$34,PMT('El og plugin hybrid'!M$37/100,$B102,-M12),M101)","v":0},null,{"$f":"IF($B102<='El og plugin hybrid'!O$34,PMT('El og plugin hybrid'!O$37/100,$B102,-O12),O101)","v":0},null,{"$f":"IF($B102<='El og plugin hybrid'!Q$34,PMT('El og plugin hybrid'!Q$37/100,$B102,-Q12),Q101)","v":0},null,{"$f":"IF($B102<='El og plugin hybrid'!S$34,PMT('El og plugin hybrid'!S$37/100,$B102,-S12),S101)","v":0}]
[null,7,7,null,{"$f":"PMT('El og plugin hybrid'!E$37/100,$B103,-E13)","v":0},null,{"$f":"PMT('El og plugin hybrid'!G$37/100,$B103,-G13)","v":0},null,{"$f":"PMT('El og plugin hybrid'!I$37/100,$B103,-I13)","v":0},null,{"$f":"IF($B103<='El og plugin hybrid'!K$34,PMT('El og plugin hybrid'!K$37/100,$B103,-K13),K102)","v":0},null,{"$f":"IF($B103<='El og plugin hybrid'!M$34,PMT('El og plugin hybrid'!M$37/100,$B103,-M13),M102)","v":0},null,{"$f":"IF($B103<='El og plugin hybrid'!O$34,PMT('El og plugin hybrid'!O$37/100,$B103,-O13),O102)","v":0},null,{"$f":"IF($B103<='El og plugin hybrid'!Q$34,PMT('El og plugin hybrid'!Q$37/100,$B103,-Q13),Q102)","v":0},null,{"$f":"IF($B103<='El og plugin hybrid'!S$34,PMT('El og plugin hybrid'!S$37/100,$B103,-S13),S102)","v":0}]
[null,8,8,null,{"$f":"PMT('El og plugin hybrid'!E$37/100,$B104,-E14)","v":0},null,{"$f":"PMT('El og plugin hybrid'!G$37/100,$B104,-G14)","v":0},null,{"$f":"PMT('El og plugin hybrid'!I$37/100,$B104,-I14)","v":0},null,{"$f":"IF($B104<='El og plugin hybrid'!K$34,PMT('El og plugin hybrid'!K$37/100,$B104,-K14),K103)","v":0},null,{"$f":"IF($B104<='El og plugin hybrid'!M$34,PMT('El og plugin hybrid'!M$37/100,$B104,-M14),M103)","v":0},null,{"$f":"IF($B104<='El og plugin hybrid'!O$34,PMT('El og plugin hybrid'!O$37/100,$B104,-O14),O103)","v":0},null,{"$f":"IF($B104<='El og plugin hybrid'!Q$34,PMT('El og plugin hybrid'!Q$37/100,$B104,-Q14),Q103)","v":0},null,{"$f":"IF($B104<='El og plugin hybrid'!S$34,PMT('El og plugin hybrid'!S$37/100,$B104,-S14),S103)","v":0}]
[null,9,9,null,{"$f":"PMT('El og plugin hybrid'!E$37/100,$B105,-E15)","v":0},null,{"$f":"PMT('El og plugin hybrid'!G$37/100,$B105,-G15)","v":0},null,{"$f":"PMT('El og plugin hybrid'!I$37/100,$B105,-I15)","v":0},null,{"$f":"IF($B105<='El og plugin hybrid'!K$34,PMT('El og plugin hybrid'!K$37/100,$B105,-K15),K104)","v":0},null,{"$f":"IF($B105<='El og plugin hybrid'!M$34,PMT('El og plugin hybrid'!M$37/100,$B105,-M15),M104)","v":0},null,{"$f":"IF($B105<='El og plugin hybrid'!O$34,PMT('El og plugin hybrid'!O$37/100,$B105,-O15),O104)","v":0},null,{"$f":"IF($B105<='El og plugin hybrid'!Q$34,PMT('El og plugin hybrid'!Q$37/100,$B105,-Q15),Q104)","v":0},null,{"$f":"IF($B105<='El og plugin hybrid'!S$34,PMT('El og plugin hybrid'!S$37/100,$B105,-S15),S104)","v":0}]
[null,10,10,null,{"$f":"PMT('El og plugin hybrid'!E$37/100,$B106,-E16)","v":0},null,{"$f":"PMT('El og plugin hybrid'!G$37/100,$B106,-G16)","v":0},null,{"$f":"PMT('El og plugin hybrid'!I$37/100,$B106,-I16)","v":0},null,{"$f":"IF($B106<='El og plugin hybrid'!K$34,PMT('El og plugin hybrid'!K$37/100,$B106,-K16),K105)","v":0},null,{"$f":"IF($B106<='El og plugin hybrid'!M$34,PMT('El og plugin hybrid'!M$37/100,$B106,-M16),M105)","v":0},null,{"$f":"IF($B106<='El og plugin hybrid'!O$34,PMT('El og plugin hybrid'!O$37/100,$B106,-O16),O105)","v":0},null,{"$f":"IF($B106<='El og plugin hybrid'!Q$34,PMT('El og plugin hybrid'!Q$37/100,$B106,-Q16),Q105)","v":0},null,{"$f":"IF($B106<='El og plugin hybrid'!S$34,PMT('El og plugin hybrid'!S$37/100,$B106,-S16),S105)","v":0}]
[null,11,11,null,{"$f":"PMT('El og plugin hybrid'!E$37/100,$B107,-E17)","v":0},null,{"$f":"PMT('El og plugin hybrid'!G$37/100,$B107,-G17)","v":0},null,{"$f":"PMT('El og plugin hybrid'!I$37/100,$B107,-I17)","v":0},null,{"$f":"IF($B107<='El og plugin hybrid'!K$34,PMT('El og plugin hybrid'!K$37/100,$B107,-K17),K106)","v":0},null,{"$f":"IF($B107<='El og plugin hybrid'!M$34,PMT('El og plugin hybrid'!M$37/100,$B107,-M17),M106)","v":0},null,{"$f":"IF($B107<='El og plugin hybrid'!O$34,PMT('El og plugin hybrid'!O$37/100,$B107,-O17),O106)","v":0},null,{"$f":"IF($B107<='El og plugin hybrid'!Q$34,PMT('El og plugin hybrid'!Q$37/100,$B107,-Q17),Q106)","v":0},null,{"$f":"IF($B107<='El og plugin hybrid'!S$34,PMT('El og plugin hybrid'!S$37/100,$B107,-S17),S106)","v":0}]
[null,12,12,null,{"$f":"PMT('El og plugin hybrid'!E$37/100,$B108,-E18)","v":0},null,{"$f":"PMT('El og plugin hybrid'!G$37/100,$B108,-G18)","v":0},null,{"$f":"PMT('El og plugin hybrid'!I$37/100,$B108,-I18)","v":0},null,{"$f":"IF($B108<='El og plugin hybrid'!K$34,PMT('El og plugin hybrid'!K$37/100,$B108,-K18),K107)","v":0},null,{"$f":"IF($B108<='El og plugin hybrid'!M$34,PMT('El og plugin hybrid'!M$37/100,$B108,-M18),M107)","v":0},null,{"$f":"IF($B108<='El og plugin hybrid'!O$34,PMT('El og plugin hybrid'!O$37/100,$B108,-O18),O107)","v":0},null,{"$f":"IF($B108<='El og plugin hybrid'!Q$34,PMT('El og plugin hybrid'!Q$37/100,$B108,-Q18),Q107)","v":0},null,{"$f":"IF($B108<='El og plugin hybrid'!S$34,PMT('El og plugin hybrid'!S$37/100,$B108,-S18),S107)","v":0}]
[null,13,13,null,{"$f":"PMT('El og plugin hybrid'!E$37/100,$B109,-E19)","v":0},null,{"$f":"PMT('El og plugin hybrid'!G$37/100,$B109,-G19)","v":0},null,{"$f":"PMT('El og plugin hybrid'!I$37/100,$B109,-I19)","v":0},null,{"$f":"IF($B109<='El og plugin hybrid'!K$34,PMT('El og plugin hybrid'!K$37/100,$B109,-K19),K108)","v":0},null,{"$f":"IF($B109<='El og plugin hybrid'!M$34,PMT('El og plugin hybrid'!M$37/100,$B109,-M19),M108)","v":0},null,{"$f":"IF($B109<='El og plugin hybrid'!O$34,PMT('El og plugin hybrid'!O$37/100,$B109,-O19),O108)","v":0},null,{"$f":"IF($B109<='El og plugin hybrid'!Q$34,PMT('El og plugin hybrid'!Q$37/100,$B109,-Q19),Q108)","v":0},null,{"$f":"IF($B109<='El og plugin hybrid'!S$34,PMT('El og plugin hybrid'!S$37/100,$B109,-S19),S108)","v":0}]
[null,14,14,null,{"$f":"PMT('El og plugin hybrid'!E$37/100,$B110,-E20)","v":0},null,{"$f":"PMT('El og plugin hybrid'!G$37/100,$B110,-G20)","v":0},null,{"$f":"PMT('El og plugin hybrid'!I$37/100,$B110,-I20)","v":0},null,{"$f":"IF($B110<='El og plugin hybrid'!K$34,PMT('El og plugin hybrid'!K$37/100,$B110,-K20),K109)","v":0},null,{"$f":"IF($B110<='El og plugin hybrid'!M$34,PMT('El og plugin hybrid'!M$37/100,$B110,-M20),M109)","v":0},null,{"$f":"IF($B110<='El og plugin hybrid'!O$34,PMT('El og plugin hybrid'!O$37/100,$B110,-O20),O109)","v":0},null,{"$f":"IF($B110<='El og plugin hybrid'!Q$34,PMT('El og plugin hybrid'!Q$37/100,$B110,-Q20),Q109)","v":0},null,{"$f":"IF($B110<='El og plugin hybrid'!S$34,PMT('El og plugin hybrid'!S$37/100,$B110,-S20),S109)","v":0}]
[null,15,15,null,{"$f":"PMT('El og plugin hybrid'!E$37/100,$B111,-E21)","v":0},null,{"$f":"PMT('El og plugin hybrid'!G$37/100,$B111,-G21)","v":0},null,{"$f":"PMT('El og plugin hybrid'!I$37/100,$B111,-I21)","v":0},null,{"$f":"IF($B111<='El og plugin hybrid'!K$34,PMT('El og plugin hybrid'!K$37/100,$B111,-K21),K110)","v":0},null,{"$f":"IF($B111<='El og plugin hybrid'!M$34,PMT('El og plugin hybrid'!M$37/100,$B111,-M21),M110)","v":0},null,{"$f":"IF($B111<='El og plugin hybrid'!O$34,PMT('El og plugin hybrid'!O$37/100,$B111,-O21),O110)","v":0},null,{"$f":"IF($B111<='El og plugin hybrid'!Q$34,PMT('El og plugin hybrid'!Q$37/100,$B111,-Q21),Q110)","v":0},null,{"$f":"IF($B111<='El og plugin hybrid'!S$34,PMT('El og plugin hybrid'!S$37/100,$B111,-S21),S110)","v":0}]

{"sheet":"ENS udvikling i elpris","index":7,"n_rows":29,"n_cols":6,"rows_kept":29,"cut":false,"hidden":true,"merged":[]}
["Energistyrelsens 'Samfundsøkonomiske beregningsforudsætninger 2019 af oktober 2019'"]
["Tabel 7: Samfundsøkonomiske priser på el"]
[]
["2019-priser kr./MWh","Rå samfundsøkonomisk pris på el","An\nvirksomhed*\n(> 15 MWh)","An\nhusholdning*\n(< 15 MWh)"]
[2019,350,491.04027223076099,675.27079961678908]
[2020,370,512.26056969585852,696.49109708188655,{"$f":"((C6/$C$5)^(1/(A6-$A$5)))-1","v":4.3214983913020477E-2},{"$f":"AVERAGE($E$6:E6)","v":4.3214983913020477E-2}]
[2021,360,501.63687146843711,685.86739885446525,{"$f":"((C7/$C$5)^(1/(A7-$A$5)))-1","v":1.0732357504783074E-2},{"$f":"AVERAGE($E$6:E7)","v":2.6973670708901776E-2}]
[2022,360,501.62868763702522,685.85921502305325,{"$f":"((C8/$C$5)^(1/(A8-$A$5)))-1","v":7.1366905495475752E-3},{"$f":"AVERAGE($E$6:E8)","v":2.0361343989117042E-2}]
[2023,380,522.85155531929979,707.08208270532782,1.5816640953520311E-2,{"$f":"AVERAGE($E$6:E9)","v":1.9225168230217859E-2}]
[2024,390,533.46187389034321,717.69240127637124,1.6710373911233534E-2,{"$f":"AVERAGE($E$6:E10)","v":1.8722209366420994E-2}]
[2025,400,544.07395991253111,728.30448729855914,1.7240098928582581E-2,{"$f":"AVERAGE($E$6:E11)","v":1.8475190960114591E-2}]
[2026,390,533.47661210050194,717.70713948652997,1.1911683699938669E-2,{"$f":"AVERAGE($E$6:E12)","v":1.7537547065803745E-2}]
[2027,390,533.4912983062361,717.72182569226413,1.0418475121897863E-2,{"$f":"AVERAGE($E$6:E13)","v":1.6647663072815511E-2}]
[2028,390,533.50800983662907,717.7385372226571,9.2590398204261959E-3,{"$f":"AVERAGE($E$6:E14)","v":1.5826704933661142E-2}]
[2029,380,522.90800951562835,707.13853690165638,6.3077519338963217E-3,{"$f":"AVERAGE($E$6:E15)","v":1.487480963368466E-2}]
[2030,380,522.92238996038088,707.15291734640891,5.7351939606606894E-3,{"$f":"AVERAGE($E$6:E16)","v":1.4043935481591573E-2}]
[2031,380,522.92238996038088,707.15291734640891,5.2560074158845005E-3,{"$f":"AVERAGE($E$6:E17)","v":1.3311608142782649E-2}]
[2032,380,522.92238996038088,707.15291734640891,4.8507202075911415E-3,{"$f":"AVERAGE($E$6:E18)","v":1.266077060930638E-2}]
[2033,370,512.30667870772697,696.537206093755,3.0329674744697943E-3,{"$f":"AVERAGE($E$6:E19)","v":1.1973070385389481E-2}]
[2034,380,522.92238996038088,707.15291734640891,4.2026005166180269E-3,{"$f":"AVERAGE($E$6:E20)","v":1.1455039060804717E-2}]
[2035,370,512.30667870772697,696.537206093755,2.6533440470177805E-3,{"$f":"AVERAGE($E$6:E21)","v":1.0904933122443033E-2}]
[2036,380,522.92238996038088,707.15291734640891,3.7072616534301606E-3,{"$f":"AVERAGE($E$6:E22)","v":1.0481540683089334E-2}]
[2037,380,522.92238996038088,707.15291734640891,3.5009425797452032E-3,{"$f":"AVERAGE($E$6:E23)","v":1.0093729677347995E-2}]
[2038,380,522.92238996038088,707.15291734640891,3.3163772524753554E-3,{"$f":"AVERAGE($E$6:E24)","v":9.7370269181441711E-3}]
[2039,380,522.92238996038088,707.15291734640891,3.1502974815287299E-3,{"$f":"AVERAGE($E$6:E25)","v":9.4076904463133992E-3}]
[2040,380,522.92238996038088,707.15291734640891,3.0000585204139618E-3,{"$f":"AVERAGE($E$6:E26)","v":9.1025651165086638E-3}]
["*Inkl. nettab på 6 pct. For fleksible enheder som varmepumper, elpatroner og kraftvarmeanlæg, der driftes efter elprisen, bør der korrigeres for årsvariationerne i elprisen, som beskrevet nedenfor."]
["Note 1: Ved ”virksomhed” forstås alle typer kunder med et årligt elforbrug på mere end 15 MWh."]
["Note 2: Elpriserne er afrundet til hele ører pr. kWh, svarende til hele tiere pr. MWh"]

{"sheet":"ENS udvikling i brændstofspris","index":8,"n_rows":35,"n_cols":10,"rows_kept":35,"cut":false,"hidden":true,"merged":[]}
["Energistyrelsens 'Fremskrivning af brændselspriser og CO2-kvotepris' af 28. august 2019"]
["Tabel 3: Priser på fossile brændsler anvendt i fremskrivningerne"]
[]
["2019-priser","Rå samfundsøkonomisk importpris på råolie\n(kr./GJ)","An\nforbruger\n(benzin)\n(kr./GJ)","An\nforbruger\n(diesel)\n(kr./GJ)","Beregnet pris/liter benzin\n(kr./liter benzin)","Beregnet pris/liter diesel\n(kr./liter diesel)","Benzin","Benzin","Diesel","Diesel"]
[2019,73.900000000000006,123.6,118.1,{"$f":"+C5*$C$34","v":3.9552},{"$f":"+D5*$C$35","v":4.2515999999999998}]
[2020,75.900000000000006,125.7,120.1,{"$f":"+C6*$C$34","v":4.0224000000000002},{"$f":"+D6*$C$35","v":4.3235999999999999},{"$f":"((C6/$C$5)^(1/(A6-$A$5)))-1","v":1.6990291262136026E-2},{"$f":"AVERAGE($G$6:G6)","v":1.6990291262136026E-2},{"$f":"((D6/$D$5)^(1/(A6-$A$5)))-1","v":1.693480101608813E-2},{"$f":"AVERAGE($I$6:I6)","v":1.693480101608813E-2}]
[2021,77.7,127.4,121.9,4.0768000000000004,4.3883999999999999,{"$f":"((C7/$C$5)^(1/(A7-$A$5)))-1","v":1.5255798589488112E-2},{"$f":"AVERAGE($G$6:G7)","v":1.6123044925812069E-2},{"$f":"((D7/$D$5)^(1/(A7-$A$5)))-1","v":1.5960689165957609E-2},{"$f":"AVERAGE($I$6:I7)","v":1.644774509102287E-2}]
[2022,79.3,129,123.5,4.1280000000000001,4.4459999999999997,{"$f":"((C8/$C$5)^(1/(A8-$A$5)))-1","v":1.4356025102198133E-2},{"$f":"AVERAGE($G$6:G8)","v":1.5534038317940757E-2},1.5014749878575984E-2,{"$f":"AVERAGE($I$6:I8)","v":1.597008002020724E-2}]
[2023,81,130.80000000000001,125.2,4.1856000000000009,4.5072000000000001,1.4255375940340098E-2,{"$f":"AVERAGE($G$6:G9)","v":1.5214372723540592E-2},1.470221363415769E-2,{"$f":"AVERAGE($I$6:I9)","v":1.5653113423694853E-2}]
[2024,82.7,132.4,126.9,4.2368000000000006,4.5683999999999996,1.3850460757952376E-2,{"$f":"AVERAGE($G$6:G10)","v":1.4941590330422949E-2},1.4477326198338414E-2,{"$f":"AVERAGE($I$6:I10)","v":1.5417955978623565E-2}]
[2025,84.1,133.80000000000001,128.19999999999999,4.2816000000000001,4.6151999999999989,1.3303650223536412E-2,{"$f":"AVERAGE($G$6:G11)","v":1.4668600312608526E-2},1.3770589910605313E-2,{"$f":"AVERAGE($I$6:I11)","v":1.5143394967287191E-2}]
[2026,86.7,136.4,130.9,4.3648000000000007,4.7123999999999997,1.4176866323344806E-2,{"$f":"AVERAGE($G$6:G12)","v":1.4598352599856566E-2},1.4808859026894661E-2,{"$f":"AVERAGE($I$6:I12)","v":1.5095604118659687E-2}]
[2027,88.2,137.9,132.4,4.4127999999999998,4.7664,1.3778845170805631E-2,{"$f":"AVERAGE($G$6:G13)","v":1.4495914171225199E-2},1.4389536859433782E-2,{"$f":"AVERAGE($I$6:I13)","v":1.5007345711256448E-2}]
[2028,89.6,139.30000000000001,133.80000000000001,4.4576000000000002,4.8167999999999997,1.337525186093913E-2,{"$f":"AVERAGE($G$6:G14)","v":1.437139613674897E-2},1.3964879926149809E-2,{"$f":"AVERAGE($I$6:I14)","v":1.4891516179577933E-2}]
[2029,90.9,140.69999999999999,135.1,4.5023999999999997,4.863599999999999,1.3042259840952974E-2,{"$f":"AVERAGE($G$6:G15)","v":1.4238482507169369E-2},1.3539188005064373E-2,{"$f":"AVERAGE($I$6:I15)","v":1.4756283362126577E-2}]
[2030,92.1,141.9,136.30000000000001,4.5407999999999999,4.9067999999999996,1.2631110592491446E-2,{"$f":"AVERAGE($G$6:G16)","v":1.4092357787653194E-2},1.3114948644548985E-2,{"$f":"AVERAGE($I$6:I16)","v":1.4607071115074068E-2}]
[2031,93.7,143.4,137.9,4.5888,4.9643999999999995,1.2459259773720754E-2,{"$f":"AVERAGE($G$6:G17)","v":1.3956266286492158E-2},1.3000199088065267E-2,{"$f":"AVERAGE($I$6:I17)","v":1.4473165112823335E-2}]
[2032,95.6,145.30000000000001,139.69999999999999,4.6496000000000004,5.0291999999999994,1.2520037228344716E-2,{"$f":"AVERAGE($G$6:G18)","v":1.3845787128173125E-2},1.3004255746187576E-2,{"$f":"AVERAGE($I$6:I18)","v":1.4360172084620584E-2}]
[2033,97.3,147.1,141.5,4.7072000000000003,5.0939999999999994,1.2510617029703797E-2,{"$f":"AVERAGE($G$6:G19)","v":1.3750417835425315E-2},1.2995719371205361E-2,{"$f":"AVERAGE($I$6:I19)","v":1.4262711176519496E-2}]
[2034,99,148.69999999999999,143.19999999999999,4.7584,5.1551999999999989,1.2401624100809583E-2,{"$f":"AVERAGE($G$6:G20)","v":1.36604982531176E-2},1.2930250755056383E-2,{"$f":"AVERAGE($I$6:I20)","v":1.417388048175529E-2}]
[2035,100.6,150.30000000000001,144.80000000000001,4.8096000000000005,5.2127999999999997,1.2298939475484216E-2,{"$f":"AVERAGE($G$6:G21)","v":1.3575400829515513E-2},1.2820344711908627E-2,{"$f":"AVERAGE($I$6:I21)","v":1.4089284496139873E-2}]
[2036,102.1,151.80000000000001,146.30000000000001,4.8576000000000006,5.2667999999999999,1.2162386356991295E-2,{"$f":"AVERAGE($G$6:G22)","v":1.3492282331131736E-2},1.2675400729742492E-2,{"$f":"AVERAGE($I$6:I22)","v":1.400611486282238E-2}]
[2037,103.5,153.30000000000001,147.69999999999999,4.9056000000000006,5.3171999999999988,1.2035531116097342E-2,{"$f":"AVERAGE($G$6:G23)","v":1.341135170807427E-2},1.2502593486070968E-2,{"$f":"AVERAGE($I$6:I23)","v":1.3922585897447302E-2}]
[2038,104.9,154.6,149.1,4.9471999999999996,5.3675999999999995,1.1848091277497641E-2,{"$f":"AVERAGE($G$6:G24)","v":1.3329074843307078E-2},1.2343214183948126E-2,{"$f":"AVERAGE($I$6:I24)","v":1.3839461070421029E-2}]
[2039,106.1,155.9,150.30000000000001,4.9888000000000003,5.4108000000000001,1.1675848300254366E-2,{"$f":"AVERAGE($G$6:G25)","v":1.3246413516154442E-2},1.2128034004737165E-2,{"$f":"AVERAGE($I$6:I25)","v":1.3753889717136836E-2}]
[2040,107.3,157,151.5,5.024,5.4539999999999997,1.1455366388732902E-2,{"$f":"AVERAGE($G$6:G26)","v":1.3161125557705797E-2},1.1930314805916442E-2,{"$f":"AVERAGE($I$6:I26)","v":1.3667052816602531E-2}]
[]
[]
["Energiindhold i motorbrændstof er fastsat efter tabel 1 i Bekendtgørelse nr. 1394 af 14. december 2010"]
["\"Bekendtgørelse om miljøbevidste indkøb af køretøjer til vejtransport\""]
[]
["Energiindhold ifølge BEK nr. 1394, 2010"]
[null,"MJ/liter","GJ/liter"]
["Benzin",32,{"$f":"+B34/1000","v":3.2000000000000001E-2}]
["Diesel",36,{"$f":"+B35/1000","v":3.5999999999999997E-2}]